Workbook

Sheet Instructions
A2: Comprehensive Cost of Rail Incidents: Cost Tool
A4: Tool Instructions & Definitions
A7: No. | B7: Analysis Category | C7: Description
A8: 1 | B8: General Tool Architecture | C8: The Comprehensive Cost of Rail Incidents Cost Tool was built to estimate the wide spectrum of costs that occur as a result of a rail incident. This tool appraises the costs associated with four (4) primary cost components that are incurred during an incident. These include: 1) Property Damage (rail and highway rolling stock, vehicles, and infrastructure) 2) Casualties (injuries and fatalities) 3) Delay and Rerouting a. Passenger Train Delay and Rerouting b. Freight Train Delay & Rerouting c. Additional Operating Costs d. Emissions Costs 4) First Responder and Emergency Management (personnel and equipment) | I8: Password to Unlock Sheets in Workbook is "NCDOT"
A9: 2 | B9: General Using the Tool | C9: The "CostCalculator" tab houses the excel application that can be used to estimate the costs associated from a give rail incident. It provides recommended values based on historic incident data or research and allows for the user to tailor their estimates with custom values, based on specific context-specific information. Within the tool, yellow cells denote locations where a value should be either selected from a dropdown menu or entered into a cell. A good way to remember this is to "follow the yellow brick road." The dropdown menus will have recommended values for instances where you do not have incident-specific data available. In instances where you do have specific information, you can enter it as a custom value. Before getting started, video guides for each of the four cost components can be viewed. 1) Property Damage Cost Guide. Link: Will be completed by mid-January 2) Casualty Cost Guide. Link: Will be completed by mid-January 3) Delay and Rerouting Cost Guide. Link: Will be completed by mid-January 4) First Responder and Emergency Management Cost Guide. Link: Will be completed by mid-January
A10: 3 | B10: General Drilling Down for More Granularity | C10: The "PropDMG_Custom" tab and the "AAR Parts" tab support the Property Damage Cost Analysis and can be used to provide more granularity to this component of the analysis. The "Injuries_WorkMissed" tab can be used to provide more depth to the Casualties Cost Analysis. The "Freight_Cargo" tab can be used to customize the freight commodity, which is used in the Delay and Rerouting Cost Analysis. The "Lookup Tables" tab can be viewed to reference historic data or values obtained in the research.
A11: 4 | B11: Property Damage Guidance | C11: The Property Damage Cost Analysis is denoted by cells with a navy blue color in the "CostCalculator" tab. A general estimate can be made using the "CostCalculator" tab (rows 8-15), or an fully tailored estimated can be made using the "PropDMG_Custom" tab (rows 9-56). The AAR Parts tab can be used to identify maintenance and replacement costs for train parts as part of the estimate using the "PropDMG_Custom" tab.
A12: 5 | B12: Casualties Guidance | C12: The Casualty Cost Analysis is denoted by green cells in the "CostCalculator" tab (rows 21-44). Maxium abbreviated injury scale (MAIS) and the National Safety Council's KABCO scale are available for appraising injury and fatality costs. The "Injuries_WorkMissed" supports the Casualty Cost Analysis by estimating loss in productivity costs associated with worked days missed due to injury.
A13: 6 | B13: Delay and Rerouting Guidance | C13: The Delay and Rerouting Analysis is denoted by red shades for passsenger rail and blue shades for freight rail in the "CostCalculator" tab (rows 50-242). There are three primary categories of delay and rerouting costs that are estimated, which include: 1) Passenger rail delay and upstream passenger rail delay costs. These include value of time costs for passengers and crew members, rerouting costs for passengers and Amtrak, and upstream costs associated with delay including costs for additional wait-time, rerouting, or cancellations. 2) Freight rail delay and upstream costs. These include value of time costs for freight train staff, shipper costs associated with delay (i.e. opportunity, spoilage, and useful life costs), cargo replacement costs, and upstream freight train costs. 3) Additional operating and emissions costs from increased idling or engine run-time are also estimated within this tool. The "Freight_Cargo" tab allows for a customized commodity mix to be created and integrated into the freight cost analysis.
A14: 7 | B14: First and Emergency Response Guidance | C14: The First and Emergency Response Analysis is shown through shades of brown in the "CostCalculator" tab (rows 247-326). There are two primary categories of first and emergency response costs that are estimated, including: 1) Emergency Personnel Costs (the value of time for first and emergency responders) 2) Emergency Equipment Costs (the cost to use equipment as part of a railroad incident response effort)

Sheet CostCalculator
C2: NCDOT Rail Division | Q2: NCDOT Rail Division
C3: Comprehensive Cost of Rail Incidents: Cost Tool | Q3: Comprehensive Cost of Rail Incidents Cost Tool
A5: Part I: Property Damage Model Inputs
A8: Property Damage Input Guidance | E8: Dropdown Menu | F8: Total Damages Incurred | I8: Table 1: Summary Property Damage Cost Statistics of Rail Events in North Carolina (in $2022) | T8: CPI Inflation Calculator
A9: Option A | B9: If rail incident damage costs are unknown, select from a set of default values from the dropdown menu | F9: =IF(E9=I9,I10,IF(E9=J9,J10,IF(E9=K9,K10,IF(E9=L9,L10,IF(E9=M9,M10,IF(E9=N9,N10,IF(E9=O9,O10,IF(E9=P9,P10,IF(E9=Q9,Q10,"--From Dropdown Menu to Left--"))))))))) -> --From Dropdown Menu to Left-- | I9: Minimum | J9: Percentile (10) | K9: Percentile (25) | L9: Mean | M9: Median* | N9: Mode | O9: Percentile (75) | P9: Percentile (90) | Q9: Maximum | R9: No. of Observations | T9: Year Event Occurred | U9: Costs in Event Year Dollars | V9: Costs in $2022
A10: Option B | B10: If costs are known, enter the total dollar value (in $2022) of property damages incurred the during incident.1 | I10: =ROUND('Lookup Tables'!A13,-1) -> 3840 | J10: =ROUND('Lookup Tables'!B13,-1) -> 14170 | K10: =ROUND('Lookup Tables'!C13,-1) -> 18930 | L10: =ROUND('Lookup Tables'!D13,-1) -> 133110 | M10: =ROUND('Lookup Tables'!E13,-1) -> 34790 | N10: =ROUND('Lookup Tables'!F13,-1) -> 52340 | O10: =ROUND('Lookup Tables'!G13,-1) -> 87000 | P10: =ROUND('Lookup Tables'!H13,-1) -> 241250 | Q10: =ROUND('Lookup Tables'!I13,-1) -> 8578020 | R10: ='Lookup Tables'!J13 -> 1125 | V10: =IF(ISBLANK(T10),"--enter values to left--",VLOOKUP(T10,'Lookup Tables'!$Q$11:$R$64,2,FALSE)*U10) -> --enter values to left--
A11: Option C | B11: Build a more in-depth custom estimate of incurred damages via the "PropDMG_Custom" Tab | F11: =IF(PropDMG_Custom!F56<>3840,PropDMG_Custom!F56,"--From PropDMG_Custom Tab--") -> --From PropDMG_Custom Tab-- | I11: *Due to the skewed distribution of property damages incurred, it is recommended that the median value is selected when choosing a generalized estimate for damages incurred
A12: 1Convert costs into 2020 dollars using the Bureau of Labor Statistics CPI Inflation Calculator (https://www.bls.gov/data/inflation_calculator.htm), or use the converter located in cell T8 - V10.
A14: Step by Step Guidance | E14: Property Damage Subtotal
A15: Based on the information provided in Options A, B, or C, the Total Property Damage tabulated for Part I of the model is... | E15: =IF(AND(ISNUMBER(F9),ISNUMBER(F10)),"--input values for one option only--",IF(AND(ISNUMBER(F9),ISNUMBER(F10),ISNUMBER(F11)),"--input values for one option only--",IF(AND(ISNUMBER(F9),ISNUMBER(F11)),"--input values for one option only--",IF(AND(ISNUMBER(F10),ISNUMBER(F11)),"--input values for one option only--",IF(SUM(F9:F11)=0,"--Enter Values Above--",SUM(F9:F11)))))) -> --Enter Values Above--
A17: Part II: Casualty Input Values
T20: Table 4: Casualty Statistics (Ten-Year Average)
A21: Step by Step Guidance | T21: Casualty Statistic | X21: NC (1999-2000) | Y21: NC (2000-2009) | Z21: NC (2010-2019) | AA21: NC (All Years)
A22: Enter the number of fatalities and injury by type that have occurred during a rail incident. Rail casualty statistics can be found in Tables 2, 3, and 4 may be used as benchmarks. | T22: Average Annual No. of Rail Events: Casualty & Non-Casualty | X22: =DataExtract!AN3 -> 315.4 | Y22: =DataExtract!AZ3 -> 205.4 | Z22: 187 | AA22: =DataExtract!BM3 -> 235.9333333
T23: Highway Rail Crossing Events | X23: =DataExtract!AN43 -> 145.9 | Y23: =DataExtract!AZ43 -> 75.1 | Z23: =DataExtract!BL43 -> 50.6 | AA23: =DataExtract!BM43 -> 90.53333333
A24: Casualty Charactertistics for a Rail Incident | I24: Table 2: Summary Statistics for No. of Injuries That Have Occurred During Rail Events in North Carolina1 | T24: All Other Events / Incidents | X24: =DataExtract!AN48+DataExtract!AN18 -> 169.5 | Y24: =DataExtract!AZ48+DataExtract!AZ18 -> 130.3 | Z24: =DataExtract!BL48+DataExtract!BL18 -> 136.4 | AA24: =DataExtract!BM48+DataExtract!BM18 -> 145.4
A25: Step | B25: Casualty Type | C25: Fraction of VSL | D25: No. of Occurances | E25: Monetized Injury Cost in $2022 | F25: Total Casualty Cost Incurred | I25: Minimum | J25: Percentile (10) | K25: Percentile (25) | L25: Mean | M25: Median* | N25: Mode | O25: Percentile (75) | P25: Percentile (90) | Q25: Maximum | R25: No. of Observations | T25: Average Annual No. of Rail Events: Casualty Events | X25: =X31+X28 -> 217.7 | Y25: =Y31+Y28 -> 135.9 | Z25: =Z31+Z28 -> 153.8 | AA25: =AA31+AA28 -> 169.1333333
A26: MAIS Scale | I26: ='Lookup Tables'!F82 -> 0 | J26: ='Lookup Tables'!G82 -> 1 | K26: ='Lookup Tables'!H82 -> 2 | L26: ='Lookup Tables'!I82 -> 9.041666667 | M26: ='Lookup Tables'!J82 -> 4 | N26: ='Lookup Tables'!K82 -> 2 | O26: ='Lookup Tables'!L82 -> 8 | P26: ='Lookup Tables'!M82 -> 25.9 | Q26: ='Lookup Tables'!N82 -> 87 | R26: ='Lookup Tables'!O82 -> 1109 | T26: Highway Rail Crossing Events | X26: =X32+X29 -> 64.7 | Y26: 32.7 | Z26: 38.5 | AA26: 45.3
A27: 2.A | B27: Fatality ($10,833,000 | 1.000 VSL) | C27: 1 | E27: ='Lookup Tables'!D83 -> 10883000 | F27: =IF(ISBLANK(D27),"--",(D27*E27)) -> -- | I27: 1Values were obtained from FRA Form 6180.54 records that resulted in an injury event. Only injury events were evaluated; however, zero is provided in the table to demonstrate the true lower bound. | T27: Other Events / Incidents | X27: 153 | Y27: 103.2 | Z27: 115.3 | AA27: 123.8333333
A28: 2.B | B28: Injury: Minor, MAIS Level 1 ($33,000 | 0.003 VSL) | C28: 0.003 | E28: ='Lookup Tables'!D84 -> 33000 | F28: -- | T28: Average Annual No. of Rail Events: Fatalities | X28: =DataExtract!AN4 -> 35 | Y28: =DataExtract!AZ4 -> 25.6 | Z28: =DataExtract!BL4 -> 22.3 | AA28: =DataExtract!BM4 -> 27.63333333
A29: 2.C | B29: Injury: Moderate, MAIS Level 2 ($511,200 | 0.047 VSL) | C29: 0.047 | E29: ='Lookup Tables'!D85 -> 511000 | F29: -- | T29: Highway Rail Crossing Events | X29: =DataExtract!AN44 -> 12.3 | Y29: =DataExtract!AZ44 -> 7.4 | Z29: =DataExtract!BL44 -> 5.3 | AA29: =DataExtract!BM44 -> 8.333333333
A30: 2.E | B30: Injury: Serious, MAIS Level 3 ($1,143,000 | 0.105 VSL) | C30: 0.105 | E30: ='Lookup Tables'!D86 -> 1143000 | F30: -- | I30: Table 3: Summary Statistics for No. of Fatalities That Have Occurred During Rail Events in North Carolina1 | T30: All Other Events / Incidents | X30: =DataExtract!AN49+DataExtract!AN19 -> 22.7 | Y30: =DataExtract!AZ49+DataExtract!AZ19 -> 18.2 | Z30: =DataExtract!BL49+DataExtract!BL19 -> 17 | AA30: =DataExtract!BM49+DataExtract!BM19 -> 19.3
A31: 2.F | B31: Injury: Severe, MAIS Level 4 ($2,895,000 | 0.266 VSL) | C31: 0.266 | E31: ='Lookup Tables'!D87 -> 2895000 | F31: -- | I31: Minimum | J31: Percentile (10) | K31: Percentile (25) | L31: Mean | M31: Median* | N31: Mode | O31: Percentile (75) | P31: Percentile (90) | Q31: Maximum | R31: No. of Observations | T31: Average Annual No. of Rail Events: Injuries | X31: =DataExtract!AN5 -> 182.7 | Y31: =DataExtract!AZ5 -> 110.3 | Z31: =DataExtract!BL5 -> 131.5 | AA31: =DataExtract!BM5 -> 141.5
A32: 2.G | B32: Injury: Critical, MAIS Level 5 ($6,205,000 | 0.593 VSL) | C32: 0.593 | E32: ='Lookup Tables'!D88 -> 6205000 | F32: -- | I32: ='Lookup Tables'!F86 -> 0 | J32: ='Lookup Tables'!G86 -> 1 | K32: ='Lookup Tables'!H86 -> 1 | L32: ='Lookup Tables'!I86 -> 2.171428571 | M32: ='Lookup Tables'!J86 -> 2 | N32: ='Lookup Tables'!K86 -> 2 | O32: ='Lookup Tables'!L86 -> 2 | P32: ='Lookup Tables'!M86 -> 4 | Q32: ='Lookup Tables'!N86 -> 6 | R32: ='Lookup Tables'!O86 -> 1109 | T32: Highway Rail Crossing Events | X32: =DataExtract!AN45 -> 52.4 | Y32: =DataExtract!AZ45 -> 25.3 | Z32: =DataExtract!BL45 -> 33.2 | AA32: =DataExtract!BM45 -> 36.96666667
A33: KABCO Scale | I33: 1Values were obtained from FRA Form 6180.54 records that resulted in a fatality event. Only fatality events were evaluated; however, zero is provided in the table to demonstrate the true lower bound. | T33: All Other Events / Incidents | X33: =DataExtract!AN50+DataExtract!AN20 -> 130.3 | Y33: =DataExtract!AZ50+DataExtract!AZ20 -> 85 | Z33: =DataExtract!BL50+DataExtract!BL20 -> 98.3 | AA33: =DataExtract!BM50+DataExtract!BM20 -> 104.5333333
A34: 2.E | B34: Injury (KABCO): O - No Injury ($4,000) | E34: ='Lookup Tables'!D90 -> 4000 | F34: =IF(ISBLANK(D34),"--",(D34*E34)) -> -- | I34: Monetized casualty costs come from the USDOT benefit cost analysis guidance. Values have been adjusted from $2018 to $2020. | T34: Fatality Incidence Per Rail Event: Casualty & Non-Casualty | X34: =X28/$X$22 -> 0.1109701966 | Y34: =Y28/$Y$22 -> 0.1246348588 | Z34: =Z28/$Z$22 -> 0.1192513369 | AA34: =AA28/$AA$22 -> 0.1171234812
A35: 2.F | B35: Injury (KABCO): C - Possible Injury ($84,000) | E35: ='Lookup Tables'!D91 -> 84000 | F35: -- | T35: Highway Rail Crossing Events | X35: =X29/$X$22 -> 0.03899809765 | Y35: =Y29/$Y$22 -> 0.03602726388 | Z35: =Z29/$Z$22 -> 0.02834224599 | AA35: =AA29/$AA$22 -> 0.03532071207
A36: 2.G | B36: Injury (KABCO): B - Non-Incapacitating ($165,000) | E36: ='Lookup Tables'!D92 -> 165000 | F36: -- | T36: All Other Events / Incidents | X36: =X30/$X$22 -> 0.07197209892 | Y36: =Y30/$Y$22 -> 0.08860759494 | Z36: =Z30/$Z$22 -> 0.09090909091 | AA36: =AA30/$AA$22 -> 0.08180276914
A37: 2.H | B37: Injury (KABCO): A - Incapacitating ($605,000) | E37: ='Lookup Tables'!D93 -> 605000 | F37: -- | T37: Fatality Incidence Per Rail Event: Casualty | X37: =X28/$X$25 -> 0.1607717042 | Y37: =Y28/$Y$25 -> 0.1883738043 | Z37: =Z28/$Z$25 -> 0.144993498 | AA37: =AA28/$AA$25 -> 0.1633819472
A38: 2.I | B38: Injury (KABCO): K - Killed ($12,644,000) | E38: ='Lookup Tables'!D94 -> 12644000 | F38: -- | T38: Highway Rail Crossing Events | X38: =X29/$X$25 -> 0.05649977033 | Y38: =Y29/$Y$25 -> 0.0544518028 | Z38: =Z29/$Z$25 -> 0.0344603381 | AA38: =AA29/$AA$25 -> 0.04927079227
A39: 2.J | B39: Injury (KABCO): U - Unknown if Injured ($174,000) | E39: ='Lookup Tables'!D95 -> 174000 | F39: -- | T39: All Other Events / Incidents | X39: =X30/$X$25 -> 0.1042719339 | Y39: =Y30/$Y$25 -> 0.1339220015 | Z39: =Z30/$Z$25 -> 0.1105331599 | AA39: =AA30/$AA$25 -> 0.1141111549
T40: Injury Incidence Per Rail Event: Casualty & Non-Casualty | X40: =X31/$X$22 -> 0.5792644261 | Y40: =Y31/$Y$22 -> 0.5370009737 | Z40: =Z31/$Z$22 -> 0.7032085561 | AA40: =AA31/$AA$22 -> 0.5997456909
A41: Step | B41: Monetized Loss In Business Productivity | T41: Highway Rail Crossing Events | X41: =X32/$X$22 -> 0.1661382372 | Y41: =Y32/$Y$22 -> 0.1231742941 | Z41: =Z32/$Z$22 -> 0.177540107 | AA41: =AA32/$AA$22 -> 0.1566826787
A42: 2.K | B42: Use the "Injuries_WorkMissed" Tab to Determine Costs Associated with Loss in Business Productivity due to Injury Absence | F42: =IF(Injuries_WorkMissed!J10=0,"--",Injuries_WorkMissed!J10) -> -- | T42: All Other Events / Incidents | X42: =X33/$X$22 -> 0.413126189 | Y42: =Y33/$Y$22 -> 0.4138266796 | Z42: =Z33/$Z$22 -> 0.5256684492 | AA42: =AA33/$AA$22 -> 0.4430630122
T43: Injury Incidence Per Rail Event: Casualty | X43: =X31/$X$25 -> 0.8392282958 | Y43: =Y31/$Y$25 -> 0.8116261957 | Z43: =Z31/$Z$25 -> 0.855006502 | AA43: =AA31/$AA$25 -> 0.8366180528
A44: Total Estimated Monetized Casualty Costs | F44: =IF(SUM(F27:F42)=0,"--Enter Values Above--",SUM(F27:F42)) -> --Enter Values Above-- | T44: Highway Rail Crossing Events | X44: =X32/$X$25 -> 0.2406982085 | Y44: =Y32/$Y$25 -> 0.1861662987 | Z44: =Z32/$Z$25 -> 0.2158647594 | AA44: =AA32/$AA$25 -> 0.2185652345
T45: All Other Events / Incidents | X45: =X33/$X$25 -> 0.5985300873 | Y45: =Y33/$Y$25 -> 0.625459897 | Z45: =Z33/$Z$25 -> 0.6391417425 | AA45: =AA33/$AA$25 -> 0.6180528183
T46: Source: FRA. Table 1.12 (NC Data Extract)
A47: Part III: Delay and Supply Chain Costs
A50: Delay and Supply Chain Cost Guidance
A51: Step | B51: Guidance on the Components of the Analysis
A52: 3.A - 3.H | B52: Passenger rail delay and upstream costs are tabulated in the red tables.
A53: 3.I - 3.Q | B53: Freight delay and upstream costs are tabulated in the blue tables.
A54: 3.R-3.W | B54: Operating & emissions costs associated with passenger or freight train delays are tabulated in the purple tables.
A57: Passenger Rail: Time of Delay Experienced by Passengers Onboard or People Waiting for Train | I57: Passenger Train Delay Associated with a Rail Incident on an Amtrak Line (Time is Provided in Minutes)
A58: Step | B58: Monetization Factor | C58: Value Section | D58: Minutes of Delay | E58: Custom Value (Minutes of Delay) | I58: Minimum | J58: 10th Percentile | K58: 25th Percentile | L58: Median | M58: Mode | N58: 75th Percentile | O58: 90th Percentile | P58: Maximum | Q58: No. of Observations
A59: 3.A.1 | B59: Total Minutes of Delay | D59: =IF(C59=I58,I59,IF(C59=J58,J59,IF(C59=K58,K59,IF(C59=L58,L59,IF(C59=M58,M59,IF(C59=N58,N59,IF(C59=O58,O59,IF(C59=P58,P59,IF(C59="Add Custom Value","Add Value","--"))))))))) -> -- | I59: ='Lookup Tables'!C131 -> 15 | J59: ='Lookup Tables'!D131 -> 24 | K59: ='Lookup Tables'!E131 -> 35 | L59: ='Lookup Tables'!F131 -> 74 | M59: ='Lookup Tables'!G131 -> 49 | N59: ='Lookup Tables'!H131 -> 110 | O59: ='Lookup Tables'!I131 -> 174 | P59: ='Lookup Tables'!J131 -> 334 | Q59: ='Lookup Tables'!B131 -> 119
A61: Onboard Passengers and People Waiting to Board Train Delay Costs: Occupational Information | I61: Table 2: Hourly Wage By Occupation
A62: Step | B62: Delayed Human Type | C62: Value of Time Selection | D62: Value | E62: Custom | F62: Incidence (No. of This Type) | G62: Total VOT Costs | I62: 10th Percentile | J62: 25th Percentile | K62: Median | L62: 75th Percentile | M62: 90th Percentile
A63: 3.B.1 | D63: =IF(ISBLANK(C63),"--",IF(C63=$I$62,I63,IF(C63=$J$62,J63,IF(C63=$K$62,K63,IF(C63=$L$62,L63,IF(C63=$M$62,M63,IF(C63="Enter Custom Value","Add Value","--"))))))) -> -- | G63: =IF(ISNUMBER(D63),(MAX(D63,E63)*F63*(MAX($D$59,$E$59)/60)),IF(ISNUMBER(E63),(MAX(D63,E63)*F63*(MAX($D$59,$E$59)/60)),"--")) -> -- | I63: =IF(ISBLANK(B63),"--",VLOOKUP(B63,Injuries_WorkMissed!$B$109:$G$863,2,FALSE)) -> -- | J63: =IF(ISBLANK(B63),"--",VLOOKUP(B63,Injuries_WorkMissed!$B$109:$G$863,3,FALSE)) -> -- | K63: =IF(ISBLANK(B63),"--",VLOOKUP(B63,Injuries_WorkMissed!$B$109:$G$863,4,FALSE)) -> -- | L63: =IF(ISBLANK(B63),"--",VLOOKUP(B63,Injuries_WorkMissed!$B$109:$G$863,5,FALSE)) -> -- | M63: =IF(ISBLANK(B63),"--",VLOOKUP(B63,Injuries_WorkMissed!$B$109:$G$863,6,FALSE)) -> --
A64: 3.B.2 | D64: =IF(ISBLANK(C64),"--",IF(C64=$I$62,I64,IF(C64=$J$62,J64,IF(C64=$K$62,K64,IF(C64=$L$62,L64,IF(C64=$M$62,M64,IF(C64="Enter Custom Value","Add Value","--"))))))) -> -- | G64: =IF(ISNUMBER(D64),(MAX(D64,E64)*F64*(MAX($D$59,$E$59)/60)),IF(ISNUMBER(E64),(MAX(D64,E64)*F64*(MAX($D$59,$E$59)/60)),"--")) -> -- | I64: =IF(ISBLANK(B64),"--",VLOOKUP(B64,Injuries_WorkMissed!$B$109:$G$863,2,FALSE)) -> -- | J64: =IF(ISBLANK(B64),"--",VLOOKUP(B64,Injuries_WorkMissed!$B$109:$G$863,3,FALSE)) -> -- | K64: =IF(ISBLANK(B64),"--",VLOOKUP(B64,Injuries_WorkMissed!$B$109:$G$863,4,FALSE)) -> -- | L64: =IF(ISBLANK(B64),"--",VLOOKUP(B64,Injuries_WorkMissed!$B$109:$G$863,5,FALSE)) -> -- | M64: =IF(ISBLANK(B64),"--",VLOOKUP(B64,Injuries_WorkMissed!$B$109:$G$863,6,FALSE)) -> --
A65: 3.B.3 | D65: -- | G65: =IF(ISNUMBER(D65),(MAX(D65,E65)*F65*(MAX($D$59,$E$59)/60)),IF(ISNUMBER(E65),(MAX(D65,E65)*F65*(MAX($D$59,$E$59)/60)),"--")) -> -- | I65: =IF(ISBLANK(B65),"--",VLOOKUP(B65,Injuries_WorkMissed!$B$109:$G$863,2,FALSE)) -> -- | J65: =IF(ISBLANK(B65),"--",VLOOKUP(B65,Injuries_WorkMissed!$B$109:$G$863,3,FALSE)) -> -- | K65: =IF(ISBLANK(B65),"--",VLOOKUP(B65,Injuries_WorkMissed!$B$109:$G$863,4,FALSE)) -> -- | L65: =IF(ISBLANK(B65),"--",VLOOKUP(B65,Injuries_WorkMissed!$B$109:$G$863,5,FALSE)) -> -- | M65: =IF(ISBLANK(B65),"--",VLOOKUP(B65,Injuries_WorkMissed!$B$109:$G$863,6,FALSE)) -> --
A66: 3.B.4 | D66: -- | G66: -- | I66: =IF(ISBLANK(B66),"--",VLOOKUP(B66,Injuries_WorkMissed!$B$109:$G$863,2,FALSE)) -> -- | J66: =IF(ISBLANK(B66),"--",VLOOKUP(B66,Injuries_WorkMissed!$B$109:$G$863,3,FALSE)) -> -- | K66: =IF(ISBLANK(B66),"--",VLOOKUP(B66,Injuries_WorkMissed!$B$109:$G$863,4,FALSE)) -> -- | L66: =IF(ISBLANK(B66),"--",VLOOKUP(B66,Injuries_WorkMissed!$B$109:$G$863,5,FALSE)) -> -- | M66: =IF(ISBLANK(B66),"--",VLOOKUP(B66,Injuries_WorkMissed!$B$109:$G$863,6,FALSE)) -> --
A67: 3.B.5 | D67: -- | G67: -- | I67: =IF(ISBLANK(B67),"--",VLOOKUP(B67,Injuries_WorkMissed!$B$109:$G$863,2,FALSE)) -> -- | J67: =IF(ISBLANK(B67),"--",VLOOKUP(B67,Injuries_WorkMissed!$B$109:$G$863,3,FALSE)) -> -- | K67: =IF(ISBLANK(B67),"--",VLOOKUP(B67,Injuries_WorkMissed!$B$109:$G$863,4,FALSE)) -> -- | L67: =IF(ISBLANK(B67),"--",VLOOKUP(B67,Injuries_WorkMissed!$B$109:$G$863,5,FALSE)) -> -- | M67: =IF(ISBLANK(B67),"--",VLOOKUP(B67,Injuries_WorkMissed!$B$109:$G$863,6,FALSE)) -> --
A68: 3.B.6 | D68: -- | G68: =IF(ISNUMBER(D68),(MAX(D68,E68)*F68*(MAX($D$59,$E$59)/60)),IF(ISNUMBER(E68),(MAX(D68,E68)*F68*(MAX($D$59,$E$59)/60)),"--")) -> -- | I68: =IF(ISBLANK(B68),"--",VLOOKUP(B68,Injuries_WorkMissed!$B$109:$G$863,2,FALSE)) -> -- | J68: =IF(ISBLANK(B68),"--",VLOOKUP(B68,Injuries_WorkMissed!$B$109:$G$863,3,FALSE)) -> -- | K68: =IF(ISBLANK(B68),"--",VLOOKUP(B68,Injuries_WorkMissed!$B$109:$G$863,4,FALSE)) -> -- | L68: =IF(ISBLANK(B68),"--",VLOOKUP(B68,Injuries_WorkMissed!$B$109:$G$863,5,FALSE)) -> -- | M68: =IF(ISBLANK(B68),"--",VLOOKUP(B68,Injuries_WorkMissed!$B$109:$G$863,6,FALSE)) -> --
A69: 3.B.7 | D69: -- | G69: -- | I69: =IF(ISBLANK(B69),"--",VLOOKUP(B69,Injuries_WorkMissed!$B$109:$G$863,2,FALSE)) -> -- | J69: =IF(ISBLANK(B69),"--",VLOOKUP(B69,Injuries_WorkMissed!$B$109:$G$863,3,FALSE)) -> -- | K69: =IF(ISBLANK(B69),"--",VLOOKUP(B69,Injuries_WorkMissed!$B$109:$G$863,4,FALSE)) -> -- | L69: =IF(ISBLANK(B69),"--",VLOOKUP(B69,Injuries_WorkMissed!$B$109:$G$863,5,FALSE)) -> -- | M69: =IF(ISBLANK(B69),"--",VLOOKUP(B69,Injuries_WorkMissed!$B$109:$G$863,6,FALSE)) -> --
A70: 3.B.8 | D70: -- | G70: -- | I70: =IF(ISBLANK(B70),"--",VLOOKUP(B70,Injuries_WorkMissed!$B$109:$G$863,2,FALSE)) -> -- | J70: =IF(ISBLANK(B70),"--",VLOOKUP(B70,Injuries_WorkMissed!$B$109:$G$863,3,FALSE)) -> -- | K70: =IF(ISBLANK(B70),"--",VLOOKUP(B70,Injuries_WorkMissed!$B$109:$G$863,4,FALSE)) -> -- | L70: =IF(ISBLANK(B70),"--",VLOOKUP(B70,Injuries_WorkMissed!$B$109:$G$863,5,FALSE)) -> -- | M70: =IF(ISBLANK(B70),"--",VLOOKUP(B70,Injuries_WorkMissed!$B$109:$G$863,6,FALSE)) -> --
A71: 3.B.9 | D71: -- | G71: -- | I71: =IF(ISBLANK(B71),"--",VLOOKUP(B71,Injuries_WorkMissed!$B$109:$G$863,2,FALSE)) -> -- | J71: =IF(ISBLANK(B71),"--",VLOOKUP(B71,Injuries_WorkMissed!$B$109:$G$863,3,FALSE)) -> -- | K71: =IF(ISBLANK(B71),"--",VLOOKUP(B71,Injuries_WorkMissed!$B$109:$G$863,4,FALSE)) -> -- | L71: =IF(ISBLANK(B71),"--",VLOOKUP(B71,Injuries_WorkMissed!$B$109:$G$863,5,FALSE)) -> -- | M71: =IF(ISBLANK(B71),"--",VLOOKUP(B71,Injuries_WorkMissed!$B$109:$G$863,6,FALSE)) -> --
A72: 3.B.10 | D72: -- | G72: -- | I72: =IF(ISBLANK(B72),"--",VLOOKUP(B72,Injuries_WorkMissed!$B$109:$G$863,2,FALSE)) -> -- | J72: =IF(ISBLANK(B72),"--",VLOOKUP(B72,Injuries_WorkMissed!$B$109:$G$863,3,FALSE)) -> -- | K72: =IF(ISBLANK(B72),"--",VLOOKUP(B72,Injuries_WorkMissed!$B$109:$G$863,4,FALSE)) -> -- | L72: =IF(ISBLANK(B72),"--",VLOOKUP(B72,Injuries_WorkMissed!$B$109:$G$863,5,FALSE)) -> -- | M72: =IF(ISBLANK(B72),"--",VLOOKUP(B72,Injuries_WorkMissed!$B$109:$G$863,6,FALSE)) -> --
A73: 3.B.11 | D73: -- | G73: -- | I73: =IF(ISBLANK(B73),"--",VLOOKUP(B73,Injuries_WorkMissed!$B$109:$G$863,2,FALSE)) -> -- | J73: =IF(ISBLANK(B73),"--",VLOOKUP(B73,Injuries_WorkMissed!$B$109:$G$863,3,FALSE)) -> -- | K73: =IF(ISBLANK(B73),"--",VLOOKUP(B73,Injuries_WorkMissed!$B$109:$G$863,4,FALSE)) -> -- | L73: =IF(ISBLANK(B73),"--",VLOOKUP(B73,Injuries_WorkMissed!$B$109:$G$863,5,FALSE)) -> -- | M73: =IF(ISBLANK(B73),"--",VLOOKUP(B73,Injuries_WorkMissed!$B$109:$G$863,6,FALSE)) -> --
A74: 3.B.12 | D74: -- | G74: =IF(ISNUMBER(D74),(MAX(D74,E74)*F74*(MAX($D$59,$E$59)/60)),IF(ISNUMBER(E74),(MAX(D74,E74)*F74*(MAX($D$59,$E$59)/60)),"--")) -> -- | I74: =IF(ISBLANK(B74),"--",VLOOKUP(B74,Injuries_WorkMissed!$B$109:$G$863,2,FALSE)) -> -- | J74: =IF(ISBLANK(B74),"--",VLOOKUP(B74,Injuries_WorkMissed!$B$109:$G$863,3,FALSE)) -> -- | K74: =IF(ISBLANK(B74),"--",VLOOKUP(B74,Injuries_WorkMissed!$B$109:$G$863,4,FALSE)) -> -- | L74: =IF(ISBLANK(B74),"--",VLOOKUP(B74,Injuries_WorkMissed!$B$109:$G$863,5,FALSE)) -> -- | M74: =IF(ISBLANK(B74),"--",VLOOKUP(B74,Injuries_WorkMissed!$B$109:$G$863,6,FALSE)) -> --
A75: 3.B.13 | D75: -- | G75: -- | I75: =IF(ISBLANK(B75),"--",VLOOKUP(B75,Injuries_WorkMissed!$B$109:$G$863,2,FALSE)) -> -- | J75: =IF(ISBLANK(B75),"--",VLOOKUP(B75,Injuries_WorkMissed!$B$109:$G$863,3,FALSE)) -> -- | K75: =IF(ISBLANK(B75),"--",VLOOKUP(B75,Injuries_WorkMissed!$B$109:$G$863,4,FALSE)) -> -- | L75: =IF(ISBLANK(B75),"--",VLOOKUP(B75,Injuries_WorkMissed!$B$109:$G$863,5,FALSE)) -> -- | M75: =IF(ISBLANK(B75),"--",VLOOKUP(B75,Injuries_WorkMissed!$B$109:$G$863,6,FALSE)) -> --
A76: 3.B.14 | D76: -- | G76: -- | I76: =IF(ISBLANK(B76),"--",VLOOKUP(B76,Injuries_WorkMissed!$B$109:$G$863,2,FALSE)) -> -- | J76: =IF(ISBLANK(B76),"--",VLOOKUP(B76,Injuries_WorkMissed!$B$109:$G$863,3,FALSE)) -> -- | K76: =IF(ISBLANK(B76),"--",VLOOKUP(B76,Injuries_WorkMissed!$B$109:$G$863,4,FALSE)) -> -- | L76: =IF(ISBLANK(B76),"--",VLOOKUP(B76,Injuries_WorkMissed!$B$109:$G$863,5,FALSE)) -> -- | M76: =IF(ISBLANK(B76),"--",VLOOKUP(B76,Injuries_WorkMissed!$B$109:$G$863,6,FALSE)) -> --
A77: 3.B.15 | D77: -- | G77: -- | I77: =IF(ISBLANK(B77),"--",VLOOKUP(B77,Injuries_WorkMissed!$B$109:$G$863,2,FALSE)) -> -- | J77: =IF(ISBLANK(B77),"--",VLOOKUP(B77,Injuries_WorkMissed!$B$109:$G$863,3,FALSE)) -> -- | K77: =IF(ISBLANK(B77),"--",VLOOKUP(B77,Injuries_WorkMissed!$B$109:$G$863,4,FALSE)) -> -- | L77: =IF(ISBLANK(B77),"--",VLOOKUP(B77,Injuries_WorkMissed!$B$109:$G$863,5,FALSE)) -> -- | M77: =IF(ISBLANK(B77),"--",VLOOKUP(B77,Injuries_WorkMissed!$B$109:$G$863,6,FALSE)) -> --
A78: 3.B.16 | D78: -- | G78: -- | I78: =IF(ISBLANK(B78),"--",VLOOKUP(B78,Injuries_WorkMissed!$B$109:$G$863,2,FALSE)) -> -- | J78: =IF(ISBLANK(B78),"--",VLOOKUP(B78,Injuries_WorkMissed!$B$109:$G$863,3,FALSE)) -> -- | K78: =IF(ISBLANK(B78),"--",VLOOKUP(B78,Injuries_WorkMissed!$B$109:$G$863,4,FALSE)) -> -- | L78: =IF(ISBLANK(B78),"--",VLOOKUP(B78,Injuries_WorkMissed!$B$109:$G$863,5,FALSE)) -> -- | M78: =IF(ISBLANK(B78),"--",VLOOKUP(B78,Injuries_WorkMissed!$B$109:$G$863,6,FALSE)) -> --
A79: 3.B.17 | D79: -- | G79: -- | I79: =IF(ISBLANK(B79),"--",VLOOKUP(B79,Injuries_WorkMissed!$B$109:$G$863,2,FALSE)) -> -- | J79: =IF(ISBLANK(B79),"--",VLOOKUP(B79,Injuries_WorkMissed!$B$109:$G$863,3,FALSE)) -> -- | K79: =IF(ISBLANK(B79),"--",VLOOKUP(B79,Injuries_WorkMissed!$B$109:$G$863,4,FALSE)) -> -- | L79: =IF(ISBLANK(B79),"--",VLOOKUP(B79,Injuries_WorkMissed!$B$109:$G$863,5,FALSE)) -> -- | M79: =IF(ISBLANK(B79),"--",VLOOKUP(B79,Injuries_WorkMissed!$B$109:$G$863,6,FALSE)) -> --
A80: 3.B.18 | D80: -- | G80: -- | I80: =IF(ISBLANK(B80),"--",VLOOKUP(B80,Injuries_WorkMissed!$B$109:$G$863,2,FALSE)) -> -- | J80: =IF(ISBLANK(B80),"--",VLOOKUP(B80,Injuries_WorkMissed!$B$109:$G$863,3,FALSE)) -> -- | K80: =IF(ISBLANK(B80),"--",VLOOKUP(B80,Injuries_WorkMissed!$B$109:$G$863,4,FALSE)) -> -- | L80: =IF(ISBLANK(B80),"--",VLOOKUP(B80,Injuries_WorkMissed!$B$109:$G$863,5,FALSE)) -> -- | M80: =IF(ISBLANK(B80),"--",VLOOKUP(B80,Injuries_WorkMissed!$B$109:$G$863,6,FALSE)) -> --
A81: 3.B.19 | D81: -- | G81: -- | I81: =IF(ISBLANK(B81),"--",VLOOKUP(B81,Injuries_WorkMissed!$B$109:$G$863,2,FALSE)) -> -- | J81: =IF(ISBLANK(B81),"--",VLOOKUP(B81,Injuries_WorkMissed!$B$109:$G$863,3,FALSE)) -> -- | K81: =IF(ISBLANK(B81),"--",VLOOKUP(B81,Injuries_WorkMissed!$B$109:$G$863,4,FALSE)) -> -- | L81: =IF(ISBLANK(B81),"--",VLOOKUP(B81,Injuries_WorkMissed!$B$109:$G$863,5,FALSE)) -> -- | M81: =IF(ISBLANK(B81),"--",VLOOKUP(B81,Injuries_WorkMissed!$B$109:$G$863,6,FALSE)) -> --
A82: 3.B.20 | D82: -- | G82: -- | I82: =IF(ISBLANK(B82),"--",VLOOKUP(B82,Injuries_WorkMissed!$B$109:$G$863,2,FALSE)) -> -- | J82: =IF(ISBLANK(B82),"--",VLOOKUP(B82,Injuries_WorkMissed!$B$109:$G$863,3,FALSE)) -> -- | K82: =IF(ISBLANK(B82),"--",VLOOKUP(B82,Injuries_WorkMissed!$B$109:$G$863,4,FALSE)) -> -- | L82: =IF(ISBLANK(B82),"--",VLOOKUP(B82,Injuries_WorkMissed!$B$109:$G$863,5,FALSE)) -> -- | M82: =IF(ISBLANK(B82),"--",VLOOKUP(B82,Injuries_WorkMissed!$B$109:$G$863,6,FALSE)) -> --
A83: 3.B.21 | B83: Onboard Passengers and People Waiting to Board Train Delay Cost Subtotal | G83: =IF(AND(ISTEXT(G63),ISTEXT(G64),ISTEXT(G65),ISTEXT(G66),ISTEXT(G67),ISTEXT(G68),ISTEXT(G69),ISTEXT(G70),ISTEXT(G71),ISTEXT(G72),ISTEXT(G73),ISTEXT(G74),ISTEXT(G75),ISTEXT(G76),ISTEXT(G77),ISTEXT(G78),ISTEXT(G79),ISTEXT(G80),ISTEXT(G81),ISTEXT(G82)),"--",SUM(G63:G82)) -> --
A85: Passenger Rail: Trip Rerouting Costs Via Bus - En Route Change
A86: Step | B86: Category | C86: Selection | D86: Value | E86: Custom Value
A87: 3.C.1 | B87: Passenger Train Occupancy | D87: =IF(C87=J88,J89,IF(C87=K88,K89,IF(C87=L88,L89,IF(C87=M88,M89,IF(C87=N88,N89,IF(C87=O88,O89,IF(C87=P88,P89,IF(C87=Q88,Q89,IF(C87="Custom","Add Value","--"))))))))) -> -- | I87: Passenger Rail Occupancy | T87: Bus Lookup Values
A88: 3.C.2 | B88: Number of Buses Required for Reroute | D88: =IF(C88="Default",T88,IF(C88="Custom","Add Value","--")) -> -- | I88: Category | J88: Minimum | K88: 10th Percentile | L88: 25th Percentile | M88: Median | N88: Mode | O88: 75th Percentile | P88: 90th Percentile | Q88: Maximum | R88: Count | T88: =IF(MAX(CostCalculator!D87,CostCalculator!E87)>420,8,IF(MAX(CostCalculator!D87,CostCalculator!E87)>360,7,IF(MAX(CostCalculator!D87,CostCalculator!E87)>300,6,IF(MAX(CostCalculator!D87,CostCalculator!E87)>240,5,IF(MAX(CostCalculator!D87,CostCalculator!E87)>180,4,IF(MAX(CostCalculator!D87,CostCalculator!E87)>120,3,IF(MAX(CostCalculator!D87,CostCalculator!E87)>60,2,IF(MAX(CostCalculator!D87,CostCalculator!E87)>0.1,1,"--")))))))) -> --
A89: 3.C.3 | B89: Bus Operating Costs per Mile | D89: =IF(C89="Default",J92,IF(C89="Custom","Add Value","--")) -> -- | I89: Passenger Train Occupancy (No. Pax) | J89: ='Lookup Tables'!A103 -> 6 | K89: ='Lookup Tables'!B103 -> 13.0543554 | L89: ='Lookup Tables'!C103 -> 14.16152784 | M89: ='Lookup Tables'!D103 -> 16.67323944 | N89: ='Lookup Tables'!E103 -> 14 | O89: ='Lookup Tables'!F103 -> 20.6875 | P89: ='Lookup Tables'!G103 -> 25.20110083 | Q89: ='Lookup Tables'!H103 -> 275 | R89: ='Lookup Tables'!I103 -> 3100 | T89: =IF(MAX(CostCalculator!D110,CostCalculator!E110)>420,8,IF(MAX(CostCalculator!D110,CostCalculator!E110)>360,7,IF(MAX(CostCalculator!D110,CostCalculator!E110)>300,6,IF(MAX(CostCalculator!D110,CostCalculator!E110)>240,5,IF(MAX(CostCalculator!D110,CostCalculator!E110)>180,4,IF(MAX(CostCalculator!D110,CostCalculator!E110)>120,3,IF(MAX(CostCalculator!D110,CostCalculator!E110)>60,2,IF(MAX(CostCalculator!D110,CostCalculator!E110)>0.1,1,"--")))))))) -> --
A90: 3.C.4 | B90: Number of Miles Rerouted via Bus | D90: =IF(C90=L92,L93,IF(C90=M92,M93,IF(C90=N92,N93,IF(C90="Custom","Add Value","--")))) -> --
A91: 3.C.5 | B91: Net Additional Delay for Passengers (minutes) | D91: =IF(C91=P92,P93,IF(C91=Q92,Q93,IF(C91=R92,R93,IF(C91="Custom","Add Value","--")))) -> -- | I91: Delay Costs | L91: Train Rerouting Distances Via Bus (miles) | P91: Net Additioanl Delay for Passengers with Bus Reroute (minutes)
A92: 3.C.6 | B92: Passenger VOT Costs per Minute of Delay | D92: =IF(C92="Default",J93,IF(C92="Custom","Add Value","--")) -> -- | I92: Bus Operating Cost per mile | J92: ='Lookup Tables'!B110 -> 1.24 | L92: Minimum | M92: Recommended | N92: Max | P92: Low | Q92: Recommended | R92: High
A93: 3.C.7 | B93: Bus Operating and Passenger VOT Costs | E93: =IF(OR(D87="--",D88="--",D89="--",D90="--",D91="--",D92="--"),"--",(MAX(D87,E87)*MAX(D91,E91)*MAX(D92,E92))+(MAX(D88,E88)*MAX(D89,E89)*MAX(D90,E90))) -> -- | I93: VOT costs per minute | J93: ='Lookup Tables'!AA113 -> 0.3224583333 | L93: ='Lookup Tables'!Z103 -> 31 | M93: ='Lookup Tables'!AA103 -> 121.5454545 | N93: ='Lookup Tables'!AB103 -> 589 | P93: ='Lookup Tables'!Z108 -> 15 | Q93: ='Lookup Tables'!AA108 -> 30 | R93: ='Lookup Tables'!AB108 -> 60
A95: Passenger Train Delay Costs
A96: 3.D | B96: Subtotal of Human Delay Costs >>> | G96: =IF(AND(G83="--",E93="--"),"--Enter Values Above--",(SUM(G83,E93))) -> --Enter Values Above--
A98: Upstream and Downstream Effects - Complete Either Option A, B, or C based on Passenger Train Policy Undertaken (If up/downstream effects are unknown, complete Option A as it is anticipated to be the most likely occurance)
A101: OPTION A: Estimated Delay Costs for Next Passenger Train (Next train operates, but with a delay) | I101: Passenger Rail: Delay Upstream Effects Guideposts
A102: Step | B102: Category | C102: Selection | D102: Value | E102: Custom Value | I102: Category | J102: Minimum | K102: 10th Percentile | L102: 25th Percentile | M102: Median | N102: Mode | O102: 75th Percentile | P102: 90th Percentile | Q102: Maximum | R102: No. of Observations
A103: 3.E.1 | B103: Minutes of Train Delay (For Next Frequency) | D103: =IF(C103=J102,J103,IF(C103=K102,K103,IF(C103=L102,L103,IF(C103=M102,M103,IF(C103=N102,N103,IF(C103=O102,O103,IF(C103=P102,P103,IF(C103=Q102,Q103,IF(C103="Custom","Add Value","--"))))))))) -> -- | I103: Minutes of Delay for Next Frequency | J103: ='Lookup Tables'!C133 -> 16 | K103: ='Lookup Tables'!D133 -> 17 | L103: ='Lookup Tables'!E133 -> 19 | M103: ='Lookup Tables'!F133 -> 26 | N103: ='Lookup Tables'!G133 -> 26 | O103: ='Lookup Tables'!H133 -> 39 | P103: ='Lookup Tables'!I133 -> 64 | Q103: ='Lookup Tables'!J133 -> 149 | R103: ='Lookup Tables'!B133 -> 40
A104: 3.E.2 | B104: Passenger Train Occupancy | D104: =IF(C104=J102,J104,IF(C104=K102,K104,IF(C104=L102,L104,IF(C104=M102,M104,IF(C104=N102,N104,IF(C104=O102,O104,IF(C104=P102,P104,IF(C104=Q102,Q104,IF(C104="Custom","Add Value","--"))))))))) -> -- | I104: Passenger Train Occupancy (No. Pax) | J104: ='Lookup Tables'!A103 -> 6 | K104: ='Lookup Tables'!B103 -> 13.0543554 | L104: ='Lookup Tables'!C103 -> 14.16152784 | M104: ='Lookup Tables'!D103 -> 16.67323944 | N104: ='Lookup Tables'!E103 -> 14 | O104: ='Lookup Tables'!F103 -> 20.6875 | P104: ='Lookup Tables'!G103 -> 25.20110083 | Q104: ='Lookup Tables'!H103 -> 275 | R104: ='Lookup Tables'!I103 -> 3100
A105: 3.E.3 | B105: Passenger VOT Costs per Minute | D105: =IF(C105="Default",J93,IF(C105="Custom","Add Value","--")) -> --
A106: 3.E.4 | B106: OPTION A: Upstream and Downstream Costs | E106: =IF(OR(D103="--",D104="--",D105="--"),"--",(MAX(D103:E103)*MAX(D104:E104)*MAX(D105:E105))) -> --
A108: OPTION B: Passenger Rail Trip Reroute of Next Passenger Train Using Bus - Estimated Costs for Rerouting
A109: Step | B109: Category | C109: Selection | D109: Value | E109: Custom Value
A110: 3.F.1 | B110: Passenger Train Occupancy | D110: =IF(C110=J102,J104,IF(C110=K102,K104,IF(C110=L102,L104,IF(C110=M102,M104,IF(C110=N102,N104,IF(C110=O102,O104,IF(C110=P102,P104,IF(C110=Q102,Q104,IF(C110="Custom","Add Value","--"))))))))) -> --
A111: 3.F.2 | B111: Number of Buses Required for Reroute | D111: =IF(C111="Default",T89,IF(C111="Custom","Add Value","--")) -> --
A112: 3.F.3 | B112: Bus Operating Costs per Mile | D112: =IF(C112="Default",J92,IF(C112="Custom","Add Value","--")) -> --
A113: 3.F.4 | B113: Number of Miles Rerouted via Bus | D113: =IF(C113=L92,L93,IF(C113=M92,M93,IF(C113=N92,N93,IF(C113="Custom","Add Value","--")))) -> --
A114: 3.F.5 | B114: OPTION B: Upstream and Downstream Costs | E114: =IF(OR(D110="--",D111="--",D112="--",D113="--"),"--",(MAX(D110,E110)*MAX(D111,E111)*MAX(D112,E112)*MAX(D113,E113))) -> --
A116: OPTION C: Passenger Rail Trip Cancellation Costs - No Reroute Via Bus Offered | I116: New Trip Planning Time (minutes) | M116: Travel Costs for Alternative Mode of Transport
A117: Step | B117: Category | C117: Selection | D117: Value | E117: Custom Value | I117: Low | J117: Recommended | K117: High | M117: Low | N117: Recommended | O117: High
A118: 3.G.1 | B118: Passenger Train Occupancy | D118: =IF(C118=J102,J104,IF(C118=K102,K104,IF(C118=L102,L104,IF(C118=M102,M104,IF(C118=N102,N104,IF(C118=O102,O104,IF(C118=P102,P104,IF(C118=Q102,Q104,IF(C118="Custom","Add Value","--"))))))))) -> -- | I118: ='Lookup Tables'!E109 -> 15 | J118: ='Lookup Tables'!F109 -> 45 | K118: ='Lookup Tables'!G109 -> 60 | M118: ='Lookup Tables'!L130 -> 51.40016031 | N118: ='Lookup Tables'!M130 -> 61.68019237 | O118: ='Lookup Tables'!N130 -> 82.24025649
A119: 3.G.2 | B119: Time required to plan new trip (minutes) | D119: =IF(C119="Low",I118,IF(C119="Recommended",J118,IF(C119="High",K118,IF(C119="Custom","Add Value","--")))) -> --
A120: 3.G.3 | B120: VOT cost per minute of planning new trip | D120: =IF(C120="Default",J93,IF(C120="Custom","Add Value","--")) -> --
A121: 3.G.4 | B121: Transport costs for alternate method of travel | D121: =IF(C121="Low",M118,IF(C121="Recommended",N118,IF(C121="High",O118,IF(C121="Custom","Add Value","--")))) -> --
A122: 3.G.5 | B122: OPTION C: Upstream Costs | E122: =IF(OR(D118="--",D119="--",D121="--"),"--",(MAX(D118,E118)*MAX(D119,E119)*MAX(D120,E120)+(MAX(D118,E118)*MAX(D121,E121)))) -> --
A124: Upstream and Downstream Passenger Train Delay Costs
A125: 3.H | B125: Subtotal of Passenger Rail Upstream Delay Costs >>> | G125: =IF(AND(E106="--",E114="--",E122="--"),"--",(SUM(E106,E114,E122))) -> --
A128: Freight Train Delay (Time in Minutes) | I128: Freight Train Delay Associated with a Rail Incident (Time is Provided in Minutes)
A129: Step | B129: Monetization Factor | C129: Value Section | D129: Minutes of Delay | E129: Custom Value (Minutes of Delay) | I129: Low | J129: Medium | K129: High | L129: Injury Event | M129: Fatality Event | N129: Rare, Very High Impact
A130: 3.I | B130: Total Minutes of Delay | D130: =IF(C130='Dropdown Lists'!O27,I130,IF(C130='Dropdown Lists'!O28,J130,IF(C130='Dropdown Lists'!O29,K130,IF(C130='Dropdown Lists'!O30,L130,IF(C130='Dropdown Lists'!O31,M130,IF(C130='Dropdown Lists'!O32,N130,IF(C130="Custom","Add Value","--"))))))) -> -- | I130: ='Lookup Tables'!A119 -> 35.30833333 | J130: ='Lookup Tables'!B119 -> 42.92777778 | K130: ='Lookup Tables'!C119 -> 84.35333333 | L130: ='Lookup Tables'!D119 -> 83 | M130: ='Lookup Tables'!E119 -> 284 | N130: ='Lookup Tables'!F119 -> 925
A133: Freight Train Delay: Human Worker Costs | I133: Table 2: Hourly Wage By Occupation
A134: Step | B134: Delayed Human Type | C134: Value of Time Selection | D134: Value | E134: Custom | F134: Incidence (No. of This Type) | G134: Total VOT Costs | I134: 10th Percentile | J134: 25th Percentile | K134: Median | L134: 75th Percentile | M134: 90th Percentile
A135: 3.J.1 | D135: =IF(ISBLANK(C135),"--",IF(C135=$I$134,I135,IF(C135=$J$134,J135,IF(C135=$K$134,K135,IF(C135=$L$134,L135,IF(C135=$M$134,M135,IF(C135="Enter Custom Value","Add Value","--"))))))) -> -- | G135: =IF(ISNUMBER(D135),(MAX(D135,E135)*F135*(MAX($D$130,$E$130)/60)),IF(ISNUMBER(E135),(MAX(D135,E135)*F135*(MAX($D$130,$E$130)/60)),"--")) -> -- | I135: =IF(ISBLANK(B135),"--",VLOOKUP(B135,Injuries_WorkMissed!$B$109:$G$863,2,FALSE)) -> -- | J135: =IF(ISBLANK(B135),"--",VLOOKUP(B135,Injuries_WorkMissed!$B$109:$G$863,3,FALSE)) -> -- | K135: =IF(ISBLANK(B135),"--",VLOOKUP(B135,Injuries_WorkMissed!$B$109:$G$863,4,FALSE)) -> -- | L135: =IF(ISBLANK(B135),"--",VLOOKUP(B135,Injuries_WorkMissed!$B$109:$G$863,5,FALSE)) -> -- | M135: =IF(ISBLANK(B135),"--",VLOOKUP(B135,Injuries_WorkMissed!$B$109:$G$863,6,FALSE)) -> --
A136: 3.J.2 | D136: =IF(ISBLANK(C136),"--",IF(C136=$I$134,I136,IF(C136=$J$134,J136,IF(C136=$K$134,K136,IF(C136=$L$134,L136,IF(C136=$M$134,M136,IF(C136="Enter Custom Value","Add Value","--"))))))) -> -- | G136: =IF(ISNUMBER(D136),(MAX(D136,E136)*F136*(MAX($D$130,$E$130)/60)),IF(ISNUMBER(E136),(MAX(D136,E136)*F136*(MAX($D$130,$E$130)/60)),"--")) -> -- | I136: =IF(ISBLANK(B136),"--",VLOOKUP(B136,Injuries_WorkMissed!$B$109:$G$863,2,FALSE)) -> -- | J136: =IF(ISBLANK(B136),"--",VLOOKUP(B136,Injuries_WorkMissed!$B$109:$G$863,3,FALSE)) -> -- | K136: =IF(ISBLANK(B136),"--",VLOOKUP(B136,Injuries_WorkMissed!$B$109:$G$863,4,FALSE)) -> -- | L136: =IF(ISBLANK(B136),"--",VLOOKUP(B136,Injuries_WorkMissed!$B$109:$G$863,5,FALSE)) -> -- | M136: =IF(ISBLANK(B136),"--",VLOOKUP(B136,Injuries_WorkMissed!$B$109:$G$863,6,FALSE)) -> --
A137: 3.J.3 | D137: -- | G137: -- | I137: =IF(ISBLANK(B137),"--",VLOOKUP(B137,Injuries_WorkMissed!$B$109:$G$863,2,FALSE)) -> -- | J137: =IF(ISBLANK(B137),"--",VLOOKUP(B137,Injuries_WorkMissed!$B$109:$G$863,3,FALSE)) -> -- | K137: =IF(ISBLANK(B137),"--",VLOOKUP(B137,Injuries_WorkMissed!$B$109:$G$863,4,FALSE)) -> -- | L137: =IF(ISBLANK(B137),"--",VLOOKUP(B137,Injuries_WorkMissed!$B$109:$G$863,5,FALSE)) -> -- | M137: =IF(ISBLANK(B137),"--",VLOOKUP(B137,Injuries_WorkMissed!$B$109:$G$863,6,FALSE)) -> --
A138: 3.J.4 | D138: -- | G138: -- | I138: =IF(ISBLANK(B138),"--",VLOOKUP(B138,Injuries_WorkMissed!$B$109:$G$863,2,FALSE)) -> -- | J138: =IF(ISBLANK(B138),"--",VLOOKUP(B138,Injuries_WorkMissed!$B$109:$G$863,3,FALSE)) -> -- | K138: =IF(ISBLANK(B138),"--",VLOOKUP(B138,Injuries_WorkMissed!$B$109:$G$863,4,FALSE)) -> -- | L138: =IF(ISBLANK(B138),"--",VLOOKUP(B138,Injuries_WorkMissed!$B$109:$G$863,5,FALSE)) -> -- | M138: =IF(ISBLANK(B138),"--",VLOOKUP(B138,Injuries_WorkMissed!$B$109:$G$863,6,FALSE)) -> --
A139: 3.J.5 | D139: -- | G139: -- | I139: =IF(ISBLANK(B139),"--",VLOOKUP(B139,Injuries_WorkMissed!$B$109:$G$863,2,FALSE)) -> -- | J139: =IF(ISBLANK(B139),"--",VLOOKUP(B139,Injuries_WorkMissed!$B$109:$G$863,3,FALSE)) -> -- | K139: =IF(ISBLANK(B139),"--",VLOOKUP(B139,Injuries_WorkMissed!$B$109:$G$863,4,FALSE)) -> -- | L139: =IF(ISBLANK(B139),"--",VLOOKUP(B139,Injuries_WorkMissed!$B$109:$G$863,5,FALSE)) -> -- | M139: =IF(ISBLANK(B139),"--",VLOOKUP(B139,Injuries_WorkMissed!$B$109:$G$863,6,FALSE)) -> --
A140: 3.J.6 | D140: -- | G140: -- | I140: =IF(ISBLANK(B140),"--",VLOOKUP(B140,Injuries_WorkMissed!$B$109:$G$863,2,FALSE)) -> -- | J140: =IF(ISBLANK(B140),"--",VLOOKUP(B140,Injuries_WorkMissed!$B$109:$G$863,3,FALSE)) -> -- | K140: =IF(ISBLANK(B140),"--",VLOOKUP(B140,Injuries_WorkMissed!$B$109:$G$863,4,FALSE)) -> -- | L140: =IF(ISBLANK(B140),"--",VLOOKUP(B140,Injuries_WorkMissed!$B$109:$G$863,5,FALSE)) -> -- | M140: =IF(ISBLANK(B140),"--",VLOOKUP(B140,Injuries_WorkMissed!$B$109:$G$863,6,FALSE)) -> --
A141: 3.J.7 | D141: -- | G141: -- | I141: =IF(ISBLANK(B141),"--",VLOOKUP(B141,Injuries_WorkMissed!$B$109:$G$863,2,FALSE)) -> -- | J141: =IF(ISBLANK(B141),"--",VLOOKUP(B141,Injuries_WorkMissed!$B$109:$G$863,3,FALSE)) -> -- | K141: =IF(ISBLANK(B141),"--",VLOOKUP(B141,Injuries_WorkMissed!$B$109:$G$863,4,FALSE)) -> -- | L141: =IF(ISBLANK(B141),"--",VLOOKUP(B141,Injuries_WorkMissed!$B$109:$G$863,5,FALSE)) -> -- | M141: =IF(ISBLANK(B141),"--",VLOOKUP(B141,Injuries_WorkMissed!$B$109:$G$863,6,FALSE)) -> --
A142: 3.J.8 | D142: -- | G142: -- | I142: =IF(ISBLANK(B142),"--",VLOOKUP(B142,Injuries_WorkMissed!$B$109:$G$863,2,FALSE)) -> -- | J142: =IF(ISBLANK(B142),"--",VLOOKUP(B142,Injuries_WorkMissed!$B$109:$G$863,3,FALSE)) -> -- | K142: =IF(ISBLANK(B142),"--",VLOOKUP(B142,Injuries_WorkMissed!$B$109:$G$863,4,FALSE)) -> -- | L142: =IF(ISBLANK(B142),"--",VLOOKUP(B142,Injuries_WorkMissed!$B$109:$G$863,5,FALSE)) -> -- | M142: =IF(ISBLANK(B142),"--",VLOOKUP(B142,Injuries_WorkMissed!$B$109:$G$863,6,FALSE)) -> --
A143: 3.J.9 | D143: -- | G143: -- | I143: =IF(ISBLANK(B143),"--",VLOOKUP(B143,Injuries_WorkMissed!$B$109:$G$863,2,FALSE)) -> -- | J143: =IF(ISBLANK(B143),"--",VLOOKUP(B143,Injuries_WorkMissed!$B$109:$G$863,3,FALSE)) -> -- | K143: =IF(ISBLANK(B143),"--",VLOOKUP(B143,Injuries_WorkMissed!$B$109:$G$863,4,FALSE)) -> -- | L143: =IF(ISBLANK(B143),"--",VLOOKUP(B143,Injuries_WorkMissed!$B$109:$G$863,5,FALSE)) -> -- | M143: =IF(ISBLANK(B143),"--",VLOOKUP(B143,Injuries_WorkMissed!$B$109:$G$863,6,FALSE)) -> --
A144: 3.J.10 | D144: -- | G144: -- | I144: =IF(ISBLANK(B144),"--",VLOOKUP(B144,Injuries_WorkMissed!$B$109:$G$863,2,FALSE)) -> -- | J144: =IF(ISBLANK(B144),"--",VLOOKUP(B144,Injuries_WorkMissed!$B$109:$G$863,3,FALSE)) -> -- | K144: =IF(ISBLANK(B144),"--",VLOOKUP(B144,Injuries_WorkMissed!$B$109:$G$863,4,FALSE)) -> -- | L144: =IF(ISBLANK(B144),"--",VLOOKUP(B144,Injuries_WorkMissed!$B$109:$G$863,5,FALSE)) -> -- | M144: =IF(ISBLANK(B144),"--",VLOOKUP(B144,Injuries_WorkMissed!$B$109:$G$863,6,FALSE)) -> --
A145: 3.J.11 | D145: -- | G145: -- | I145: =IF(ISBLANK(B145),"--",VLOOKUP(B145,Injuries_WorkMissed!$B$109:$G$863,2,FALSE)) -> -- | J145: =IF(ISBLANK(B145),"--",VLOOKUP(B145,Injuries_WorkMissed!$B$109:$G$863,3,FALSE)) -> -- | K145: =IF(ISBLANK(B145),"--",VLOOKUP(B145,Injuries_WorkMissed!$B$109:$G$863,4,FALSE)) -> -- | L145: =IF(ISBLANK(B145),"--",VLOOKUP(B145,Injuries_WorkMissed!$B$109:$G$863,5,FALSE)) -> -- | M145: =IF(ISBLANK(B145),"--",VLOOKUP(B145,Injuries_WorkMissed!$B$109:$G$863,6,FALSE)) -> --
A146: 3.J.12 | D146: -- | G146: -- | I146: =IF(ISBLANK(B146),"--",VLOOKUP(B146,Injuries_WorkMissed!$B$109:$G$863,2,FALSE)) -> -- | J146: =IF(ISBLANK(B146),"--",VLOOKUP(B146,Injuries_WorkMissed!$B$109:$G$863,3,FALSE)) -> -- | K146: =IF(ISBLANK(B146),"--",VLOOKUP(B146,Injuries_WorkMissed!$B$109:$G$863,4,FALSE)) -> -- | L146: =IF(ISBLANK(B146),"--",VLOOKUP(B146,Injuries_WorkMissed!$B$109:$G$863,5,FALSE)) -> -- | M146: =IF(ISBLANK(B146),"--",VLOOKUP(B146,Injuries_WorkMissed!$B$109:$G$863,6,FALSE)) -> --
A147: 3.J.13 | D147: -- | G147: -- | I147: =IF(ISBLANK(B147),"--",VLOOKUP(B147,Injuries_WorkMissed!$B$109:$G$863,2,FALSE)) -> -- | J147: =IF(ISBLANK(B147),"--",VLOOKUP(B147,Injuries_WorkMissed!$B$109:$G$863,3,FALSE)) -> -- | K147: =IF(ISBLANK(B147),"--",VLOOKUP(B147,Injuries_WorkMissed!$B$109:$G$863,4,FALSE)) -> -- | L147: =IF(ISBLANK(B147),"--",VLOOKUP(B147,Injuries_WorkMissed!$B$109:$G$863,5,FALSE)) -> -- | M147: =IF(ISBLANK(B147),"--",VLOOKUP(B147,Injuries_WorkMissed!$B$109:$G$863,6,FALSE)) -> --
A148: 3.J.14 | D148: -- | G148: -- | I148: =IF(ISBLANK(B148),"--",VLOOKUP(B148,Injuries_WorkMissed!$B$109:$G$863,2,FALSE)) -> -- | J148: =IF(ISBLANK(B148),"--",VLOOKUP(B148,Injuries_WorkMissed!$B$109:$G$863,3,FALSE)) -> -- | K148: =IF(ISBLANK(B148),"--",VLOOKUP(B148,Injuries_WorkMissed!$B$109:$G$863,4,FALSE)) -> -- | L148: =IF(ISBLANK(B148),"--",VLOOKUP(B148,Injuries_WorkMissed!$B$109:$G$863,5,FALSE)) -> -- | M148: =IF(ISBLANK(B148),"--",VLOOKUP(B148,Injuries_WorkMissed!$B$109:$G$863,6,FALSE)) -> --
A149: 3.J.15 | D149: -- | G149: -- | I149: =IF(ISBLANK(B149),"--",VLOOKUP(B149,Injuries_WorkMissed!$B$109:$G$863,2,FALSE)) -> -- | J149: =IF(ISBLANK(B149),"--",VLOOKUP(B149,Injuries_WorkMissed!$B$109:$G$863,3,FALSE)) -> -- | K149: =IF(ISBLANK(B149),"--",VLOOKUP(B149,Injuries_WorkMissed!$B$109:$G$863,4,FALSE)) -> -- | L149: =IF(ISBLANK(B149),"--",VLOOKUP(B149,Injuries_WorkMissed!$B$109:$G$863,5,FALSE)) -> -- | M149: =IF(ISBLANK(B149),"--",VLOOKUP(B149,Injuries_WorkMissed!$B$109:$G$863,6,FALSE)) -> --
A150: 3.J.16 | D150: -- | G150: -- | I150: =IF(ISBLANK(B150),"--",VLOOKUP(B150,Injuries_WorkMissed!$B$109:$G$863,2,FALSE)) -> -- | J150: =IF(ISBLANK(B150),"--",VLOOKUP(B150,Injuries_WorkMissed!$B$109:$G$863,3,FALSE)) -> -- | K150: =IF(ISBLANK(B150),"--",VLOOKUP(B150,Injuries_WorkMissed!$B$109:$G$863,4,FALSE)) -> -- | L150: =IF(ISBLANK(B150),"--",VLOOKUP(B150,Injuries_WorkMissed!$B$109:$G$863,5,FALSE)) -> -- | M150: =IF(ISBLANK(B150),"--",VLOOKUP(B150,Injuries_WorkMissed!$B$109:$G$863,6,FALSE)) -> --
A151: 3.J.17 | D151: -- | G151: -- | I151: =IF(ISBLANK(B151),"--",VLOOKUP(B151,Injuries_WorkMissed!$B$109:$G$863,2,FALSE)) -> -- | J151: =IF(ISBLANK(B151),"--",VLOOKUP(B151,Injuries_WorkMissed!$B$109:$G$863,3,FALSE)) -> -- | K151: =IF(ISBLANK(B151),"--",VLOOKUP(B151,Injuries_WorkMissed!$B$109:$G$863,4,FALSE)) -> -- | L151: =IF(ISBLANK(B151),"--",VLOOKUP(B151,Injuries_WorkMissed!$B$109:$G$863,5,FALSE)) -> -- | M151: =IF(ISBLANK(B151),"--",VLOOKUP(B151,Injuries_WorkMissed!$B$109:$G$863,6,FALSE)) -> --
A152: 3.J.18 | D152: -- | G152: -- | I152: =IF(ISBLANK(B152),"--",VLOOKUP(B152,Injuries_WorkMissed!$B$109:$G$863,2,FALSE)) -> -- | J152: =IF(ISBLANK(B152),"--",VLOOKUP(B152,Injuries_WorkMissed!$B$109:$G$863,3,FALSE)) -> -- | K152: =IF(ISBLANK(B152),"--",VLOOKUP(B152,Injuries_WorkMissed!$B$109:$G$863,4,FALSE)) -> -- | L152: =IF(ISBLANK(B152),"--",VLOOKUP(B152,Injuries_WorkMissed!$B$109:$G$863,5,FALSE)) -> -- | M152: =IF(ISBLANK(B152),"--",VLOOKUP(B152,Injuries_WorkMissed!$B$109:$G$863,6,FALSE)) -> --
A153: 3.J.19 | D153: -- | G153: -- | I153: =IF(ISBLANK(B153),"--",VLOOKUP(B153,Injuries_WorkMissed!$B$109:$G$863,2,FALSE)) -> -- | J153: =IF(ISBLANK(B153),"--",VLOOKUP(B153,Injuries_WorkMissed!$B$109:$G$863,3,FALSE)) -> -- | K153: =IF(ISBLANK(B153),"--",VLOOKUP(B153,Injuries_WorkMissed!$B$109:$G$863,4,FALSE)) -> -- | L153: =IF(ISBLANK(B153),"--",VLOOKUP(B153,Injuries_WorkMissed!$B$109:$G$863,5,FALSE)) -> -- | M153: =IF(ISBLANK(B153),"--",VLOOKUP(B153,Injuries_WorkMissed!$B$109:$G$863,6,FALSE)) -> --
A154: 3.J.20 | D154: -- | G154: -- | I154: =IF(ISBLANK(B154),"--",VLOOKUP(B154,Injuries_WorkMissed!$B$109:$G$863,2,FALSE)) -> -- | J154: =IF(ISBLANK(B154),"--",VLOOKUP(B154,Injuries_WorkMissed!$B$109:$G$863,3,FALSE)) -> -- | K154: =IF(ISBLANK(B154),"--",VLOOKUP(B154,Injuries_WorkMissed!$B$109:$G$863,4,FALSE)) -> -- | L154: =IF(ISBLANK(B154),"--",VLOOKUP(B154,Injuries_WorkMissed!$B$109:$G$863,5,FALSE)) -> -- | M154: =IF(ISBLANK(B154),"--",VLOOKUP(B154,Injuries_WorkMissed!$B$109:$G$863,6,FALSE)) -> --
A156: Freight Train Delay: Human Worker Costs
A157: 3.K | B157: Subtotal of Human Delay Costs >>> | G157: =IF(SUM(G135:G154)=0,"--Enter Values Above--",SUM(G135:G154)) -> --Enter Values Above--
A160: Freight Train Delay: Shipper Costs (Opportunity, Spoilage, Useful Life) | I160: Factor | J160: Table X: Commodity Mix (Value per Ton in $2020)
A161: Step | B161: Monetization Factor | C161: Value Section | D161: Value | E161: Custom | J161: 10th Percentile | K161: 20th Percentile | L161: 30th Percentile | M161: 40th Percentile | N161: 50th Percentile | O161: 60th Percentile | P161: 70th Percentile | Q161: 80th Percentile | R161: 90th Percentile | S161: NCHRP 755 | T161: NC Freight Plan | U161: Waybill (NS H Line) | V161: Waybill (NS Main Line) | W161: Waybill (CSX A Line) | X161: Waybill (Aggregated)
A162: 3.L.1 | B162: Value of Freight Cargo per Ton | D162: =IF(C162='Dropdown Lists'!M4,CostCalculator!T162,IF(C162=CostCalculator!J161,CostCalculator!J162,IF(C162=CostCalculator!K161,CostCalculator!K162,IF(C162=CostCalculator!L161,CostCalculator!L162,IF(C162=CostCalculator!M161,CostCalculator!M162, IF(C162=CostCalculator!N161,CostCalculator!N162,IF(C162=CostCalculator!O161,CostCalculator!O162,IF(C162=CostCalculator!P161,CostCalculator!P162,IF(C162=CostCalculator!Q161,CostCalculator!Q162,IF(C162=CostCalculator!R161,CostCalculator!R162,IF(C162=CostCalculator!S161,CostCalculator!S162,IF(C162=CostCalculator!T161,CostCalculator!T162,IF(C162=CostCalculator!U161,CostCalculator!U162,IF(C162=CostCalculator!V161,CostCalculator!V162,IF(C162=CostCalculator!W161,CostCalculator!W162,IF(C162=CostCalculator!X161,CostCalculator!X162,IF(C162="Custom","Add Value","--"))))))))))))))))) -> -- | I162: Value of Cargo per Ton | J162: ='Lookup Tables'!I181 -> 217.4837129 | K162: ='Lookup Tables'!I182 -> 414.8465198 | L162: ='Lookup Tables'!I183 -> 890.3836238 | M162: ='Lookup Tables'!I184 -> 1254.928829 | N162: ='Lookup Tables'!I185 -> 3403.248902 | O162: ='Lookup Tables'!I186 -> 3698.978824 | P162: ='Lookup Tables'!I187 -> 7046.288215 | Q162: ='Lookup Tables'!I188 -> 8416.099879 | R162: ='Lookup Tables'!I189 -> 13446.86636 | S162: ='Lookup Tables'!F182 -> 1914.912 | T162: ='Lookup Tables'!F181 -> 2200.517647 | U162: ='Lookup Tables'!F184 -> 2463.666674 | V162: ='Lookup Tables'!F185 -> 2538.46917 | W162: ='Lookup Tables'!F186 -> 2137.494171 | X162: ='Lookup Tables'!F187 -> 2343.2443
A163: 3.L.2 | B163: Freight Tons per Carload | D163: =IF(C163=J165,J166,IF(C163=K165,K166,IF(C163=L165,L166,IF(C163=M165,M166,IF(C163=N165,N166,IF(C163="Custom","Add Value",IF(C163="Default Value",K166,"--"))))))) -> -- | T163: *Default Value
A164: 3.L.3 | B164: Freight Carloads per Train | D164: =IF(C164=Q165,Q166,IF(C164=R165,R166,IF(C164=S165,S166,IF(C164=T165,T166,IF(C164=U165,U166,IF(C164="Custom","Add Value", IF(C164="Default Value",R166,"--"))))))) -> -- | I164: Factor | J164: Freight Tons Per Carload (Payload Only; Not Including Tare Weight) | P164: Factor | Q164: Freight Cars Per Train | W164: Factor | X164: Discount Rate by Freight Cargo (Rate per Minute. (Only Applied to Delays > 60 minutes)
A165: 3.L.4 | B165: Total Minutes of Cargo Delay | D165: =IF(C165="Same as 3.I",MAX(D130,E130),IF(C165="Custom","Add Value","--")) -> -- | J165: Average Box Car | K165: Freight Car Unspecified | L165: Covered Hopper | M165: Max Load (Source A) | N165: Max Load (Source B) | Q165: Double Stack | R165: FRA Sample | S165: Manifest | T165: Grain | U165: Coal, Sulphur, & Potash | X165: Perishable | Y165: Bulk | Z165: Other | AA165: NC Waybill Commodity Mix | AB165: NCHRP 755
A166: 3.L.5 | B166: Shipper Costs (Cargo Disc. Rate Per Minute) | D166: =IF(C166="Default",AA166,IF(C166=X165,X166,IF(C166=Y165,Y166,IF(C166=Z165,Z166,IF(C166=AA165,AA166,IF(C166=AB165,AB166,IF(C166="Custom","Add Value","--"))))))) -> -- | I166: Freight Tons per Carload | J166: ='Lookup Tables'!E196 -> 45 | K166: ='Lookup Tables'!E198 -> 65 | L166: ='Lookup Tables'!E197 -> 100 | M166: ='Lookup Tables'!E195 -> 100 | N166: ='Lookup Tables'!E194 -> 125.5 | P166: Freight Cars per Train | Q166: ='Lookup Tables'!D205 -> 33.59420952 | R166: ='Lookup Tables'!B213 -> 25.59466912 | S166: ='Lookup Tables'!D206 -> 57.39010794 | T166: ='Lookup Tables'!D207 -> 69.28805714 | U166: ='Lookup Tables'!D208 -> 71.38769524 | W166: Cargo Discount Rate | X166: ='Lookup Tables'!D479 -> 0.0001041666667 | Y166: ='Lookup Tables'!D480 -> 3.472222222e-05 | Z166: ='Lookup Tables'!D481 -> 6.944444444e-05 | AA166: ='Lookup Tables'!D482 -> 6.618923611e-05 | AB166: ='Lookup Tables'!D483 -> 6.666666667e-05
A167: The "Freight_Cargo" tab can be used to develop a custom Commodity Mix to estimate the value of freight cargo | K167: *Default Value | R167: *Default Value | AA167: *Default Value
A169: Freight Train Delay: Opportunity, Spoilage, Useful Life Costs Cost Summary
A170: 3.M | B170: Subtotal of Shipper Costs >>> | E170: =IF(OR(D162="--",D163="--",D164="--",D165="--",D166="--"),"--Enter Values Above--",(IF(MAX(D165,E165)>=60,(MAX(D162,E162)*MAX(D163,E163)*MAX(D164,E164)*MAX(D165,E165)*MAX(D166,E166)),"No Shipper Costs Applied"))) -> --Enter Values Above--
A173: Freight Train Delay: Replacement for Damaged or Destroyed Cargo | I173: Factor | J173: Freight Cars Damaged per Rail Incident Type of Event (Non-Zero Freight Car Damage Events Only)
A174: Step | B174: Monetization Factor | C174: Value Section | D174: Value | E174: Custom | J174: Default Event | K174: Broken train collision | L174: Derailment | M174: Explosion-detonation | N174: Fire/violent rupture | O174: Head on collision | P174: Highway-rail crossing | Q174: Obstruction | R174: Raking collision | S174: Rear end collision | T174: Side collision | U174: Other | V174: No. Of Observations
A175: 3.N.1 | B175: Value of Freight Cargo per Ton | D175: =IF(C175="Same as 3.L.1",MAX(D162,E162),IF(C175="Custom","Add Value","--")) -> -- | I175: Damaged Freight Cars per Event Type | J175: 0.2475988947 | K175: 0.2171717172 | L175: 0.3242662243 | M175: 0.4782608696 | N175: 0.00408997955 | O175: 0.1131498471 | P175: 0.04293040293 | Q175: 0.04881828749 | R175: 0.2133131619 | S175: 0.1111111111 | T175: 0.1621296436 | U175: 0.1610347238 | V175: 1088
A176: 3.N.2 | B176: Freight Tons per Carload | D176: =IF(C176="Same as 3.L.2",MAX(D163,E163),IF(C176="Custom","Add Value","--")) -> --
A177: 3.N.3 | B177: Damaged Freight Cars per Incident Type | D177: =IF(C177=J174,J175,IF(C177=K174,K175,IF(C177=L174,L175,IF(C177=M174,M175,IF(C177=N174,N175,IF(C177=O174,O175,IF(C177=P174,P175,IF(C177=Q174,Q175,IF(C177=R174,R175,IF(C177=S174,S175,IF(C177=T174,T175,IF(C177=U174,U175,IF(C177="Custom","Add Value","--"))))))))))))) -> --
A178: 3.N.4 | B178: Cargo Useful Life Remaining | D178: =IF(C178="Default",0.5,IF(C178="Custom","Add Value","--")) -> --
A180: Freight Train Delay: Replacement for Damaged or Destroyed Cargo Cost Summary
A181: 3.O | B181: Subtotal of Replacement Costs >>> | E181: =IF(OR(D175="--",D176="--",D177="--",D178="--"),"--Enter Values Above--",(MAX(D175,E175)*MAX(D176,E175)*MAX(D177,E177)*MAX(D178,E178))) -> --Enter Values Above--
A183: Freight Train Delay: Upstream Effects | I183: Delay: Upstream Effects Guideposts*
A184: Step | B184: Monetization Factor | C184: Value Section | D184: Value | E184: Custom | I184: Category | J184: Minimum | K184: 10th Percentile | L184: 25th Percentile | M184: Median | N184: Mode | O184: 75th Percentile | P184: 90th Percentile | Q184: Maximum | R184: No. of Observations
A185: 3.P.1 | B185: Total Minutes of Delay Upstream | D185: =IF(C185=J184,J185,IF(C185=K184,K185,IF(C185=L184,L185,IF(C185=M184,M185,IF(C185=N184,N185,IF(C185=O184,O185,IF(C185=P184,P185,IF(C185=Q184,Q185,IF(C185="Custom","Add Value","--"))))))))) -> -- | I185: Minutes of Delay for Next Frequency | J185: =J103 -> 16 | K185: 17 | L185: 19 | M185: 26 | N185: 26 | O185: 39 | P185: 64 | Q185: 149 | R185: 40
A187: 3.P.2 | B187: Crew Size | D187: =IF(C187="Default",'Lookup Tables'!L478,IF(C187="Custom","Add Value","--")) -> -- | I187: *Upstream delay data were only available for Amtrak trains. These data are likely to differ from upstream delay experienced by freight rail. These values should only be considered as guideposts for an upstream analysis.
A188: 3.P.3 | B188: Crew Size Value of Time per hour | D188: =IF(C188="Default",'Lookup Tables'!L479,IF(C188="Custom","Add Value","--")) -> --
A189: 3.P.4 | B189: Upstream and Downstream Crew Delay Costs | E189: =IF(OR(D185="--",D187="--",D188="--"),"--",(MAX(D185,E185)*(MAX(D187,E187)/60)*MAX(D188,E188))) -> --
A191: 3.P.5 | B191: Value of Freight Cargo per Ton | D191: =IF(C191="Default",'Lookup Tables'!L480,IF(C191="Custom","Add Value","--")) -> --
A192: 3.P.6 | B192: Freight Tons per Carload | D192: =IF(C192="Default",'Lookup Tables'!L481,IF(C192="Custom","Add Value","--")) -> --
A193: 3.P.7 | B193: Freight Carloads per Train | D193: =IF(C193="Default",'Lookup Tables'!L482,IF(C193="Custom","Add Value","--")) -> --
A194: 3.P.8 | B194: Shipper Costs (Cargo Disc. Rate Per Minute)1 | D194: =IF(C194="Default",'Lookup Tables'!L484,IF(C194="Custom","Add Value","--")) -> --
A195: 3.P.9 | B195: Upstream and Downstream Shipper Costs (only tabulated if delay is greater than 60 minutes) | E195: =IF(MAX(D185,E185)>=60,(MAX(D185,E185)*MAX(D191,E191)*MAX(D192,E192)*MAX(D193,E193)*MAX(D194,E194)),"--") -> --
A197: Freight Train Delay: Upstream Effects
A198: 3.Q | B198: Subtotal of Upstream Freight Costs >>> | E198: =IF(AND(E189="--",E195="--"),"--Enter Values Above--",SUM(E189,E195)) -> --Enter Values Above--
A201: Railroad Operating Costs: FOR PASSENGER TRAIN INCIDENTS | I201: Railroad Operating Costs
A202: Step | B202: Monetization Factor | C202: Value Section | D202: Value per Minute | E202: Custom | I202: Factor | J202: Value per Hour | K202: Value per Minute
A203: 3.R.1 | B203: Locomotive Ownership / Leasing | D203: =IF(C203="Default",K203,IF(C203="Loco Lease Default",K204,IF(C203="Loco Ownership Default",K203,IF(C203="Custom","Add Value","--")))) -> -- | I203: Locomotive Ownership | J203: ='Lookup Tables'!C471 -> 35.628176 | K203: =J203/60 -> 0.5938029333
A204: 3.R.2 | B204: Locomotive Units | D204: =IF(C204="Default",J211,IF(C204="Custom","Add Value","--")) -> -- | I204: Locomotive Leasing | J204: ='Lookup Tables'!C472 -> 90.192268 | K204: =J204/60 -> 1.503204467
A205: 3.R.3 | B205: Locomotive Fuel (per-locomotive minute) | D205: =IF(C205="Default",K205,IF(C205="Custom","Add Value","--")) -> -- | I205: Locomotive Fuel | J205: ='Lookup Tables'!C473 -> 250.046 | K205: =J205/60 -> 4.167433333
A206: 3.R.4 | B206: Other Car Cost (per car-minute) | D206: =IF(C206="Default",K206,IF(C206="Custom","Add Value","--")) -> -- | I206: Other Train Car Costs | J206: ='Lookup Tables'!C474 -> 0.783928 | K206: =J206/60 -> 0.01306546667
A207: 3.R.5 | B207: Minutes of Delay Occuring from Rail Incident | D207: =IF(C207="Same as 3.A",MAX(D59,E59),IF(C207="Custom","Add Value","--")) -> --
A208: 3.R.6 | B208: Additional Operating Costs: Passenger Rail | E208: =IF(OR(D203="--",D205="--",D206="--",D207="--"),"--",(MAX(D203,E203)*MAX(D204,E204)*MAX(D207,E207))+(MAX(D204,E204)*MAX(D205,E205)*MAX(D207,E207))+(MAX(D206,E206)*MAX(D207,E207))) -> -- | I208: Locomotive Units by Train Type
I209: Train Type | J209: Ave. of Number of Locomotives
A210: Railroad Operating Costs: FOR FREIGHT TRAIN INCIDENTS | I210: Freight Train | J210: 2.319628647
A211: Step | B211: Monetization Factor | C211: Value Section | D211: Value per Minute | E211: Custom | I211: Passenger Train | J211: 1.518518519
A212: 3.S.1 | B212: Locomotive Ownership / Leasing | D212: =IF(C212="Default",K203,IF(C212="Loco Lease Default",K204,IF(C212="Loco Ownership Default",K203,IF(C212="Custom","Add Value","--")))) -> --
A213: 3.S.2 | B213: Locomotive Units | D213: =IF(C213="Default",J210,IF(C213="Custom","Add Value","--")) -> --
A214: 3.S.3 | B214: Locomotive Fuel (per-locomotive minute) | D214: =IF(C214="Default",K205,IF(C214="Custom","Add Value","--")) -> --
A215: 3.S.4 | B215: Other Car Cost (per car-minute) | D215: =IF(C215="Default",K206,IF(C215="Custom","Add Value","--")) -> --
A216: 3.S.5 | B216: Minutes of Delay Occuring from Rail Incident | D216: =IF(C216="Same as 3.I",MAX(D130,E130),IF(C216="Custom","Add Value","--")) -> --
A217: 3.S.6 | B217: Additional Operating Costs: Freight Rail | E217: =IF(OR(D212="--",D214="--",D215="--",D216="--"),"--",(MAX(D212,E212)*MAX(D213,E213)*MAX(D216,E216))+(MAX(D213,E213)*MAX(D214,E214)*MAX(D216,E216))+(MAX(D215,E215)*MAX(D216,E216))) -> --
A219: Freight Train Delay: Railroad Operating Costs
A220: 3.T | B220: Subtotal of Rail Operating Costs >>> | E220: =IF(AND(E208="--",E217="--"),"--",SUM(E208,E217)) -> --
A223: Environmental Emissions Costs (costs per minute of delay) - PASSENGER TRAIN
A224: Step | B224: Monetization Factor | C224: Value Section | D224: Value | E224: Custom | I224: Emissions Costs For Locomotive Runtime
A225: 3.U.1 | B225: Additional Idle/Running Time | D225: =IF(C225="Same as 3.A",MAX(D59,E59),IF(C225="Custom","Add Value","--")) -> -- | I225: Pollutant | J225: Cost per Minute
A226: 3.U.2 | B226: Number of Locomotives per train | D226: =IF(C226="Default",J211,IF(C226="Custom","Add Value","--")) -> -- | I226: CO2 | J226: ='Lookup Tables'!D487 -> 0.55263
A227: 3.U.3 | B227: CO2 (cost per locomotive minute) | D227: =IF(C227="Default",J226,IF(C227="Custom","Add Value","--")) -> -- | I227: NOx | J227: ='Lookup Tables'!D488 -> 2.245836
A228: 3.U.4 | B228: Nox (cost per locomotive minute) | D228: =IF(C228="Default",J227,IF(C228="Custom","Add Value","--")) -> -- | I228: PM | J228: ='Lookup Tables'!D489 -> 3.824156
A229: 3.U.5 | B229: PM (cost per locomotive minute) | D229: =IF(C229="Default",J228,IF(C229="Custom","Add Value","--")) -> -- | I229: Total | J229: ='Lookup Tables'!D490 -> 6.622622
A230: 3.U.6 | B230: Environmental Costs: Passenger Rail Delay | E230: =IF(OR(D225="--",D226="--",D227="--",D228="--",D229="--"),"--",((MAX(D225,E225)*MAX(D226,E226)*MAX(D227,E227)+(MAX(D225,E225)*MAX(D226,E226)*MAX(D228,E228))+(MAX(D225,E225)*MAX(D226,E226)*MAX(D229,E229))))) -> -- | I230: Source: Lovett, A., Dick, C., Barkan, C. "Determining Freight Train Delay Costs on Railroad Lines in North American." 2015. Online: https://railtec.illinois.edu/wp/wp-content/uploads/2019/01/Lovett-et-al-2015-IAROR.pdf
A232: Environmental Emissions Costs (costs per minute of delay) - FREIGHT TRAIN
A233: Step | B233: Monetization Factor | C233: Value Section | D233: Value | E233: Custom
A234: 3.V.1 | B234: Additional Idle/Running Time | D234: =IF(C234="Same as 3.I",MAX(D130,E130),IF(C234="Custom","Add Value","--")) -> --
A235: 3.V.2 | B235: Number of Locomotives per train | D235: =IF(C235="Default",J210,IF(C235="Custom","Add Value","--")) -> --
A236: 3.V.3 | B236: CO2 (cost per locomotive minute) | D236: =IF(C236="Default",J226,IF(C236="Custom","Add Value","--")) -> --
A237: 3.V.4 | B237: Nox (cost per locomotive minute) | D237: =IF(C237="Default",J227,IF(C237="Custom","Add Value","--")) -> --
A238: 3.V.5 | B238: PM (cost per locomotive minute) | D238: =IF(C238="Default",J228,IF(C238="Custom","Add Value","--")) -> --
A239: 3.V.6 | B239: Environmental Costs: Passenger Rail Delay | E239: =IF(OR(D234="--",D235="--",D236="--",D237="--",D238="--"),"--",((MAX(D234,E234)*MAX(D235,E235)*MAX(D236,E236)+(MAX(D234,E234)*MAX(D235,E235)*MAX(D237,E237))+(MAX(D234,E234)*MAX(D235,E235)*MAX(D238,E238))))) -> --
A241: Environmental Emissions Costs
A242: 3.W | B242: Subtotal of Rail Emissions Costs >>> | E242: =IF(AND(E230="--",E239="--"),"--",SUM(E230,E239)) -> --
A244: Part IV: First Responder & Emergency Costs
... 94 more rows

Sheet PropDMG_Custom
A2: Comprehensive Cost of Rail Incidents: Cost Tool
A4: Property Damage Customization Options
B7: Part I: Property Damage Custom Model Inputs
A9: Step by Step Guidance
A10: This tool allows for multiple options to assess the property damages that occur during a rail incident.
A11: Option A | B11: Use expected values modeled from historical data (Steps 1.A - 1.H). There is the opportunity to input custom values, in case those details are known.
A13: Option B | B13: Estimate property damage costs based on profession knowledge or access to very detailed information on train equipment part damages (skip to Step 1.I). The Association of American Railroads (AAR) has a schedule of 1,328 itemized costs for replacing, repairing, or upgrading broken or damaged train parts. This schedule of costs can be found on the "AAR Parts" tab and can reviewed to assist with Option B. To avoid double counting do not complete step 1.I in conjuction with Steps 1.A-1.F.
A18: Statistically Signficant Factors Affecting Rail Incident Costs | G18: Rail Incident Chracteristics | H18: Table 1: Expected Values of Rail Incident Characteristic for When Type of Occurrence is Present
A19: Step | B19: Rail Incident Chracteristics | C19: Enter Event Details | D19: Value | E19: Custom | H19: Minimum | I19: Percentile (10) | J19: Percentile (25) | K19: Mean | L19: Median* | M19: Mode | N19: Percentile (75) | O19: Percentile (90) | P19: Maximum | Q19: No. of Observations | R19: Source
A20: 1.A | B20: No. of Train Cars Releasing HAZMAT | D20: =IF(C20=$H$19,$H20,IF(C20=$I$19,$I20,IF(C20=$J$19,$J20,IF(C20=$K$19,$K20,IF(C20=$L$19,$L20,IF(C20=$M$19,$M20,IF(C20=$N$19,$N20,IF(C20=$O$19,$O20,IF(C20=$P$19,$P20,IF(C20="Custom","Add Value","--")))))))))) -> -- | G20: No. of Train Cars Releasing HAZMAT | H20: ='Lookup Tables'!B26 -> 1 | I20: ='Lookup Tables'!C26 -> 1 | J20: ='Lookup Tables'!D26 -> 1 | K20: =MROUND('Lookup Tables'!E26,1) -> 2 | L20: ='Lookup Tables'!F26 -> 1 | M20: ='Lookup Tables'!G26 -> 1 | N20: ='Lookup Tables'!H26 -> 2 | O20: ='Lookup Tables'!I26 -> 3 | P20: ='Lookup Tables'!J26 -> 32 | Q20: ='Lookup Tables'!K26 -> 848 | R20: ='Lookup Tables'!L26 -> FRA 6180.54 (1990-2019), US Full Dataset
A21: 1.B | B21: No. of Locomotive Units Derailed / Damaged | D21: =IF(C21=$H$19,$H21,IF(C21=$I$19,$I21,IF(C21=$J$19,$J21,IF(C21=$K$19,$K21,IF(C21=$L$19,$L21,IF(C21=$M$19,$M21,IF(C21=$N$19,$N21,IF(C21=$O$19,$O21,IF(C21=$P$19,$P21,IF(C21="Custom","Add Value","--")))))))))) -> -- | G21: No. of Locomotive Units Derailed / Damaged | H21: ='Lookup Tables'!B27 -> 1 | I21: ='Lookup Tables'!C27 -> 1 | J21: ='Lookup Tables'!D27 -> 1 | K21: =MROUND('Lookup Tables'!E27,1) -> 2 | L21: ='Lookup Tables'!F27 -> 1 | M21: ='Lookup Tables'!G27 -> 1 | N21: ='Lookup Tables'!H27 -> 2 | O21: ='Lookup Tables'!I27 -> 3 | P21: ='Lookup Tables'!J27 -> 10 | Q21: ='Lookup Tables'!K27 -> 9264 | R21: ='Lookup Tables'!L27 -> FRA 6180.54 (1990-2019), US Full Dataset
A22: 1.C | B22: No. of Loaded Freight Cars Derailed / Damaged | D22: =IF(C22=$H$19,$H22,IF(C22=$I$19,$I22,IF(C22=$J$19,$J22,IF(C22=$K$19,$K22,IF(C22=$L$19,$L22,IF(C22=$M$19,$M22,IF(C22=$N$19,$N22,IF(C22=$O$19,$O22,IF(C22=$P$19,$P22,IF(C22="Custom","Add Value","--")))))))))) -> -- | G22: No. of Loaded Freight Cars Derailed / Damaged | H22: ='Lookup Tables'!B28 -> 1 | I22: ='Lookup Tables'!C28 -> 1 | J22: ='Lookup Tables'!D28 -> 1 | K22: =MROUND('Lookup Tables'!E28,1) -> 5 | L22: ='Lookup Tables'!F28 -> 3 | M22: ='Lookup Tables'!G28 -> 1 | N22: ='Lookup Tables'!H28 -> 5 | O22: ='Lookup Tables'!I28 -> 9 | P22: ='Lookup Tables'!J28 -> 113 | Q22: ='Lookup Tables'!K28 -> 43447 | R22: ='Lookup Tables'!L28 -> FRA 6180.54 (1990-2019), US Full Dataset
A23: 1.D | B23: No. of Empty Freight Cars Derailed / Damaged | D23: =IF(C23=$H$19,$H23,IF(C23=$I$19,$I23,IF(C23=$J$19,$J23,IF(C23=$K$19,$K23,IF(C23=$L$19,$L23,IF(C23=$M$19,$M23,IF(C23=$N$19,$N23,IF(C23=$O$19,$O23,IF(C23=$P$19,$P23,IF(C23="Custom","Add Value","--")))))))))) -> -- | G23: No. of Empty Freight Car Derailed / Damaged | H23: ='Lookup Tables'!B29 -> 1 | I23: ='Lookup Tables'!C29 -> 1 | J23: ='Lookup Tables'!D29 -> 1 | K23: =MROUND('Lookup Tables'!E29,1) -> 4 | L23: ='Lookup Tables'!F29 -> 2 | M23: ='Lookup Tables'!G29 -> 1 | N23: ='Lookup Tables'!H29 -> 4 | O23: ='Lookup Tables'!I29 -> 8 | P23: ='Lookup Tables'!J29 -> 96 | Q23: ='Lookup Tables'!K29 -> 27211 | R23: ='Lookup Tables'!L29 -> FRA 6180.54 (1990-2019), US Full Dataset
A24: 1.E | B24: No. of Train Cars Derailed / Damaged (Not Specified) | D24: =IF(C24=$H$19,$H24,IF(C24=$I$19,$I24,IF(C24=$J$19,$J24,IF(C24=$K$19,$K24,IF(C24=$L$19,$L24,IF(C24=$M$19,$M24,IF(C24=$N$19,$N24,IF(C24=$O$19,$O24,IF(C24=$P$19,$P24,IF(C24="Custom","Add Value","--")))))))))) -> -- | G24: No. of Train Car Derailed / Damaged (Not Specified) | H24: ='Lookup Tables'!B30 -> 1 | I24: ='Lookup Tables'!C30 -> 1 | J24: ='Lookup Tables'!D30 -> 1 | K24: =MROUND('Lookup Tables'!E30,1) -> 5 | L24: ='Lookup Tables'!F30 -> 3 | M24: ='Lookup Tables'!G30 -> 1 | N24: ='Lookup Tables'!H30 -> 4 | O24: ='Lookup Tables'!I30 -> 8 | P24: ='Lookup Tables'!J30 -> 122 | Q24: ='Lookup Tables'!K30 -> 60548 | R24: ='Lookup Tables'!L30 -> FRA 6180.54 (1990-2019), US Full Dataset
G26: Rail Incident Chracteristics | H26: Table 2: Expected Values of Rail Incident Characteristic Per Rail Incident (likilihood of occurrence per any given rail incident)
A27: Step | B27: Property Damage Characteristics | C27: Select Event Type | H27: ExpVal_Minimum | I27: ExpVal_Percentile (10) | J27: ExpVal_Percentile (25) | K27: ExpVal_Mean | L27: ExpVal_Median* | M27: ExpVal_Mode | N27: ExpVal_Percentile (75) | O27: ExpVal_Percentile (90) | P27: ExpVal_Maximum | Q27: No. of Observations | R27: Source
A28: 1.F | B28: Type of Rail Incident | G28: No. of Train Cars Releasing HAZMAT | H28: ='Lookup Tables'!B34 -> 0 | I28: ='Lookup Tables'!C34 -> 0 | J28: ='Lookup Tables'!D34 -> 0 | K28: ='Lookup Tables'!E34 -> 0.02222222222 | L28: ='Lookup Tables'!F34 -> 0 | M28: ='Lookup Tables'!G34 -> 0 | N28: ='Lookup Tables'!H34 -> 0 | O28: ='Lookup Tables'!I34 -> 0 | P28: ='Lookup Tables'!J34 -> 3 | Q28: ='Lookup Tables'!K34 -> 1125 | R28: ='Lookup Tables'!L34 -> FRA 6180.54 (1990-2019), NC Extract
G29: No. of Locomotive Units Derailed / Damaged | H29: ='Lookup Tables'!B35 -> 0 | I29: ='Lookup Tables'!C35 -> 0 | J29: ='Lookup Tables'!D35 -> 0 | K29: ='Lookup Tables'!E35 -> 0.1306666667 | L29: ='Lookup Tables'!F35 -> 0 | M29: ='Lookup Tables'!G35 -> 0 | N29: ='Lookup Tables'!H35 -> 0 | O29: ='Lookup Tables'!I35 -> 0 | P29: ='Lookup Tables'!J35 -> 9 | Q29: ='Lookup Tables'!K35 -> 1125 | R29: ='Lookup Tables'!L35 -> FRA 6180.54 (1990-2019), NC Extract
A30: If the Incident Involves a Highway-Rail Collision, Complete Steps 1.G to 1.H | G30: No. of Loaded Freight Cars Derailed / Damaged | H30: ='Lookup Tables'!B36 -> 0 | I30: ='Lookup Tables'!C36 -> 0 | J30: ='Lookup Tables'!D36 -> 0 | K30: ='Lookup Tables'!E36 -> 1.833777778 | L30: ='Lookup Tables'!F36 -> 0 | M30: ='Lookup Tables'!G36 -> 0 | N30: ='Lookup Tables'!H36 -> 2 | O30: ='Lookup Tables'!I36 -> 6 | P30: ='Lookup Tables'!J36 -> 39 | Q30: ='Lookup Tables'!K36 -> 1125 | R30: ='Lookup Tables'!L36 -> FRA 6180.54 (1990-2019), NC Extract
A31: Step | B31: Highway-Rail Collision Characteristics | C31: Select Event Type | G31: No. of Empty Freight Car Derailed / Damaged | H31: ='Lookup Tables'!B37 -> 0 | I31: ='Lookup Tables'!C37 -> 0 | J31: ='Lookup Tables'!D37 -> 0 | K31: ='Lookup Tables'!E37 -> 1.172444444 | L31: ='Lookup Tables'!F37 -> 0 | M31: ='Lookup Tables'!G37 -> 0 | N31: ='Lookup Tables'!H37 -> 1 | O31: ='Lookup Tables'!I37 -> 3.4 | P31: ='Lookup Tables'!J37 -> 29 | Q31: ='Lookup Tables'!K37 -> 1125 | R31: ='Lookup Tables'!L37 -> FRA 6180.54 (1990-2019), NC Extract
A32: 1.G | B32: Type of Highway User Involved in Collision | G32: No. of Train Car Derailed / Damaged (Not Specified) | H32: ='Lookup Tables'!B38 -> 0 | I32: ='Lookup Tables'!C38 -> 0 | J32: ='Lookup Tables'!D38 -> 0 | K32: ='Lookup Tables'!E38 -> 3.039111111 | L32: ='Lookup Tables'!F38 -> 1 | M32: ='Lookup Tables'!G38 -> 0 | N32: ='Lookup Tables'!H38 -> 4 | O32: ='Lookup Tables'!I38 -> 8 | P32: ='Lookup Tables'!J38 -> 42 | Q32: ='Lookup Tables'!K38 -> 1125 | R32: ='Lookup Tables'!L38 -> FRA 6180.54 (1990-2019), NC Extract
A33: 1.H | B33: Highway User Released HAZMAT (Yes/No)?
A35: Do not complete Step 1.I (Option B), if you have completed any of the steps 1.A-1.H. Step 1.I is recommended for tabulating damage to specific train equipment parts.
A37: Step | B37: Known Parts Broken/Damaged in Incident | C37: Sum of Damage | D37: *Avoid double counting. See "Step by Step Guidance: Option B".
A38: 1.I* | B38: OPTION B (see "AAR Parts" Tab for assistance)
A39: *To avoid double counting do not complete step 1.I in conjuction with Steps 1.A-1.F.
B41: Part I: Property Damage Model Outputs
A44: Table 3: Property Damage Output Table
A45: Step | B45: Property Damage Characteristics | C45: Unit | D45: Multiplier | E45: Additional Cost Per Unit | F45: Total Additional Cost
A46: 1.A | B46: No. of Train Cars Releasing HAZMAT | C46: =IF(ISBLANK(E20),D20,E20) -> -- | E46: ='Lookup Tables'!B18 -> 332662 | F46: =IF(ISTEXT(C46),C46,(C46*E46)) -> --
A47: 1.B | B47: No. of Locomotive Units Derailed / Damaged | C47: =IF(ISBLANK(E21),D21,E21) -> -- | E47: ='Lookup Tables'!B19 -> 152630 | F47: =IF(ISTEXT(C47),C47,(C47*E47)) -> --
A48: 1.C | B48: No. of Loaded Freight Cars Derailed / Damaged | C48: =IF(ISBLANK(E22),D22,E22) -> -- | E48: ='Lookup Tables'!B20 -> 63020 | F48: =IF(ISTEXT(C48),C48,(C48*E48)) -> --
A49: 1.D | B49: No. of Empty Freight Car Derailed / Damaged | C49: =IF(ISBLANK(E23),D23,E23) -> -- | E49: ='Lookup Tables'!B21 -> 30760 | F49: =IF(ISTEXT(C49),C49,(C49*E49)) -> --
A50: 1.E | B50: No. of Train Car Derailed / Damaged (Not Specified) | C50: =IF(ISBLANK(E24),D24,E24) -> -- | E50: ='Lookup Tables'!B22 -> 54000 | F50: =IF(ISTEXT(C50),C50,(C50*E50)) -> --
A51: 1.F | B51: =CONCATENATE("*",B28," Multiplier ", LEFT(C28,2)) -> *Type of Rail Incident Multiplier | D51: =IF(C28='Lookup Tables'!A42,'Lookup Tables'!B42,IF(C28='Lookup Tables'!A43,'Lookup Tables'!B43,IF(C28='Lookup Tables'!A44,'Lookup Tables'!B44,IF(C28='Lookup Tables'!A45,'Lookup Tables'!B45,IF(C28='Lookup Tables'!A46,'Lookup Tables'!B46,IF(C28='Lookup Tables'!A47,'Lookup Tables'!B47,IF(C28='Lookup Tables'!A48,'Lookup Tables'!B48,IF(C28='Lookup Tables'!A49,'Lookup Tables'!B49,IF(C28='Lookup Tables'!A50,'Lookup Tables'!B50,IF(C28='Lookup Tables'!A51,'Lookup Tables'!B51,IF(C28='Lookup Tables'!A52,'Lookup Tables'!B52,IF(C28='Lookup Tables'!A53,'Lookup Tables'!B53,"--")))))))))))) -> --
A52: 1.G | B52: =CONCATENATE("Type of Highway User Involved Cost ", LEFT(C32,2)) -> Type of Highway User Involved Cost | F52: =IF(C32='Lookup Tables'!A60,'Lookup Tables'!B60,IF(C32='Lookup Tables'!A61,'Lookup Tables'!B61,IF(C32='Lookup Tables'!A62,'Lookup Tables'!B62,IF(C32='Lookup Tables'!A63,'Lookup Tables'!B63,IF(C32='Lookup Tables'!A64,'Lookup Tables'!B64,IF(C32='Lookup Tables'!A65,'Lookup Tables'!B65,IF(C32='Lookup Tables'!A66,'Lookup Tables'!B66,IF(C32='Lookup Tables'!A67,'Lookup Tables'!B67,IF(C32='Lookup Tables'!A68,'Lookup Tables'!B68,IF(C32='Lookup Tables'!A69,'Lookup Tables'!B69,IF(C32='Lookup Tables'!A70,'Lookup Tables'!B70,"--"))))))))))) -> --
A53: 1.H | B53: Highway User HAZMAT Release | F53: =IF(ISBLANK(C33),"--",IF(C33="No",0,'Lookup Tables'!B74)) -> --
A54: 1.I | B54: OPTION B OVERRIDE (with "AAR Parts" tab) | F54: =IF(ISBLANK(C38),"--",C38) -> --
A55: 1.J | B55: Baseline Incident Cost (NC Minimum) | F55: =IF(ISBLANK(C38),CostCalculator!I10,"--") -> 3840
A56: Total Estimated Property Damage Cost | F56: =IF(ISTEXT(D51),SUM(F46:F55),(SUM(F46:F55)+(0.03*(D51*SUM(F46:F55))))) -> 3840
A57: *The type of rail incident was only found to account for 3 percent of the variation in in rail costs. Accordingly, the incident cost multplier has been weighted to only account for 3% of the overall cost.

Sheet AAR Parts
A1: Train Equipment Repair, Replacement, and Upgrade Costs (From AAR. Technology Transportation Center, Inc. 2020.) in $2022
A3: Applied Job Code | B3: Condition Code | C3: Condition Description | D3: Fixed Labor Time Standard | E3: Variable Labor Time Standard | F3: Job Code Description | G3: Material Price | H3: Credit | I3: Fixed Labor | J3: Variable Labor | K3: Total Cost
A4: 1116 | B4: 7 | C4: =VLOOKUP(B4,$B$2686:$C$2701,2,FALSE) -> Periodic or Service Attention (includes: vacant, single car testing of air brakes, cleaning of brke cyclinder, B-1 Quick Service Valves, Lubrication, Servicing mechanical refrigeration units, vacant, all wheels applied) | D4: 0 | E4: 3.888 | F4: ADDITIONAL BRAKE CLEANING - ACCOUNT SUBMERGED | G4: =G1355*'Lookup Tables'!$R$14 -> 0 | H4: =H1355*'Lookup Tables'!$R$14 -> 0 | I4: =I1355*'Lookup Tables'!$R$14 -> 0 | J4: =J1355*'Lookup Tables'!$R$14 -> 598.5626 | K4: =K1355*'Lookup Tables'!$R$14 -> 598.5626
A5: 1128 | B5: 0 | C5: Labor attention such as: actual labor, replacing or rechanging doors, welding, vacant, painting or stenciling, other labor attention | D5: 0 | E5: 0 | F5: INSPECTION ASSOCIATED WITH EHMS LORF-AHS ALERT | G5: =G1356*'Lookup Tables'!$R$14 -> 0 | H5: =H1356*'Lookup Tables'!$R$14 -> 0 | I5: =I1356*'Lookup Tables'!$R$14 -> 0 | J5: =J1356*'Lookup Tables'!$R$14 -> 0 | K5: =K1356*'Lookup Tables'!$R$14 -> 0
A6: 1130 | B6: 7 | C6: Periodic or Service Attention (includes: vacant, single car testing of air brakes, cleaning of brke cyclinder, B-1 Quick Service Valves, Lubrication, Servicing mechanical refrigeration units, vacant, all wheels applied) | D6: 0 | E6: 0.072 | F6: ADD'L SERVICE STABILITY TEST - EHMS LORF-NCF ALERT | G6: =G1357*'Lookup Tables'!$R$14 -> 0 | H6: =H1357*'Lookup Tables'!$R$14 -> 0 | I6: =I1357*'Lookup Tables'!$R$14 -> 0 | J6: =J1357*'Lookup Tables'!$R$14 -> 11.0853 | K6: =K1357*'Lookup Tables'!$R$14 -> 11.0853
A7: 1132 | B7: 7 | C7: Periodic or Service Attention (includes: vacant, single car testing of air brakes, cleaning of brke cyclinder, B-1 Quick Service Valves, Lubrication, Servicing mechanical refrigeration units, vacant, all wheels applied) | D7: 0 | E7: 0.07 | F7: ADDITIONAL VENT VALVE TEST - EHMS LORF-NCF ALERT | G7: =G1358*'Lookup Tables'!$R$14 -> 0 | H7: =H1358*'Lookup Tables'!$R$14 -> 0 | I7: =I1358*'Lookup Tables'!$R$14 -> 0 | J7: =J1358*'Lookup Tables'!$R$14 -> 10.7801 | K7: =K1358*'Lookup Tables'!$R$14 -> 10.7801
A8: 1139 | B8: 7 | C8: Periodic or Service Attention (includes: vacant, single car testing of air brakes, cleaning of brke cyclinder, B-1 Quick Service Valves, Lubrication, Servicing mechanical refrigeration units, vacant, all wheels applied) | D8: 0 | E8: 2.63 | F8: SCT USE MANUAL DEVICE, 1 SET, PER MA-63 OR EW 5171 | G8: =G1359*'Lookup Tables'!$R$14 -> 0.436 | H8: =H1359*'Lookup Tables'!$R$14 -> 0 | I8: =I1359*'Lookup Tables'!$R$14 -> 0 | J8: =J1359*'Lookup Tables'!$R$14 -> 404.8914 | K8: =K1359*'Lookup Tables'!$R$14 -> 405.3274
A9: 1140 | B9: 7 | C9: Periodic or Service Attention (includes: vacant, single car testing of air brakes, cleaning of brke cyclinder, B-1 Quick Service Valves, Lubrication, Servicing mechanical refrigeration units, vacant, all wheels applied) | D9: 0 | E9: 2.885 | F9: SCT USE AUTO TEST DEVICE, 1 SET, PER MA-63 EW 5171 | G9: =G1360*'Lookup Tables'!$R$14 -> 0.436 | H9: =H1360*'Lookup Tables'!$R$14 -> 0 | I9: =I1360*'Lookup Tables'!$R$14 -> 0 | J9: =J1360*'Lookup Tables'!$R$14 -> 444.1532 | K9: =K1360*'Lookup Tables'!$R$14 -> 444.5892
A10: 1142 | B10: 7 | C10: Periodic or Service Attention (includes: vacant, single car testing of air brakes, cleaning of brke cyclinder, B-1 Quick Service Valves, Lubrication, Servicing mechanical refrigeration units, vacant, all wheels applied) | D10: 0 | E10: 2.302 | F10: 4-PRESSURE SCT W/ AUTO TEST DEV, MA-63 OR EW 5171 | G10: =G1361*'Lookup Tables'!$R$14 -> 0.436 | H10: =H1361*'Lookup Tables'!$R$14 -> 0 | I10: =I1361*'Lookup Tables'!$R$14 -> 0 | J10: =J1361*'Lookup Tables'!$R$14 -> 354.3917 | K10: =K1361*'Lookup Tables'!$R$14 -> 354.8277
A11: 1144 | B11: 7 | C11: Periodic or Service Attention (includes: vacant, single car testing of air brakes, cleaning of brke cyclinder, B-1 Quick Service Valves, Lubrication, Servicing mechanical refrigeration units, vacant, all wheels applied) | D11: 0 | E11: 0.87 | F11: 4-PRESSURE SCT USE AN AUTOMATIC SCT DEVICE, 1 SET | G11: =G1362*'Lookup Tables'!$R$14 -> 0.436 | H11: =H1362*'Lookup Tables'!$R$14 -> 0 | I11: =I1362*'Lookup Tables'!$R$14 -> 0 | J11: =J1362*'Lookup Tables'!$R$14 -> 133.9392 | K11: =K1362*'Lookup Tables'!$R$14 -> 134.3752
A12: 1145 | B12: 7 | C12: Periodic or Service Attention (includes: vacant, single car testing of air brakes, cleaning of brke cyclinder, B-1 Quick Service Valves, Lubrication, Servicing mechanical refrigeration units, vacant, all wheels applied) | D12: 0 | E12: 1.198 | F12: SCT USE A MANUAL SCT DEVICE, 1 SET | G12: =G1363*'Lookup Tables'!$R$14 -> 0.436 | H12: =H1363*'Lookup Tables'!$R$14 -> 0 | I12: =I1363*'Lookup Tables'!$R$14 -> 0 | J12: =J1363*'Lookup Tables'!$R$14 -> 184.4389 | K12: =K1363*'Lookup Tables'!$R$14 -> 184.8749
A13: 1146 | B13: 7 | C13: Periodic or Service Attention (includes: vacant, single car testing of air brakes, cleaning of brke cyclinder, B-1 Quick Service Valves, Lubrication, Servicing mechanical refrigeration units, vacant, all wheels applied) | D13: 0 | E13: 1.453 | F13: SCT USE AN AUTOMATIC SCT DEVICE, 1 SET | G13: =G1364*'Lookup Tables'!$R$14 -> 0.436 | H13: =H1364*'Lookup Tables'!$R$14 -> 0 | I13: =I1364*'Lookup Tables'!$R$14 -> 0 | J13: =J1364*'Lookup Tables'!$R$14 -> 223.6898 | K13: =K1364*'Lookup Tables'!$R$14 -> 224.1258
A14: 1147 | B14: 7 | C14: Periodic or Service Attention (includes: vacant, single car testing of air brakes, cleaning of brke cyclinder, B-1 Quick Service Valves, Lubrication, Servicing mechanical refrigeration units, vacant, all wheels applied) | D14: 0 | E14: 0.312 | F14: BRAKE CYLINDER LEAKAGE TEST, 1 SET | G14: =G1365*'Lookup Tables'!$R$14 -> 0 | H14: =H1365*'Lookup Tables'!$R$14 -> 0 | I14: =I1365*'Lookup Tables'!$R$14 -> 0 | J14: =J1365*'Lookup Tables'!$R$14 -> 48.0363 | K14: =K1365*'Lookup Tables'!$R$14 -> 48.0363
A15: 1150 | B15: 0 | C15: Labor attention such as: actual labor, replacing or rechanging doors, welding, vacant, painting or stenciling, other labor attention | D15: 0 | E15: 0.387 | F15: GROUP A - PISTON TRAVEL ADJUSTMENT | G15: =G1366*'Lookup Tables'!$R$14 -> 0 | H15: =H1366*'Lookup Tables'!$R$14 -> 0 | I15: =I1366*'Lookup Tables'!$R$14 -> 0 | J15: =J1366*'Lookup Tables'!$R$14 -> 59.5794 | K15: =K1366*'Lookup Tables'!$R$14 -> 59.5794
A16: 1151 | B16: 0 | C16: Labor attention such as: actual labor, replacing or rechanging doors, welding, vacant, painting or stenciling, other labor attention | D16: 0 | E16: 0.341 | F16: GROUP B - PISTON TRAVEL ADJUSTMENT | G16: =G1367*'Lookup Tables'!$R$14 -> 0 | H16: =H1367*'Lookup Tables'!$R$14 -> 0 | I16: =I1367*'Lookup Tables'!$R$14 -> 0 | J16: =J1367*'Lookup Tables'!$R$14 -> 52.4944 | K16: =K1367*'Lookup Tables'!$R$14 -> 52.4944
A17: 1152 | B17: 0 | C17: Labor attention such as: actual labor, replacing or rechanging doors, welding, vacant, painting or stenciling, other labor attention | D17: 0 | E17: 0.437 | F17: GROUP C - PISTON TRAVEL ADJUSTMENT | G17: =G1368*'Lookup Tables'!$R$14 -> 0 | H17: =H1368*'Lookup Tables'!$R$14 -> 0 | I17: =I1368*'Lookup Tables'!$R$14 -> 0 | J17: =J1368*'Lookup Tables'!$R$14 -> 67.2748 | K17: =K1368*'Lookup Tables'!$R$14 -> 67.2748
A18: 1153 | B18: 0 | C18: Labor attention such as: actual labor, replacing or rechanging doors, welding, vacant, painting or stenciling, other labor attention | D18: 0 | E18: 0.205 | F18: BODY MOUNTED BRAKES-TRUCK LEVER ADJUSTMENT | G18: =G1369*'Lookup Tables'!$R$14 -> 0.1417 | H18: =H1369*'Lookup Tables'!$R$14 -> 0 | I18: =I1369*'Lookup Tables'!$R$14 -> 0 | J18: =J1369*'Lookup Tables'!$R$14 -> 31.5555 | K18: =K1369*'Lookup Tables'!$R$14 -> 31.6972
A19: 1155 | B19: 7 | C19: Periodic or Service Attention (includes: vacant, single car testing of air brakes, cleaning of brke cyclinder, B-1 Quick Service Valves, Lubrication, Servicing mechanical refrigeration units, vacant, all wheels applied) | D19: 0 | E19: 0.069 | F19: SLACK ADJUSTER TEST | G19: =G1370*'Lookup Tables'!$R$14 -> 0 | H19: =H1370*'Lookup Tables'!$R$14 -> 0 | I19: =I1370*'Lookup Tables'!$R$14 -> 0 | J19: =J1370*'Lookup Tables'!$R$14 -> 10.6275 | K19: =K1370*'Lookup Tables'!$R$14 -> 10.6275
A20: 1157 | B20: 7 | C20: Periodic or Service Attention (includes: vacant, single car testing of air brakes, cleaning of brke cyclinder, B-1 Quick Service Valves, Lubrication, Servicing mechanical refrigeration units, vacant, all wheels applied) | D20: 0 | E20: 0.078 | F20: RETAINING VALVE TEST | G20: =G1371*'Lookup Tables'!$R$14 -> 0 | H20: =H1371*'Lookup Tables'!$R$14 -> 0 | I20: =I1371*'Lookup Tables'!$R$14 -> 0 | J20: =J1371*'Lookup Tables'!$R$14 -> 12.0118 | K20: =K1371*'Lookup Tables'!$R$14 -> 12.0118
A21: 1159 | B21: 7 | C21: Periodic or Service Attention (includes: vacant, single car testing of air brakes, cleaning of brke cyclinder, B-1 Quick Service Valves, Lubrication, Servicing mechanical refrigeration units, vacant, all wheels applied) | D21: 0 | E21: 0.155 | F21: EMPTY/LOAD VALVE TEST | G21: =G1372*'Lookup Tables'!$R$14 -> 0 | H21: =H1372*'Lookup Tables'!$R$14 -> 0 | I21: =I1372*'Lookup Tables'!$R$14 -> 0 | J21: =J1372*'Lookup Tables'!$R$14 -> 23.8601 | K21: =K1372*'Lookup Tables'!$R$14 -> 23.8601
A22: 1160 | B22: 1 | C22: New Material Applied | D22: 0 | E22: 0.253 | F22: ANGLE COCK, BALL TYPE | G22: =G1373*'Lookup Tables'!$R$14 -> 41.638 | H22: =H1373*'Lookup Tables'!$R$14 -> 0.3597 | I22: =I1373*'Lookup Tables'!$R$14 -> 0 | J22: =J1373*'Lookup Tables'!$R$14 -> 38.9457 | K22: =K1373*'Lookup Tables'!$R$14 -> 80.5837
A23: 1160 | B23: 2 | C23: Secondhand Material Applied | D23: 0 | E23: 0.253 | F23: ANGLE COCK, BALL TYPE | G23: =G1374*'Lookup Tables'!$R$14 -> 35.098 | H23: =H1374*'Lookup Tables'!$R$14 -> 0 | I23: =I1374*'Lookup Tables'!$R$14 -> 0 | J23: =J1374*'Lookup Tables'!$R$14 -> 38.9457 | K23: =K1374*'Lookup Tables'!$R$14 -> 74.0437
A24: 1160 | B24: 3 | C24: Reconditioned or Recertified Material Applied | D24: 0 | E24: 0.253 | F24: ANGLE COCK, BALL TYPE | G24: =G1375*'Lookup Tables'!$R$14 -> 37.0709 | H24: =H1375*'Lookup Tables'!$R$14 -> 0 | I24: =I1375*'Lookup Tables'!$R$14 -> 0 | J24: =J1375*'Lookup Tables'!$R$14 -> 38.9457 | K24: =K1375*'Lookup Tables'!$R$14 -> 76.0166
A25: 1161 | B25: 1 | C25: New Material Applied | D25: 0 | E25: 0.1 | F25: ANGLE COCK / END COCK HANDLE | G25: =G1376*'Lookup Tables'!$R$14 -> 21.4621 | H25: =H1376*'Lookup Tables'!$R$14 -> 0.1199 | I25: =I1376*'Lookup Tables'!$R$14 -> 0 | J25: =J1376*'Lookup Tables'!$R$14 -> 15.3908 | K25: =K1376*'Lookup Tables'!$R$14 -> 36.8529
A26: 1162 | B26: 1 | C26: New Material Applied | D26: 0 | E26: 0.24 | F26: END COCK 1 1/4" | G26: =G1377*'Lookup Tables'!$R$14 -> 76.2673 | H26: =H1377*'Lookup Tables'!$R$14 -> 0.3597 | I26: =I1377*'Lookup Tables'!$R$14 -> 0 | J26: =J1377*'Lookup Tables'!$R$14 -> 36.951 | K26: =K1377*'Lookup Tables'!$R$14 -> 113.2183
A27: 1162 | B27: 2 | C27: Secondhand Material Applied | D27: 0 | E27: 0.24 | F27: END COCK 1 1/4" | G27: =G1378*'Lookup Tables'!$R$14 -> 23.3151 | H27: =H1378*'Lookup Tables'!$R$14 -> 0 | I27: =I1378*'Lookup Tables'!$R$14 -> 0 | J27: =J1378*'Lookup Tables'!$R$14 -> 36.951 | K27: =K1378*'Lookup Tables'!$R$14 -> 60.2661
A28: 1162 | B28: 3 | C28: Reconditioned or Recertified Material Applied | D28: 0 | E28: 0.24 | F28: END COCK 1 1/4" | G28: =G1379*'Lookup Tables'!$R$14 -> 37.5178 | H28: =H1379*'Lookup Tables'!$R$14 -> 0 | I28: =I1379*'Lookup Tables'!$R$14 -> 0 | J28: =J1379*'Lookup Tables'!$R$14 -> 36.951 | K28: =K1379*'Lookup Tables'!$R$14 -> 74.4688
A29: 1163 | B29: 1 | C29: New Material Applied | D29: 0 | E29: 0.228 | F29: ANGLE COCK / END COCK HANDLE AND TOP CAP ASSEMBLY | G29: =G1380*'Lookup Tables'!$R$14 -> 16.3827 | H29: =H1380*'Lookup Tables'!$R$14 -> 0.1199 | I29: =I1380*'Lookup Tables'!$R$14 -> 0 | J29: =J1380*'Lookup Tables'!$R$14 -> 35.098 | K29: =K1380*'Lookup Tables'!$R$14 -> 51.4807
A30: 1165 | B30: 1 | C30: New Material Applied | D30: 0 | E30: 0.114 | F30: AIR HOSE SUPPORT COMPLETE - NON-METALLIC | G30: =G1381*'Lookup Tables'!$R$14 -> 3.6188 | H30: =H1381*'Lookup Tables'!$R$14 -> 0 | I30: =I1381*'Lookup Tables'!$R$14 -> 0 | J30: =J1381*'Lookup Tables'!$R$14 -> 17.549 | K30: =K1381*'Lookup Tables'!$R$14 -> 21.1678
A31: 1165 | B31: 2 | C31: Secondhand Material Applied | D31: 0 | E31: 0.114 | F31: AIR HOSE SUPPORT COMPLETE - NON-METALLIC | G31: =G1382*'Lookup Tables'!$R$14 -> 1.8094 | H31: =H1382*'Lookup Tables'!$R$14 -> 0 | I31: =I1382*'Lookup Tables'!$R$14 -> 0 | J31: =J1382*'Lookup Tables'!$R$14 -> 17.549 | K31: =K1382*'Lookup Tables'!$R$14 -> 19.3584
A32: 1165 | B32: 9 | C32: Remove and replace same part | D32: 0 | E32: 0.079 | F32: AIR HOSE SUPPORT COMPLETE - NON-METALLIC | G32: =G1383*'Lookup Tables'!$R$14 -> 0 | H32: =H1383*'Lookup Tables'!$R$14 -> 0 | I32: =I1383*'Lookup Tables'!$R$14 -> 0 | J32: =J1383*'Lookup Tables'!$R$14 -> 12.1644 | K32: =K1383*'Lookup Tables'!$R$14 -> 12.1644
A33: 1167 | B33: 1 | C33: New Material Applied | D33: 0 | E33: 0.114 | F33: AIR HOSE SUPPORT COMPLETE - METALLIC | G33: =G1384*'Lookup Tables'!$R$14 -> 3.9022 | H33: =H1384*'Lookup Tables'!$R$14 -> 0 | I33: =I1384*'Lookup Tables'!$R$14 -> 0 | J33: =J1384*'Lookup Tables'!$R$14 -> 17.549 | K33: =K1384*'Lookup Tables'!$R$14 -> 21.4512
A34: 1167 | B34: 2 | C34: Secondhand Material Applied | D34: 0 | E34: 0.114 | F34: AIR HOSE SUPPORT COMPLETE - METALLIC | G34: =G1385*'Lookup Tables'!$R$14 -> 1.9511 | H34: =H1385*'Lookup Tables'!$R$14 -> 0 | I34: =I1385*'Lookup Tables'!$R$14 -> 0 | J34: =J1385*'Lookup Tables'!$R$14 -> 17.549 | K34: =K1385*'Lookup Tables'!$R$14 -> 19.5001
A35: 1167 | B35: 9 | C35: Remove and replace same part | D35: 0 | E35: 0.079 | F35: AIR HOSE SUPPORT COMPLETE - METALLIC | G35: =G1386*'Lookup Tables'!$R$14 -> 0 | H35: =H1386*'Lookup Tables'!$R$14 -> 0 | I35: =I1386*'Lookup Tables'!$R$14 -> 0 | J35: =J1386*'Lookup Tables'!$R$14 -> 12.1644 | K35: =K1386*'Lookup Tables'!$R$14 -> 12.1644
A36: 1172 | B36: 1 | C36: New Material Applied | D36: 0 | E36: 0.25 | F36: FLEXIBLE BRANCH PIPE HOSE | G36: =G1387*'Lookup Tables'!$R$14 -> 74.5887 | H36: =H1387*'Lookup Tables'!$R$14 -> 0 | I36: =I1387*'Lookup Tables'!$R$14 -> 0 | J36: =J1387*'Lookup Tables'!$R$14 -> 38.4879 | K36: =K1387*'Lookup Tables'!$R$14 -> 113.0766
A37: 1180 | B37: 1 | C37: New Material Applied | D37: 0 | E37: 0.255 | F37: FLEXIBLE BRAKE PIPE HOSE, UNDER 59 INCHES | G37: =G1388*'Lookup Tables'!$R$14 -> 43.4474 | H37: =H1388*'Lookup Tables'!$R$14 -> 0 | I37: =I1388*'Lookup Tables'!$R$14 -> 0 | J37: =J1388*'Lookup Tables'!$R$14 -> 39.2618 | K37: =K1388*'Lookup Tables'!$R$14 -> 82.7092
A38: 1184 | B38: 1 | C38: New Material Applied | D38: 0 | E38: 0.272 | F38: FLEXIBLE BRAKE PIPE HOSE 59 INCHES OR OVER | G38: =G1389*'Lookup Tables'!$R$14 -> 61.1926 | H38: =H1389*'Lookup Tables'!$R$14 -> 0 | I38: =I1389*'Lookup Tables'!$R$14 -> 0 | J38: =J1389*'Lookup Tables'!$R$14 -> 41.8778 | K38: =K1389*'Lookup Tables'!$R$14 -> 103.0704
A39: 1186 | B39: 1 | C39: New Material Applied | D39: 0 | E39: 0.272 | F39: FLEXIBLE HOSE, 3/4 INCH OR SMALLER | G39: =G1390*'Lookup Tables'!$R$14 -> 16.4372 | H39: =H1390*'Lookup Tables'!$R$14 -> 0 | I39: =I1390*'Lookup Tables'!$R$14 -> 0 | J39: =J1390*'Lookup Tables'!$R$14 -> 41.8778 | K39: =K1390*'Lookup Tables'!$R$14 -> 58.315
A40: 1188 | B40: 1 | C40: New Material Applied | D40: 0 | E40: 0 | F40: PIPE, 3/4 INCHES OR SMALLER | G40: =G1391*'Lookup Tables'!$R$14 -> 1.9729 | H40: =H1391*'Lookup Tables'!$R$14 -> 0 | I40: =I1391*'Lookup Tables'!$R$14 -> 0 | J40: =J1391*'Lookup Tables'!$R$14 -> 0 | K40: =K1391*'Lookup Tables'!$R$14 -> 1.9729
A41: 1188 | B41: 2 | C41: Secondhand Material Applied | D41: 0 | E41: 0 | F41: PIPE, 3/4 INCHES OR SMALLER | G41: =G1392*'Lookup Tables'!$R$14 -> 0.981 | H41: =H1392*'Lookup Tables'!$R$14 -> 0 | I41: =I1392*'Lookup Tables'!$R$14 -> 0 | J41: =J1392*'Lookup Tables'!$R$14 -> 0 | K41: =K1392*'Lookup Tables'!$R$14 -> 0.981
A42: 1192 | B42: 1 | C42: New Material Applied | D42: 0 | E42: 0 | F42: PIPE, 1 OR 1-1/4 INCHES | G42: =G1393*'Lookup Tables'!$R$14 -> 3.6842 | H42: =H1393*'Lookup Tables'!$R$14 -> 0.3597 | I42: =I1393*'Lookup Tables'!$R$14 -> 0 | J42: =J1393*'Lookup Tables'!$R$14 -> 0 | K42: =K1393*'Lookup Tables'!$R$14 -> 3.6842
A43: 1192 | B43: 2 | C43: Secondhand Material Applied | D43: 0 | E43: 0 | F43: PIPE, 1 OR 1-1/4 INCHES | G43: =G1394*'Lookup Tables'!$R$14 -> 1.8421 | H43: =H1394*'Lookup Tables'!$R$14 -> 0.3597 | I43: =I1394*'Lookup Tables'!$R$14 -> 0 | J43: =J1394*'Lookup Tables'!$R$14 -> 0 | K43: =K1394*'Lookup Tables'!$R$14 -> 1.8421
A44: 1194 | B44: 0 | C44: Labor attention such as: actual labor, replacing or rechanging doors, welding, vacant, painting or stenciling, other labor attention | D44: 0 | E44: 0.3 | F44: BRAKE PIPE, ANY SIZE - BENDING | G44: =G1395*'Lookup Tables'!$R$14 -> 0 | H44: =H1395*'Lookup Tables'!$R$14 -> 0 | I44: =I1395*'Lookup Tables'!$R$14 -> 0 | J44: =J1395*'Lookup Tables'!$R$14 -> 46.1833 | K44: =K1395*'Lookup Tables'!$R$14 -> 46.1833
A45: 1196 | B45: 0 | C45: Labor attention such as: actual labor, replacing or rechanging doors, welding, vacant, painting or stenciling, other labor attention | D45: 0 | E45: 0.15 | F45: THREADING PIPE, ANY SIZE, PER END | G45: =G1396*'Lookup Tables'!$R$14 -> 0 | H45: =H1396*'Lookup Tables'!$R$14 -> 0 | I45: =I1396*'Lookup Tables'!$R$14 -> 0 | J45: =J1396*'Lookup Tables'!$R$14 -> 23.0971 | K45: =K1396*'Lookup Tables'!$R$14 -> 23.0971
A46: 1197 | B46: 0 | C46: Labor attention such as: actual labor, replacing or rechanging doors, welding, vacant, painting or stenciling, other labor attention | D46: 0.123 | E46: 0.009 | F46: PIPE, 3/4 INCH OR LESS-STRAIGHTEN OFF CAR W/ HEAT | G46: =G1397*'Lookup Tables'!$R$14 -> 0 | H46: =H1397*'Lookup Tables'!$R$14 -> 0 | I46: =I1397*'Lookup Tables'!$R$14 -> 18.9333 | J46: =J1397*'Lookup Tables'!$R$14 -> 1.3843 | K46: =K1397*'Lookup Tables'!$R$14 -> 1.3843
A47: 1198 | B47: 0 | C47: Labor attention such as: actual labor, replacing or rechanging doors, welding, vacant, painting or stenciling, other labor attention | D47: 0.123 | E47: 0.027 | F47: PIPE, 1 OR 1-1/4 INCH-STRAIGHTEN OFF CAR WITH HEAT | G47: =G1398*'Lookup Tables'!$R$14 -> 0 | H47: =H1398*'Lookup Tables'!$R$14 -> 0 | I47: =I1398*'Lookup Tables'!$R$14 -> 18.9333 | J47: =J1398*'Lookup Tables'!$R$14 -> 4.1529 | K47: =K1398*'Lookup Tables'!$R$14 -> 4.1529
A48: 1200 | B48: 1 | C48: New Material Applied | D48: 0 | E48: 0.1 | F48: PIPE NIPPLE, S.W. 1-1/4 INCHES | G48: =G1399*'Lookup Tables'!$R$14 -> 4.8832 | H48: =H1399*'Lookup Tables'!$R$14 -> 0 | I48: =I1399*'Lookup Tables'!$R$14 -> 0 | J48: =J1399*'Lookup Tables'!$R$14 -> 15.3908 | K48: =K1399*'Lookup Tables'!$R$14 -> 20.274
A49: 1200 | B49: 2 | C49: Secondhand Material Applied | D49: 0 | E49: 0.1 | F49: PIPE NIPPLE, S.W. 1-1/4 INCHES | G49: =G1400*'Lookup Tables'!$R$14 -> 2.4416 | H49: =H1400*'Lookup Tables'!$R$14 -> 0 | I49: =I1400*'Lookup Tables'!$R$14 -> 0 | J49: =J1400*'Lookup Tables'!$R$14 -> 15.3908 | K49: =K1400*'Lookup Tables'!$R$14 -> 17.8324
A50: 1204 | B50: 1 | C50: New Material Applied | D50: 0 | E50: 0.1 | F50: PIPE FITTING, E.H. 3/4 INCHES OR LESS | G50: =G1401*'Lookup Tables'!$R$14 -> 4.3055 | H50: =H1401*'Lookup Tables'!$R$14 -> 0 | I50: =I1401*'Lookup Tables'!$R$14 -> 0 | J50: =J1401*'Lookup Tables'!$R$14 -> 15.3908 | K50: =K1401*'Lookup Tables'!$R$14 -> 19.6963
A51: 1204 | B51: 2 | C51: Secondhand Material Applied | D51: 0 | E51: 0.1 | F51: PIPE FITTING, E.H. 3/4 INCHES OR LESS | G51: =G1402*'Lookup Tables'!$R$14 -> 2.1582 | H51: =H1402*'Lookup Tables'!$R$14 -> 0 | I51: =I1402*'Lookup Tables'!$R$14 -> 0 | J51: =J1402*'Lookup Tables'!$R$14 -> 15.3908 | K51: =K1402*'Lookup Tables'!$R$14 -> 17.549
A52: 1208 | B52: 1 | C52: New Material Applied | D52: 0 | E52: 0.1 | F52: PIPE FITTING, E.H. 1 OR 1-1/4 INCHES | G52: =G1403*'Lookup Tables'!$R$14 -> 10.5621 | H52: =H1403*'Lookup Tables'!$R$14 -> 0 | I52: =I1403*'Lookup Tables'!$R$14 -> 0 | J52: =J1403*'Lookup Tables'!$R$14 -> 15.3908 | K52: =K1403*'Lookup Tables'!$R$14 -> 25.9529
A53: 1208 | B53: 2 | C53: Secondhand Material Applied | D53: 0 | E53: 0.1 | F53: PIPE FITTING, E.H. 1 OR 1-1/4 INCHES | G53: =G1404*'Lookup Tables'!$R$14 -> 5.2756 | H53: =H1404*'Lookup Tables'!$R$14 -> 0 | I53: =I1404*'Lookup Tables'!$R$14 -> 0 | J53: =J1404*'Lookup Tables'!$R$14 -> 15.3908 | K53: =K1404*'Lookup Tables'!$R$14 -> 20.6664
A54: 1210 | B54: 0 | C54: Labor attention such as: actual labor, replacing or rechanging doors, welding, vacant, painting or stenciling, other labor attention | D54: 0 | E54: 0.092 | F54: AIR HOSE EXTENSION COUPLING | G54: =G1405*'Lookup Tables'!$R$14 -> 0 | H54: =H1405*'Lookup Tables'!$R$14 -> 0 | I54: =I1405*'Lookup Tables'!$R$14 -> 0 | J54: =J1405*'Lookup Tables'!$R$14 -> 14.1591 | K54: =K1405*'Lookup Tables'!$R$14 -> 14.1591
A55: 1210 | B55: 1 | C55: New Material Applied | D55: 0 | E55: 0.101 | F55: AIR HOSE EXTENSION COUPLING | G55: =G1406*'Lookup Tables'!$R$14 -> 5.8533 | H55: =H1406*'Lookup Tables'!$R$14 -> 0 | I55: =I1406*'Lookup Tables'!$R$14 -> 0 | J55: =J1406*'Lookup Tables'!$R$14 -> 15.5543 | K55: =K1406*'Lookup Tables'!$R$14 -> 21.4076
A56: 1210 | B56: 2 | C56: Secondhand Material Applied | D56: 0 | E56: 0.101 | F56: AIR HOSE EXTENSION COUPLING | G56: =G1407*'Lookup Tables'!$R$14 -> 2.9321 | H56: =H1407*'Lookup Tables'!$R$14 -> 0 | I56: =I1407*'Lookup Tables'!$R$14 -> 0 | J56: =J1407*'Lookup Tables'!$R$14 -> 15.5543 | K56: =K1407*'Lookup Tables'!$R$14 -> 18.4864
A57: 1212 | B57: 1 | C57: New Material Applied | D57: 0 | E57: 0.3 | F57: PIPE UNION OR TEE, E.H. 3/4 INCHES OR LESS | G57: =G1408*'Lookup Tables'!$R$14 -> 6.1912 | H57: =H1408*'Lookup Tables'!$R$14 -> 0 | I57: =I1408*'Lookup Tables'!$R$14 -> 0 | J57: =J1408*'Lookup Tables'!$R$14 -> 46.1833 | K57: =K1408*'Lookup Tables'!$R$14 -> 52.3745
A58: 1212 | B58: 2 | C58: Secondhand Material Applied | D58: 0 | E58: 0.3 | F58: PIPE UNION OR TEE, E.H. 3/4 INCHES OR LESS | G58: =G1409*'Lookup Tables'!$R$14 -> 3.0956 | H58: =H1409*'Lookup Tables'!$R$14 -> 0 | I58: =I1409*'Lookup Tables'!$R$14 -> 0 | J58: =J1409*'Lookup Tables'!$R$14 -> 46.1833 | K58: =K1409*'Lookup Tables'!$R$14 -> 49.2789
A59: 1216 | B59: 1 | C59: New Material Applied | D59: 0 | E59: 0.3 | F59: PIPE UNION OR TEE, E.H. 1 OR 1-1/4 INCHES | G59: =G1410*'Lookup Tables'!$R$14 -> 8.8726 | H59: =H1410*'Lookup Tables'!$R$14 -> 0 | I59: =I1410*'Lookup Tables'!$R$14 -> 0 | J59: =J1410*'Lookup Tables'!$R$14 -> 46.1833 | K59: =K1410*'Lookup Tables'!$R$14 -> 55.0559
A60: 1216 | B60: 2 | C60: Secondhand Material Applied | D60: 0 | E60: 0.3 | F60: PIPE UNION OR TEE, E.H. 1 OR 1-1/4 INCHES | G60: =G1411*'Lookup Tables'!$R$14 -> 4.4363 | H60: =H1411*'Lookup Tables'!$R$14 -> 0 | I60: =I1411*'Lookup Tables'!$R$14 -> 0 | J60: =J1411*'Lookup Tables'!$R$14 -> 46.1833 | K60: =K1411*'Lookup Tables'!$R$14 -> 50.6196
A61: 1227 | B61: 1 | C61: New Material Applied | D61: 0 | E61: 0.603 | F61: PIPE FITTING RFP WELDED 3/4 INCHES OR LESS | G61: =G1412*'Lookup Tables'!$R$14 -> 10.0171 | H61: =H1412*'Lookup Tables'!$R$14 -> 0 | I61: =I1412*'Lookup Tables'!$R$14 -> 0 | J61: =J1412*'Lookup Tables'!$R$14 -> 92.8353 | K61: =K1412*'Lookup Tables'!$R$14 -> 102.8524
A62: 1228 | B62: 1 | C62: New Material Applied | D62: 0 | E62: 1.239 | F62: PIPE FITTING, RFP, WELDED 1 OR 1-1/4 INCHES | G62: =G1413*'Lookup Tables'!$R$14 -> 13.0364 | H62: =H1413*'Lookup Tables'!$R$14 -> 0 | I62: =I1413*'Lookup Tables'!$R$14 -> 0 | J62: =J1413*'Lookup Tables'!$R$14 -> 190.75 | K62: =K1413*'Lookup Tables'!$R$14 -> 203.7864
A63: 1238 | B63: 1 | C63: New Material Applied | D63: 0.25 | E63: 0.078 | F63: LOK-RING REPAIR COUPLING, 3/8 INCH | G63: =G1414*'Lookup Tables'!$R$14 -> 96.7811 | H63: =H1414*'Lookup Tables'!$R$14 -> 0 | I63: =I1414*'Lookup Tables'!$R$14 -> 38.4879 | J63: =J1414*'Lookup Tables'!$R$14 -> 12.0118 | K63: =K1414*'Lookup Tables'!$R$14 -> 108.7929
A64: 1239 | B64: 1 | C64: New Material Applied | D64: 0.25 | E64: 0.078 | F64: LOK-RING REPAIR COUPLING, 3/4 INCH | G64: =G1415*'Lookup Tables'!$R$14 -> 93.3258 | H64: =H1415*'Lookup Tables'!$R$14 -> 0 | I64: =I1415*'Lookup Tables'!$R$14 -> 38.4879 | J64: =J1415*'Lookup Tables'!$R$14 -> 12.0118 | K64: =K1415*'Lookup Tables'!$R$14 -> 105.3376
A65: 1240 | B65: 1 | C65: New Material Applied | D65: 0.25 | E65: 0.078 | F65: LOK-RING REPAIR COUPLING, 1 INCH | G65: =G1416*'Lookup Tables'!$R$14 -> 104.8471 | H65: =H1416*'Lookup Tables'!$R$14 -> 0 | I65: =I1416*'Lookup Tables'!$R$14 -> 38.4879 | J65: =J1416*'Lookup Tables'!$R$14 -> 12.0118 | K65: =K1416*'Lookup Tables'!$R$14 -> 116.8589
A66: 1241 | B66: 1 | C66: New Material Applied | D66: 0.25 | E66: 0.078 | F66: LOKRING REPAIR COUPLING, 1.25 INCHES | G66: =G1417*'Lookup Tables'!$R$14 -> 185.6815 | H66: =H1417*'Lookup Tables'!$R$14 -> 0 | I66: =I1417*'Lookup Tables'!$R$14 -> 38.4879 | J66: =J1417*'Lookup Tables'!$R$14 -> 12.0118 | K66: =K1417*'Lookup Tables'!$R$14 -> 197.6933
A67: 1244 | B67: 1 | C67: New Material Applied | D67: 0 | E67: 0.233 | F67: PIPE FITTING GASKET - OR SEAL - SEPARATELY | G67: =G1418*'Lookup Tables'!$R$14 -> 2.1037 | H67: =H1418*'Lookup Tables'!$R$14 -> 0 | I67: =I1418*'Lookup Tables'!$R$14 -> 0 | J67: =J1418*'Lookup Tables'!$R$14 -> 35.8719 | K67: =K1418*'Lookup Tables'!$R$14 -> 37.9756
A68: 1246 | B68: 1 | C68: =VLOOKUP(B68,$B$2686:$C$2701,2,FALSE) -> New Material Applied | D68: 0.25 | E68: 0.097 | F68: LOK-RING FLANGE FITTING, 3/8 INCH | G68: =G1419*'Lookup Tables'!$R$14 -> 78.4364 | H68: =H1419*'Lookup Tables'!$R$14 -> 0 | I68: =I1419*'Lookup Tables'!$R$14 -> 38.4879 | J68: =J1419*'Lookup Tables'!$R$14 -> 14.933 | K68: =K1419*'Lookup Tables'!$R$14 -> 93.3694
A69: 1247 | B69: 1 | C69: New Material Applied | D69: 0.25 | E69: 0.097 | F69: LOK-RING FLANGE FITTING, 3/4 INCH | G69: =G1420*'Lookup Tables'!$R$14 -> 100.3018 | H69: =H1420*'Lookup Tables'!$R$14 -> 0 | I69: =I1420*'Lookup Tables'!$R$14 -> 38.4879 | J69: =J1420*'Lookup Tables'!$R$14 -> 14.933 | K69: =K1420*'Lookup Tables'!$R$14 -> 115.2348
A70: 1248 | B70: 1 | C70: New Material Applied | D70: 0.25 | E70: 0.097 | F70: LOK-RING FLANGE FITTING, 1 INCH | G70: =G1421*'Lookup Tables'!$R$14 -> 91.9524 | H70: =H1421*'Lookup Tables'!$R$14 -> 0 | I70: =I1421*'Lookup Tables'!$R$14 -> 38.4879 | J70: =J1421*'Lookup Tables'!$R$14 -> 14.933 | K70: =K1421*'Lookup Tables'!$R$14 -> 106.8854
A71: 1249 | B71: 1 | C71: New Material Applied | D71: 0.25 | E71: 0.097 | F71: LOK-RING FLANGE FITTING, 1.25 INCHES | G71: =G1422*'Lookup Tables'!$R$14 -> 103.6481 | H71: =H1422*'Lookup Tables'!$R$14 -> 0 | I71: =I1422*'Lookup Tables'!$R$14 -> 38.4879 | J71: =J1422*'Lookup Tables'!$R$14 -> 14.933 | K71: =K1422*'Lookup Tables'!$R$14 -> 118.5811
A72: 1260 | B72: 1 | C72: New Material Applied | D72: 0 | E72: 0.105 | F72: CAP SCREW, AIR BRAKE PART, RENEWED | G72: =G1423*'Lookup Tables'!$R$14 -> 0.545 | H72: =H1423*'Lookup Tables'!$R$14 -> 0 | I72: =I1423*'Lookup Tables'!$R$14 -> 0 | J72: =J1423*'Lookup Tables'!$R$14 -> 16.1647 | K72: =K1423*'Lookup Tables'!$R$14 -> 16.7097
A73: 1260 | B73: 2 | C73: Secondhand Material Applied | D73: 0 | E73: 0.105 | F73: CAP SCREW, AIR BRAKE PART, RENEWED | G73: =G1424*'Lookup Tables'!$R$14 -> 0.2725 | H73: =H1424*'Lookup Tables'!$R$14 -> 0 | I73: =I1424*'Lookup Tables'!$R$14 -> 0 | J73: =J1424*'Lookup Tables'!$R$14 -> 16.1647 | K73: =K1424*'Lookup Tables'!$R$14 -> 16.4372
A74: 1264 | B74: 1 | C74: New Material Applied | D74: 0 | E74: 0.17 | F74: BRANCH PIPE TEE BODY | G74: =G1425*'Lookup Tables'!$R$14 -> 22.3123 | H74: =H1425*'Lookup Tables'!$R$14 -> 0.5995 | I74: =I1425*'Lookup Tables'!$R$14 -> 0 | J74: =J1425*'Lookup Tables'!$R$14 -> 26.1709 | K74: =K1425*'Lookup Tables'!$R$14 -> 48.4832
A75: 1264 | B75: 2 | C75: Secondhand Material Applied | D75: 0 | E75: 0.17 | F75: BRANCH PIPE TEE BODY | G75: =G1426*'Lookup Tables'!$R$14 -> 11.1616 | H75: =H1426*'Lookup Tables'!$R$14 -> 0.5995 | I75: =I1426*'Lookup Tables'!$R$14 -> 0 | J75: =J1426*'Lookup Tables'!$R$14 -> 26.1709 | K75: =K1426*'Lookup Tables'!$R$14 -> 37.3325
A76: 1268 | B76: 1 | C76: New Material Applied | D76: 0 | E76: 0.267 | F76: CUT-OUT COCK, ANY SIZE, COMPLETE | G76: =G1427*'Lookup Tables'!$R$14 -> 95.266 | H76: =H1427*'Lookup Tables'!$R$14 -> 0.3597 | I76: =I1427*'Lookup Tables'!$R$14 -> 0 | J76: =J1427*'Lookup Tables'!$R$14 -> 41.1039 | K76: =K1427*'Lookup Tables'!$R$14 -> 136.3699
A77: 1268 | B77: 2 | C77: Secondhand Material Applied | D77: 0 | E77: 0.267 | F77: CUT-OUT COCK, ANY SIZE, COMPLETE | G77: =G1428*'Lookup Tables'!$R$14 -> 72.4523 | H77: =H1428*'Lookup Tables'!$R$14 -> 0 | I77: =I1428*'Lookup Tables'!$R$14 -> 0 | J77: =J1428*'Lookup Tables'!$R$14 -> 41.1039 | K77: =K1428*'Lookup Tables'!$R$14 -> 113.5562
A78: 1268 | B78: 3 | C78: Reconditioned or Recertified Material Applied | D78: 0 | E78: 0.267 | F78: CUT-OUT COCK, ANY SIZE, COMPLETE | G78: =G1429*'Lookup Tables'!$R$14 -> 85.1617 | H78: =H1429*'Lookup Tables'!$R$14 -> 0 | I78: =I1429*'Lookup Tables'!$R$14 -> 0 | J78: =J1429*'Lookup Tables'!$R$14 -> 41.1039 | K78: =K1429*'Lookup Tables'!$R$14 -> 126.2656
A79: 1270 | B79: 1 | C79: New Material Applied | D79: 0 | E79: 0.267 | F79: DIRT COLLECTOR, COMPLETE | G79: =G1430*'Lookup Tables'!$R$14 -> 109.3815 | H79: =H1430*'Lookup Tables'!$R$14 -> 0 | I79: =I1430*'Lookup Tables'!$R$14 -> 0 | J79: =J1430*'Lookup Tables'!$R$14 -> 41.1039 | K79: =K1430*'Lookup Tables'!$R$14 -> 150.4854
A80: 1270 | B80: 2 | C80: Secondhand Material Applied | D80: 0 | E80: 0.267 | F80: DIRT COLLECTOR, COMPLETE | G80: =G1431*'Lookup Tables'!$R$14 -> 23.0644 | H80: =H1431*'Lookup Tables'!$R$14 -> 0 | I80: =I1431*'Lookup Tables'!$R$14 -> 0 | J80: =J1431*'Lookup Tables'!$R$14 -> 41.1039 | K80: =K1431*'Lookup Tables'!$R$14 -> 64.1683
A81: 1270 | B81: 3 | C81: Reconditioned or Recertified Material Applied | D81: 0 | E81: 0.267 | F81: DIRT COLLECTOR, COMPLETE | G81: =G1432*'Lookup Tables'!$R$14 -> 34.2478 | H81: =H1432*'Lookup Tables'!$R$14 -> 0 | I81: =I1432*'Lookup Tables'!$R$14 -> 0 | J81: =J1432*'Lookup Tables'!$R$14 -> 41.1039 | K81: =K1432*'Lookup Tables'!$R$14 -> 75.3517
A82: 1272 | B82: 1 | C82: New Material Applied | D82: 0 | E82: 0.266 | F82: COMBINATION DIRT COLL & CUT-OUT COCK, COMPLETE | G82: =G1433*'Lookup Tables'!$R$14 -> 52.7124 | H82: =H1433*'Lookup Tables'!$R$14 -> 0.3597 | I82: =I1433*'Lookup Tables'!$R$14 -> 0 | J82: =J1433*'Lookup Tables'!$R$14 -> 40.9513 | K82: =K1433*'Lookup Tables'!$R$14 -> 93.6637
A83: 1272 | B83: 2 | C83: Secondhand Material Applied | D83: 0 | E83: 0.266 | F83: COMBINATION DIRT COLL & CUT-OUT COCK, COMPLETE | G83: =G1434*'Lookup Tables'!$R$14 -> 32.9507 | H83: =H1434*'Lookup Tables'!$R$14 -> 0 | I83: =I1434*'Lookup Tables'!$R$14 -> 0 | J83: =J1434*'Lookup Tables'!$R$14 -> 40.9513 | K83: =K1434*'Lookup Tables'!$R$14 -> 73.902
A84: 1272 | B84: 3 | C84: Reconditioned or Recertified Material Applied | D84: 0 | E84: 0.266 | F84: COMBINATION DIRT COLL & CUT-OUT COCK, COMPLETE | G84: =G1435*'Lookup Tables'!$R$14 -> 45.9108 | H84: =H1435*'Lookup Tables'!$R$14 -> 0 | I84: =I1435*'Lookup Tables'!$R$14 -> 0 | J84: =J1435*'Lookup Tables'!$R$14 -> 40.9513 | K84: =K1435*'Lookup Tables'!$R$14 -> 86.8621
A85: 1276 | B85: 1 | C85: New Material Applied | D85: 0 | E85: 0.067 | F85: DIRT COLLECTOR CHAMBER, COMPLETE, SEPARATELY | G85: =G1436*'Lookup Tables'!$R$14 -> 17.8978 | H85: =H1436*'Lookup Tables'!$R$14 -> 0.3597 | I85: =I1436*'Lookup Tables'!$R$14 -> 0 | J85: =J1436*'Lookup Tables'!$R$14 -> 10.3114 | K85: =K1436*'Lookup Tables'!$R$14 -> 28.2092
A86: 1276 | B86: 2 | C86: Secondhand Material Applied | D86: 0 | E86: 0.067 | F86: DIRT COLLECTOR CHAMBER, COMPLETE, SEPARATELY | G86: =G1437*'Lookup Tables'!$R$14 -> 8.9598 | H86: =H1437*'Lookup Tables'!$R$14 -> 0 | I86: =I1437*'Lookup Tables'!$R$14 -> 0 | J86: =J1437*'Lookup Tables'!$R$14 -> 10.3114 | K86: =K1437*'Lookup Tables'!$R$14 -> 19.2712
A87: 1277 | B87: 1 | C87: New Material Applied | D87: 0 | E87: 0.586 | F87: ABDX EMERGENCY PORTION | G87: =G1438*'Lookup Tables'!$R$14 -> 823.4078 | H87: =H1438*'Lookup Tables'!$R$14 -> 4.796 | I87: =I1438*'Lookup Tables'!$R$14 -> 0 | J87: =J1438*'Lookup Tables'!$R$14 -> 90.2193 | K87: =K1438*'Lookup Tables'!$R$14 -> 913.6271
A88: 1277 | B88: 3 | C88: Reconditioned or Recertified Material Applied | D88: 0 | E88: 0.586 | F88: ABDX EMERGENCY PORTION | G88: =G1439*'Lookup Tables'!$R$14 -> 123.9548 | H88: =H1439*'Lookup Tables'!$R$14 -> 0 | I88: =I1439*'Lookup Tables'!$R$14 -> 0 | J88: =J1439*'Lookup Tables'!$R$14 -> 90.2193 | K88: =K1439*'Lookup Tables'!$R$14 -> 214.1741
A89: 1279 | B89: 3 | C89: Reconditioned or Recertified Material Applied | D89: 0 | E89: 0.586 | F89: ABDXR EMERGENCY PORTION | G89: =G1440*'Lookup Tables'!$R$14 -> 123.9548 | H89: =H1440*'Lookup Tables'!$R$14 -> 0 | I89: =I1440*'Lookup Tables'!$R$14 -> 0 | J89: =J1440*'Lookup Tables'!$R$14 -> 90.2193 | K89: =K1440*'Lookup Tables'!$R$14 -> 214.1741
A90: 1279 | B90: U | C90: Upgraded | D90: 0 | E90: 0.586 | F90: ABDXR EMERGENCY PORTION | G90: =G1441*'Lookup Tables'!$R$14 -> 515.9297 | H90: =H1441*'Lookup Tables'!$R$14 -> 0 | I90: =I1441*'Lookup Tables'!$R$14 -> 0 | J90: =J1441*'Lookup Tables'!$R$14 -> 90.2193 | K90: =K1441*'Lookup Tables'!$R$14 -> 606.149
A91: 1281 | B91: 1 | C91: New Material Applied | D91: 0 | E91: 0.586 | F91: DB-20 EMERGENCY PORTION | G91: =G1442*'Lookup Tables'!$R$14 -> 753.6478 | H91: =H1442*'Lookup Tables'!$R$14 -> 4.796 | I91: =I1442*'Lookup Tables'!$R$14 -> 0 | J91: =J1442*'Lookup Tables'!$R$14 -> 90.2193 | K91: =K1442*'Lookup Tables'!$R$14 -> 843.8671
A92: 1281 | B92: 3 | C92: Reconditioned or Recertified Material Applied | D92: 0 | E92: 0.586 | F92: DB-20 EMERGENCY PORTION | G92: =G1443*'Lookup Tables'!$R$14 -> 143.3895 | H92: =H1443*'Lookup Tables'!$R$14 -> 0 | I92: =I1443*'Lookup Tables'!$R$14 -> 0 | J92: =J1443*'Lookup Tables'!$R$14 -> 90.2193 | K92: =K1443*'Lookup Tables'!$R$14 -> 233.6088
A93: 1283 | B93: 1 | C93: New Material Applied | D93: 0 | E93: 0.586 | F93: ABDX-L EMERGENCY PORTION | G93: =G1444*'Lookup Tables'!$R$14 -> 985.796 | H93: =H1444*'Lookup Tables'!$R$14 -> 4.796 | I93: =I1444*'Lookup Tables'!$R$14 -> 0 | J93: =J1444*'Lookup Tables'!$R$14 -> 90.2193 | K93: =K1444*'Lookup Tables'!$R$14 -> 1076.0153
A94: 1283 | B94: 3 | C94: Reconditioned or Recertified Material Applied | D94: 0 | E94: 0.586 | F94: ABDX-L EMERGENCY PORTION | G94: =G1445*'Lookup Tables'!$R$14 -> 125.3282 | H94: =H1445*'Lookup Tables'!$R$14 -> 0 | I94: =I1445*'Lookup Tables'!$R$14 -> 0 | J94: =J1445*'Lookup Tables'!$R$14 -> 90.2193 | K94: =K1445*'Lookup Tables'!$R$14 -> 215.5475
A95: 1285 | B95: 3 | C95: Reconditioned or Recertified Material Applied | D95: 0 | E95: 0.586 | F95: ABDXR-L EMERGENCY PORTION | G95: =G1446*'Lookup Tables'!$R$14 -> 125.3282 | H95: =H1446*'Lookup Tables'!$R$14 -> 0 | I95: =I1446*'Lookup Tables'!$R$14 -> 0 | J95: =J1446*'Lookup Tables'!$R$14 -> 90.2193 | K95: =K1446*'Lookup Tables'!$R$14 -> 215.5475
A96: 1285 | B96: U | C96: Upgraded | D96: 0 | E96: 0.586 | F96: ABDXR-L EMERGENCY PORTION | G96: =G1447*'Lookup Tables'!$R$14 -> 446.246 | H96: =H1447*'Lookup Tables'!$R$14 -> 0 | I96: =I1447*'Lookup Tables'!$R$14 -> 0 | J96: =J1447*'Lookup Tables'!$R$14 -> 90.2193 | K96: =K1447*'Lookup Tables'!$R$14 -> 536.4653
A97: 1287 | B97: 1 | C97: New Material Applied | D97: 0 | E97: 0.586 | F97: DB-20-L EMERGENCY PORTION | G97: =G1448*'Lookup Tables'!$R$14 -> 829.163 | H97: =H1448*'Lookup Tables'!$R$14 -> 4.796 | I97: =I1448*'Lookup Tables'!$R$14 -> 0 | J97: =J1448*'Lookup Tables'!$R$14 -> 90.2193 | K97: =K1448*'Lookup Tables'!$R$14 -> 919.3823
A98: 1287 | B98: 3 | C98: Reconditioned or Recertified Material Applied | D98: 0 | E98: 0.586 | F98: DB-20-L EMERGENCY PORTION | G98: =G1449*'Lookup Tables'!$R$14 -> 142.3867 | H98: =H1449*'Lookup Tables'!$R$14 -> 0 | I98: =I1449*'Lookup Tables'!$R$14 -> 0 | J98: =J1449*'Lookup Tables'!$R$14 -> 90.2193 | K98: =K1449*'Lookup Tables'!$R$14 -> 232.606
A99: 1289 | B99: 1 | C99: New Material Applied | D99: 0 | E99: 0.591 | F99: ABDX SERVICE PORTION | G99: =G1450*'Lookup Tables'!$R$14 -> 909.7467 | H99: =H1450*'Lookup Tables'!$R$14 -> 4.796 | I99: =I1450*'Lookup Tables'!$R$14 -> 0 | J99: =J1450*'Lookup Tables'!$R$14 -> 90.9823 | K99: =K1450*'Lookup Tables'!$R$14 -> 1000.729
A100: 1289 | B100: 3 | C100: Reconditioned or Recertified Material Applied | D100: 0 | E100: 0.591 | F100: ABDX SERVICE PORTION | G100: =G1451*'Lookup Tables'!$R$14 -> 147.5315 | H100: =H1451*'Lookup Tables'!$R$14 -> 0 | I100: =I1451*'Lookup Tables'!$R$14 -> 0 | J100: =J1451*'Lookup Tables'!$R$14 -> 90.9823 | K100: =K1451*'Lookup Tables'!$R$14 -> 238.5138
A101: 1291 | B101: 3 | C101: Reconditioned or Recertified Material Applied | D101: 0 | E101: 0.591 | F101: ABDXR SERVICE PORTION | G101: =G1452*'Lookup Tables'!$R$14 -> 147.5315 | H101: =H1452*'Lookup Tables'!$R$14 -> 0 | I101: =I1452*'Lookup Tables'!$R$14 -> 0 | J101: =J1452*'Lookup Tables'!$R$14 -> 90.9823 | K101: =K1452*'Lookup Tables'!$R$14 -> 238.5138
A102: 1291 | B102: U | C102: Upgraded | D102: 0 | E102: 0.591 | F102: ABDXR SERVICE PORTION | G102: =G1453*'Lookup Tables'!$R$14 -> 512.8995 | H102: =H1453*'Lookup Tables'!$R$14 -> 0 | I102: =I1453*'Lookup Tables'!$R$14 -> 0 | J102: =J1453*'Lookup Tables'!$R$14 -> 90.9823 | K102: =K1453*'Lookup Tables'!$R$14 -> 603.8818
A103: 1293 | B103: 1 | C103: New Material Applied | D103: 0 | E103: 0.591 | F103: DB-10 SERVICE PORTION | G103: =G1454*'Lookup Tables'!$R$14 -> 797.771 | H103: =H1454*'Lookup Tables'!$R$14 -> 4.796 | I103: =I1454*'Lookup Tables'!$R$14 -> 0 | J103: =J1454*'Lookup Tables'!$R$14 -> 90.9823 | K103: =K1454*'Lookup Tables'!$R$14 -> 888.7533
A104: 1293 | B104: 3 | C104: Reconditioned or Recertified Material Applied | D104: 0 | E104: 0.591 | F104: DB-10 SERVICE PORTION | G104: =G1455*'Lookup Tables'!$R$14 -> 185.1038 | H104: =H1455*'Lookup Tables'!$R$14 -> 0 | I104: =I1455*'Lookup Tables'!$R$14 -> 0 | J104: =J1455*'Lookup Tables'!$R$14 -> 90.9823 | K104: =K1455*'Lookup Tables'!$R$14 -> 276.0861
A105: 1295 | B105: 1 | C105: New Material Applied | D105: 0 | E105: 0.591 | F105: DB-10C SERVICE PORTION | G105: =G1456*'Lookup Tables'!$R$14 -> 870.0271 | H105: =H1456*'Lookup Tables'!$R$14 -> 4.796 | I105: =I1456*'Lookup Tables'!$R$14 -> 0 | J105: =J1456*'Lookup Tables'!$R$14 -> 90.9823 | K105: =K1456*'Lookup Tables'!$R$14 -> 961.0094
A106: 1295 | B106: 3 | C106: Reconditioned or Recertified Material Applied | D106: 0 | E106: 0.591 | F106: DB-10C SERVICE PORTION | G106: =G1457*'Lookup Tables'!$R$14 -> 219.3843 | H106: =H1457*'Lookup Tables'!$R$14 -> 0 | I106: =I1457*'Lookup Tables'!$R$14 -> 0 | J106: =J1457*'Lookup Tables'!$R$14 -> 90.9823 | K106: =K1457*'Lookup Tables'!$R$14 -> 310.3666
A107: 1298 | B107: 3 | C107: Reconditioned or Recertified Material Applied | D107: 0 | E107: 0.586 | F107: ABD EMERGENCY PORTION | G107: =G1458*'Lookup Tables'!$R$14 -> 129.9062 | H107: =H1458*'Lookup Tables'!$R$14 -> 0 | I107: =I1458*'Lookup Tables'!$R$14 -> 0 | J107: =J1458*'Lookup Tables'!$R$14 -> 90.2193 | K107: =K1458*'Lookup Tables'!$R$14 -> 220.1255
A108: 1301 | B108: 3 | C108: Reconditioned or Recertified Material Applied | D108: 0 | E108: 0.586 | F108: ABDW EMERGENCY PORTION | G108: =G1459*'Lookup Tables'!$R$14 -> 149.6897 | H108: =H1459*'Lookup Tables'!$R$14 -> 0 | I108: =I1459*'Lookup Tables'!$R$14 -> 0 | J108: =J1459*'Lookup Tables'!$R$14 -> 90.2193 | K108: =K1459*'Lookup Tables'!$R$14 -> 239.909
A109: 1303 | B109: 1 | C109: New Material Applied | D109: 0 | E109: 0.232 | F109: EMERGENCY PORTION BODY GASKET | G109: =G1460*'Lookup Tables'!$R$14 -> 3.7714 | H109: =H1460*'Lookup Tables'!$R$14 -> 0 | I109: =I1460*'Lookup Tables'!$R$14 -> 0 | J109: =J1460*'Lookup Tables'!$R$14 -> 35.7193 | K109: =K1460*'Lookup Tables'!$R$14 -> 39.4907
A110: 1311 | B110: 3 | C110: Reconditioned or Recertified Material Applied | D110: 0 | E110: 0.591 | F110: ABD SERVICE PORTION | G110: =G1461*'Lookup Tables'!$R$14 -> 151.7171 | H110: =H1461*'Lookup Tables'!$R$14 -> 0 | I110: =I1461*'Lookup Tables'!$R$14 -> 0 | J110: =J1461*'Lookup Tables'!$R$14 -> 90.9823 | K110: =K1461*'Lookup Tables'!$R$14 -> 242.6994
A111: 1313 | B111: 1 | C111: New Material Applied | D111: 0 | E111: 0.266 | F111: SERVICE PORTION BODY GASKET | G111: =G1462*'Lookup Tables'!$R$14 -> 4.2946 | H111: =H1462*'Lookup Tables'!$R$14 -> 0 | I111: =I1462*'Lookup Tables'!$R$14 -> 0 | J111: =J1462*'Lookup Tables'!$R$14 -> 40.9513 | K111: =K1462*'Lookup Tables'!$R$14 -> 45.2459
A112: 1316 | B112: 1 | C112: New Material Applied | D112: 0 | E112: 1.5 | F112: AB PIPE BRACKET PORTION, DOUBLE-SIDED | G112: =G1463*'Lookup Tables'!$R$14 -> 396.6183 | H112: =H1463*'Lookup Tables'!$R$14 -> 8.1532 | I112: =I1463*'Lookup Tables'!$R$14 -> 0 | J112: =J1463*'Lookup Tables'!$R$14 -> 230.9274 | K112: =K1463*'Lookup Tables'!$R$14 -> 627.5457
A113: 1316 | B113: 2 | C113: Secondhand Material Applied | D113: 0 | E113: 1.5 | F113: AB PIPE BRACKET PORTION, DOUBLE-SIDED | G113: =G1464*'Lookup Tables'!$R$14 -> 203.6556 | H113: =H1464*'Lookup Tables'!$R$14 -> 8.1532 | I113: =I1464*'Lookup Tables'!$R$14 -> 0 | J113: =J1464*'Lookup Tables'!$R$14 -> 230.9274 | K113: =K1464*'Lookup Tables'!$R$14 -> 434.583
A114: 1316 | B114: 9 | C114: Remove and replace same part | D114: 0 | E114: 1.433 | F114: AB PIPE BRACKET PORTION, DOUBLE-SIDED | G114: =G1465*'Lookup Tables'!$R$14 -> 10.682 | H114: =H1465*'Lookup Tables'!$R$14 -> 0 | I114: =I1465*'Lookup Tables'!$R$14 -> 0 | J114: =J1465*'Lookup Tables'!$R$14 -> 220.616 | K114: =K1465*'Lookup Tables'!$R$14 -> 231.298
A115: 1318 | B115: 1 | C115: New Material Applied | D115: 0 | E115: 1.5 | F115: AB PIPE BRACKET PORTION, SINGLE SIDED | G115: =G1466*'Lookup Tables'!$R$14 -> 601.68 | H115: =H1466*'Lookup Tables'!$R$14 -> 8.1532 | I115: =I1466*'Lookup Tables'!$R$14 -> 0 | J115: =J1466*'Lookup Tables'!$R$14 -> 230.9274 | K115: =K1466*'Lookup Tables'!$R$14 -> 832.6074
A116: 1318 | B116: 2 | C116: Secondhand Material Applied | D116: 0 | E116: 1.5 | F116: AB PIPE BRACKET PORTION, SINGLE SIDED | G116: =G1467*'Lookup Tables'!$R$14 -> 306.181 | H116: =H1467*'Lookup Tables'!$R$14 -> 8.1532 | I116: =I1467*'Lookup Tables'!$R$14 -> 0 | J116: =J1467*'Lookup Tables'!$R$14 -> 230.9274 | K116: =K1467*'Lookup Tables'!$R$14 -> 537.1084
A117: 1318 | B117: 9 | C117: Remove and replace same part | D117: 0 | E117: 1.433 | F117: AB PIPE BRACKET PORTION, SINGLE SIDED | G117: =G1468*'Lookup Tables'!$R$14 -> 10.682 | H117: =H1468*'Lookup Tables'!$R$14 -> 0 | I117: =I1468*'Lookup Tables'!$R$14 -> 0 | J117: =J1468*'Lookup Tables'!$R$14 -> 220.616 | K117: =K1468*'Lookup Tables'!$R$14 -> 231.298
A118: 1320 | B118: 1 | C118: New Material Applied | D118: 0 | E118: 1.14 | F118: AB PIPE BRACKET REPAIRS - BROKEN CAP SCREW | G118: =G1469*'Lookup Tables'!$R$14 -> 3.7278 | H118: =H1469*'Lookup Tables'!$R$14 -> 0 | I118: =I1469*'Lookup Tables'!$R$14 -> 0 | J118: =J1469*'Lookup Tables'!$R$14 -> 175.5009 | K118: =K1469*'Lookup Tables'!$R$14 -> 179.2287
A119: 1320 | B119: 2 | C119: Secondhand Material Applied | D119: 0 | E119: 1.14 | F119: AB PIPE BRACKET REPAIRS - BROKEN CAP SCREW | G119: =G1470*'Lookup Tables'!$R$14 -> 3.4553 | H119: =H1470*'Lookup Tables'!$R$14 -> 0 | I119: =I1470*'Lookup Tables'!$R$14 -> 0 | J119: =J1470*'Lookup Tables'!$R$14 -> 175.5009 | K119: =K1470*'Lookup Tables'!$R$14 -> 178.9562
A120: 1321 | B120: 3 | C120: Reconditioned or Recertified Material Applied | D120: 0 | E120: 0.591 | F120: ABDT SERVICE PORTION | G120: =G1471*'Lookup Tables'!$R$14 -> 156.1752 | H120: =H1471*'Lookup Tables'!$R$14 -> 0 | I120: =I1471*'Lookup Tables'!$R$14 -> 0 | J120: =J1471*'Lookup Tables'!$R$14 -> 90.9823 | K120: =K1471*'Lookup Tables'!$R$14 -> 247.1575
A121: 1323 | B121: 3 | C121: Reconditioned or Recertified Material Applied | D121: 0 | E121: 0.586 | F121: ABDS EMERGENCY PORTION | G121: =G1472*'Lookup Tables'!$R$14 -> 158.7149 | H121: =H1472*'Lookup Tables'!$R$14 -> 0 | I121: =I1472*'Lookup Tables'!$R$14 -> 0 | J121: =J1472*'Lookup Tables'!$R$14 -> 90.2193 | K121: =K1472*'Lookup Tables'!$R$14 -> 248.9342
A122: 1325 | B122: 3 | C122: Reconditioned or Recertified Material Applied | D122: 0 | E122: 0.586 | F122: ABDWS OR ABDW-2 EMERG PORTION | G122: =G1473*'Lookup Tables'!$R$14 -> 155.0089 | H122: =H1473*'Lookup Tables'!$R$14 -> 0 | I122: =I1473*'Lookup Tables'!$R$14 -> 0 | J122: =J1473*'Lookup Tables'!$R$14 -> 90.2193 | K122: =K1473*'Lookup Tables'!$R$14 -> 245.2282
A123: 1328 | B123: 1 | C123: New Material Applied | D123: 0 | E123: 0.634 | F123: ASCTD 4-PRESSURE ACCESS PLATE FOR DB-60 | G123: =G1474*'Lookup Tables'!$R$14 -> 288.8718 | H123: =H1474*'Lookup Tables'!$R$14 -> 121.7857 | I123: =I1474*'Lookup Tables'!$R$14 -> 0 | J123: =J1474*'Lookup Tables'!$R$14 -> 97.6095 | K123: =K1474*'Lookup Tables'!$R$14 -> 386.4813
A124: 1328 | B124: 3 | C124: Reconditioned or Recertified Material Applied | D124: 0 | E124: 0.634 | F124: ASCTD 4-PRESSURE ACCESS PLATE FOR DB-60 | G124: =G1475*'Lookup Tables'!$R$14 -> 216.6593 | H124: =H1475*'Lookup Tables'!$R$14 -> 121.7857 | I124: =I1475*'Lookup Tables'!$R$14 -> 0 | J124: =J1475*'Lookup Tables'!$R$14 -> 97.6095 | K124: =K1475*'Lookup Tables'!$R$14 -> 314.2688
A125: 1328 | B125: 9 | C125: Remove and replace same part | D125: 0 | E125: 0.086 | F125: ASCTD 4-PRESSURE ACCESS PLATE FOR DB-60 | G125: =G1476*'Lookup Tables'!$R$14 -> 0 | H125: =H1476*'Lookup Tables'!$R$14 -> 0 | I125: =I1476*'Lookup Tables'!$R$14 -> 0 | J125: =J1476*'Lookup Tables'!$R$14 -> 13.2435 | K125: =K1476*'Lookup Tables'!$R$14 -> 13.2435
A126: 1330 | B126: 1 | C126: New Material Applied | D126: 0 | E126: 0.634 | F126: ASCTD 4-PRESSURE ACCESS PLATE | G126: =G1477*'Lookup Tables'!$R$14 -> 242.6667 | H126: =H1477*'Lookup Tables'!$R$14 -> 121.7857 | I126: =I1477*'Lookup Tables'!$R$14 -> 0 | J126: =J1477*'Lookup Tables'!$R$14 -> 97.6095 | K126: =K1477*'Lookup Tables'!$R$14 -> 340.2762
A127: 1330 | B127: 3 | C127: Reconditioned or Recertified Material Applied | D127: 0 | E127: 0.634 | F127: ASCTD 4-PRESSURE ACCESS PLATE | G127: =G1478*'Lookup Tables'!$R$14 -> 181.9973 | H127: =H1478*'Lookup Tables'!$R$14 -> 121.7857 | I127: =I1478*'Lookup Tables'!$R$14 -> 0 | J127: =J1478*'Lookup Tables'!$R$14 -> 97.6095 | K127: =K1478*'Lookup Tables'!$R$14 -> 279.6068
A128: 1330 | B128: 9 | C128: Remove and replace same part | D128: 0 | E128: 0.086 | F128: ASCTD 4-PRESSURE ACCESS PLATE | G128: =G1479*'Lookup Tables'!$R$14 -> 0 | H128: =H1479*'Lookup Tables'!$R$14 -> 0 | I128: =I1479*'Lookup Tables'!$R$14 -> 0 | J128: =J1479*'Lookup Tables'!$R$14 -> 13.2435 | K128: =K1479*'Lookup Tables'!$R$14 -> 13.2435
A129: 1332 | B129: 1 | C129: New Material Applied | D129: 0 | E129: 0.139 | F129: ASCTD 4-PRESSURE RECEIVER ASSEMBLY W/O BCRD | G129: =G1480*'Lookup Tables'!$R$14 -> 121.7857 | H129: =H1480*'Lookup Tables'!$R$14 -> 0.5995 | I129: =I1480*'Lookup Tables'!$R$14 -> 0 | J129: =J1480*'Lookup Tables'!$R$14 -> 21.3967 | K129: =K1480*'Lookup Tables'!$R$14 -> 143.1824
A130: 1332 | B130: 3 | C130: Reconditioned or Recertified Material Applied | D130: 0 | E130: 0.139 | F130: ASCTD 4-PRESSURE RECEIVER ASSEMBLY W/O BCRD | G130: =G1481*'Lookup Tables'!$R$14 -> 91.342 | H130: =H1481*'Lookup Tables'!$R$14 -> 0.5995 | I130: =I1481*'Lookup Tables'!$R$14 -> 0 | J130: =J1481*'Lookup Tables'!$R$14 -> 21.3967 | K130: =K1481*'Lookup Tables'!$R$14 -> 112.7387
A131: 1332 | B131: 9 | C131: Remove and replace same part | D131: 0 | E131: 0.055 | F131: ASCTD 4-PRESSURE RECEIVER ASSEMBLY W/O BCRD | G131: =G1482*'Lookup Tables'!$R$14 -> 0 | H131: =H1482*'Lookup Tables'!$R$14 -> 0 | I131: =I1482*'Lookup Tables'!$R$14 -> 0 | J131: =J1482*'Lookup Tables'!$R$14 -> 8.4693 | K131: =K1482*'Lookup Tables'!$R$14 -> 8.4693
A132: 1334 | B132: 1 | C132: =VLOOKUP(B132,$B$2686:$C$2701,2,FALSE) -> New Material Applied | D132: 0 | E132: 0.139 | F132: ASCTD 4-PRESSURE RECEIVER ASSEMBLY WITH BCRD | G132: =G1483*'Lookup Tables'!$R$14 -> 148.0983 | H132: =H1483*'Lookup Tables'!$R$14 -> 0.5995 | I132: =I1483*'Lookup Tables'!$R$14 -> 0 | J132: =J1483*'Lookup Tables'!$R$14 -> 21.3967 | K132: =K1483*'Lookup Tables'!$R$14 -> 169.495
A133: 1334 | B133: 3 | C133: Reconditioned or Recertified Material Applied | D133: 0 | E133: 0.139 | F133: ASCTD 4-PRESSURE RECEIVER ASSEMBLY WITH BCRD | G133: =G1484*'Lookup Tables'!$R$14 -> 111.071 | H133: =H1484*'Lookup Tables'!$R$14 -> 0.5995 | I133: =I1484*'Lookup Tables'!$R$14 -> 0 | J133: =J1484*'Lookup Tables'!$R$14 -> 21.3967 | K133: =K1484*'Lookup Tables'!$R$14 -> 132.4677
A134: 1334 | B134: 9 | C134: Remove and replace same part | D134: 0 | E134: 0.055 | F134: ASCTD 4-PRESSURE RECEIVER ASSEMBLY WITH BCRD | G134: =G1485*'Lookup Tables'!$R$14 -> 0 | H134: =H1485*'Lookup Tables'!$R$14 -> 0 | I134: =I1485*'Lookup Tables'!$R$14 -> 0 | J134: =J1485*'Lookup Tables'!$R$14 -> 8.4693 | K134: =K1485*'Lookup Tables'!$R$14 -> 8.4693
A135: 1340 | B135: 1 | C135: New Material Applied | D135: 0 | E135: 0.096 | F135: AB VALVE VENT PROTECTOR | G135: =G1486*'Lookup Tables'!$R$14 -> 3.3027 | H135: =H1486*'Lookup Tables'!$R$14 -> 0 | I135: =I1486*'Lookup Tables'!$R$14 -> 0 | J135: =J1486*'Lookup Tables'!$R$14 -> 14.7804 | K135: =K1486*'Lookup Tables'!$R$14 -> 18.0831
A136: 1340 | B136: 2 | C136: Secondhand Material Applied | D136: 0 | E136: 0.096 | F136: AB VALVE VENT PROTECTOR | G136: =G1487*'Lookup Tables'!$R$14 -> 1.6568 | H136: =H1487*'Lookup Tables'!$R$14 -> 0 | I136: =I1487*'Lookup Tables'!$R$14 -> 0 | J136: =J1487*'Lookup Tables'!$R$14 -> 14.7804 | K136: =K1487*'Lookup Tables'!$R$14 -> 16.4372
A137: 1356 | B137: 1 | C137: New Material Applied | D137: 0 | E137: 0.05 | F137: RELEASE VALVE HANDLE COMPLETE, ANY TYPE | G137: =G1488*'Lookup Tables'!$R$14 -> 5.5045 | H137: =H1488*'Lookup Tables'!$R$14 -> 0 | I137: =I1488*'Lookup Tables'!$R$14 -> 0 | J137: =J1488*'Lookup Tables'!$R$14 -> 7.6954 | K137: =K1488*'Lookup Tables'!$R$14 -> 13.1999
A138: 1356 | B138: 2 | C138: Secondhand Material Applied | D138: 0 | E138: 0.05 | F138: RELEASE VALVE HANDLE COMPLETE, ANY TYPE | G138: =G1489*'Lookup Tables'!$R$14 -> 3.2918 | H138: =H1489*'Lookup Tables'!$R$14 -> 0 | I138: =I1489*'Lookup Tables'!$R$14 -> 0 | J138: =J1489*'Lookup Tables'!$R$14 -> 7.6954 | K138: =K1489*'Lookup Tables'!$R$14 -> 10.9872
A139: 1360 | B139: 1 | C139: New Material Applied | D139: 0 | E139: 0.07 | F139: RELEASE VALVE ROD COMPLETE, ANY TYPE | G139: =G1490*'Lookup Tables'!$R$14 -> 11.1834 | H139: =H1490*'Lookup Tables'!$R$14 -> 0.3597 | I139: =I1490*'Lookup Tables'!$R$14 -> 0 | J139: =J1490*'Lookup Tables'!$R$14 -> 10.7801 | K139: =K1490*'Lookup Tables'!$R$14 -> 21.9635
A140: 1360 | B140: 2 | C140: Secondhand Material Applied | D140: 0 | E140: 0.07 | F140: RELEASE VALVE ROD COMPLETE, ANY TYPE | G140: =G1491*'Lookup Tables'!$R$14 -> 5.6789 | H140: =H1491*'Lookup Tables'!$R$14 -> 0.3597 | I140: =I1491*'Lookup Tables'!$R$14 -> 0 | J140: =J1491*'Lookup Tables'!$R$14 -> 10.7801 | K140: =K1491*'Lookup Tables'!$R$14 -> 16.459
A141: 1386 | B141: 1 | C141: New Material Applied | D141: 0 | E141: 0.1 | F141: B1 QUICK SERVICE VENT PROTECTOR | G141: =G1492*'Lookup Tables'!$R$14 -> 8.6546 | H141: =H1492*'Lookup Tables'!$R$14 -> 0 | I141: =I1492*'Lookup Tables'!$R$14 -> 0 | J141: =J1492*'Lookup Tables'!$R$14 -> 15.3908 | K141: =K1492*'Lookup Tables'!$R$14 -> 24.0454
A142: 1386 | B142: 2 | C142: Secondhand Material Applied | D142: 0 | E142: 0.1 | F142: B1 QUICK SERVICE VENT PROTECTOR | G142: =G1493*'Lookup Tables'!$R$14 -> 4.3273 | H142: =H1493*'Lookup Tables'!$R$14 -> 0 | I142: =I1493*'Lookup Tables'!$R$14 -> 0 | J142: =J1493*'Lookup Tables'!$R$14 -> 15.3908 | K142: =K1493*'Lookup Tables'!$R$14 -> 19.7181
A143: 1388 | B143: 1 | C143: New Material Applied | D143: 0 | E143: 0.267 | F143: QUICK SERVICE VALVE | G143: =G1494*'Lookup Tables'!$R$14 -> 815.6034 | H143: =H1494*'Lookup Tables'!$R$14 -> 0.3597 | I143: =I1494*'Lookup Tables'!$R$14 -> 0 | J143: =J1494*'Lookup Tables'!$R$14 -> 41.1039 | K143: =K1494*'Lookup Tables'!$R$14 -> 856.7073
A144: 1388 | B144: 3 | C144: Reconditioned or Recertified Material Applied | D144: 0 | E144: 0.267 | F144: QUICK SERVICE VALVE | G144: =G1495*'Lookup Tables'!$R$14 -> 611.708 | H144: =H1495*'Lookup Tables'!$R$14 -> 0 | I144: =I1495*'Lookup Tables'!$R$14 -> 0 | J144: =J1495*'Lookup Tables'!$R$14 -> 41.1039 | K144: =K1495*'Lookup Tables'!$R$14 -> 652.8119
A145: 1388 | B145: 7 | C145: Periodic or Service Attention (includes: vacant, single car testing of air brakes, cleaning of brke cyclinder, B-1 Quick Service Valves, Lubrication, Servicing mechanical refrigeration units, vacant, all wheels applied) | D145: 0 | E145: 1.1 | F145: QUICK SERVICE VALVE | G145: =G1496*'Lookup Tables'!$R$14 -> 17.8106 | H145: =H1496*'Lookup Tables'!$R$14 -> 0 | I145: =I1496*'Lookup Tables'!$R$14 -> 0 | J145: =J1496*'Lookup Tables'!$R$14 -> 169.3424 | K145: =K1496*'Lookup Tables'!$R$14 -> 187.153
A146: 1392 | B146: 1 | C146: New Material Applied | D146: 0 | E146: 0.738 | F146: REDUCTION RELAY PIPE BRACKET PORTION | G146: =G1497*'Lookup Tables'!$R$14 -> 438.4525 | H146: =H1497*'Lookup Tables'!$R$14 -> 2.6378 | I146: =I1497*'Lookup Tables'!$R$14 -> 0 | J146: =J1497*'Lookup Tables'!$R$14 -> 113.6216 | K146: =K1497*'Lookup Tables'!$R$14 -> 552.0741
A147: 1392 | B147: 2 | C147: Secondhand Material Applied | D147: 0 | E147: 0.738 | F147: REDUCTION RELAY PIPE BRACKET PORTION | G147: =G1498*'Lookup Tables'!$R$14 -> 220.4198 | H147: =H1498*'Lookup Tables'!$R$14 -> 2.6378 | I147: =I1498*'Lookup Tables'!$R$14 -> 0 | J147: =J1498*'Lookup Tables'!$R$14 -> 113.6216 | K147: =K1498*'Lookup Tables'!$R$14 -> 334.0414
A148: 1392 | B148: 9 | C148: Remove and replace same part | D148: 0 | E148: 0.738 | F148: REDUCTION RELAY PIPE BRACKET PORTION | G148: =G1499*'Lookup Tables'!$R$14 -> 2.3871 | H148: =H1499*'Lookup Tables'!$R$14 -> 0 | I148: =I1499*'Lookup Tables'!$R$14 -> 0 | J148: =J1499*'Lookup Tables'!$R$14 -> 113.6216 | K148: =K1499*'Lookup Tables'!$R$14 -> 116.0087
A149: 1400 | B149: 1 | C149: New Material Applied | D149: 0 | E149: 0.264 | F149: NO. 8 VENT VALVE | G149: =G1500*'Lookup Tables'!$R$14 -> 225.2376 | H149: =H1500*'Lookup Tables'!$R$14 -> 0.3597 | I149: =I1500*'Lookup Tables'!$R$14 -> 0 | J149: =J1500*'Lookup Tables'!$R$14 -> 40.6461 | K149: =K1500*'Lookup Tables'!$R$14 -> 265.8837
A150: 1400 | B150: 3 | C150: Reconditioned or Recertified Material Applied | D150: 0 | E150: 0.264 | F150: NO. 8 VENT VALVE | G150: =G1501*'Lookup Tables'!$R$14 -> 60.5277 | H150: =H1501*'Lookup Tables'!$R$14 -> 0 | I150: =I1501*'Lookup Tables'!$R$14 -> 0 | J150: =J1501*'Lookup Tables'!$R$14 -> 40.6461 | K150: =K1501*'Lookup Tables'!$R$14 -> 101.1738
A151: 1401 | B151: 1 | C151: New Material Applied | D151: 0 | E151: 0.107 | F151: EMPTY LOAD SENSOR VALVE MNTING GASKET (GROUP 1) | G151: =G1502*'Lookup Tables'!$R$14 -> 8.0987 | H151: =H1502*'Lookup Tables'!$R$14 -> 0 | I151: =I1502*'Lookup Tables'!$R$14 -> 0 | J151: =J1502*'Lookup Tables'!$R$14 -> 16.4699 | K151: =K1502*'Lookup Tables'!$R$14 -> 24.5686
A152: 1402 | B152: 1 | C152: New Material Applied | D152: 0 | E152: 0.248 | F152: KM2 OR VX VENT VALVE | G152: =G1503*'Lookup Tables'!$R$14 -> 298.9216 | H152: =H1503*'Lookup Tables'!$R$14 -> 0.3597 | I152: =I1503*'Lookup Tables'!$R$14 -> 0 | J152: =J1503*'Lookup Tables'!$R$14 -> 38.1827 | K152: =K1503*'Lookup Tables'!$R$14 -> 337.1043
A153: 1402 | B153: 3 | C153: Reconditioned or Recertified Material Applied | D153: 0 | E153: 0.248 | F153: KM2 OR VX VENT VALVE | G153: =G1504*'Lookup Tables'!$R$14 -> 117.9925 | H153: =H1504*'Lookup Tables'!$R$14 -> 0 | I153: =I1504*'Lookup Tables'!$R$14 -> 0 | J153: =J1504*'Lookup Tables'!$R$14 -> 38.1827 | K153: =K1504*'Lookup Tables'!$R$14 -> 156.1752
A154: 1404 | B154: 1 | C154: New Material Applied | D154: 0 | E154: 0.14 | F154: VENT VALVE VENT PROTECTOR | G154: =G1505*'Lookup Tables'!$R$14 -> 11.9355 | H154: =H1505*'Lookup Tables'!$R$14 -> 0.3597 | I154: =I1505*'Lookup Tables'!$R$14 -> 0 | J154: =J1505*'Lookup Tables'!$R$14 -> 21.5493 | K154: =K1505*'Lookup Tables'!$R$14 -> 33.4848
A155: 1404 | B155: 2 | C155: Secondhand Material Applied | D155: 0 | E155: 0.14 | F155: VENT VALVE VENT PROTECTOR | G155: =G1506*'Lookup Tables'!$R$14 -> 5.9732 | H155: =H1506*'Lookup Tables'!$R$14 -> 0 | I155: =I1506*'Lookup Tables'!$R$14 -> 0 | J155: =J1506*'Lookup Tables'!$R$14 -> 21.5493 | K155: =K1506*'Lookup Tables'!$R$14 -> 27.5225
A156: 1406 | B156: 1 | C156: New Material Applied | D156: 0 | E156: 0.186 | F156: EMPTY LOAD SENSOR VALVE (GROUP 1) | G156: =G1507*'Lookup Tables'!$R$14 -> 705.0665 | H156: =H1507*'Lookup Tables'!$R$14 -> 0.5995 | I156: =I1507*'Lookup Tables'!$R$14 -> 0 | J156: =J1507*'Lookup Tables'!$R$14 -> 28.6343 | K156: =K1507*'Lookup Tables'!$R$14 -> 733.7008
A157: 1406 | B157: 3 | C157: Reconditioned or Recertified Material Applied | D157: 0 | E157: 0.186 | F157: EMPTY LOAD SENSOR VALVE (GROUP 1) | G157: =G1508*'Lookup Tables'!$R$14 -> 530.83 | H157: =H1508*'Lookup Tables'!$R$14 -> 0 | I157: =I1508*'Lookup Tables'!$R$14 -> 0 | J157: =J1508*'Lookup Tables'!$R$14 -> 28.6343 | K157: =K1508*'Lookup Tables'!$R$14 -> 559.4643
A158: 1406 | B158: 9 | C158: Remove and replace same part | D158: 0 | E158: 0.107 | F158: EMPTY LOAD SENSOR VALVE (GROUP 1) | G158: =G1509*'Lookup Tables'!$R$14 -> 8.0987 | H158: =H1509*'Lookup Tables'!$R$14 -> 0 | I158: =I1509*'Lookup Tables'!$R$14 -> 0 | J158: =J1509*'Lookup Tables'!$R$14 -> 16.4699 | K158: =K1509*'Lookup Tables'!$R$14 -> 24.5686
A159: 1408 | B159: 1 | C159: New Material Applied | D159: 0 | E159: 0.448 | F159: EMPTY LOAD PROPORTIONAL VALVE (GROUP 1) | G159: =G1510*'Lookup Tables'!$R$14 -> 452.6443 | H159: =H1510*'Lookup Tables'!$R$14 -> 0.5995 | I159: =I1510*'Lookup Tables'!$R$14 -> 0 | J159: =J1510*'Lookup Tables'!$R$14 -> 68.9752 | K159: =K1510*'Lookup Tables'!$R$14 -> 521.6195
A160: 1408 | B160: 3 | C160: Reconditioned or Recertified Material Applied | D160: 0 | E160: 0.448 | F160: EMPTY LOAD PROPORTIONAL VALVE (GROUP 1) | G160: =G1511*'Lookup Tables'!$R$14 -> 343.241 | H160: =H1511*'Lookup Tables'!$R$14 -> 0 | I160: =I1511*'Lookup Tables'!$R$14 -> 0 | J160: =J1511*'Lookup Tables'!$R$14 -> 68.9752 | K160: =K1511*'Lookup Tables'!$R$14 -> 412.2162
A161: 1408 | B161: 9 | C161: Remove and replace same part | D161: 0 | E161: 0.369 | F161: EMPTY LOAD PROPORTIONAL VALVE (GROUP 1) | G161: =G1512*'Lookup Tables'!$R$14 -> 15.042 | H161: =H1512*'Lookup Tables'!$R$14 -> 0 | I161: =I1512*'Lookup Tables'!$R$14 -> 0 | J161: =J1512*'Lookup Tables'!$R$14 -> 56.8108 | K161: =K1512*'Lookup Tables'!$R$14 -> 71.8528
A162: 1411 | B162: 1 | C162: New Material Applied | D162: 0 | E162: 0.44 | F162: EMPTY LOAD RESERVOIR (GROUPS 1 & 2) | G162: =G1513*'Lookup Tables'!$R$14 -> 253.8501 | H162: =H1513*'Lookup Tables'!$R$14 -> 0.5995 | I162: =I1513*'Lookup Tables'!$R$14 -> 0 | J162: =J1513*'Lookup Tables'!$R$14 -> 67.7435 | K162: =K1513*'Lookup Tables'!$R$14 -> 321.5936
A163: 1411 | B163: 3 | C163: Reconditioned or Recertified Material Applied | D163: 0 | E163: 0.44 | F163: EMPTY LOAD RESERVOIR (GROUPS 1 & 2) | G163: =G1514*'Lookup Tables'!$R$14 -> 192.4177 | H163: =H1514*'Lookup Tables'!$R$14 -> 0 | I163: =I1514*'Lookup Tables'!$R$14 -> 0 | J163: =J1514*'Lookup Tables'!$R$14 -> 67.7435 | K163: =K1514*'Lookup Tables'!$R$14 -> 260.1612
A164: 1411 | B164: 9 | C164: Remove and replace same part | D164: 0 | E164: 0.371 | F164: EMPTY LOAD RESERVOIR (GROUPS 1 & 2) | G164: =G1515*'Lookup Tables'!$R$14 -> 8.0987 | H164: =H1515*'Lookup Tables'!$R$14 -> 0 | I164: =I1515*'Lookup Tables'!$R$14 -> 0 | J164: =J1515*'Lookup Tables'!$R$14 -> 57.116 | K164: =K1515*'Lookup Tables'!$R$14 -> 65.2147
A165: 1413 | B165: 1 | C165: New Material Applied | D165: 0 | E165: 0.186 | F165: UNITIZED EMPTY LOAD VALVE, TRUCK SENSOR (GROUP 2) | G165: =G1516*'Lookup Tables'!$R$14 -> 698.1559 | H165: =H1516*'Lookup Tables'!$R$14 -> 0.5995 | I165: =I1516*'Lookup Tables'!$R$14 -> 0 | J165: =J1516*'Lookup Tables'!$R$14 -> 28.6343 | K165: =K1516*'Lookup Tables'!$R$14 -> 726.7902
A166: 1413 | B166: 3 | C166: Reconditioned or Recertified Material Applied | D166: 0 | E166: 0.186 | F166: UNITIZED EMPTY LOAD VALVE, TRUCK SENSOR (GROUP 2) | G166: =G1517*'Lookup Tables'!$R$14 -> 525.6416 | H166: =H1517*'Lookup Tables'!$R$14 -> 0 | I166: =I1517*'Lookup Tables'!$R$14 -> 0 | J166: =J1517*'Lookup Tables'!$R$14 -> 28.6343 | K166: =K1517*'Lookup Tables'!$R$14 -> 554.2759
A167: 1413 | B167: 9 | C167: Remove and replace same part | D167: 0 | E167: 0.107 | F167: UNITIZED EMPTY LOAD VALVE, TRUCK SENSOR (GROUP 2) | G167: =G1518*'Lookup Tables'!$R$14 -> 8.0987 | H167: =H1518*'Lookup Tables'!$R$14 -> 0 | I167: =I1518*'Lookup Tables'!$R$14 -> 0 | J167: =J1518*'Lookup Tables'!$R$14 -> 16.4699 | K167: =K1518*'Lookup Tables'!$R$14 -> 24.5686
A168: 1414 | B168: 1 | C168: New Material Applied | D168: 0 | E168: 0.517 | F168: EMPTY LOAD SENSOR VALVE PIPE BRACKET (GROUP 1) | G168: =G1519*'Lookup Tables'!$R$14 -> 58.6747 | H168: =H1519*'Lookup Tables'!$R$14 -> 0.5995 | I168: =I1519*'Lookup Tables'!$R$14 -> 0 | J168: =J1519*'Lookup Tables'!$R$14 -> 79.5918 | K168: =K1519*'Lookup Tables'!$R$14 -> 138.2665
A169: 1414 | B169: 3 | C169: Reconditioned or Recertified Material Applied | D169: 0 | E169: 0.517 | F169: EMPTY LOAD SENSOR VALVE PIPE BRACKET (GROUP 1) | G169: =G1520*'Lookup Tables'!$R$14 -> 44.0033 | H169: =H1520*'Lookup Tables'!$R$14 -> 0 | I169: =I1520*'Lookup Tables'!$R$14 -> 0 | J169: =J1520*'Lookup Tables'!$R$14 -> 79.5918 | K169: =K1520*'Lookup Tables'!$R$14 -> 123.5951
A170: 1414 | B170: 9 | C170: Remove and replace same part | D170: 0 | E170: 0.449 | F170: EMPTY LOAD SENSOR VALVE PIPE BRACKET (GROUP 1) | G170: =G1521*'Lookup Tables'!$R$14 -> 0 | H170: =H1521*'Lookup Tables'!$R$14 -> 0 | I170: =I1521*'Lookup Tables'!$R$14 -> 0 | J170: =J1521*'Lookup Tables'!$R$14 -> 69.1278 | K170: =K1521*'Lookup Tables'!$R$14 -> 69.1278
A171: 1415 | B171: 1 | C171: New Material Applied | D171: 0 | E171: 0.35 | F171: UNITIZED E/ L VALVE, SLOPE SHEET MNT (GROUP 3) | G171: =G1522*'Lookup Tables'!$R$14 -> 735.314 | H171: =H1522*'Lookup Tables'!$R$14 -> 0.5995 | I171: =I1522*'Lookup Tables'!$R$14 -> 0 | J171: =J1522*'Lookup Tables'!$R$14 -> 53.8787 | K171: =K1522*'Lookup Tables'!$R$14 -> 789.1927
A172: 1415 | B172: 3 | C172: Reconditioned or Recertified Material Applied | D172: 0 | E172: 0.35 | F172: UNITIZED E/ L VALVE, SLOPE SHEET MNT (GROUP 3) | G172: =G1523*'Lookup Tables'!$R$14 -> 553.5129 | H172: =H1523*'Lookup Tables'!$R$14 -> 0 | I172: =I1523*'Lookup Tables'!$R$14 -> 0 | J172: =J1523*'Lookup Tables'!$R$14 -> 53.8787 | K172: =K1523*'Lookup Tables'!$R$14 -> 607.3916
A173: 1415 | B173: 9 | C173: Remove and replace same part | D173: 0 | E173: 0.298 | F173: UNITIZED E/ L VALVE, SLOPE SHEET MNT (GROUP 3) | G173: =G1524*'Lookup Tables'!$R$14 -> 8.0987 | H173: =H1524*'Lookup Tables'!$R$14 -> 0 | I173: =I1524*'Lookup Tables'!$R$14 -> 0 | J173: =J1524*'Lookup Tables'!$R$14 -> 45.8781 | K173: =K1524*'Lookup Tables'!$R$14 -> 53.9768
A174: 1416 | B174: 1 | C174: New Material Applied | D174: 0 | E174: 0.53 | F174: E/L PROPORTIONAL VALVE PIPE BRACKET (GROUPS 1 & 2) | G174: =G1525*'Lookup Tables'!$R$14 -> 70.4031 | H174: =H1525*'Lookup Tables'!$R$14 -> 0.5995 | I174: =I1525*'Lookup Tables'!$R$14 -> 0 | J174: =J1525*'Lookup Tables'!$R$14 -> 81.5974 | K174: =K1525*'Lookup Tables'!$R$14 -> 152.0005
A175: 1416 | B175: 3 | C175: Reconditioned or Recertified Material Applied | D175: 0 | E175: 0.53 | F175: E/L PROPORTIONAL VALVE PIPE BRACKET (GROUPS 1 & 2) | G175: =G1526*'Lookup Tables'!$R$14 -> 52.7996 | H175: =H1526*'Lookup Tables'!$R$14 -> 0 | I175: =I1526*'Lookup Tables'!$R$14 -> 0 | J175: =J1526*'Lookup Tables'!$R$14 -> 81.5974 | K175: =K1526*'Lookup Tables'!$R$14 -> 134.397
A176: 1416 | B176: 9 | C176: Remove and replace same part | D176: 0 | E176: 0.461 | F176: E/L PROPORTIONAL VALVE PIPE BRACKET (GROUPS 1 & 2) | G176: =G1527*'Lookup Tables'!$R$14 -> 0 | H176: =H1527*'Lookup Tables'!$R$14 -> 0 | I176: =I1527*'Lookup Tables'!$R$14 -> 0 | J176: =J1527*'Lookup Tables'!$R$14 -> 70.9699 | K176: =K1527*'Lookup Tables'!$R$14 -> 70.9699
A177: 1417 | B177: 1 | C177: New Material Applied | D177: 0 | E177: 0.107 | F177: UNIT E/L VALVE, TRK SENSOR MNTING GASK (GROUP 2) | G177: =G1528*'Lookup Tables'!$R$14 -> 3.6515 | H177: =H1528*'Lookup Tables'!$R$14 -> 0 | I177: =I1528*'Lookup Tables'!$R$14 -> 0 | J177: =J1528*'Lookup Tables'!$R$14 -> 16.4699 | K177: =K1528*'Lookup Tables'!$R$14 -> 20.1214
A178: 1419 | B178: 1 | C178: New Material Applied | D178: 0 | E178: 0.202 | F178: UNIT E/L VALVE, SLOPE SHEET MNTING GASK (GROUP 3) | G178: =G1529*'Lookup Tables'!$R$14 -> 2.2563 | H178: =H1529*'Lookup Tables'!$R$14 -> 0 | I178: =I1529*'Lookup Tables'!$R$14 -> 0 | J178: =J1529*'Lookup Tables'!$R$14 -> 31.0977 | K178: =K1529*'Lookup Tables'!$R$14 -> 33.354
A179: 1420 | B179: 1 | C179: New Material Applied | D179: 0 | E179: 0.253 | F179: PROPORTIONING VALVE, SLOPE SHEET MOUNT (GROUP 3) | G179: =G1530*'Lookup Tables'!$R$14 -> 578.3213 | H179: =H1530*'Lookup Tables'!$R$14 -> 0 | I179: =I1530*'Lookup Tables'!$R$14 -> 0 | J179: =J1530*'Lookup Tables'!$R$14 -> 38.9457 | K179: =K1530*'Lookup Tables'!$R$14 -> 617.267
A180: 1420 | B180: 3 | C180: Reconditioned or Recertified Material Applied | D180: 0 | E180: 0.253 | F180: PROPORTIONING VALVE, SLOPE SHEET MOUNT (GROUP 3) | G180: =G1531*'Lookup Tables'!$R$14 -> 214.6973 | H180: =H1531*'Lookup Tables'!$R$14 -> 0 | I180: =I1531*'Lookup Tables'!$R$14 -> 0 | J180: =J1531*'Lookup Tables'!$R$14 -> 38.9457 | K180: =K1531*'Lookup Tables'!$R$14 -> 253.643
A181: 1420 | B181: 9 | C181: Remove and replace same part | D181: 0 | E181: 0.202 | F181: PROPORTIONING VALVE, SLOPE SHEET MOUNT (GROUP 3) | G181: =G1532*'Lookup Tables'!$R$14 -> 1.5914 | H181: =H1532*'Lookup Tables'!$R$14 -> 0 | I181: =I1532*'Lookup Tables'!$R$14 -> 0 | J181: =J1532*'Lookup Tables'!$R$14 -> 31.0977 | K181: =K1532*'Lookup Tables'!$R$14 -> 32.6891
A182: 1424 | B182: 1 | C182: New Material Applied | D182: 0 | E182: 0.643 | F182: AIR BRAKE CYL, COMPLETE 10 INCH DIAMETER OR LESS | G182: =G1533*'Lookup Tables'!$R$14 -> 395.6046 | H182: =H1533*'Lookup Tables'!$R$14 -> 5.995 | I182: =I1533*'Lookup Tables'!$R$14 -> 0 | J182: =J1533*'Lookup Tables'!$R$14 -> 98.9938 | K182: =K1533*'Lookup Tables'!$R$14 -> 494.5984
A183: 1424 | B183: 3 | C183: Reconditioned or Recertified Material Applied | D183: 0 | E183: 0.643 | F183: AIR BRAKE CYL, COMPLETE 10 INCH DIAMETER OR LESS | G183: =G1534*'Lookup Tables'!$R$14 -> 161.0475 | H183: =H1534*'Lookup Tables'!$R$14 -> 5.995 | I183: =I1534*'Lookup Tables'!$R$14 -> 0 | J183: =J1534*'Lookup Tables'!$R$14 -> 98.9938 | K183: =K1534*'Lookup Tables'!$R$14 -> 260.0413
A184: 1424 | B184: 9 | C184: Remove and replace same part | D184: 0 | E184: 0.643 | F184: AIR BRAKE CYL, COMPLETE 10 INCH DIAMETER OR LESS | G184: =G1535*'Lookup Tables'!$R$14 -> 4.7742 | H184: =H1535*'Lookup Tables'!$R$14 -> 0 | I184: =I1535*'Lookup Tables'!$R$14 -> 0 | J184: =J1535*'Lookup Tables'!$R$14 -> 98.9938 | K184: =K1535*'Lookup Tables'!$R$14 -> 103.768
A185: 1428 | B185: 1 | C185: New Material Applied | D185: 0 | E185: 1.733 | F185: AIR BRAKE CYLINDER BODY, ANY SIZE | G185: =G1536*'Lookup Tables'!$R$14 -> 256.8585 | H185: =H1536*'Lookup Tables'!$R$14 -> 10.4313 | I185: =I1536*'Lookup Tables'!$R$14 -> 0 | J185: =J1536*'Lookup Tables'!$R$14 -> 266.7993 | K185: =K1536*'Lookup Tables'!$R$14 -> 523.6578
A186: 1428 | B186: 2 | C186: Secondhand Material Applied | D186: 0 | E186: 1.733 | F186: AIR BRAKE CYLINDER BODY, ANY SIZE | G186: =G1537*'Lookup Tables'!$R$14 -> 131.0071 | H186: =H1537*'Lookup Tables'!$R$14 -> 10.4313 | I186: =I1537*'Lookup Tables'!$R$14 -> 0 | J186: =J1537*'Lookup Tables'!$R$14 -> 266.7993 | K186: =K1537*'Lookup Tables'!$R$14 -> 397.8064
A187: 1440 | B187: 1 | C187: New Material Applied | D187: 0 | E187: 0 | F187: AB CYLINDER NON-PRESSURE HEAD | G187: =G1538*'Lookup Tables'!$R$14 -> 41.529 | H187: =H1538*'Lookup Tables'!$R$14 -> 1.5587 | I187: =I1538*'Lookup Tables'!$R$14 -> 0 | J187: =J1538*'Lookup Tables'!$R$14 -> 0 | K187: =K1538*'Lookup Tables'!$R$14 -> 41.529
A188: 1440 | B188: 2 | C188: Secondhand Material Applied | D188: 0 | E188: 0 | F188: AB CYLINDER NON-PRESSURE HEAD | G188: =G1539*'Lookup Tables'!$R$14 -> 20.7645 | H188: =H1539*'Lookup Tables'!$R$14 -> 1.5587 | I188: =I1539*'Lookup Tables'!$R$14 -> 0 | J188: =J1539*'Lookup Tables'!$R$14 -> 0 | K188: =K1539*'Lookup Tables'!$R$14 -> 20.7645
A189: 1444 | B189: 1 | C189: New Material Applied | D189: 0 | E189: 0 | F189: AB CYLINDER PISTON AND HOLLOW ROD | G189: =G1540*'Lookup Tables'!$R$14 -> 151.7716 | H189: =H1540*'Lookup Tables'!$R$14 -> 2.5179 | I189: =I1540*'Lookup Tables'!$R$14 -> 0 | J189: =J1540*'Lookup Tables'!$R$14 -> 0 | K189: =K1540*'Lookup Tables'!$R$14 -> 151.7716
A190: 1444 | B190: 2 | C190: Secondhand Material Applied | D190: 0 | E190: 0 | F190: AB CYLINDER PISTON AND HOLLOW ROD | G190: =G1541*'Lookup Tables'!$R$14 -> 78.5236 | H190: =H1541*'Lookup Tables'!$R$14 -> 2.5179 | I190: =I1541*'Lookup Tables'!$R$14 -> 0 | J190: =J1541*'Lookup Tables'!$R$14 -> 0 | K190: =K1541*'Lookup Tables'!$R$14 -> 78.5236
A191: 1448 | B191: 1 | C191: New Material Applied | D191: 0 | E191: 0 | F191: AB CYLINDER RELEASE SPRING | G191: =G1542*'Lookup Tables'!$R$14 -> 25.3207 | H191: =H1542*'Lookup Tables'!$R$14 -> 0.8393 | I191: =I1542*'Lookup Tables'!$R$14 -> 0 | J191: =J1542*'Lookup Tables'!$R$14 -> 0 | K191: =K1542*'Lookup Tables'!$R$14 -> 25.3207
A192: 1448 | B192: 2 | C192: Secondhand Material Applied | D192: 0 | E192: 0 | F192: AB CYLINDER RELEASE SPRING | G192: =G1543*'Lookup Tables'!$R$14 -> 12.6658 | H192: =H1543*'Lookup Tables'!$R$14 -> 0.8393 | I192: =I1543*'Lookup Tables'!$R$14 -> 0 | J192: =J1543*'Lookup Tables'!$R$14 -> 0 | K192: =K1543*'Lookup Tables'!$R$14 -> 12.6658
A193: 1452 | B193: 1 | C193: New Material Applied | D193: 0 | E193: 0.1 | F193: AB CYLINDER PUSH ROD | G193: =G1544*'Lookup Tables'!$R$14 -> 24.4814 | H193: =H1544*'Lookup Tables'!$R$14 -> 2.8776 | I193: =I1544*'Lookup Tables'!$R$14 -> 0 | J193: =J1544*'Lookup Tables'!$R$14 -> 15.3908 | K193: =K1544*'Lookup Tables'!$R$14 -> 39.8722
A194: 1452 | B194: 2 | C194: Secondhand Material Applied | D194: 0 | E194: 0.1 | F194: AB CYLINDER PUSH ROD | G194: =G1545*'Lookup Tables'!$R$14 -> 12.2407 | H194: =H1545*'Lookup Tables'!$R$14 -> 2.8776 | I194: =I1545*'Lookup Tables'!$R$14 -> 0 | J194: =J1545*'Lookup Tables'!$R$14 -> 15.3908 | K194: =K1545*'Lookup Tables'!$R$14 -> 27.6315
A195: 1454 | B195: 1 | C195: New Material Applied | D195: 0 | E195: 0 | F195: AB CYLINDER. NON-PRESSURE HEAD SPRING GUIDE | G195: =G1546*'Lookup Tables'!$R$14 -> 13.4288 | H195: =H1546*'Lookup Tables'!$R$14 -> 0 | I195: =I1546*'Lookup Tables'!$R$14 -> 0 | J195: =J1546*'Lookup Tables'!$R$14 -> 0 | K195: =K1546*'Lookup Tables'!$R$14 -> 13.4288
A196: 1456 | B196: 7 | C196: =VLOOKUP(B196,$B$2686:$C$2701,2,FALSE) -> Periodic or Service Attention (includes: vacant, single car testing of air brakes, cleaning of brke cyclinder, B-1 Quick Service Valves, Lubrication, Servicing mechanical refrigeration units, vacant, all wheels applied) | D196: 0 | E196: 1.068 | F196: AB CYLINDER CLEANED, SEPARATELY | G196: =G1547*'Lookup Tables'!$R$14 -> 19.8925 | H196: =H1547*'Lookup Tables'!$R$14 -> 0 | I196: =I1547*'Lookup Tables'!$R$14 -> 0 | J196: =J1547*'Lookup Tables'!$R$14 -> 164.4156 | K196: =K1547*'Lookup Tables'!$R$14 -> 184.3081
A197: 1460 | B197: 1 | C197: New Material Applied | D197: 0 | E197: 0.328 | F197: PISTON TRAVEL INDICATOR | G197: =G1548*'Lookup Tables'!$R$14 -> 21.8872 | H197: =H1548*'Lookup Tables'!$R$14 -> 0 | I197: =I1548*'Lookup Tables'!$R$14 -> 0 | J197: =J1548*'Lookup Tables'!$R$14 -> 50.4997 | K197: =K1548*'Lookup Tables'!$R$14 -> 72.3869
A198: 1476 | B198: 1 | C198: New Material Applied | D198: 0 | E198: 0.698 | F198: TRUCK BRAKE CYLINDER BODY | G198: =G1549*'Lookup Tables'!$R$14 -> 210.043 | H198: =H1549*'Lookup Tables'!$R$14 -> 3.597 | I198: =I1549*'Lookup Tables'!$R$14 -> 0 | J198: =J1549*'Lookup Tables'!$R$14 -> 107.4631 | K198: =K1549*'Lookup Tables'!$R$14 -> 317.5061
A199: 1476 | B199: 2 | C199: Secondhand Material Applied | D199: 0 | E199: 0.698 | F199: TRUCK BRAKE CYLINDER BODY | G199: =G1550*'Lookup Tables'!$R$14 -> 105.4902 | H199: =H1550*'Lookup Tables'!$R$14 -> 3.597 | I199: =I1550*'Lookup Tables'!$R$14 -> 0 | J199: =J1550*'Lookup Tables'!$R$14 -> 107.4631 | K199: =K1550*'Lookup Tables'!$R$14 -> 212.9533
A200: 1476 | B200: 3 | C200: Reconditioned or Recertified Material Applied | D200: 0 | E200: 0.698 | F200: TRUCK BRAKE CYLINDER BODY | G200: =G1551*'Lookup Tables'!$R$14 -> 157.7666 | H200: =H1551*'Lookup Tables'!$R$14 -> 3.597 | I200: =I1551*'Lookup Tables'!$R$14 -> 0 | J200: =J1551*'Lookup Tables'!$R$14 -> 107.4631 | K200: =K1551*'Lookup Tables'!$R$14 -> 265.2297
A201: 1480 | B201: 1 | C201: New Material Applied | D201: 0 | E201: 0.698 | F201: TRUCK BRAKE CYLINDER PISTON ASSEMBLY | G201: =G1552*'Lookup Tables'!$R$14 -> 171.8821 | H201: =H1552*'Lookup Tables'!$R$14 -> 2.398 | I201: =I1552*'Lookup Tables'!$R$14 -> 0 | J201: =J1552*'Lookup Tables'!$R$14 -> 107.4631 | K201: =K1552*'Lookup Tables'!$R$14 -> 279.3452
... 2494 more rows

Sheet Injuries_WorkMissed
A2: Comprehensive Cost of Rail Incidents: Cost Tool Comprehensive Cost of Rail Incidents: Cost Tool Comprehensive Cost of Rail Incidents: Cost Tool
A4: Injury Events - Work Days Missed Injury Events - Work Days Missed Injury Events - Work Days Missed
A7: Injury Work Days Missed Input Sheet
A9: Step by Step Guidance | I9: Cost Estimate Output
A10: Step 1 | Fill in Table 1 with details from an injury-related absence due to a rail event | I10: From Table 1 Below | J10: =SUM(G15:G104) -> 0
A11: Step 2 | Monetized costs will populate in cell H9 on this sheet and in Step 2.K on the Cost Calculator sheet.
A13: Table 1: Input Table for Days of Work Missed Due to a Rail Incident in North Carolina | I13: Table 2: Hourly Wage By Occupation | P13: Table 3A: Summary Statistics for Days of Work Missed Resulting from A Rail Incident Injury (Zero Day Absences Included) | Z13: Table 3B: Summary Statistics for Days of Work Missed Resulting from A Rail Incident Injury (Zero Day Absences Excluded) | AJ13: 3A or 3B
A14: Person/Employee Type | B14: Hourly Wage Dropdown | C14: Hourly Wage Value | D14: Days Missed Dropdown | E14: Days Missed Value | F14: No. of Employees Subject to Scenario | G14: Monetized Cost | I14: Hourly 10th Percentile | J14: Hourly 25th Percentile | K14: Hourly Median | L14: Hourly 75th Percentile | M14: Hourly 90th Percentile | N14: Custom | P14: Minimum (3A) | Q14: Percentile (10) (3A) | R14: Percentile (25) (3A) | S14: Mean (3A) | T14: Median* (3A) | U14: Mode (3A) | V14: Percentile (75) (3A) | W14: Percentile (90) (3A) | X14: Maximum (3A) | Y14: No. of Observations | Z14: Minimum (3B) | AA14: Percentile (10) (3B) | AB14: Percentile (25) (3B) | AC14: Mean (3B) | AD14: Median* (3B) | AE14: Mode (3B) | AF14: Percentile (75) (3B) | AG14: Percentile (90) (3B) | AH14: Maximum (3B) | AI14: No. of Observations | AJ14: Custom
C15: =IF(ISBLANK(A15),"--",IF(B15=$I$14,I15,IF(B15=$J$14,J15,IF(B15=$K$14,K15,IF(B15=$L$14,L15,IF(B15=$N$14,N15,IF(B15=$M$14,M15,IF(B15='Dropdown Lists'!$O$23,Injuries_WorkMissed!N15,"--")))))))) -> -- | E15: =IF(ISBLANK(D15),"--",IF(D15='Dropdown Lists'!$K$37,P15,IF(D15='Dropdown Lists'!$K$38,Q15,IF(D15='Dropdown Lists'!$K$39,R15,IF(D15='Dropdown Lists'!$K$40,S15,IF(D15='Dropdown Lists'!$K$41,T15,IF(D15='Dropdown Lists'!$K$42,U15,IF(D15='Dropdown Lists'!$K$43,V15,IF(D15='Dropdown Lists'!$K$44,W15,IF(D15='Dropdown Lists'!$K$45,X15,IF(D15='Dropdown Lists'!$K$46,Z15,IF(D15='Dropdown Lists'!$K$47,AA15,IF(D15='Dropdown Lists'!$K$48,AB15,IF(D15='Dropdown Lists'!$K$49,AC15,IF(D15='Dropdown Lists'!$K$50,AD15,IF(D15='Dropdown Lists'!$K$51,AE15,IF(D15='Dropdown Lists'!$K$52,AF15,IF(D15='Dropdown Lists'!$K$53,AG15,IF(D15='Dropdown Lists'!$K$54,AH15,IF(D15='Dropdown Lists'!$K$55,AJ15,"")))))))))))))))))))) -> -- | G15: =IF(ISBLANK(F15),"--",(C15*(E15*8)*F15)) -> -- | I15: =IF(ISBLANK(A15),"--",VLOOKUP(A15,Injuries_WorkMissed!$B$109:$G$863,2,FALSE)) -> -- | J15: =IF(ISBLANK(A15),"--",VLOOKUP(A15,Injuries_WorkMissed!$B$109:$G$863,3,FALSE)) -> -- | K15: =IF(ISBLANK(A15),"--",VLOOKUP(A15,Injuries_WorkMissed!$B$109:$G$863,4,FALSE)) -> -- | L15: =IF(ISBLANK(A15),"--",VLOOKUP(A15,Injuries_WorkMissed!$B$109:$G$863,5,FALSE)) -> -- | M15: =IF(ISBLANK(A15),"--",VLOOKUP(A15,Injuries_WorkMissed!$B$109:$G$863,6,FALSE)) -> -- | P15: =MIN(DataExtract!$BP$3:$BP$1597) -> 0 | Q15: =_xlfn.PERCENTILE.EXC(DataExtract!$BP$3:$BP$1597,0.1) -> 0 | R15: =_xlfn.PERCENTILE.EXC(DataExtract!$BP$3:$BP$1597,0.25) -> 0 | S15: =AVERAGE(DataExtract!$BP$3:$BP$5302) -> 23.92471698 | T15: 1.5 | U15: =MODE(DataExtract!$BP$3:$BP$5302) -> 0 | V15: =_xlfn.PERCENTILE.EXC(DataExtract!$BP$3:$BP$5302,0.75) -> 5 | W15: =_xlfn.PERCENTILE.EXC(DataExtract!$BP$3:$BP$5302,0.9) -> 92 | X15: =MAX(DataExtract!$BP$3:$BP$5302) -> 365 | Y15: =COUNT(DataExtract!$BP$3:$BP$5302) -> 5300 | Z15: =MIN(DataExtract!$BO$3:$BO$1597) -> 1 | AA15: =_xlfn.PERCENTILE.EXC(DataExtract!$BO$3:$BO$1597,0.1) -> 3 | AB15: =_xlfn.PERCENTILE.EXC(DataExtract!$BO$3:$BO$1597,0.25) -> 8 | AC15: =AVERAGE(DataExtract!$BO$3:$BO$1597) -> 79.49905956 | AD15: =MEDIAN(DataExtract!$BO$3:$BO$1597) -> 46 | AE15: =MODE(DataExtract!$BO$3:$BO$1597) -> 180 | AF15: =_xlfn.PERCENTILE.EXC(DataExtract!$BO$3:$BO$1597,0.75) -> 132 | AG15: =_xlfn.PERCENTILE.EXC(DataExtract!$BO$3:$BO$1597,0.9) -> 202 | AH15: =MAX(DataExtract!$BO$3:$BO$1597,0.25) -> 365 | AI15: =COUNT(DataExtract!$BO$3:$BO$1597) -> 1595
C16: =IF(ISBLANK(A16),"--",IF(B16=$I$14,I16,IF(B16=$J$14,J16,IF(B16=$K$14,K16,IF(B16=$L$14,L16,IF(B16=$N$14,N16,IF(B16=$M$14,M16,IF(B16='Dropdown Lists'!$O$23,Injuries_WorkMissed!N16,"--")))))))) -> -- | E16: =IF(ISBLANK(D16),"--",IF(D16='Dropdown Lists'!$K$37,P16,IF(D16='Dropdown Lists'!$K$38,Q16,IF(D16='Dropdown Lists'!$K$39,R16,IF(D16='Dropdown Lists'!$K$40,S16,IF(D16='Dropdown Lists'!$K$41,T16,IF(D16='Dropdown Lists'!$K$42,U16,IF(D16='Dropdown Lists'!$K$43,V16,IF(D16='Dropdown Lists'!$K$44,W16,IF(D16='Dropdown Lists'!$K$45,X16,IF(D16='Dropdown Lists'!$K$46,Z16,IF(D16='Dropdown Lists'!$K$47,AA16,IF(D16='Dropdown Lists'!$K$48,AB16,IF(D16='Dropdown Lists'!$K$49,AC16,IF(D16='Dropdown Lists'!$K$50,AD16,IF(D16='Dropdown Lists'!$K$51,AE16,IF(D16='Dropdown Lists'!$K$52,AF16,IF(D16='Dropdown Lists'!$K$53,AG16,IF(D16='Dropdown Lists'!$K$54,AH16,IF(D16='Dropdown Lists'!$K$55,AJ16,"")))))))))))))))))))) -> -- | G16: =IF(ISBLANK(F16),"--",(C16*(E16*8)*F16)) -> -- | I16: =IF(ISBLANK(A16),"--",VLOOKUP(A16,Injuries_WorkMissed!$B$109:$G$863,2,FALSE)) -> -- | J16: =IF(ISBLANK(A16),"--",VLOOKUP(A16,Injuries_WorkMissed!$B$109:$G$863,3,FALSE)) -> -- | K16: =IF(ISBLANK(A16),"--",VLOOKUP(A16,Injuries_WorkMissed!$B$109:$G$863,4,FALSE)) -> -- | L16: =IF(ISBLANK(A16),"--",VLOOKUP(A16,Injuries_WorkMissed!$B$109:$G$863,5,FALSE)) -> -- | M16: =IF(ISBLANK(A16),"--",VLOOKUP(A16,Injuries_WorkMissed!$B$109:$G$863,6,FALSE)) -> -- | P16: =MIN(DataExtract!$BP$3:$BP$1597) -> 0 | Q16: =_xlfn.PERCENTILE.EXC(DataExtract!$BP$3:$BP$1597,0.1) -> 0 | R16: =_xlfn.PERCENTILE.EXC(DataExtract!$BP$3:$BP$1597,0.25) -> 0 | S16: =AVERAGE(DataExtract!$BP$3:$BP$5302) -> 23.92471698 | T16: 1.5 | U16: =MODE(DataExtract!$BP$1598:$BP$5302) -> 0 | V16: =_xlfn.PERCENTILE.EXC(DataExtract!$BP$3:$BP$5302,0.75) -> 5 | W16: =_xlfn.PERCENTILE.EXC(DataExtract!$BP$3:$BP$5302,0.9) -> 92 | X16: =MAX(DataExtract!$BP$3:$BP$5302) -> 365 | Y16: =COUNT(DataExtract!$BP$3:$BP$5302) -> 5300 | Z16: =MIN(DataExtract!$BO$3:$BO$1597) -> 1 | AA16: =_xlfn.PERCENTILE.EXC(DataExtract!$BO$3:$BO$1597,0.1) -> 3 | AB16: =_xlfn.PERCENTILE.EXC(DataExtract!$BO$3:$BO$1597,0.25) -> 8 | AC16: =AVERAGE(DataExtract!$BO$3:$BO$1597) -> 79.49905956 | AD16: =MEDIAN(DataExtract!$BO$3:$BO$1597) -> 46 | AE16: =MODE(DataExtract!$BO$3:$BO$1597) -> 180 | AF16: =_xlfn.PERCENTILE.EXC(DataExtract!$BO$3:$BO$1597,0.75) -> 132 | AG16: =_xlfn.PERCENTILE.EXC(DataExtract!$BO$3:$BO$1597,0.9) -> 202 | AH16: =MAX(DataExtract!$BO$3:$BO$1597,0.25) -> 365 | AI16: =COUNT(DataExtract!$BO$3:$BO$1597) -> 1595
C17: =IF(ISBLANK(A17),"--",IF(B17=$I$14,I17,IF(B17=$J$14,J17,IF(B17=$K$14,K17,IF(B17=$L$14,L17,IF(B17=$N$14,N17,IF(B17=$M$14,M17,IF(B17='Dropdown Lists'!$O$23,Injuries_WorkMissed!N17,"--")))))))) -> -- | E17: =IF(ISBLANK(D17),"--",IF(D17='Dropdown Lists'!$K$37,P17,IF(D17='Dropdown Lists'!$K$38,Q17,IF(D17='Dropdown Lists'!$K$39,R17,IF(D17='Dropdown Lists'!$K$40,S17,IF(D17='Dropdown Lists'!$K$41,T17,IF(D17='Dropdown Lists'!$K$42,U17,IF(D17='Dropdown Lists'!$K$43,V17,IF(D17='Dropdown Lists'!$K$44,W17,IF(D17='Dropdown Lists'!$K$45,X17,IF(D17='Dropdown Lists'!$K$46,Z17,IF(D17='Dropdown Lists'!$K$47,AA17,IF(D17='Dropdown Lists'!$K$48,AB17,IF(D17='Dropdown Lists'!$K$49,AC17,IF(D17='Dropdown Lists'!$K$50,AD17,IF(D17='Dropdown Lists'!$K$51,AE17,IF(D17='Dropdown Lists'!$K$52,AF17,IF(D17='Dropdown Lists'!$K$53,AG17,IF(D17='Dropdown Lists'!$K$54,AH17,IF(D17='Dropdown Lists'!$K$55,AJ17,"")))))))))))))))))))) -> -- | G17: =IF(ISBLANK(F17),"--",(C17*(E17*8)*F17)) -> -- | I17: =IF(ISBLANK(A17),"--",VLOOKUP(A17,Injuries_WorkMissed!$B$109:$G$863,2,FALSE)) -> -- | J17: =IF(ISBLANK(A17),"--",VLOOKUP(A17,Injuries_WorkMissed!$B$109:$G$863,3,FALSE)) -> -- | K17: =IF(ISBLANK(A17),"--",VLOOKUP(A17,Injuries_WorkMissed!$B$109:$G$863,4,FALSE)) -> -- | L17: =IF(ISBLANK(A17),"--",VLOOKUP(A17,Injuries_WorkMissed!$B$109:$G$863,5,FALSE)) -> -- | M17: =IF(ISBLANK(A17),"--",VLOOKUP(A17,Injuries_WorkMissed!$B$109:$G$863,6,FALSE)) -> -- | P17: =MIN(DataExtract!$BP$3:$BP$1597) -> 0 | Q17: =_xlfn.PERCENTILE.EXC(DataExtract!$BP$3:$BP$1597,0.1) -> 0 | R17: =_xlfn.PERCENTILE.EXC(DataExtract!$BP$3:$BP$1597,0.25) -> 0 | S17: =AVERAGE(DataExtract!$BP$3:$BP$5302) -> 23.92471698 | T17: 1.5 | U17: =MODE(DataExtract!$BP$1598:$BP$5302) -> 0 | V17: =_xlfn.PERCENTILE.EXC(DataExtract!$BP$3:$BP$5302,0.75) -> 5 | W17: =_xlfn.PERCENTILE.EXC(DataExtract!$BP$3:$BP$5302,0.9) -> 92 | X17: =MAX(DataExtract!$BP$3:$BP$5302) -> 365 | Y17: =COUNT(DataExtract!$BP$3:$BP$5302) -> 5300 | Z17: =MIN(DataExtract!$BO$3:$BO$1597) -> 1 | AA17: =_xlfn.PERCENTILE.EXC(DataExtract!$BO$3:$BO$1597,0.1) -> 3 | AB17: =_xlfn.PERCENTILE.EXC(DataExtract!$BO$3:$BO$1597,0.25) -> 8 | AC17: =AVERAGE(DataExtract!$BO$3:$BO$1597) -> 79.49905956 | AD17: =MEDIAN(DataExtract!$BO$3:$BO$1597) -> 46 | AE17: =MODE(DataExtract!$BO$3:$BO$1597) -> 180 | AF17: =_xlfn.PERCENTILE.EXC(DataExtract!$BO$3:$BO$1597,0.75) -> 132 | AG17: =_xlfn.PERCENTILE.EXC(DataExtract!$BO$3:$BO$1597,0.9) -> 202 | AH17: =MAX(DataExtract!$BO$3:$BO$1597,0.25) -> 365 | AI17: =COUNT(DataExtract!$BO$3:$BO$1597) -> 1595
C18: =IF(ISBLANK(A18),"--",IF(B18=$I$14,I18,IF(B18=$J$14,J18,IF(B18=$K$14,K18,IF(B18=$L$14,L18,IF(B18=$N$14,N18,IF(B18=$M$14,M18,IF(B18='Dropdown Lists'!$O$23,Injuries_WorkMissed!N18,"--")))))))) -> -- | E18: =IF(ISBLANK(D18),"--",IF(D18='Dropdown Lists'!$K$37,P18,IF(D18='Dropdown Lists'!$K$38,Q18,IF(D18='Dropdown Lists'!$K$39,R18,IF(D18='Dropdown Lists'!$K$40,S18,IF(D18='Dropdown Lists'!$K$41,T18,IF(D18='Dropdown Lists'!$K$42,U18,IF(D18='Dropdown Lists'!$K$43,V18,IF(D18='Dropdown Lists'!$K$44,W18,IF(D18='Dropdown Lists'!$K$45,X18,IF(D18='Dropdown Lists'!$K$46,Z18,IF(D18='Dropdown Lists'!$K$47,AA18,IF(D18='Dropdown Lists'!$K$48,AB18,IF(D18='Dropdown Lists'!$K$49,AC18,IF(D18='Dropdown Lists'!$K$50,AD18,IF(D18='Dropdown Lists'!$K$51,AE18,IF(D18='Dropdown Lists'!$K$52,AF18,IF(D18='Dropdown Lists'!$K$53,AG18,IF(D18='Dropdown Lists'!$K$54,AH18,IF(D18='Dropdown Lists'!$K$55,AJ18,"")))))))))))))))))))) -> -- | G18: -- | I18: =IF(ISBLANK(A18),"--",VLOOKUP(A18,Injuries_WorkMissed!$B$109:$G$863,2,FALSE)) -> -- | J18: =IF(ISBLANK(A18),"--",VLOOKUP(A18,Injuries_WorkMissed!$B$109:$G$863,3,FALSE)) -> -- | K18: =IF(ISBLANK(A18),"--",VLOOKUP(A18,Injuries_WorkMissed!$B$109:$G$863,4,FALSE)) -> -- | L18: =IF(ISBLANK(A18),"--",VLOOKUP(A18,Injuries_WorkMissed!$B$109:$G$863,5,FALSE)) -> -- | M18: =IF(ISBLANK(A18),"--",VLOOKUP(A18,Injuries_WorkMissed!$B$109:$G$863,6,FALSE)) -> -- | P18: =MIN(DataExtract!$BP$3:$BP$1597) -> 0 | Q18: =_xlfn.PERCENTILE.EXC(DataExtract!$BP$3:$BP$1597,0.1) -> 0 | R18: =_xlfn.PERCENTILE.EXC(DataExtract!$BP$3:$BP$1597,0.25) -> 0 | S18: =AVERAGE(DataExtract!$BP$3:$BP$5302) -> 23.92471698 | T18: 1.5 | U18: =MODE(DataExtract!$BP$1598:$BP$5302) -> 0 | V18: =_xlfn.PERCENTILE.EXC(DataExtract!$BP$3:$BP$5302,0.75) -> 5 | W18: =_xlfn.PERCENTILE.EXC(DataExtract!$BP$3:$BP$5302,0.9) -> 92 | X18: =MAX(DataExtract!$BP$3:$BP$5302) -> 365 | Y18: =COUNT(DataExtract!$BP$3:$BP$5302) -> 5300 | Z18: =MIN(DataExtract!$BO$3:$BO$1597) -> 1 | AA18: =_xlfn.PERCENTILE.EXC(DataExtract!$BO$3:$BO$1597,0.1) -> 3 | AB18: =_xlfn.PERCENTILE.EXC(DataExtract!$BO$3:$BO$1597,0.25) -> 8 | AC18: =AVERAGE(DataExtract!$BO$3:$BO$1597) -> 79.49905956 | AD18: =MEDIAN(DataExtract!$BO$3:$BO$1597) -> 46 | AE18: =MODE(DataExtract!$BO$3:$BO$1597) -> 180 | AF18: =_xlfn.PERCENTILE.EXC(DataExtract!$BO$3:$BO$1597,0.75) -> 132 | AG18: =_xlfn.PERCENTILE.EXC(DataExtract!$BO$3:$BO$1597,0.9) -> 202 | AH18: =MAX(DataExtract!$BO$3:$BO$1597,0.25) -> 365 | AI18: =COUNT(DataExtract!$BO$3:$BO$1597) -> 1595
C19: =IF(ISBLANK(A19),"--",IF(B19=$I$14,I19,IF(B19=$J$14,J19,IF(B19=$K$14,K19,IF(B19=$L$14,L19,IF(B19=$N$14,N19,IF(B19=$M$14,M19,IF(B19='Dropdown Lists'!$O$23,Injuries_WorkMissed!N19,"--")))))))) -> -- | E19: =IF(ISBLANK(D19),"--",IF(D19='Dropdown Lists'!$K$37,P19,IF(D19='Dropdown Lists'!$K$38,Q19,IF(D19='Dropdown Lists'!$K$39,R19,IF(D19='Dropdown Lists'!$K$40,S19,IF(D19='Dropdown Lists'!$K$41,T19,IF(D19='Dropdown Lists'!$K$42,U19,IF(D19='Dropdown Lists'!$K$43,V19,IF(D19='Dropdown Lists'!$K$44,W19,IF(D19='Dropdown Lists'!$K$45,X19,IF(D19='Dropdown Lists'!$K$46,Z19,IF(D19='Dropdown Lists'!$K$47,AA19,IF(D19='Dropdown Lists'!$K$48,AB19,IF(D19='Dropdown Lists'!$K$49,AC19,IF(D19='Dropdown Lists'!$K$50,AD19,IF(D19='Dropdown Lists'!$K$51,AE19,IF(D19='Dropdown Lists'!$K$52,AF19,IF(D19='Dropdown Lists'!$K$53,AG19,IF(D19='Dropdown Lists'!$K$54,AH19,IF(D19='Dropdown Lists'!$K$55,AJ19,"")))))))))))))))))))) -> -- | G19: -- | I19: =IF(ISBLANK(A19),"--",VLOOKUP(A19,Injuries_WorkMissed!$B$109:$G$863,2,FALSE)) -> -- | J19: =IF(ISBLANK(A19),"--",VLOOKUP(A19,Injuries_WorkMissed!$B$109:$G$863,3,FALSE)) -> -- | K19: =IF(ISBLANK(A19),"--",VLOOKUP(A19,Injuries_WorkMissed!$B$109:$G$863,4,FALSE)) -> -- | L19: =IF(ISBLANK(A19),"--",VLOOKUP(A19,Injuries_WorkMissed!$B$109:$G$863,5,FALSE)) -> -- | M19: =IF(ISBLANK(A19),"--",VLOOKUP(A19,Injuries_WorkMissed!$B$109:$G$863,6,FALSE)) -> -- | P19: =MIN(DataExtract!$BP$3:$BP$1597) -> 0 | Q19: =_xlfn.PERCENTILE.EXC(DataExtract!$BP$3:$BP$1597,0.1) -> 0 | R19: =_xlfn.PERCENTILE.EXC(DataExtract!$BP$3:$BP$1597,0.25) -> 0 | S19: =AVERAGE(DataExtract!$BP$3:$BP$5302) -> 23.92471698 | T19: 1.5 | U19: =MODE(DataExtract!$BP$1598:$BP$5302) -> 0 | V19: =_xlfn.PERCENTILE.EXC(DataExtract!$BP$3:$BP$5302,0.75) -> 5 | W19: =_xlfn.PERCENTILE.EXC(DataExtract!$BP$3:$BP$5302,0.9) -> 92 | X19: =MAX(DataExtract!$BP$3:$BP$5302) -> 365 | Y19: =COUNT(DataExtract!$BP$3:$BP$5302) -> 5300 | Z19: =MIN(DataExtract!$BO$3:$BO$1597) -> 1 | AA19: =_xlfn.PERCENTILE.EXC(DataExtract!$BO$3:$BO$1597,0.1) -> 3 | AB19: =_xlfn.PERCENTILE.EXC(DataExtract!$BO$3:$BO$1597,0.25) -> 8 | AC19: =AVERAGE(DataExtract!$BO$3:$BO$1597) -> 79.49905956 | AD19: =MEDIAN(DataExtract!$BO$3:$BO$1597) -> 46 | AE19: =MODE(DataExtract!$BO$3:$BO$1597) -> 180 | AF19: =_xlfn.PERCENTILE.EXC(DataExtract!$BO$3:$BO$1597,0.75) -> 132 | AG19: =_xlfn.PERCENTILE.EXC(DataExtract!$BO$3:$BO$1597,0.9) -> 202 | AH19: =MAX(DataExtract!$BO$3:$BO$1597,0.25) -> 365 | AI19: =COUNT(DataExtract!$BO$3:$BO$1597) -> 1595
C20: =IF(ISBLANK(A20),"--",IF(B20=$I$14,I20,IF(B20=$J$14,J20,IF(B20=$K$14,K20,IF(B20=$L$14,L20,IF(B20=$N$14,N20,IF(B20=$M$14,M20,IF(B20='Dropdown Lists'!$O$23,Injuries_WorkMissed!N20,"--")))))))) -> -- | E20: =IF(ISBLANK(D20),"--",IF(D20='Dropdown Lists'!$K$37,P20,IF(D20='Dropdown Lists'!$K$38,Q20,IF(D20='Dropdown Lists'!$K$39,R20,IF(D20='Dropdown Lists'!$K$40,S20,IF(D20='Dropdown Lists'!$K$41,T20,IF(D20='Dropdown Lists'!$K$42,U20,IF(D20='Dropdown Lists'!$K$43,V20,IF(D20='Dropdown Lists'!$K$44,W20,IF(D20='Dropdown Lists'!$K$45,X20,IF(D20='Dropdown Lists'!$K$46,Z20,IF(D20='Dropdown Lists'!$K$47,AA20,IF(D20='Dropdown Lists'!$K$48,AB20,IF(D20='Dropdown Lists'!$K$49,AC20,IF(D20='Dropdown Lists'!$K$50,AD20,IF(D20='Dropdown Lists'!$K$51,AE20,IF(D20='Dropdown Lists'!$K$52,AF20,IF(D20='Dropdown Lists'!$K$53,AG20,IF(D20='Dropdown Lists'!$K$54,AH20,IF(D20='Dropdown Lists'!$K$55,AJ20,"")))))))))))))))))))) -> -- | G20: -- | I20: =IF(ISBLANK(A20),"--",VLOOKUP(A20,Injuries_WorkMissed!$B$109:$G$863,2,FALSE)) -> -- | J20: =IF(ISBLANK(A20),"--",VLOOKUP(A20,Injuries_WorkMissed!$B$109:$G$863,3,FALSE)) -> -- | K20: =IF(ISBLANK(A20),"--",VLOOKUP(A20,Injuries_WorkMissed!$B$109:$G$863,4,FALSE)) -> -- | L20: =IF(ISBLANK(A20),"--",VLOOKUP(A20,Injuries_WorkMissed!$B$109:$G$863,5,FALSE)) -> -- | M20: =IF(ISBLANK(A20),"--",VLOOKUP(A20,Injuries_WorkMissed!$B$109:$G$863,6,FALSE)) -> -- | P20: =MIN(DataExtract!$BP$3:$BP$1597) -> 0 | Q20: =_xlfn.PERCENTILE.EXC(DataExtract!$BP$3:$BP$1597,0.1) -> 0 | R20: =_xlfn.PERCENTILE.EXC(DataExtract!$BP$3:$BP$1597,0.25) -> 0 | S20: =AVERAGE(DataExtract!$BP$3:$BP$5302) -> 23.92471698 | T20: 1.5 | U20: =MODE(DataExtract!$BP$1598:$BP$5302) -> 0 | V20: =_xlfn.PERCENTILE.EXC(DataExtract!$BP$3:$BP$5302,0.75) -> 5 | W20: =_xlfn.PERCENTILE.EXC(DataExtract!$BP$3:$BP$5302,0.9) -> 92 | X20: =MAX(DataExtract!$BP$3:$BP$5302) -> 365 | Y20: =COUNT(DataExtract!$BP$3:$BP$5302) -> 5300 | Z20: =MIN(DataExtract!$BO$3:$BO$1597) -> 1 | AA20: =_xlfn.PERCENTILE.EXC(DataExtract!$BO$3:$BO$1597,0.1) -> 3 | AB20: =_xlfn.PERCENTILE.EXC(DataExtract!$BO$3:$BO$1597,0.25) -> 8 | AC20: =AVERAGE(DataExtract!$BO$3:$BO$1597) -> 79.49905956 | AD20: =MEDIAN(DataExtract!$BO$3:$BO$1597) -> 46 | AE20: =MODE(DataExtract!$BO$3:$BO$1597) -> 180 | AF20: =_xlfn.PERCENTILE.EXC(DataExtract!$BO$3:$BO$1597,0.75) -> 132 | AG20: =_xlfn.PERCENTILE.EXC(DataExtract!$BO$3:$BO$1597,0.9) -> 202 | AH20: =MAX(DataExtract!$BO$3:$BO$1597,0.25) -> 365 | AI20: =COUNT(DataExtract!$BO$3:$BO$1597) -> 1595
C21: =IF(ISBLANK(A21),"--",IF(B21=$I$14,I21,IF(B21=$J$14,J21,IF(B21=$K$14,K21,IF(B21=$L$14,L21,IF(B21=$N$14,N21,IF(B21=$M$14,M21,IF(B21='Dropdown Lists'!$O$23,Injuries_WorkMissed!N21,"--")))))))) -> -- | E21: =IF(ISBLANK(D21),"--",IF(D21='Dropdown Lists'!$K$37,P21,IF(D21='Dropdown Lists'!$K$38,Q21,IF(D21='Dropdown Lists'!$K$39,R21,IF(D21='Dropdown Lists'!$K$40,S21,IF(D21='Dropdown Lists'!$K$41,T21,IF(D21='Dropdown Lists'!$K$42,U21,IF(D21='Dropdown Lists'!$K$43,V21,IF(D21='Dropdown Lists'!$K$44,W21,IF(D21='Dropdown Lists'!$K$45,X21,IF(D21='Dropdown Lists'!$K$46,Z21,IF(D21='Dropdown Lists'!$K$47,AA21,IF(D21='Dropdown Lists'!$K$48,AB21,IF(D21='Dropdown Lists'!$K$49,AC21,IF(D21='Dropdown Lists'!$K$50,AD21,IF(D21='Dropdown Lists'!$K$51,AE21,IF(D21='Dropdown Lists'!$K$52,AF21,IF(D21='Dropdown Lists'!$K$53,AG21,IF(D21='Dropdown Lists'!$K$54,AH21,IF(D21='Dropdown Lists'!$K$55,AJ21,"")))))))))))))))))))) -> -- | G21: -- | I21: =IF(ISBLANK(A21),"--",VLOOKUP(A21,Injuries_WorkMissed!$B$109:$G$863,2,FALSE)) -> -- | J21: =IF(ISBLANK(A21),"--",VLOOKUP(A21,Injuries_WorkMissed!$B$109:$G$863,3,FALSE)) -> -- | K21: =IF(ISBLANK(A21),"--",VLOOKUP(A21,Injuries_WorkMissed!$B$109:$G$863,4,FALSE)) -> -- | L21: =IF(ISBLANK(A21),"--",VLOOKUP(A21,Injuries_WorkMissed!$B$109:$G$863,5,FALSE)) -> -- | M21: =IF(ISBLANK(A21),"--",VLOOKUP(A21,Injuries_WorkMissed!$B$109:$G$863,6,FALSE)) -> -- | P21: =MIN(DataExtract!$BP$3:$BP$1597) -> 0 | Q21: =_xlfn.PERCENTILE.EXC(DataExtract!$BP$3:$BP$1597,0.1) -> 0 | R21: =_xlfn.PERCENTILE.EXC(DataExtract!$BP$3:$BP$1597,0.25) -> 0 | S21: =AVERAGE(DataExtract!$BP$3:$BP$5302) -> 23.92471698 | T21: 1.5 | U21: =MODE(DataExtract!$BP$1598:$BP$5302) -> 0 | V21: =_xlfn.PERCENTILE.EXC(DataExtract!$BP$3:$BP$5302,0.75) -> 5 | W21: =_xlfn.PERCENTILE.EXC(DataExtract!$BP$3:$BP$5302,0.9) -> 92 | X21: =MAX(DataExtract!$BP$3:$BP$5302) -> 365 | Y21: =COUNT(DataExtract!$BP$3:$BP$5302) -> 5300 | Z21: =MIN(DataExtract!$BO$3:$BO$1597) -> 1 | AA21: =_xlfn.PERCENTILE.EXC(DataExtract!$BO$3:$BO$1597,0.1) -> 3 | AB21: =_xlfn.PERCENTILE.EXC(DataExtract!$BO$3:$BO$1597,0.25) -> 8 | AC21: =AVERAGE(DataExtract!$BO$3:$BO$1597) -> 79.49905956 | AD21: =MEDIAN(DataExtract!$BO$3:$BO$1597) -> 46 | AE21: =MODE(DataExtract!$BO$3:$BO$1597) -> 180 | AF21: =_xlfn.PERCENTILE.EXC(DataExtract!$BO$3:$BO$1597,0.75) -> 132 | AG21: =_xlfn.PERCENTILE.EXC(DataExtract!$BO$3:$BO$1597,0.9) -> 202 | AH21: =MAX(DataExtract!$BO$3:$BO$1597,0.25) -> 365 | AI21: =COUNT(DataExtract!$BO$3:$BO$1597) -> 1595
C22: =IF(ISBLANK(A22),"--",IF(B22=$I$14,I22,IF(B22=$J$14,J22,IF(B22=$K$14,K22,IF(B22=$L$14,L22,IF(B22=$N$14,N22,IF(B22=$M$14,M22,IF(B22='Dropdown Lists'!$O$23,Injuries_WorkMissed!N22,"--")))))))) -> -- | E22: =IF(ISBLANK(D22),"--",IF(D22='Dropdown Lists'!$K$37,P22,IF(D22='Dropdown Lists'!$K$38,Q22,IF(D22='Dropdown Lists'!$K$39,R22,IF(D22='Dropdown Lists'!$K$40,S22,IF(D22='Dropdown Lists'!$K$41,T22,IF(D22='Dropdown Lists'!$K$42,U22,IF(D22='Dropdown Lists'!$K$43,V22,IF(D22='Dropdown Lists'!$K$44,W22,IF(D22='Dropdown Lists'!$K$45,X22,IF(D22='Dropdown Lists'!$K$46,Z22,IF(D22='Dropdown Lists'!$K$47,AA22,IF(D22='Dropdown Lists'!$K$48,AB22,IF(D22='Dropdown Lists'!$K$49,AC22,IF(D22='Dropdown Lists'!$K$50,AD22,IF(D22='Dropdown Lists'!$K$51,AE22,IF(D22='Dropdown Lists'!$K$52,AF22,IF(D22='Dropdown Lists'!$K$53,AG22,IF(D22='Dropdown Lists'!$K$54,AH22,IF(D22='Dropdown Lists'!$K$55,AJ22,"")))))))))))))))))))) -> -- | G22: -- | I22: =IF(ISBLANK(A22),"--",VLOOKUP(A22,Injuries_WorkMissed!$B$109:$G$863,2,FALSE)) -> -- | J22: =IF(ISBLANK(A22),"--",VLOOKUP(A22,Injuries_WorkMissed!$B$109:$G$863,3,FALSE)) -> -- | K22: =IF(ISBLANK(A22),"--",VLOOKUP(A22,Injuries_WorkMissed!$B$109:$G$863,4,FALSE)) -> -- | L22: =IF(ISBLANK(A22),"--",VLOOKUP(A22,Injuries_WorkMissed!$B$109:$G$863,5,FALSE)) -> -- | M22: =IF(ISBLANK(A22),"--",VLOOKUP(A22,Injuries_WorkMissed!$B$109:$G$863,6,FALSE)) -> -- | P22: =MIN(DataExtract!$BP$3:$BP$1597) -> 0 | Q22: =_xlfn.PERCENTILE.EXC(DataExtract!$BP$3:$BP$1597,0.1) -> 0 | R22: =_xlfn.PERCENTILE.EXC(DataExtract!$BP$3:$BP$1597,0.25) -> 0 | S22: =AVERAGE(DataExtract!$BP$3:$BP$5302) -> 23.92471698 | T22: 1.5 | U22: =MODE(DataExtract!$BP$1598:$BP$5302) -> 0 | V22: =_xlfn.PERCENTILE.EXC(DataExtract!$BP$3:$BP$5302,0.75) -> 5 | W22: =_xlfn.PERCENTILE.EXC(DataExtract!$BP$3:$BP$5302,0.9) -> 92 | X22: =MAX(DataExtract!$BP$3:$BP$5302) -> 365 | Y22: =COUNT(DataExtract!$BP$3:$BP$5302) -> 5300 | Z22: =MIN(DataExtract!$BO$3:$BO$1597) -> 1 | AA22: =_xlfn.PERCENTILE.EXC(DataExtract!$BO$3:$BO$1597,0.1) -> 3 | AB22: =_xlfn.PERCENTILE.EXC(DataExtract!$BO$3:$BO$1597,0.25) -> 8 | AC22: =AVERAGE(DataExtract!$BO$3:$BO$1597) -> 79.49905956 | AD22: =MEDIAN(DataExtract!$BO$3:$BO$1597) -> 46 | AE22: =MODE(DataExtract!$BO$3:$BO$1597) -> 180 | AF22: =_xlfn.PERCENTILE.EXC(DataExtract!$BO$3:$BO$1597,0.75) -> 132 | AG22: =_xlfn.PERCENTILE.EXC(DataExtract!$BO$3:$BO$1597,0.9) -> 202 | AH22: =MAX(DataExtract!$BO$3:$BO$1597,0.25) -> 365 | AI22: =COUNT(DataExtract!$BO$3:$BO$1597) -> 1595
C23: =IF(ISBLANK(A23),"--",IF(B23=$I$14,I23,IF(B23=$J$14,J23,IF(B23=$K$14,K23,IF(B23=$L$14,L23,IF(B23=$N$14,N23,IF(B23=$M$14,M23,IF(B23='Dropdown Lists'!$O$23,Injuries_WorkMissed!N23,"--")))))))) -> -- | E23: =IF(ISBLANK(D23),"--",IF(D23='Dropdown Lists'!$K$37,P23,IF(D23='Dropdown Lists'!$K$38,Q23,IF(D23='Dropdown Lists'!$K$39,R23,IF(D23='Dropdown Lists'!$K$40,S23,IF(D23='Dropdown Lists'!$K$41,T23,IF(D23='Dropdown Lists'!$K$42,U23,IF(D23='Dropdown Lists'!$K$43,V23,IF(D23='Dropdown Lists'!$K$44,W23,IF(D23='Dropdown Lists'!$K$45,X23,IF(D23='Dropdown Lists'!$K$46,Z23,IF(D23='Dropdown Lists'!$K$47,AA23,IF(D23='Dropdown Lists'!$K$48,AB23,IF(D23='Dropdown Lists'!$K$49,AC23,IF(D23='Dropdown Lists'!$K$50,AD23,IF(D23='Dropdown Lists'!$K$51,AE23,IF(D23='Dropdown Lists'!$K$52,AF23,IF(D23='Dropdown Lists'!$K$53,AG23,IF(D23='Dropdown Lists'!$K$54,AH23,IF(D23='Dropdown Lists'!$K$55,AJ23,"")))))))))))))))))))) -> -- | G23: -- | I23: =IF(ISBLANK(A23),"--",VLOOKUP(A23,Injuries_WorkMissed!$B$109:$G$863,2,FALSE)) -> -- | J23: =IF(ISBLANK(A23),"--",VLOOKUP(A23,Injuries_WorkMissed!$B$109:$G$863,3,FALSE)) -> -- | K23: =IF(ISBLANK(A23),"--",VLOOKUP(A23,Injuries_WorkMissed!$B$109:$G$863,4,FALSE)) -> -- | L23: =IF(ISBLANK(A23),"--",VLOOKUP(A23,Injuries_WorkMissed!$B$109:$G$863,5,FALSE)) -> -- | M23: =IF(ISBLANK(A23),"--",VLOOKUP(A23,Injuries_WorkMissed!$B$109:$G$863,6,FALSE)) -> -- | P23: =MIN(DataExtract!$BP$3:$BP$1597) -> 0 | Q23: =_xlfn.PERCENTILE.EXC(DataExtract!$BP$3:$BP$1597,0.1) -> 0 | R23: =_xlfn.PERCENTILE.EXC(DataExtract!$BP$3:$BP$1597,0.25) -> 0 | S23: =AVERAGE(DataExtract!$BP$3:$BP$5302) -> 23.92471698 | T23: 1.5 | U23: =MODE(DataExtract!$BP$1598:$BP$5302) -> 0 | V23: =_xlfn.PERCENTILE.EXC(DataExtract!$BP$3:$BP$5302,0.75) -> 5 | W23: =_xlfn.PERCENTILE.EXC(DataExtract!$BP$3:$BP$5302,0.9) -> 92 | X23: =MAX(DataExtract!$BP$3:$BP$5302) -> 365 | Y23: =COUNT(DataExtract!$BP$3:$BP$5302) -> 5300 | Z23: =MIN(DataExtract!$BO$3:$BO$1597) -> 1 | AA23: =_xlfn.PERCENTILE.EXC(DataExtract!$BO$3:$BO$1597,0.1) -> 3 | AB23: =_xlfn.PERCENTILE.EXC(DataExtract!$BO$3:$BO$1597,0.25) -> 8 | AC23: =AVERAGE(DataExtract!$BO$3:$BO$1597) -> 79.49905956 | AD23: =MEDIAN(DataExtract!$BO$3:$BO$1597) -> 46 | AE23: =MODE(DataExtract!$BO$3:$BO$1597) -> 180 | AF23: =_xlfn.PERCENTILE.EXC(DataExtract!$BO$3:$BO$1597,0.75) -> 132 | AG23: =_xlfn.PERCENTILE.EXC(DataExtract!$BO$3:$BO$1597,0.9) -> 202 | AH23: =MAX(DataExtract!$BO$3:$BO$1597,0.25) -> 365 | AI23: =COUNT(DataExtract!$BO$3:$BO$1597) -> 1595
C24: =IF(ISBLANK(A24),"--",IF(B24=$I$14,I24,IF(B24=$J$14,J24,IF(B24=$K$14,K24,IF(B24=$L$14,L24,IF(B24=$N$14,N24,IF(B24=$M$14,M24,IF(B24='Dropdown Lists'!$O$23,Injuries_WorkMissed!N24,"--")))))))) -> -- | E24: =IF(ISBLANK(D24),"--",IF(D24='Dropdown Lists'!$K$37,P24,IF(D24='Dropdown Lists'!$K$38,Q24,IF(D24='Dropdown Lists'!$K$39,R24,IF(D24='Dropdown Lists'!$K$40,S24,IF(D24='Dropdown Lists'!$K$41,T24,IF(D24='Dropdown Lists'!$K$42,U24,IF(D24='Dropdown Lists'!$K$43,V24,IF(D24='Dropdown Lists'!$K$44,W24,IF(D24='Dropdown Lists'!$K$45,X24,IF(D24='Dropdown Lists'!$K$46,Z24,IF(D24='Dropdown Lists'!$K$47,AA24,IF(D24='Dropdown Lists'!$K$48,AB24,IF(D24='Dropdown Lists'!$K$49,AC24,IF(D24='Dropdown Lists'!$K$50,AD24,IF(D24='Dropdown Lists'!$K$51,AE24,IF(D24='Dropdown Lists'!$K$52,AF24,IF(D24='Dropdown Lists'!$K$53,AG24,IF(D24='Dropdown Lists'!$K$54,AH24,IF(D24='Dropdown Lists'!$K$55,AJ24,"")))))))))))))))))))) -> -- | G24: =IF(ISBLANK(F24),"--",(C24*(E24*8)*F24)) -> -- | I24: =IF(ISBLANK(A24),"--",VLOOKUP(A24,Injuries_WorkMissed!$B$109:$G$863,2,FALSE)) -> -- | J24: =IF(ISBLANK(A24),"--",VLOOKUP(A24,Injuries_WorkMissed!$B$109:$G$863,3,FALSE)) -> -- | K24: =IF(ISBLANK(A24),"--",VLOOKUP(A24,Injuries_WorkMissed!$B$109:$G$863,4,FALSE)) -> -- | L24: =IF(ISBLANK(A24),"--",VLOOKUP(A24,Injuries_WorkMissed!$B$109:$G$863,5,FALSE)) -> -- | M24: =IF(ISBLANK(A24),"--",VLOOKUP(A24,Injuries_WorkMissed!$B$109:$G$863,6,FALSE)) -> -- | P24: =MIN(DataExtract!$BP$3:$BP$1597) -> 0 | Q24: =_xlfn.PERCENTILE.EXC(DataExtract!$BP$3:$BP$1597,0.1) -> 0 | R24: =_xlfn.PERCENTILE.EXC(DataExtract!$BP$3:$BP$1597,0.25) -> 0 | S24: =AVERAGE(DataExtract!$BP$3:$BP$5302) -> 23.92471698 | T24: 1.5 | U24: =MODE(DataExtract!$BP$1598:$BP$5302) -> 0 | V24: =_xlfn.PERCENTILE.EXC(DataExtract!$BP$3:$BP$5302,0.75) -> 5 | W24: =_xlfn.PERCENTILE.EXC(DataExtract!$BP$3:$BP$5302,0.9) -> 92 | X24: =MAX(DataExtract!$BP$3:$BP$5302) -> 365 | Y24: =COUNT(DataExtract!$BP$3:$BP$5302) -> 5300 | Z24: =MIN(DataExtract!$BO$3:$BO$1597) -> 1 | AA24: =_xlfn.PERCENTILE.EXC(DataExtract!$BO$3:$BO$1597,0.1) -> 3 | AB24: =_xlfn.PERCENTILE.EXC(DataExtract!$BO$3:$BO$1597,0.25) -> 8 | AC24: =AVERAGE(DataExtract!$BO$3:$BO$1597) -> 79.49905956 | AD24: =MEDIAN(DataExtract!$BO$3:$BO$1597) -> 46 | AE24: =MODE(DataExtract!$BO$3:$BO$1597) -> 180 | AF24: =_xlfn.PERCENTILE.EXC(DataExtract!$BO$3:$BO$1597,0.75) -> 132 | AG24: =_xlfn.PERCENTILE.EXC(DataExtract!$BO$3:$BO$1597,0.9) -> 202 | AH24: =MAX(DataExtract!$BO$3:$BO$1597,0.25) -> 365 | AI24: =COUNT(DataExtract!$BO$3:$BO$1597) -> 1595
C25: =IF(ISBLANK(A25),"--",IF(B25=$I$14,I25,IF(B25=$J$14,J25,IF(B25=$K$14,K25,IF(B25=$L$14,L25,IF(B25=$N$14,N25,IF(B25=$M$14,M25,IF(B25='Dropdown Lists'!$O$23,Injuries_WorkMissed!N25,"--")))))))) -> -- | E25: =IF(ISBLANK(D25),"--",IF(D25='Dropdown Lists'!$K$37,P25,IF(D25='Dropdown Lists'!$K$38,Q25,IF(D25='Dropdown Lists'!$K$39,R25,IF(D25='Dropdown Lists'!$K$40,S25,IF(D25='Dropdown Lists'!$K$41,T25,IF(D25='Dropdown Lists'!$K$42,U25,IF(D25='Dropdown Lists'!$K$43,V25,IF(D25='Dropdown Lists'!$K$44,W25,IF(D25='Dropdown Lists'!$K$45,X25,IF(D25='Dropdown Lists'!$K$46,Z25,IF(D25='Dropdown Lists'!$K$47,AA25,IF(D25='Dropdown Lists'!$K$48,AB25,IF(D25='Dropdown Lists'!$K$49,AC25,IF(D25='Dropdown Lists'!$K$50,AD25,IF(D25='Dropdown Lists'!$K$51,AE25,IF(D25='Dropdown Lists'!$K$52,AF25,IF(D25='Dropdown Lists'!$K$53,AG25,IF(D25='Dropdown Lists'!$K$54,AH25,IF(D25='Dropdown Lists'!$K$55,AJ25,"")))))))))))))))))))) -> -- | G25: -- | I25: =IF(ISBLANK(A25),"--",VLOOKUP(A25,Injuries_WorkMissed!$B$109:$G$863,2,FALSE)) -> -- | J25: =IF(ISBLANK(A25),"--",VLOOKUP(A25,Injuries_WorkMissed!$B$109:$G$863,3,FALSE)) -> -- | K25: =IF(ISBLANK(A25),"--",VLOOKUP(A25,Injuries_WorkMissed!$B$109:$G$863,4,FALSE)) -> -- | L25: =IF(ISBLANK(A25),"--",VLOOKUP(A25,Injuries_WorkMissed!$B$109:$G$863,5,FALSE)) -> -- | M25: =IF(ISBLANK(A25),"--",VLOOKUP(A25,Injuries_WorkMissed!$B$109:$G$863,6,FALSE)) -> -- | P25: =MIN(DataExtract!$BP$3:$BP$1597) -> 0 | Q25: =_xlfn.PERCENTILE.EXC(DataExtract!$BP$3:$BP$1597,0.1) -> 0 | R25: =_xlfn.PERCENTILE.EXC(DataExtract!$BP$3:$BP$1597,0.25) -> 0 | S25: =AVERAGE(DataExtract!$BP$3:$BP$5302) -> 23.92471698 | T25: 1.5 | U25: =MODE(DataExtract!$BP$1598:$BP$5302) -> 0 | V25: =_xlfn.PERCENTILE.EXC(DataExtract!$BP$3:$BP$5302,0.75) -> 5 | W25: =_xlfn.PERCENTILE.EXC(DataExtract!$BP$3:$BP$5302,0.9) -> 92 | X25: =MAX(DataExtract!$BP$3:$BP$5302) -> 365 | Y25: =COUNT(DataExtract!$BP$3:$BP$5302) -> 5300 | Z25: =MIN(DataExtract!$BO$3:$BO$1597) -> 1 | AA25: =_xlfn.PERCENTILE.EXC(DataExtract!$BO$3:$BO$1597,0.1) -> 3 | AB25: =_xlfn.PERCENTILE.EXC(DataExtract!$BO$3:$BO$1597,0.25) -> 8 | AC25: =AVERAGE(DataExtract!$BO$3:$BO$1597) -> 79.49905956 | AD25: =MEDIAN(DataExtract!$BO$3:$BO$1597) -> 46 | AE25: =MODE(DataExtract!$BO$3:$BO$1597) -> 180 | AF25: =_xlfn.PERCENTILE.EXC(DataExtract!$BO$3:$BO$1597,0.75) -> 132 | AG25: =_xlfn.PERCENTILE.EXC(DataExtract!$BO$3:$BO$1597,0.9) -> 202 | AH25: =MAX(DataExtract!$BO$3:$BO$1597,0.25) -> 365 | AI25: =COUNT(DataExtract!$BO$3:$BO$1597) -> 1595
C26: =IF(ISBLANK(A26),"--",IF(B26=$I$14,I26,IF(B26=$J$14,J26,IF(B26=$K$14,K26,IF(B26=$L$14,L26,IF(B26=$N$14,N26,IF(B26=$M$14,M26,IF(B26='Dropdown Lists'!$O$23,Injuries_WorkMissed!N26,"--")))))))) -> -- | E26: =IF(ISBLANK(D26),"--",IF(D26='Dropdown Lists'!$K$37,P26,IF(D26='Dropdown Lists'!$K$38,Q26,IF(D26='Dropdown Lists'!$K$39,R26,IF(D26='Dropdown Lists'!$K$40,S26,IF(D26='Dropdown Lists'!$K$41,T26,IF(D26='Dropdown Lists'!$K$42,U26,IF(D26='Dropdown Lists'!$K$43,V26,IF(D26='Dropdown Lists'!$K$44,W26,IF(D26='Dropdown Lists'!$K$45,X26,IF(D26='Dropdown Lists'!$K$46,Z26,IF(D26='Dropdown Lists'!$K$47,AA26,IF(D26='Dropdown Lists'!$K$48,AB26,IF(D26='Dropdown Lists'!$K$49,AC26,IF(D26='Dropdown Lists'!$K$50,AD26,IF(D26='Dropdown Lists'!$K$51,AE26,IF(D26='Dropdown Lists'!$K$52,AF26,IF(D26='Dropdown Lists'!$K$53,AG26,IF(D26='Dropdown Lists'!$K$54,AH26,IF(D26='Dropdown Lists'!$K$55,AJ26,"")))))))))))))))))))) -> -- | G26: -- | I26: =IF(ISBLANK(A26),"--",VLOOKUP(A26,Injuries_WorkMissed!$B$109:$G$863,2,FALSE)) -> -- | J26: =IF(ISBLANK(A26),"--",VLOOKUP(A26,Injuries_WorkMissed!$B$109:$G$863,3,FALSE)) -> -- | K26: =IF(ISBLANK(A26),"--",VLOOKUP(A26,Injuries_WorkMissed!$B$109:$G$863,4,FALSE)) -> -- | L26: =IF(ISBLANK(A26),"--",VLOOKUP(A26,Injuries_WorkMissed!$B$109:$G$863,5,FALSE)) -> -- | M26: =IF(ISBLANK(A26),"--",VLOOKUP(A26,Injuries_WorkMissed!$B$109:$G$863,6,FALSE)) -> -- | P26: =MIN(DataExtract!$BP$3:$BP$1597) -> 0 | Q26: =_xlfn.PERCENTILE.EXC(DataExtract!$BP$3:$BP$1597,0.1) -> 0 | R26: =_xlfn.PERCENTILE.EXC(DataExtract!$BP$3:$BP$1597,0.25) -> 0 | S26: =AVERAGE(DataExtract!$BP$3:$BP$5302) -> 23.92471698 | T26: 1.5 | U26: =MODE(DataExtract!$BP$1598:$BP$5302) -> 0 | V26: =_xlfn.PERCENTILE.EXC(DataExtract!$BP$3:$BP$5302,0.75) -> 5 | W26: =_xlfn.PERCENTILE.EXC(DataExtract!$BP$3:$BP$5302,0.9) -> 92 | X26: =MAX(DataExtract!$BP$3:$BP$5302) -> 365 | Y26: =COUNT(DataExtract!$BP$3:$BP$5302) -> 5300 | Z26: =MIN(DataExtract!$BO$3:$BO$1597) -> 1 | AA26: =_xlfn.PERCENTILE.EXC(DataExtract!$BO$3:$BO$1597,0.1) -> 3 | AB26: =_xlfn.PERCENTILE.EXC(DataExtract!$BO$3:$BO$1597,0.25) -> 8 | AC26: =AVERAGE(DataExtract!$BO$3:$BO$1597) -> 79.49905956 | AD26: =MEDIAN(DataExtract!$BO$3:$BO$1597) -> 46 | AE26: =MODE(DataExtract!$BO$3:$BO$1597) -> 180 | AF26: =_xlfn.PERCENTILE.EXC(DataExtract!$BO$3:$BO$1597,0.75) -> 132 | AG26: =_xlfn.PERCENTILE.EXC(DataExtract!$BO$3:$BO$1597,0.9) -> 202 | AH26: =MAX(DataExtract!$BO$3:$BO$1597,0.25) -> 365 | AI26: =COUNT(DataExtract!$BO$3:$BO$1597) -> 1595
C27: =IF(ISBLANK(A27),"--",IF(B27=$I$14,I27,IF(B27=$J$14,J27,IF(B27=$K$14,K27,IF(B27=$L$14,L27,IF(B27=$N$14,N27,IF(B27=$M$14,M27,IF(B27='Dropdown Lists'!$O$23,Injuries_WorkMissed!N27,"--")))))))) -> -- | E27: =IF(ISBLANK(D27),"--",IF(D27='Dropdown Lists'!$K$37,P27,IF(D27='Dropdown Lists'!$K$38,Q27,IF(D27='Dropdown Lists'!$K$39,R27,IF(D27='Dropdown Lists'!$K$40,S27,IF(D27='Dropdown Lists'!$K$41,T27,IF(D27='Dropdown Lists'!$K$42,U27,IF(D27='Dropdown Lists'!$K$43,V27,IF(D27='Dropdown Lists'!$K$44,W27,IF(D27='Dropdown Lists'!$K$45,X27,IF(D27='Dropdown Lists'!$K$46,Z27,IF(D27='Dropdown Lists'!$K$47,AA27,IF(D27='Dropdown Lists'!$K$48,AB27,IF(D27='Dropdown Lists'!$K$49,AC27,IF(D27='Dropdown Lists'!$K$50,AD27,IF(D27='Dropdown Lists'!$K$51,AE27,IF(D27='Dropdown Lists'!$K$52,AF27,IF(D27='Dropdown Lists'!$K$53,AG27,IF(D27='Dropdown Lists'!$K$54,AH27,IF(D27='Dropdown Lists'!$K$55,AJ27,"")))))))))))))))))))) -> -- | G27: -- | I27: =IF(ISBLANK(A27),"--",VLOOKUP(A27,Injuries_WorkMissed!$B$109:$G$863,2,FALSE)) -> -- | J27: =IF(ISBLANK(A27),"--",VLOOKUP(A27,Injuries_WorkMissed!$B$109:$G$863,3,FALSE)) -> -- | K27: =IF(ISBLANK(A27),"--",VLOOKUP(A27,Injuries_WorkMissed!$B$109:$G$863,4,FALSE)) -> -- | L27: =IF(ISBLANK(A27),"--",VLOOKUP(A27,Injuries_WorkMissed!$B$109:$G$863,5,FALSE)) -> -- | M27: =IF(ISBLANK(A27),"--",VLOOKUP(A27,Injuries_WorkMissed!$B$109:$G$863,6,FALSE)) -> -- | P27: =MIN(DataExtract!$BP$3:$BP$1597) -> 0 | Q27: =_xlfn.PERCENTILE.EXC(DataExtract!$BP$3:$BP$1597,0.1) -> 0 | R27: =_xlfn.PERCENTILE.EXC(DataExtract!$BP$3:$BP$1597,0.25) -> 0 | S27: =AVERAGE(DataExtract!$BP$3:$BP$5302) -> 23.92471698 | T27: 1.5 | U27: =MODE(DataExtract!$BP$1598:$BP$5302) -> 0 | V27: =_xlfn.PERCENTILE.EXC(DataExtract!$BP$3:$BP$5302,0.75) -> 5 | W27: =_xlfn.PERCENTILE.EXC(DataExtract!$BP$3:$BP$5302,0.9) -> 92 | X27: =MAX(DataExtract!$BP$3:$BP$5302) -> 365 | Y27: =COUNT(DataExtract!$BP$3:$BP$5302) -> 5300 | Z27: =MIN(DataExtract!$BO$3:$BO$1597) -> 1 | AA27: =_xlfn.PERCENTILE.EXC(DataExtract!$BO$3:$BO$1597,0.1) -> 3 | AB27: =_xlfn.PERCENTILE.EXC(DataExtract!$BO$3:$BO$1597,0.25) -> 8 | AC27: =AVERAGE(DataExtract!$BO$3:$BO$1597) -> 79.49905956 | AD27: =MEDIAN(DataExtract!$BO$3:$BO$1597) -> 46 | AE27: =MODE(DataExtract!$BO$3:$BO$1597) -> 180 | AF27: =_xlfn.PERCENTILE.EXC(DataExtract!$BO$3:$BO$1597,0.75) -> 132 | AG27: =_xlfn.PERCENTILE.EXC(DataExtract!$BO$3:$BO$1597,0.9) -> 202 | AH27: =MAX(DataExtract!$BO$3:$BO$1597,0.25) -> 365 | AI27: =COUNT(DataExtract!$BO$3:$BO$1597) -> 1595
C28: =IF(ISBLANK(A28),"--",IF(B28=$I$14,I28,IF(B28=$J$14,J28,IF(B28=$K$14,K28,IF(B28=$L$14,L28,IF(B28=$N$14,N28,IF(B28=$M$14,M28,IF(B28='Dropdown Lists'!$O$23,Injuries_WorkMissed!N28,"--")))))))) -> -- | E28: =IF(ISBLANK(D28),"--",IF(D28='Dropdown Lists'!$K$37,P28,IF(D28='Dropdown Lists'!$K$38,Q28,IF(D28='Dropdown Lists'!$K$39,R28,IF(D28='Dropdown Lists'!$K$40,S28,IF(D28='Dropdown Lists'!$K$41,T28,IF(D28='Dropdown Lists'!$K$42,U28,IF(D28='Dropdown Lists'!$K$43,V28,IF(D28='Dropdown Lists'!$K$44,W28,IF(D28='Dropdown Lists'!$K$45,X28,IF(D28='Dropdown Lists'!$K$46,Z28,IF(D28='Dropdown Lists'!$K$47,AA28,IF(D28='Dropdown Lists'!$K$48,AB28,IF(D28='Dropdown Lists'!$K$49,AC28,IF(D28='Dropdown Lists'!$K$50,AD28,IF(D28='Dropdown Lists'!$K$51,AE28,IF(D28='Dropdown Lists'!$K$52,AF28,IF(D28='Dropdown Lists'!$K$53,AG28,IF(D28='Dropdown Lists'!$K$54,AH28,IF(D28='Dropdown Lists'!$K$55,AJ28,"")))))))))))))))))))) -> -- | G28: -- | I28: =IF(ISBLANK(A28),"--",VLOOKUP(A28,Injuries_WorkMissed!$B$109:$G$863,2,FALSE)) -> -- | J28: =IF(ISBLANK(A28),"--",VLOOKUP(A28,Injuries_WorkMissed!$B$109:$G$863,3,FALSE)) -> -- | K28: =IF(ISBLANK(A28),"--",VLOOKUP(A28,Injuries_WorkMissed!$B$109:$G$863,4,FALSE)) -> -- | L28: =IF(ISBLANK(A28),"--",VLOOKUP(A28,Injuries_WorkMissed!$B$109:$G$863,5,FALSE)) -> -- | M28: =IF(ISBLANK(A28),"--",VLOOKUP(A28,Injuries_WorkMissed!$B$109:$G$863,6,FALSE)) -> -- | P28: =MIN(DataExtract!$BP$3:$BP$1597) -> 0 | Q28: =_xlfn.PERCENTILE.EXC(DataExtract!$BP$3:$BP$1597,0.1) -> 0 | R28: =_xlfn.PERCENTILE.EXC(DataExtract!$BP$3:$BP$1597,0.25) -> 0 | S28: =AVERAGE(DataExtract!$BP$3:$BP$5302) -> 23.92471698 | T28: 1.5 | U28: =MODE(DataExtract!$BP$1598:$BP$5302) -> 0 | V28: =_xlfn.PERCENTILE.EXC(DataExtract!$BP$3:$BP$5302,0.75) -> 5 | W28: =_xlfn.PERCENTILE.EXC(DataExtract!$BP$3:$BP$5302,0.9) -> 92 | X28: =MAX(DataExtract!$BP$3:$BP$5302) -> 365 | Y28: =COUNT(DataExtract!$BP$3:$BP$5302) -> 5300 | Z28: =MIN(DataExtract!$BO$3:$BO$1597) -> 1 | AA28: =_xlfn.PERCENTILE.EXC(DataExtract!$BO$3:$BO$1597,0.1) -> 3 | AB28: =_xlfn.PERCENTILE.EXC(DataExtract!$BO$3:$BO$1597,0.25) -> 8 | AC28: =AVERAGE(DataExtract!$BO$3:$BO$1597) -> 79.49905956 | AD28: =MEDIAN(DataExtract!$BO$3:$BO$1597) -> 46 | AE28: =MODE(DataExtract!$BO$3:$BO$1597) -> 180 | AF28: =_xlfn.PERCENTILE.EXC(DataExtract!$BO$3:$BO$1597,0.75) -> 132 | AG28: =_xlfn.PERCENTILE.EXC(DataExtract!$BO$3:$BO$1597,0.9) -> 202 | AH28: =MAX(DataExtract!$BO$3:$BO$1597,0.25) -> 365 | AI28: =COUNT(DataExtract!$BO$3:$BO$1597) -> 1595
C29: =IF(ISBLANK(A29),"--",IF(B29=$I$14,I29,IF(B29=$J$14,J29,IF(B29=$K$14,K29,IF(B29=$L$14,L29,IF(B29=$N$14,N29,IF(B29=$M$14,M29,IF(B29='Dropdown Lists'!$O$23,Injuries_WorkMissed!N29,"--")))))))) -> -- | E29: =IF(ISBLANK(D29),"--",IF(D29='Dropdown Lists'!$K$37,P29,IF(D29='Dropdown Lists'!$K$38,Q29,IF(D29='Dropdown Lists'!$K$39,R29,IF(D29='Dropdown Lists'!$K$40,S29,IF(D29='Dropdown Lists'!$K$41,T29,IF(D29='Dropdown Lists'!$K$42,U29,IF(D29='Dropdown Lists'!$K$43,V29,IF(D29='Dropdown Lists'!$K$44,W29,IF(D29='Dropdown Lists'!$K$45,X29,IF(D29='Dropdown Lists'!$K$46,Z29,IF(D29='Dropdown Lists'!$K$47,AA29,IF(D29='Dropdown Lists'!$K$48,AB29,IF(D29='Dropdown Lists'!$K$49,AC29,IF(D29='Dropdown Lists'!$K$50,AD29,IF(D29='Dropdown Lists'!$K$51,AE29,IF(D29='Dropdown Lists'!$K$52,AF29,IF(D29='Dropdown Lists'!$K$53,AG29,IF(D29='Dropdown Lists'!$K$54,AH29,IF(D29='Dropdown Lists'!$K$55,AJ29,"")))))))))))))))))))) -> -- | G29: -- | I29: =IF(ISBLANK(A29),"--",VLOOKUP(A29,Injuries_WorkMissed!$B$109:$G$863,2,FALSE)) -> -- | J29: =IF(ISBLANK(A29),"--",VLOOKUP(A29,Injuries_WorkMissed!$B$109:$G$863,3,FALSE)) -> -- | K29: =IF(ISBLANK(A29),"--",VLOOKUP(A29,Injuries_WorkMissed!$B$109:$G$863,4,FALSE)) -> -- | L29: =IF(ISBLANK(A29),"--",VLOOKUP(A29,Injuries_WorkMissed!$B$109:$G$863,5,FALSE)) -> -- | M29: =IF(ISBLANK(A29),"--",VLOOKUP(A29,Injuries_WorkMissed!$B$109:$G$863,6,FALSE)) -> -- | P29: =MIN(DataExtract!$BP$3:$BP$1597) -> 0 | Q29: =_xlfn.PERCENTILE.EXC(DataExtract!$BP$3:$BP$1597,0.1) -> 0 | R29: =_xlfn.PERCENTILE.EXC(DataExtract!$BP$3:$BP$1597,0.25) -> 0 | S29: =AVERAGE(DataExtract!$BP$3:$BP$5302) -> 23.92471698 | T29: 1.5 | U29: =MODE(DataExtract!$BP$1598:$BP$5302) -> 0 | V29: =_xlfn.PERCENTILE.EXC(DataExtract!$BP$3:$BP$5302,0.75) -> 5 | W29: =_xlfn.PERCENTILE.EXC(DataExtract!$BP$3:$BP$5302,0.9) -> 92 | X29: =MAX(DataExtract!$BP$3:$BP$5302) -> 365 | Y29: =COUNT(DataExtract!$BP$3:$BP$5302) -> 5300 | Z29: =MIN(DataExtract!$BO$3:$BO$1597) -> 1 | AA29: =_xlfn.PERCENTILE.EXC(DataExtract!$BO$3:$BO$1597,0.1) -> 3 | AB29: =_xlfn.PERCENTILE.EXC(DataExtract!$BO$3:$BO$1597,0.25) -> 8 | AC29: =AVERAGE(DataExtract!$BO$3:$BO$1597) -> 79.49905956 | AD29: =MEDIAN(DataExtract!$BO$3:$BO$1597) -> 46 | AE29: =MODE(DataExtract!$BO$3:$BO$1597) -> 180 | AF29: =_xlfn.PERCENTILE.EXC(DataExtract!$BO$3:$BO$1597,0.75) -> 132 | AG29: =_xlfn.PERCENTILE.EXC(DataExtract!$BO$3:$BO$1597,0.9) -> 202 | AH29: =MAX(DataExtract!$BO$3:$BO$1597,0.25) -> 365 | AI29: =COUNT(DataExtract!$BO$3:$BO$1597) -> 1595
C30: =IF(ISBLANK(A30),"--",IF(B30=$I$14,I30,IF(B30=$J$14,J30,IF(B30=$K$14,K30,IF(B30=$L$14,L30,IF(B30=$N$14,N30,IF(B30=$M$14,M30,IF(B30='Dropdown Lists'!$O$23,Injuries_WorkMissed!N30,"--")))))))) -> -- | E30: =IF(ISBLANK(D30),"--",IF(D30='Dropdown Lists'!$K$37,P30,IF(D30='Dropdown Lists'!$K$38,Q30,IF(D30='Dropdown Lists'!$K$39,R30,IF(D30='Dropdown Lists'!$K$40,S30,IF(D30='Dropdown Lists'!$K$41,T30,IF(D30='Dropdown Lists'!$K$42,U30,IF(D30='Dropdown Lists'!$K$43,V30,IF(D30='Dropdown Lists'!$K$44,W30,IF(D30='Dropdown Lists'!$K$45,X30,IF(D30='Dropdown Lists'!$K$46,Z30,IF(D30='Dropdown Lists'!$K$47,AA30,IF(D30='Dropdown Lists'!$K$48,AB30,IF(D30='Dropdown Lists'!$K$49,AC30,IF(D30='Dropdown Lists'!$K$50,AD30,IF(D30='Dropdown Lists'!$K$51,AE30,IF(D30='Dropdown Lists'!$K$52,AF30,IF(D30='Dropdown Lists'!$K$53,AG30,IF(D30='Dropdown Lists'!$K$54,AH30,IF(D30='Dropdown Lists'!$K$55,AJ30,"")))))))))))))))))))) -> -- | G30: -- | I30: =IF(ISBLANK(A30),"--",VLOOKUP(A30,Injuries_WorkMissed!$B$109:$G$863,2,FALSE)) -> -- | J30: =IF(ISBLANK(A30),"--",VLOOKUP(A30,Injuries_WorkMissed!$B$109:$G$863,3,FALSE)) -> -- | K30: =IF(ISBLANK(A30),"--",VLOOKUP(A30,Injuries_WorkMissed!$B$109:$G$863,4,FALSE)) -> -- | L30: =IF(ISBLANK(A30),"--",VLOOKUP(A30,Injuries_WorkMissed!$B$109:$G$863,5,FALSE)) -> -- | M30: =IF(ISBLANK(A30),"--",VLOOKUP(A30,Injuries_WorkMissed!$B$109:$G$863,6,FALSE)) -> -- | P30: =MIN(DataExtract!$BP$3:$BP$1597) -> 0 | Q30: =_xlfn.PERCENTILE.EXC(DataExtract!$BP$3:$BP$1597,0.1) -> 0 | R30: =_xlfn.PERCENTILE.EXC(DataExtract!$BP$3:$BP$1597,0.25) -> 0 | S30: =AVERAGE(DataExtract!$BP$3:$BP$5302) -> 23.92471698 | T30: 1.5 | U30: =MODE(DataExtract!$BP$1598:$BP$5302) -> 0 | V30: =_xlfn.PERCENTILE.EXC(DataExtract!$BP$3:$BP$5302,0.75) -> 5 | W30: =_xlfn.PERCENTILE.EXC(DataExtract!$BP$3:$BP$5302,0.9) -> 92 | X30: =MAX(DataExtract!$BP$3:$BP$5302) -> 365 | Y30: =COUNT(DataExtract!$BP$3:$BP$5302) -> 5300 | Z30: =MIN(DataExtract!$BO$3:$BO$1597) -> 1 | AA30: =_xlfn.PERCENTILE.EXC(DataExtract!$BO$3:$BO$1597,0.1) -> 3 | AB30: =_xlfn.PERCENTILE.EXC(DataExtract!$BO$3:$BO$1597,0.25) -> 8 | AC30: =AVERAGE(DataExtract!$BO$3:$BO$1597) -> 79.49905956 | AD30: =MEDIAN(DataExtract!$BO$3:$BO$1597) -> 46 | AE30: =MODE(DataExtract!$BO$3:$BO$1597) -> 180 | AF30: =_xlfn.PERCENTILE.EXC(DataExtract!$BO$3:$BO$1597,0.75) -> 132 | AG30: =_xlfn.PERCENTILE.EXC(DataExtract!$BO$3:$BO$1597,0.9) -> 202 | AH30: =MAX(DataExtract!$BO$3:$BO$1597,0.25) -> 365 | AI30: =COUNT(DataExtract!$BO$3:$BO$1597) -> 1595
C31: =IF(ISBLANK(A31),"--",IF(B31=$I$14,I31,IF(B31=$J$14,J31,IF(B31=$K$14,K31,IF(B31=$L$14,L31,IF(B31=$N$14,N31,IF(B31=$M$14,M31,IF(B31='Dropdown Lists'!$O$23,Injuries_WorkMissed!N31,"--")))))))) -> -- | E31: =IF(ISBLANK(D31),"--",IF(D31='Dropdown Lists'!$K$37,P31,IF(D31='Dropdown Lists'!$K$38,Q31,IF(D31='Dropdown Lists'!$K$39,R31,IF(D31='Dropdown Lists'!$K$40,S31,IF(D31='Dropdown Lists'!$K$41,T31,IF(D31='Dropdown Lists'!$K$42,U31,IF(D31='Dropdown Lists'!$K$43,V31,IF(D31='Dropdown Lists'!$K$44,W31,IF(D31='Dropdown Lists'!$K$45,X31,IF(D31='Dropdown Lists'!$K$46,Z31,IF(D31='Dropdown Lists'!$K$47,AA31,IF(D31='Dropdown Lists'!$K$48,AB31,IF(D31='Dropdown Lists'!$K$49,AC31,IF(D31='Dropdown Lists'!$K$50,AD31,IF(D31='Dropdown Lists'!$K$51,AE31,IF(D31='Dropdown Lists'!$K$52,AF31,IF(D31='Dropdown Lists'!$K$53,AG31,IF(D31='Dropdown Lists'!$K$54,AH31,IF(D31='Dropdown Lists'!$K$55,AJ31,"")))))))))))))))))))) -> -- | G31: -- | I31: =IF(ISBLANK(A31),"--",VLOOKUP(A31,Injuries_WorkMissed!$B$109:$G$863,2,FALSE)) -> -- | J31: =IF(ISBLANK(A31),"--",VLOOKUP(A31,Injuries_WorkMissed!$B$109:$G$863,3,FALSE)) -> -- | K31: =IF(ISBLANK(A31),"--",VLOOKUP(A31,Injuries_WorkMissed!$B$109:$G$863,4,FALSE)) -> -- | L31: =IF(ISBLANK(A31),"--",VLOOKUP(A31,Injuries_WorkMissed!$B$109:$G$863,5,FALSE)) -> -- | M31: =IF(ISBLANK(A31),"--",VLOOKUP(A31,Injuries_WorkMissed!$B$109:$G$863,6,FALSE)) -> -- | P31: =MIN(DataExtract!$BP$3:$BP$1597) -> 0 | Q31: =_xlfn.PERCENTILE.EXC(DataExtract!$BP$3:$BP$1597,0.1) -> 0 | R31: =_xlfn.PERCENTILE.EXC(DataExtract!$BP$3:$BP$1597,0.25) -> 0 | S31: =AVERAGE(DataExtract!$BP$3:$BP$5302) -> 23.92471698 | T31: 1.5 | U31: =MODE(DataExtract!$BP$1598:$BP$5302) -> 0 | V31: =_xlfn.PERCENTILE.EXC(DataExtract!$BP$3:$BP$5302,0.75) -> 5 | W31: =_xlfn.PERCENTILE.EXC(DataExtract!$BP$3:$BP$5302,0.9) -> 92 | X31: =MAX(DataExtract!$BP$3:$BP$5302) -> 365 | Y31: =COUNT(DataExtract!$BP$3:$BP$5302) -> 5300 | Z31: =MIN(DataExtract!$BO$3:$BO$1597) -> 1 | AA31: =_xlfn.PERCENTILE.EXC(DataExtract!$BO$3:$BO$1597,0.1) -> 3 | AB31: =_xlfn.PERCENTILE.EXC(DataExtract!$BO$3:$BO$1597,0.25) -> 8 | AC31: =AVERAGE(DataExtract!$BO$3:$BO$1597) -> 79.49905956 | AD31: =MEDIAN(DataExtract!$BO$3:$BO$1597) -> 46 | AE31: =MODE(DataExtract!$BO$3:$BO$1597) -> 180 | AF31: =_xlfn.PERCENTILE.EXC(DataExtract!$BO$3:$BO$1597,0.75) -> 132 | AG31: =_xlfn.PERCENTILE.EXC(DataExtract!$BO$3:$BO$1597,0.9) -> 202 | AH31: =MAX(DataExtract!$BO$3:$BO$1597,0.25) -> 365 | AI31: =COUNT(DataExtract!$BO$3:$BO$1597) -> 1595
C32: =IF(ISBLANK(A32),"--",IF(B32=$I$14,I32,IF(B32=$J$14,J32,IF(B32=$K$14,K32,IF(B32=$L$14,L32,IF(B32=$N$14,N32,IF(B32=$M$14,M32,IF(B32='Dropdown Lists'!$O$23,Injuries_WorkMissed!N32,"--")))))))) -> -- | E32: =IF(ISBLANK(D32),"--",IF(D32='Dropdown Lists'!$K$37,P32,IF(D32='Dropdown Lists'!$K$38,Q32,IF(D32='Dropdown Lists'!$K$39,R32,IF(D32='Dropdown Lists'!$K$40,S32,IF(D32='Dropdown Lists'!$K$41,T32,IF(D32='Dropdown Lists'!$K$42,U32,IF(D32='Dropdown Lists'!$K$43,V32,IF(D32='Dropdown Lists'!$K$44,W32,IF(D32='Dropdown Lists'!$K$45,X32,IF(D32='Dropdown Lists'!$K$46,Z32,IF(D32='Dropdown Lists'!$K$47,AA32,IF(D32='Dropdown Lists'!$K$48,AB32,IF(D32='Dropdown Lists'!$K$49,AC32,IF(D32='Dropdown Lists'!$K$50,AD32,IF(D32='Dropdown Lists'!$K$51,AE32,IF(D32='Dropdown Lists'!$K$52,AF32,IF(D32='Dropdown Lists'!$K$53,AG32,IF(D32='Dropdown Lists'!$K$54,AH32,IF(D32='Dropdown Lists'!$K$55,AJ32,"")))))))))))))))))))) -> -- | G32: -- | I32: =IF(ISBLANK(A32),"--",VLOOKUP(A32,Injuries_WorkMissed!$B$109:$G$863,2,FALSE)) -> -- | J32: =IF(ISBLANK(A32),"--",VLOOKUP(A32,Injuries_WorkMissed!$B$109:$G$863,3,FALSE)) -> -- | K32: =IF(ISBLANK(A32),"--",VLOOKUP(A32,Injuries_WorkMissed!$B$109:$G$863,4,FALSE)) -> -- | L32: =IF(ISBLANK(A32),"--",VLOOKUP(A32,Injuries_WorkMissed!$B$109:$G$863,5,FALSE)) -> -- | M32: =IF(ISBLANK(A32),"--",VLOOKUP(A32,Injuries_WorkMissed!$B$109:$G$863,6,FALSE)) -> -- | P32: =MIN(DataExtract!$BP$3:$BP$1597) -> 0 | Q32: =_xlfn.PERCENTILE.EXC(DataExtract!$BP$3:$BP$1597,0.1) -> 0 | R32: =_xlfn.PERCENTILE.EXC(DataExtract!$BP$3:$BP$1597,0.25) -> 0 | S32: =AVERAGE(DataExtract!$BP$3:$BP$5302) -> 23.92471698 | T32: 1.5 | U32: =MODE(DataExtract!$BP$1598:$BP$5302) -> 0 | V32: =_xlfn.PERCENTILE.EXC(DataExtract!$BP$3:$BP$5302,0.75) -> 5 | W32: =_xlfn.PERCENTILE.EXC(DataExtract!$BP$3:$BP$5302,0.9) -> 92 | X32: =MAX(DataExtract!$BP$3:$BP$5302) -> 365 | Y32: =COUNT(DataExtract!$BP$3:$BP$5302) -> 5300 | Z32: =MIN(DataExtract!$BO$3:$BO$1597) -> 1 | AA32: =_xlfn.PERCENTILE.EXC(DataExtract!$BO$3:$BO$1597,0.1) -> 3 | AB32: =_xlfn.PERCENTILE.EXC(DataExtract!$BO$3:$BO$1597,0.25) -> 8 | AC32: =AVERAGE(DataExtract!$BO$3:$BO$1597) -> 79.49905956 | AD32: =MEDIAN(DataExtract!$BO$3:$BO$1597) -> 46 | AE32: =MODE(DataExtract!$BO$3:$BO$1597) -> 180 | AF32: =_xlfn.PERCENTILE.EXC(DataExtract!$BO$3:$BO$1597,0.75) -> 132 | AG32: =_xlfn.PERCENTILE.EXC(DataExtract!$BO$3:$BO$1597,0.9) -> 202 | AH32: =MAX(DataExtract!$BO$3:$BO$1597,0.25) -> 365 | AI32: =COUNT(DataExtract!$BO$3:$BO$1597) -> 1595
C33: =IF(ISBLANK(A33),"--",IF(B33=$I$14,I33,IF(B33=$J$14,J33,IF(B33=$K$14,K33,IF(B33=$L$14,L33,IF(B33=$N$14,N33,IF(B33=$M$14,M33,IF(B33='Dropdown Lists'!$O$23,Injuries_WorkMissed!N33,"--")))))))) -> -- | E33: =IF(ISBLANK(D33),"--",IF(D33='Dropdown Lists'!$K$37,P33,IF(D33='Dropdown Lists'!$K$38,Q33,IF(D33='Dropdown Lists'!$K$39,R33,IF(D33='Dropdown Lists'!$K$40,S33,IF(D33='Dropdown Lists'!$K$41,T33,IF(D33='Dropdown Lists'!$K$42,U33,IF(D33='Dropdown Lists'!$K$43,V33,IF(D33='Dropdown Lists'!$K$44,W33,IF(D33='Dropdown Lists'!$K$45,X33,IF(D33='Dropdown Lists'!$K$46,Z33,IF(D33='Dropdown Lists'!$K$47,AA33,IF(D33='Dropdown Lists'!$K$48,AB33,IF(D33='Dropdown Lists'!$K$49,AC33,IF(D33='Dropdown Lists'!$K$50,AD33,IF(D33='Dropdown Lists'!$K$51,AE33,IF(D33='Dropdown Lists'!$K$52,AF33,IF(D33='Dropdown Lists'!$K$53,AG33,IF(D33='Dropdown Lists'!$K$54,AH33,IF(D33='Dropdown Lists'!$K$55,AJ33,"")))))))))))))))))))) -> -- | G33: -- | I33: =IF(ISBLANK(A33),"--",VLOOKUP(A33,Injuries_WorkMissed!$B$109:$G$863,2,FALSE)) -> -- | J33: =IF(ISBLANK(A33),"--",VLOOKUP(A33,Injuries_WorkMissed!$B$109:$G$863,3,FALSE)) -> -- | K33: =IF(ISBLANK(A33),"--",VLOOKUP(A33,Injuries_WorkMissed!$B$109:$G$863,4,FALSE)) -> -- | L33: =IF(ISBLANK(A33),"--",VLOOKUP(A33,Injuries_WorkMissed!$B$109:$G$863,5,FALSE)) -> -- | M33: =IF(ISBLANK(A33),"--",VLOOKUP(A33,Injuries_WorkMissed!$B$109:$G$863,6,FALSE)) -> -- | P33: =MIN(DataExtract!$BP$3:$BP$1597) -> 0 | Q33: =_xlfn.PERCENTILE.EXC(DataExtract!$BP$3:$BP$1597,0.1) -> 0 | R33: =_xlfn.PERCENTILE.EXC(DataExtract!$BP$3:$BP$1597,0.25) -> 0 | S33: =AVERAGE(DataExtract!$BP$3:$BP$5302) -> 23.92471698 | T33: 1.5 | U33: =MODE(DataExtract!$BP$1598:$BP$5302) -> 0 | V33: =_xlfn.PERCENTILE.EXC(DataExtract!$BP$3:$BP$5302,0.75) -> 5 | W33: =_xlfn.PERCENTILE.EXC(DataExtract!$BP$3:$BP$5302,0.9) -> 92 | X33: =MAX(DataExtract!$BP$3:$BP$5302) -> 365 | Y33: =COUNT(DataExtract!$BP$3:$BP$5302) -> 5300 | Z33: =MIN(DataExtract!$BO$3:$BO$1597) -> 1 | AA33: =_xlfn.PERCENTILE.EXC(DataExtract!$BO$3:$BO$1597,0.1) -> 3 | AB33: =_xlfn.PERCENTILE.EXC(DataExtract!$BO$3:$BO$1597,0.25) -> 8 | AC33: =AVERAGE(DataExtract!$BO$3:$BO$1597) -> 79.49905956 | AD33: =MEDIAN(DataExtract!$BO$3:$BO$1597) -> 46 | AE33: =MODE(DataExtract!$BO$3:$BO$1597) -> 180 | AF33: =_xlfn.PERCENTILE.EXC(DataExtract!$BO$3:$BO$1597,0.75) -> 132 | AG33: =_xlfn.PERCENTILE.EXC(DataExtract!$BO$3:$BO$1597,0.9) -> 202 | AH33: =MAX(DataExtract!$BO$3:$BO$1597,0.25) -> 365 | AI33: =COUNT(DataExtract!$BO$3:$BO$1597) -> 1595
C34: =IF(ISBLANK(A34),"--",IF(B34=$I$14,I34,IF(B34=$J$14,J34,IF(B34=$K$14,K34,IF(B34=$L$14,L34,IF(B34=$N$14,N34,IF(B34=$M$14,M34,IF(B34='Dropdown Lists'!$O$23,Injuries_WorkMissed!N34,"--")))))))) -> -- | E34: =IF(ISBLANK(D34),"--",IF(D34='Dropdown Lists'!$K$37,P34,IF(D34='Dropdown Lists'!$K$38,Q34,IF(D34='Dropdown Lists'!$K$39,R34,IF(D34='Dropdown Lists'!$K$40,S34,IF(D34='Dropdown Lists'!$K$41,T34,IF(D34='Dropdown Lists'!$K$42,U34,IF(D34='Dropdown Lists'!$K$43,V34,IF(D34='Dropdown Lists'!$K$44,W34,IF(D34='Dropdown Lists'!$K$45,X34,IF(D34='Dropdown Lists'!$K$46,Z34,IF(D34='Dropdown Lists'!$K$47,AA34,IF(D34='Dropdown Lists'!$K$48,AB34,IF(D34='Dropdown Lists'!$K$49,AC34,IF(D34='Dropdown Lists'!$K$50,AD34,IF(D34='Dropdown Lists'!$K$51,AE34,IF(D34='Dropdown Lists'!$K$52,AF34,IF(D34='Dropdown Lists'!$K$53,AG34,IF(D34='Dropdown Lists'!$K$54,AH34,IF(D34='Dropdown Lists'!$K$55,AJ34,"")))))))))))))))))))) -> -- | G34: -- | I34: =IF(ISBLANK(A34),"--",VLOOKUP(A34,Injuries_WorkMissed!$B$109:$G$863,2,FALSE)) -> -- | J34: =IF(ISBLANK(A34),"--",VLOOKUP(A34,Injuries_WorkMissed!$B$109:$G$863,3,FALSE)) -> -- | K34: =IF(ISBLANK(A34),"--",VLOOKUP(A34,Injuries_WorkMissed!$B$109:$G$863,4,FALSE)) -> -- | L34: =IF(ISBLANK(A34),"--",VLOOKUP(A34,Injuries_WorkMissed!$B$109:$G$863,5,FALSE)) -> -- | M34: =IF(ISBLANK(A34),"--",VLOOKUP(A34,Injuries_WorkMissed!$B$109:$G$863,6,FALSE)) -> -- | P34: =MIN(DataExtract!$BP$3:$BP$1597) -> 0 | Q34: =_xlfn.PERCENTILE.EXC(DataExtract!$BP$3:$BP$1597,0.1) -> 0 | R34: =_xlfn.PERCENTILE.EXC(DataExtract!$BP$3:$BP$1597,0.25) -> 0 | S34: =AVERAGE(DataExtract!$BP$3:$BP$5302) -> 23.92471698 | T34: 1.5 | U34: =MODE(DataExtract!$BP$1598:$BP$5302) -> 0 | V34: =_xlfn.PERCENTILE.EXC(DataExtract!$BP$3:$BP$5302,0.75) -> 5 | W34: =_xlfn.PERCENTILE.EXC(DataExtract!$BP$3:$BP$5302,0.9) -> 92 | X34: =MAX(DataExtract!$BP$3:$BP$5302) -> 365 | Y34: =COUNT(DataExtract!$BP$3:$BP$5302) -> 5300 | Z34: =MIN(DataExtract!$BO$3:$BO$1597) -> 1 | AA34: =_xlfn.PERCENTILE.EXC(DataExtract!$BO$3:$BO$1597,0.1) -> 3 | AB34: =_xlfn.PERCENTILE.EXC(DataExtract!$BO$3:$BO$1597,0.25) -> 8 | AC34: =AVERAGE(DataExtract!$BO$3:$BO$1597) -> 79.49905956 | AD34: =MEDIAN(DataExtract!$BO$3:$BO$1597) -> 46 | AE34: =MODE(DataExtract!$BO$3:$BO$1597) -> 180 | AF34: =_xlfn.PERCENTILE.EXC(DataExtract!$BO$3:$BO$1597,0.75) -> 132 | AG34: =_xlfn.PERCENTILE.EXC(DataExtract!$BO$3:$BO$1597,0.9) -> 202 | AH34: =MAX(DataExtract!$BO$3:$BO$1597,0.25) -> 365 | AI34: =COUNT(DataExtract!$BO$3:$BO$1597) -> 1595
C35: =IF(ISBLANK(A35),"--",IF(B35=$I$14,I35,IF(B35=$J$14,J35,IF(B35=$K$14,K35,IF(B35=$L$14,L35,IF(B35=$N$14,N35,IF(B35=$M$14,M35,IF(B35='Dropdown Lists'!$O$23,Injuries_WorkMissed!N35,"--")))))))) -> -- | E35: =IF(ISBLANK(D35),"--",IF(D35='Dropdown Lists'!$K$37,P35,IF(D35='Dropdown Lists'!$K$38,Q35,IF(D35='Dropdown Lists'!$K$39,R35,IF(D35='Dropdown Lists'!$K$40,S35,IF(D35='Dropdown Lists'!$K$41,T35,IF(D35='Dropdown Lists'!$K$42,U35,IF(D35='Dropdown Lists'!$K$43,V35,IF(D35='Dropdown Lists'!$K$44,W35,IF(D35='Dropdown Lists'!$K$45,X35,IF(D35='Dropdown Lists'!$K$46,Z35,IF(D35='Dropdown Lists'!$K$47,AA35,IF(D35='Dropdown Lists'!$K$48,AB35,IF(D35='Dropdown Lists'!$K$49,AC35,IF(D35='Dropdown Lists'!$K$50,AD35,IF(D35='Dropdown Lists'!$K$51,AE35,IF(D35='Dropdown Lists'!$K$52,AF35,IF(D35='Dropdown Lists'!$K$53,AG35,IF(D35='Dropdown Lists'!$K$54,AH35,IF(D35='Dropdown Lists'!$K$55,AJ35,"")))))))))))))))))))) -> -- | G35: -- | I35: =IF(ISBLANK(A35),"--",VLOOKUP(A35,Injuries_WorkMissed!$B$109:$G$863,2,FALSE)) -> -- | J35: =IF(ISBLANK(A35),"--",VLOOKUP(A35,Injuries_WorkMissed!$B$109:$G$863,3,FALSE)) -> -- | K35: =IF(ISBLANK(A35),"--",VLOOKUP(A35,Injuries_WorkMissed!$B$109:$G$863,4,FALSE)) -> -- | L35: =IF(ISBLANK(A35),"--",VLOOKUP(A35,Injuries_WorkMissed!$B$109:$G$863,5,FALSE)) -> -- | M35: =IF(ISBLANK(A35),"--",VLOOKUP(A35,Injuries_WorkMissed!$B$109:$G$863,6,FALSE)) -> -- | P35: =MIN(DataExtract!$BP$3:$BP$1597) -> 0 | Q35: =_xlfn.PERCENTILE.EXC(DataExtract!$BP$3:$BP$1597,0.1) -> 0 | R35: =_xlfn.PERCENTILE.EXC(DataExtract!$BP$3:$BP$1597,0.25) -> 0 | S35: =AVERAGE(DataExtract!$BP$3:$BP$5302) -> 23.92471698 | T35: 1.5 | U35: =MODE(DataExtract!$BP$1598:$BP$5302) -> 0 | V35: =_xlfn.PERCENTILE.EXC(DataExtract!$BP$3:$BP$5302,0.75) -> 5 | W35: =_xlfn.PERCENTILE.EXC(DataExtract!$BP$3:$BP$5302,0.9) -> 92 | X35: =MAX(DataExtract!$BP$3:$BP$5302) -> 365 | Y35: =COUNT(DataExtract!$BP$3:$BP$5302) -> 5300 | Z35: =MIN(DataExtract!$BO$3:$BO$1597) -> 1 | AA35: =_xlfn.PERCENTILE.EXC(DataExtract!$BO$3:$BO$1597,0.1) -> 3 | AB35: =_xlfn.PERCENTILE.EXC(DataExtract!$BO$3:$BO$1597,0.25) -> 8 | AC35: =AVERAGE(DataExtract!$BO$3:$BO$1597) -> 79.49905956 | AD35: =MEDIAN(DataExtract!$BO$3:$BO$1597) -> 46 | AE35: =MODE(DataExtract!$BO$3:$BO$1597) -> 180 | AF35: =_xlfn.PERCENTILE.EXC(DataExtract!$BO$3:$BO$1597,0.75) -> 132 | AG35: =_xlfn.PERCENTILE.EXC(DataExtract!$BO$3:$BO$1597,0.9) -> 202 | AH35: =MAX(DataExtract!$BO$3:$BO$1597,0.25) -> 365 | AI35: =COUNT(DataExtract!$BO$3:$BO$1597) -> 1595
C36: =IF(ISBLANK(A36),"--",IF(B36=$I$14,I36,IF(B36=$J$14,J36,IF(B36=$K$14,K36,IF(B36=$L$14,L36,IF(B36=$N$14,N36,IF(B36=$M$14,M36,IF(B36='Dropdown Lists'!$O$23,Injuries_WorkMissed!N36,"--")))))))) -> -- | E36: =IF(ISBLANK(D36),"--",IF(D36='Dropdown Lists'!$K$37,P36,IF(D36='Dropdown Lists'!$K$38,Q36,IF(D36='Dropdown Lists'!$K$39,R36,IF(D36='Dropdown Lists'!$K$40,S36,IF(D36='Dropdown Lists'!$K$41,T36,IF(D36='Dropdown Lists'!$K$42,U36,IF(D36='Dropdown Lists'!$K$43,V36,IF(D36='Dropdown Lists'!$K$44,W36,IF(D36='Dropdown Lists'!$K$45,X36,IF(D36='Dropdown Lists'!$K$46,Z36,IF(D36='Dropdown Lists'!$K$47,AA36,IF(D36='Dropdown Lists'!$K$48,AB36,IF(D36='Dropdown Lists'!$K$49,AC36,IF(D36='Dropdown Lists'!$K$50,AD36,IF(D36='Dropdown Lists'!$K$51,AE36,IF(D36='Dropdown Lists'!$K$52,AF36,IF(D36='Dropdown Lists'!$K$53,AG36,IF(D36='Dropdown Lists'!$K$54,AH36,IF(D36='Dropdown Lists'!$K$55,AJ36,"")))))))))))))))))))) -> -- | G36: -- | I36: =IF(ISBLANK(A36),"--",VLOOKUP(A36,Injuries_WorkMissed!$B$109:$G$863,2,FALSE)) -> -- | J36: =IF(ISBLANK(A36),"--",VLOOKUP(A36,Injuries_WorkMissed!$B$109:$G$863,3,FALSE)) -> -- | K36: =IF(ISBLANK(A36),"--",VLOOKUP(A36,Injuries_WorkMissed!$B$109:$G$863,4,FALSE)) -> -- | L36: =IF(ISBLANK(A36),"--",VLOOKUP(A36,Injuries_WorkMissed!$B$109:$G$863,5,FALSE)) -> -- | M36: =IF(ISBLANK(A36),"--",VLOOKUP(A36,Injuries_WorkMissed!$B$109:$G$863,6,FALSE)) -> -- | P36: =MIN(DataExtract!$BP$3:$BP$1597) -> 0 | Q36: =_xlfn.PERCENTILE.EXC(DataExtract!$BP$3:$BP$1597,0.1) -> 0 | R36: =_xlfn.PERCENTILE.EXC(DataExtract!$BP$3:$BP$1597,0.25) -> 0 | S36: =AVERAGE(DataExtract!$BP$3:$BP$5302) -> 23.92471698 | T36: 1.5 | U36: =MODE(DataExtract!$BP$1598:$BP$5302) -> 0 | V36: =_xlfn.PERCENTILE.EXC(DataExtract!$BP$3:$BP$5302,0.75) -> 5 | W36: =_xlfn.PERCENTILE.EXC(DataExtract!$BP$3:$BP$5302,0.9) -> 92 | X36: =MAX(DataExtract!$BP$3:$BP$5302) -> 365 | Y36: =COUNT(DataExtract!$BP$3:$BP$5302) -> 5300 | Z36: =MIN(DataExtract!$BO$3:$BO$1597) -> 1 | AA36: =_xlfn.PERCENTILE.EXC(DataExtract!$BO$3:$BO$1597,0.1) -> 3 | AB36: =_xlfn.PERCENTILE.EXC(DataExtract!$BO$3:$BO$1597,0.25) -> 8 | AC36: =AVERAGE(DataExtract!$BO$3:$BO$1597) -> 79.49905956 | AD36: =MEDIAN(DataExtract!$BO$3:$BO$1597) -> 46 | AE36: =MODE(DataExtract!$BO$3:$BO$1597) -> 180 | AF36: =_xlfn.PERCENTILE.EXC(DataExtract!$BO$3:$BO$1597,0.75) -> 132 | AG36: =_xlfn.PERCENTILE.EXC(DataExtract!$BO$3:$BO$1597,0.9) -> 202 | AH36: =MAX(DataExtract!$BO$3:$BO$1597,0.25) -> 365 | AI36: =COUNT(DataExtract!$BO$3:$BO$1597) -> 1595
C37: =IF(ISBLANK(A37),"--",IF(B37=$I$14,I37,IF(B37=$J$14,J37,IF(B37=$K$14,K37,IF(B37=$L$14,L37,IF(B37=$N$14,N37,IF(B37=$M$14,M37,IF(B37='Dropdown Lists'!$O$23,Injuries_WorkMissed!N37,"--")))))))) -> -- | E37: =IF(ISBLANK(D37),"--",IF(D37='Dropdown Lists'!$K$37,P37,IF(D37='Dropdown Lists'!$K$38,Q37,IF(D37='Dropdown Lists'!$K$39,R37,IF(D37='Dropdown Lists'!$K$40,S37,IF(D37='Dropdown Lists'!$K$41,T37,IF(D37='Dropdown Lists'!$K$42,U37,IF(D37='Dropdown Lists'!$K$43,V37,IF(D37='Dropdown Lists'!$K$44,W37,IF(D37='Dropdown Lists'!$K$45,X37,IF(D37='Dropdown Lists'!$K$46,Z37,IF(D37='Dropdown Lists'!$K$47,AA37,IF(D37='Dropdown Lists'!$K$48,AB37,IF(D37='Dropdown Lists'!$K$49,AC37,IF(D37='Dropdown Lists'!$K$50,AD37,IF(D37='Dropdown Lists'!$K$51,AE37,IF(D37='Dropdown Lists'!$K$52,AF37,IF(D37='Dropdown Lists'!$K$53,AG37,IF(D37='Dropdown Lists'!$K$54,AH37,IF(D37='Dropdown Lists'!$K$55,AJ37,"")))))))))))))))))))) -> -- | G37: -- | I37: =IF(ISBLANK(A37),"--",VLOOKUP(A37,Injuries_WorkMissed!$B$109:$G$863,2,FALSE)) -> -- | J37: =IF(ISBLANK(A37),"--",VLOOKUP(A37,Injuries_WorkMissed!$B$109:$G$863,3,FALSE)) -> -- | K37: =IF(ISBLANK(A37),"--",VLOOKUP(A37,Injuries_WorkMissed!$B$109:$G$863,4,FALSE)) -> -- | L37: =IF(ISBLANK(A37),"--",VLOOKUP(A37,Injuries_WorkMissed!$B$109:$G$863,5,FALSE)) -> -- | M37: =IF(ISBLANK(A37),"--",VLOOKUP(A37,Injuries_WorkMissed!$B$109:$G$863,6,FALSE)) -> -- | P37: =MIN(DataExtract!$BP$3:$BP$1597) -> 0 | Q37: =_xlfn.PERCENTILE.EXC(DataExtract!$BP$3:$BP$1597,0.1) -> 0 | R37: =_xlfn.PERCENTILE.EXC(DataExtract!$BP$3:$BP$1597,0.25) -> 0 | S37: =AVERAGE(DataExtract!$BP$3:$BP$5302) -> 23.92471698 | T37: 1.5 | U37: =MODE(DataExtract!$BP$1598:$BP$5302) -> 0 | V37: =_xlfn.PERCENTILE.EXC(DataExtract!$BP$3:$BP$5302,0.75) -> 5 | W37: =_xlfn.PERCENTILE.EXC(DataExtract!$BP$3:$BP$5302,0.9) -> 92 | X37: =MAX(DataExtract!$BP$3:$BP$5302) -> 365 | Y37: =COUNT(DataExtract!$BP$3:$BP$5302) -> 5300 | Z37: =MIN(DataExtract!$BO$3:$BO$1597) -> 1 | AA37: =_xlfn.PERCENTILE.EXC(DataExtract!$BO$3:$BO$1597,0.1) -> 3 | AB37: =_xlfn.PERCENTILE.EXC(DataExtract!$BO$3:$BO$1597,0.25) -> 8 | AC37: =AVERAGE(DataExtract!$BO$3:$BO$1597) -> 79.49905956 | AD37: =MEDIAN(DataExtract!$BO$3:$BO$1597) -> 46 | AE37: =MODE(DataExtract!$BO$3:$BO$1597) -> 180 | AF37: =_xlfn.PERCENTILE.EXC(DataExtract!$BO$3:$BO$1597,0.75) -> 132 | AG37: =_xlfn.PERCENTILE.EXC(DataExtract!$BO$3:$BO$1597,0.9) -> 202 | AH37: =MAX(DataExtract!$BO$3:$BO$1597,0.25) -> 365 | AI37: =COUNT(DataExtract!$BO$3:$BO$1597) -> 1595
C38: =IF(ISBLANK(A38),"--",IF(B38=$I$14,I38,IF(B38=$J$14,J38,IF(B38=$K$14,K38,IF(B38=$L$14,L38,IF(B38=$N$14,N38,IF(B38=$M$14,M38,IF(B38='Dropdown Lists'!$O$23,Injuries_WorkMissed!N38,"--")))))))) -> -- | E38: =IF(ISBLANK(D38),"--",IF(D38='Dropdown Lists'!$K$37,P38,IF(D38='Dropdown Lists'!$K$38,Q38,IF(D38='Dropdown Lists'!$K$39,R38,IF(D38='Dropdown Lists'!$K$40,S38,IF(D38='Dropdown Lists'!$K$41,T38,IF(D38='Dropdown Lists'!$K$42,U38,IF(D38='Dropdown Lists'!$K$43,V38,IF(D38='Dropdown Lists'!$K$44,W38,IF(D38='Dropdown Lists'!$K$45,X38,IF(D38='Dropdown Lists'!$K$46,Z38,IF(D38='Dropdown Lists'!$K$47,AA38,IF(D38='Dropdown Lists'!$K$48,AB38,IF(D38='Dropdown Lists'!$K$49,AC38,IF(D38='Dropdown Lists'!$K$50,AD38,IF(D38='Dropdown Lists'!$K$51,AE38,IF(D38='Dropdown Lists'!$K$52,AF38,IF(D38='Dropdown Lists'!$K$53,AG38,IF(D38='Dropdown Lists'!$K$54,AH38,IF(D38='Dropdown Lists'!$K$55,AJ38,"")))))))))))))))))))) -> -- | G38: -- | I38: =IF(ISBLANK(A38),"--",VLOOKUP(A38,Injuries_WorkMissed!$B$109:$G$863,2,FALSE)) -> -- | J38: =IF(ISBLANK(A38),"--",VLOOKUP(A38,Injuries_WorkMissed!$B$109:$G$863,3,FALSE)) -> -- | K38: =IF(ISBLANK(A38),"--",VLOOKUP(A38,Injuries_WorkMissed!$B$109:$G$863,4,FALSE)) -> -- | L38: =IF(ISBLANK(A38),"--",VLOOKUP(A38,Injuries_WorkMissed!$B$109:$G$863,5,FALSE)) -> -- | M38: =IF(ISBLANK(A38),"--",VLOOKUP(A38,Injuries_WorkMissed!$B$109:$G$863,6,FALSE)) -> -- | P38: =MIN(DataExtract!$BP$3:$BP$1597) -> 0 | Q38: =_xlfn.PERCENTILE.EXC(DataExtract!$BP$3:$BP$1597,0.1) -> 0 | R38: =_xlfn.PERCENTILE.EXC(DataExtract!$BP$3:$BP$1597,0.25) -> 0 | S38: =AVERAGE(DataExtract!$BP$3:$BP$5302) -> 23.92471698 | T38: 1.5 | U38: =MODE(DataExtract!$BP$1598:$BP$5302) -> 0 | V38: =_xlfn.PERCENTILE.EXC(DataExtract!$BP$3:$BP$5302,0.75) -> 5 | W38: =_xlfn.PERCENTILE.EXC(DataExtract!$BP$3:$BP$5302,0.9) -> 92 | X38: =MAX(DataExtract!$BP$3:$BP$5302) -> 365 | Y38: =COUNT(DataExtract!$BP$3:$BP$5302) -> 5300 | Z38: =MIN(DataExtract!$BO$3:$BO$1597) -> 1 | AA38: =_xlfn.PERCENTILE.EXC(DataExtract!$BO$3:$BO$1597,0.1) -> 3 | AB38: =_xlfn.PERCENTILE.EXC(DataExtract!$BO$3:$BO$1597,0.25) -> 8 | AC38: =AVERAGE(DataExtract!$BO$3:$BO$1597) -> 79.49905956 | AD38: =MEDIAN(DataExtract!$BO$3:$BO$1597) -> 46 | AE38: =MODE(DataExtract!$BO$3:$BO$1597) -> 180 | AF38: =_xlfn.PERCENTILE.EXC(DataExtract!$BO$3:$BO$1597,0.75) -> 132 | AG38: =_xlfn.PERCENTILE.EXC(DataExtract!$BO$3:$BO$1597,0.9) -> 202 | AH38: =MAX(DataExtract!$BO$3:$BO$1597,0.25) -> 365 | AI38: =COUNT(DataExtract!$BO$3:$BO$1597) -> 1595
C39: =IF(ISBLANK(A39),"--",IF(B39=$I$14,I39,IF(B39=$J$14,J39,IF(B39=$K$14,K39,IF(B39=$L$14,L39,IF(B39=$N$14,N39,IF(B39=$M$14,M39,IF(B39='Dropdown Lists'!$O$23,Injuries_WorkMissed!N39,"--")))))))) -> -- | E39: =IF(ISBLANK(D39),"--",IF(D39='Dropdown Lists'!$K$37,P39,IF(D39='Dropdown Lists'!$K$38,Q39,IF(D39='Dropdown Lists'!$K$39,R39,IF(D39='Dropdown Lists'!$K$40,S39,IF(D39='Dropdown Lists'!$K$41,T39,IF(D39='Dropdown Lists'!$K$42,U39,IF(D39='Dropdown Lists'!$K$43,V39,IF(D39='Dropdown Lists'!$K$44,W39,IF(D39='Dropdown Lists'!$K$45,X39,IF(D39='Dropdown Lists'!$K$46,Z39,IF(D39='Dropdown Lists'!$K$47,AA39,IF(D39='Dropdown Lists'!$K$48,AB39,IF(D39='Dropdown Lists'!$K$49,AC39,IF(D39='Dropdown Lists'!$K$50,AD39,IF(D39='Dropdown Lists'!$K$51,AE39,IF(D39='Dropdown Lists'!$K$52,AF39,IF(D39='Dropdown Lists'!$K$53,AG39,IF(D39='Dropdown Lists'!$K$54,AH39,IF(D39='Dropdown Lists'!$K$55,AJ39,"")))))))))))))))))))) -> -- | G39: -- | I39: =IF(ISBLANK(A39),"--",VLOOKUP(A39,Injuries_WorkMissed!$B$109:$G$863,2,FALSE)) -> -- | J39: =IF(ISBLANK(A39),"--",VLOOKUP(A39,Injuries_WorkMissed!$B$109:$G$863,3,FALSE)) -> -- | K39: =IF(ISBLANK(A39),"--",VLOOKUP(A39,Injuries_WorkMissed!$B$109:$G$863,4,FALSE)) -> -- | L39: =IF(ISBLANK(A39),"--",VLOOKUP(A39,Injuries_WorkMissed!$B$109:$G$863,5,FALSE)) -> -- | M39: =IF(ISBLANK(A39),"--",VLOOKUP(A39,Injuries_WorkMissed!$B$109:$G$863,6,FALSE)) -> -- | P39: =MIN(DataExtract!$BP$3:$BP$1597) -> 0 | Q39: =_xlfn.PERCENTILE.EXC(DataExtract!$BP$3:$BP$1597,0.1) -> 0 | R39: =_xlfn.PERCENTILE.EXC(DataExtract!$BP$3:$BP$1597,0.25) -> 0 | S39: =AVERAGE(DataExtract!$BP$3:$BP$5302) -> 23.92471698 | T39: 1.5 | U39: =MODE(DataExtract!$BP$1598:$BP$5302) -> 0 | V39: =_xlfn.PERCENTILE.EXC(DataExtract!$BP$3:$BP$5302,0.75) -> 5 | W39: =_xlfn.PERCENTILE.EXC(DataExtract!$BP$3:$BP$5302,0.9) -> 92 | X39: =MAX(DataExtract!$BP$3:$BP$5302) -> 365 | Y39: =COUNT(DataExtract!$BP$3:$BP$5302) -> 5300 | Z39: =MIN(DataExtract!$BO$3:$BO$1597) -> 1 | AA39: =_xlfn.PERCENTILE.EXC(DataExtract!$BO$3:$BO$1597,0.1) -> 3 | AB39: =_xlfn.PERCENTILE.EXC(DataExtract!$BO$3:$BO$1597,0.25) -> 8 | AC39: =AVERAGE(DataExtract!$BO$3:$BO$1597) -> 79.49905956 | AD39: =MEDIAN(DataExtract!$BO$3:$BO$1597) -> 46 | AE39: =MODE(DataExtract!$BO$3:$BO$1597) -> 180 | AF39: =_xlfn.PERCENTILE.EXC(DataExtract!$BO$3:$BO$1597,0.75) -> 132 | AG39: =_xlfn.PERCENTILE.EXC(DataExtract!$BO$3:$BO$1597,0.9) -> 202 | AH39: =MAX(DataExtract!$BO$3:$BO$1597,0.25) -> 365 | AI39: =COUNT(DataExtract!$BO$3:$BO$1597) -> 1595
C40: =IF(ISBLANK(A40),"--",IF(B40=$I$14,I40,IF(B40=$J$14,J40,IF(B40=$K$14,K40,IF(B40=$L$14,L40,IF(B40=$N$14,N40,IF(B40=$M$14,M40,IF(B40='Dropdown Lists'!$O$23,Injuries_WorkMissed!N40,"--")))))))) -> -- | E40: =IF(ISBLANK(D40),"--",IF(D40='Dropdown Lists'!$K$37,P40,IF(D40='Dropdown Lists'!$K$38,Q40,IF(D40='Dropdown Lists'!$K$39,R40,IF(D40='Dropdown Lists'!$K$40,S40,IF(D40='Dropdown Lists'!$K$41,T40,IF(D40='Dropdown Lists'!$K$42,U40,IF(D40='Dropdown Lists'!$K$43,V40,IF(D40='Dropdown Lists'!$K$44,W40,IF(D40='Dropdown Lists'!$K$45,X40,IF(D40='Dropdown Lists'!$K$46,Z40,IF(D40='Dropdown Lists'!$K$47,AA40,IF(D40='Dropdown Lists'!$K$48,AB40,IF(D40='Dropdown Lists'!$K$49,AC40,IF(D40='Dropdown Lists'!$K$50,AD40,IF(D40='Dropdown Lists'!$K$51,AE40,IF(D40='Dropdown Lists'!$K$52,AF40,IF(D40='Dropdown Lists'!$K$53,AG40,IF(D40='Dropdown Lists'!$K$54,AH40,IF(D40='Dropdown Lists'!$K$55,AJ40,"")))))))))))))))))))) -> -- | G40: -- | I40: =IF(ISBLANK(A40),"--",VLOOKUP(A40,Injuries_WorkMissed!$B$109:$G$863,2,FALSE)) -> -- | J40: =IF(ISBLANK(A40),"--",VLOOKUP(A40,Injuries_WorkMissed!$B$109:$G$863,3,FALSE)) -> -- | K40: =IF(ISBLANK(A40),"--",VLOOKUP(A40,Injuries_WorkMissed!$B$109:$G$863,4,FALSE)) -> -- | L40: =IF(ISBLANK(A40),"--",VLOOKUP(A40,Injuries_WorkMissed!$B$109:$G$863,5,FALSE)) -> -- | M40: =IF(ISBLANK(A40),"--",VLOOKUP(A40,Injuries_WorkMissed!$B$109:$G$863,6,FALSE)) -> -- | P40: =MIN(DataExtract!$BP$3:$BP$1597) -> 0 | Q40: =_xlfn.PERCENTILE.EXC(DataExtract!$BP$3:$BP$1597,0.1) -> 0 | R40: =_xlfn.PERCENTILE.EXC(DataExtract!$BP$3:$BP$1597,0.25) -> 0 | S40: =AVERAGE(DataExtract!$BP$3:$BP$5302) -> 23.92471698 | T40: 1.5 | U40: =MODE(DataExtract!$BP$1598:$BP$5302) -> 0 | V40: =_xlfn.PERCENTILE.EXC(DataExtract!$BP$3:$BP$5302,0.75) -> 5 | W40: =_xlfn.PERCENTILE.EXC(DataExtract!$BP$3:$BP$5302,0.9) -> 92 | X40: =MAX(DataExtract!$BP$3:$BP$5302) -> 365 | Y40: =COUNT(DataExtract!$BP$3:$BP$5302) -> 5300 | Z40: =MIN(DataExtract!$BO$3:$BO$1597) -> 1 | AA40: =_xlfn.PERCENTILE.EXC(DataExtract!$BO$3:$BO$1597,0.1) -> 3 | AB40: =_xlfn.PERCENTILE.EXC(DataExtract!$BO$3:$BO$1597,0.25) -> 8 | AC40: =AVERAGE(DataExtract!$BO$3:$BO$1597) -> 79.49905956 | AD40: =MEDIAN(DataExtract!$BO$3:$BO$1597) -> 46 | AE40: =MODE(DataExtract!$BO$3:$BO$1597) -> 180 | AF40: =_xlfn.PERCENTILE.EXC(DataExtract!$BO$3:$BO$1597,0.75) -> 132 | AG40: =_xlfn.PERCENTILE.EXC(DataExtract!$BO$3:$BO$1597,0.9) -> 202 | AH40: =MAX(DataExtract!$BO$3:$BO$1597,0.25) -> 365 | AI40: =COUNT(DataExtract!$BO$3:$BO$1597) -> 1595
C41: =IF(ISBLANK(A41),"--",IF(B41=$I$14,I41,IF(B41=$J$14,J41,IF(B41=$K$14,K41,IF(B41=$L$14,L41,IF(B41=$N$14,N41,IF(B41=$M$14,M41,IF(B41='Dropdown Lists'!$O$23,Injuries_WorkMissed!N41,"--")))))))) -> -- | E41: =IF(ISBLANK(D41),"--",IF(D41='Dropdown Lists'!$K$37,P41,IF(D41='Dropdown Lists'!$K$38,Q41,IF(D41='Dropdown Lists'!$K$39,R41,IF(D41='Dropdown Lists'!$K$40,S41,IF(D41='Dropdown Lists'!$K$41,T41,IF(D41='Dropdown Lists'!$K$42,U41,IF(D41='Dropdown Lists'!$K$43,V41,IF(D41='Dropdown Lists'!$K$44,W41,IF(D41='Dropdown Lists'!$K$45,X41,IF(D41='Dropdown Lists'!$K$46,Z41,IF(D41='Dropdown Lists'!$K$47,AA41,IF(D41='Dropdown Lists'!$K$48,AB41,IF(D41='Dropdown Lists'!$K$49,AC41,IF(D41='Dropdown Lists'!$K$50,AD41,IF(D41='Dropdown Lists'!$K$51,AE41,IF(D41='Dropdown Lists'!$K$52,AF41,IF(D41='Dropdown Lists'!$K$53,AG41,IF(D41='Dropdown Lists'!$K$54,AH41,IF(D41='Dropdown Lists'!$K$55,AJ41,"")))))))))))))))))))) -> -- | G41: -- | I41: =IF(ISBLANK(A41),"--",VLOOKUP(A41,Injuries_WorkMissed!$B$109:$G$863,2,FALSE)) -> -- | J41: =IF(ISBLANK(A41),"--",VLOOKUP(A41,Injuries_WorkMissed!$B$109:$G$863,3,FALSE)) -> -- | K41: =IF(ISBLANK(A41),"--",VLOOKUP(A41,Injuries_WorkMissed!$B$109:$G$863,4,FALSE)) -> -- | L41: =IF(ISBLANK(A41),"--",VLOOKUP(A41,Injuries_WorkMissed!$B$109:$G$863,5,FALSE)) -> -- | M41: =IF(ISBLANK(A41),"--",VLOOKUP(A41,Injuries_WorkMissed!$B$109:$G$863,6,FALSE)) -> -- | P41: =MIN(DataExtract!$BP$3:$BP$1597) -> 0 | Q41: =_xlfn.PERCENTILE.EXC(DataExtract!$BP$3:$BP$1597,0.1) -> 0 | R41: =_xlfn.PERCENTILE.EXC(DataExtract!$BP$3:$BP$1597,0.25) -> 0 | S41: =AVERAGE(DataExtract!$BP$3:$BP$5302) -> 23.92471698 | T41: 1.5 | U41: =MODE(DataExtract!$BP$1598:$BP$5302) -> 0 | V41: =_xlfn.PERCENTILE.EXC(DataExtract!$BP$3:$BP$5302,0.75) -> 5 | W41: =_xlfn.PERCENTILE.EXC(DataExtract!$BP$3:$BP$5302,0.9) -> 92 | X41: =MAX(DataExtract!$BP$3:$BP$5302) -> 365 | Y41: =COUNT(DataExtract!$BP$3:$BP$5302) -> 5300 | Z41: =MIN(DataExtract!$BO$3:$BO$1597) -> 1 | AA41: =_xlfn.PERCENTILE.EXC(DataExtract!$BO$3:$BO$1597,0.1) -> 3 | AB41: =_xlfn.PERCENTILE.EXC(DataExtract!$BO$3:$BO$1597,0.25) -> 8 | AC41: =AVERAGE(DataExtract!$BO$3:$BO$1597) -> 79.49905956 | AD41: =MEDIAN(DataExtract!$BO$3:$BO$1597) -> 46 | AE41: =MODE(DataExtract!$BO$3:$BO$1597) -> 180 | AF41: =_xlfn.PERCENTILE.EXC(DataExtract!$BO$3:$BO$1597,0.75) -> 132 | AG41: =_xlfn.PERCENTILE.EXC(DataExtract!$BO$3:$BO$1597,0.9) -> 202 | AH41: =MAX(DataExtract!$BO$3:$BO$1597,0.25) -> 365 | AI41: =COUNT(DataExtract!$BO$3:$BO$1597) -> 1595
C42: =IF(ISBLANK(A42),"--",IF(B42=$I$14,I42,IF(B42=$J$14,J42,IF(B42=$K$14,K42,IF(B42=$L$14,L42,IF(B42=$N$14,N42,IF(B42=$M$14,M42,IF(B42='Dropdown Lists'!$O$23,Injuries_WorkMissed!N42,"--")))))))) -> -- | E42: =IF(ISBLANK(D42),"--",IF(D42='Dropdown Lists'!$K$37,P42,IF(D42='Dropdown Lists'!$K$38,Q42,IF(D42='Dropdown Lists'!$K$39,R42,IF(D42='Dropdown Lists'!$K$40,S42,IF(D42='Dropdown Lists'!$K$41,T42,IF(D42='Dropdown Lists'!$K$42,U42,IF(D42='Dropdown Lists'!$K$43,V42,IF(D42='Dropdown Lists'!$K$44,W42,IF(D42='Dropdown Lists'!$K$45,X42,IF(D42='Dropdown Lists'!$K$46,Z42,IF(D42='Dropdown Lists'!$K$47,AA42,IF(D42='Dropdown Lists'!$K$48,AB42,IF(D42='Dropdown Lists'!$K$49,AC42,IF(D42='Dropdown Lists'!$K$50,AD42,IF(D42='Dropdown Lists'!$K$51,AE42,IF(D42='Dropdown Lists'!$K$52,AF42,IF(D42='Dropdown Lists'!$K$53,AG42,IF(D42='Dropdown Lists'!$K$54,AH42,IF(D42='Dropdown Lists'!$K$55,AJ42,"")))))))))))))))))))) -> -- | G42: -- | I42: =IF(ISBLANK(A42),"--",VLOOKUP(A42,Injuries_WorkMissed!$B$109:$G$863,2,FALSE)) -> -- | J42: =IF(ISBLANK(A42),"--",VLOOKUP(A42,Injuries_WorkMissed!$B$109:$G$863,3,FALSE)) -> -- | K42: =IF(ISBLANK(A42),"--",VLOOKUP(A42,Injuries_WorkMissed!$B$109:$G$863,4,FALSE)) -> -- | L42: =IF(ISBLANK(A42),"--",VLOOKUP(A42,Injuries_WorkMissed!$B$109:$G$863,5,FALSE)) -> -- | M42: =IF(ISBLANK(A42),"--",VLOOKUP(A42,Injuries_WorkMissed!$B$109:$G$863,6,FALSE)) -> -- | P42: =MIN(DataExtract!$BP$3:$BP$1597) -> 0 | Q42: =_xlfn.PERCENTILE.EXC(DataExtract!$BP$3:$BP$1597,0.1) -> 0 | R42: =_xlfn.PERCENTILE.EXC(DataExtract!$BP$3:$BP$1597,0.25) -> 0 | S42: =AVERAGE(DataExtract!$BP$3:$BP$5302) -> 23.92471698 | T42: 1.5 | U42: =MODE(DataExtract!$BP$1598:$BP$5302) -> 0 | V42: =_xlfn.PERCENTILE.EXC(DataExtract!$BP$3:$BP$5302,0.75) -> 5 | W42: =_xlfn.PERCENTILE.EXC(DataExtract!$BP$3:$BP$5302,0.9) -> 92 | X42: =MAX(DataExtract!$BP$3:$BP$5302) -> 365 | Y42: =COUNT(DataExtract!$BP$3:$BP$5302) -> 5300 | Z42: =MIN(DataExtract!$BO$3:$BO$1597) -> 1 | AA42: =_xlfn.PERCENTILE.EXC(DataExtract!$BO$3:$BO$1597,0.1) -> 3 | AB42: =_xlfn.PERCENTILE.EXC(DataExtract!$BO$3:$BO$1597,0.25) -> 8 | AC42: =AVERAGE(DataExtract!$BO$3:$BO$1597) -> 79.49905956 | AD42: =MEDIAN(DataExtract!$BO$3:$BO$1597) -> 46 | AE42: =MODE(DataExtract!$BO$3:$BO$1597) -> 180 | AF42: =_xlfn.PERCENTILE.EXC(DataExtract!$BO$3:$BO$1597,0.75) -> 132 | AG42: =_xlfn.PERCENTILE.EXC(DataExtract!$BO$3:$BO$1597,0.9) -> 202 | AH42: =MAX(DataExtract!$BO$3:$BO$1597,0.25) -> 365 | AI42: =COUNT(DataExtract!$BO$3:$BO$1597) -> 1595
C43: =IF(ISBLANK(A43),"--",IF(B43=$I$14,I43,IF(B43=$J$14,J43,IF(B43=$K$14,K43,IF(B43=$L$14,L43,IF(B43=$N$14,N43,IF(B43=$M$14,M43,IF(B43='Dropdown Lists'!$O$23,Injuries_WorkMissed!N43,"--")))))))) -> -- | E43: =IF(ISBLANK(D43),"--",IF(D43='Dropdown Lists'!$K$37,P43,IF(D43='Dropdown Lists'!$K$38,Q43,IF(D43='Dropdown Lists'!$K$39,R43,IF(D43='Dropdown Lists'!$K$40,S43,IF(D43='Dropdown Lists'!$K$41,T43,IF(D43='Dropdown Lists'!$K$42,U43,IF(D43='Dropdown Lists'!$K$43,V43,IF(D43='Dropdown Lists'!$K$44,W43,IF(D43='Dropdown Lists'!$K$45,X43,IF(D43='Dropdown Lists'!$K$46,Z43,IF(D43='Dropdown Lists'!$K$47,AA43,IF(D43='Dropdown Lists'!$K$48,AB43,IF(D43='Dropdown Lists'!$K$49,AC43,IF(D43='Dropdown Lists'!$K$50,AD43,IF(D43='Dropdown Lists'!$K$51,AE43,IF(D43='Dropdown Lists'!$K$52,AF43,IF(D43='Dropdown Lists'!$K$53,AG43,IF(D43='Dropdown Lists'!$K$54,AH43,IF(D43='Dropdown Lists'!$K$55,AJ43,"")))))))))))))))))))) -> -- | G43: -- | I43: =IF(ISBLANK(A43),"--",VLOOKUP(A43,Injuries_WorkMissed!$B$109:$G$863,2,FALSE)) -> -- | J43: =IF(ISBLANK(A43),"--",VLOOKUP(A43,Injuries_WorkMissed!$B$109:$G$863,3,FALSE)) -> -- | K43: =IF(ISBLANK(A43),"--",VLOOKUP(A43,Injuries_WorkMissed!$B$109:$G$863,4,FALSE)) -> -- | L43: =IF(ISBLANK(A43),"--",VLOOKUP(A43,Injuries_WorkMissed!$B$109:$G$863,5,FALSE)) -> -- | M43: =IF(ISBLANK(A43),"--",VLOOKUP(A43,Injuries_WorkMissed!$B$109:$G$863,6,FALSE)) -> -- | P43: =MIN(DataExtract!$BP$3:$BP$1597) -> 0 | Q43: =_xlfn.PERCENTILE.EXC(DataExtract!$BP$3:$BP$1597,0.1) -> 0 | R43: =_xlfn.PERCENTILE.EXC(DataExtract!$BP$3:$BP$1597,0.25) -> 0 | S43: =AVERAGE(DataExtract!$BP$3:$BP$5302) -> 23.92471698 | T43: 1.5 | U43: =MODE(DataExtract!$BP$1598:$BP$5302) -> 0 | V43: =_xlfn.PERCENTILE.EXC(DataExtract!$BP$3:$BP$5302,0.75) -> 5 | W43: =_xlfn.PERCENTILE.EXC(DataExtract!$BP$3:$BP$5302,0.9) -> 92 | X43: =MAX(DataExtract!$BP$3:$BP$5302) -> 365 | Y43: =COUNT(DataExtract!$BP$3:$BP$5302) -> 5300 | Z43: =MIN(DataExtract!$BO$3:$BO$1597) -> 1 | AA43: =_xlfn.PERCENTILE.EXC(DataExtract!$BO$3:$BO$1597,0.1) -> 3 | AB43: =_xlfn.PERCENTILE.EXC(DataExtract!$BO$3:$BO$1597,0.25) -> 8 | AC43: =AVERAGE(DataExtract!$BO$3:$BO$1597) -> 79.49905956 | AD43: =MEDIAN(DataExtract!$BO$3:$BO$1597) -> 46 | AE43: =MODE(DataExtract!$BO$3:$BO$1597) -> 180 | AF43: =_xlfn.PERCENTILE.EXC(DataExtract!$BO$3:$BO$1597,0.75) -> 132 | AG43: =_xlfn.PERCENTILE.EXC(DataExtract!$BO$3:$BO$1597,0.9) -> 202 | AH43: =MAX(DataExtract!$BO$3:$BO$1597,0.25) -> 365 | AI43: =COUNT(DataExtract!$BO$3:$BO$1597) -> 1595
C44: =IF(ISBLANK(A44),"--",IF(B44=$I$14,I44,IF(B44=$J$14,J44,IF(B44=$K$14,K44,IF(B44=$L$14,L44,IF(B44=$N$14,N44,IF(B44=$M$14,M44,IF(B44='Dropdown Lists'!$O$23,Injuries_WorkMissed!N44,"--")))))))) -> -- | E44: =IF(ISBLANK(D44),"--",IF(D44='Dropdown Lists'!$K$37,P44,IF(D44='Dropdown Lists'!$K$38,Q44,IF(D44='Dropdown Lists'!$K$39,R44,IF(D44='Dropdown Lists'!$K$40,S44,IF(D44='Dropdown Lists'!$K$41,T44,IF(D44='Dropdown Lists'!$K$42,U44,IF(D44='Dropdown Lists'!$K$43,V44,IF(D44='Dropdown Lists'!$K$44,W44,IF(D44='Dropdown Lists'!$K$45,X44,IF(D44='Dropdown Lists'!$K$46,Z44,IF(D44='Dropdown Lists'!$K$47,AA44,IF(D44='Dropdown Lists'!$K$48,AB44,IF(D44='Dropdown Lists'!$K$49,AC44,IF(D44='Dropdown Lists'!$K$50,AD44,IF(D44='Dropdown Lists'!$K$51,AE44,IF(D44='Dropdown Lists'!$K$52,AF44,IF(D44='Dropdown Lists'!$K$53,AG44,IF(D44='Dropdown Lists'!$K$54,AH44,IF(D44='Dropdown Lists'!$K$55,AJ44,"")))))))))))))))))))) -> -- | G44: -- | I44: =IF(ISBLANK(A44),"--",VLOOKUP(A44,Injuries_WorkMissed!$B$109:$G$863,2,FALSE)) -> -- | J44: =IF(ISBLANK(A44),"--",VLOOKUP(A44,Injuries_WorkMissed!$B$109:$G$863,3,FALSE)) -> -- | K44: =IF(ISBLANK(A44),"--",VLOOKUP(A44,Injuries_WorkMissed!$B$109:$G$863,4,FALSE)) -> -- | L44: =IF(ISBLANK(A44),"--",VLOOKUP(A44,Injuries_WorkMissed!$B$109:$G$863,5,FALSE)) -> -- | M44: =IF(ISBLANK(A44),"--",VLOOKUP(A44,Injuries_WorkMissed!$B$109:$G$863,6,FALSE)) -> -- | P44: =MIN(DataExtract!$BP$3:$BP$1597) -> 0 | Q44: =_xlfn.PERCENTILE.EXC(DataExtract!$BP$3:$BP$1597,0.1) -> 0 | R44: =_xlfn.PERCENTILE.EXC(DataExtract!$BP$3:$BP$1597,0.25) -> 0 | S44: =AVERAGE(DataExtract!$BP$3:$BP$5302) -> 23.92471698 | T44: 1.5 | U44: =MODE(DataExtract!$BP$1598:$BP$5302) -> 0 | V44: =_xlfn.PERCENTILE.EXC(DataExtract!$BP$3:$BP$5302,0.75) -> 5 | W44: =_xlfn.PERCENTILE.EXC(DataExtract!$BP$3:$BP$5302,0.9) -> 92 | X44: =MAX(DataExtract!$BP$3:$BP$5302) -> 365 | Y44: =COUNT(DataExtract!$BP$3:$BP$5302) -> 5300 | Z44: =MIN(DataExtract!$BO$3:$BO$1597) -> 1 | AA44: =_xlfn.PERCENTILE.EXC(DataExtract!$BO$3:$BO$1597,0.1) -> 3 | AB44: =_xlfn.PERCENTILE.EXC(DataExtract!$BO$3:$BO$1597,0.25) -> 8 | AC44: =AVERAGE(DataExtract!$BO$3:$BO$1597) -> 79.49905956 | AD44: =MEDIAN(DataExtract!$BO$3:$BO$1597) -> 46 | AE44: =MODE(DataExtract!$BO$3:$BO$1597) -> 180 | AF44: =_xlfn.PERCENTILE.EXC(DataExtract!$BO$3:$BO$1597,0.75) -> 132 | AG44: =_xlfn.PERCENTILE.EXC(DataExtract!$BO$3:$BO$1597,0.9) -> 202 | AH44: =MAX(DataExtract!$BO$3:$BO$1597,0.25) -> 365 | AI44: =COUNT(DataExtract!$BO$3:$BO$1597) -> 1595
C45: =IF(ISBLANK(A45),"--",IF(B45=$I$14,I45,IF(B45=$J$14,J45,IF(B45=$K$14,K45,IF(B45=$L$14,L45,IF(B45=$N$14,N45,IF(B45=$M$14,M45,IF(B45='Dropdown Lists'!$O$23,Injuries_WorkMissed!N45,"--")))))))) -> -- | E45: =IF(ISBLANK(D45),"--",IF(D45='Dropdown Lists'!$K$37,P45,IF(D45='Dropdown Lists'!$K$38,Q45,IF(D45='Dropdown Lists'!$K$39,R45,IF(D45='Dropdown Lists'!$K$40,S45,IF(D45='Dropdown Lists'!$K$41,T45,IF(D45='Dropdown Lists'!$K$42,U45,IF(D45='Dropdown Lists'!$K$43,V45,IF(D45='Dropdown Lists'!$K$44,W45,IF(D45='Dropdown Lists'!$K$45,X45,IF(D45='Dropdown Lists'!$K$46,Z45,IF(D45='Dropdown Lists'!$K$47,AA45,IF(D45='Dropdown Lists'!$K$48,AB45,IF(D45='Dropdown Lists'!$K$49,AC45,IF(D45='Dropdown Lists'!$K$50,AD45,IF(D45='Dropdown Lists'!$K$51,AE45,IF(D45='Dropdown Lists'!$K$52,AF45,IF(D45='Dropdown Lists'!$K$53,AG45,IF(D45='Dropdown Lists'!$K$54,AH45,IF(D45='Dropdown Lists'!$K$55,AJ45,"")))))))))))))))))))) -> -- | G45: -- | I45: =IF(ISBLANK(A45),"--",VLOOKUP(A45,Injuries_WorkMissed!$B$109:$G$863,2,FALSE)) -> -- | J45: =IF(ISBLANK(A45),"--",VLOOKUP(A45,Injuries_WorkMissed!$B$109:$G$863,3,FALSE)) -> -- | K45: =IF(ISBLANK(A45),"--",VLOOKUP(A45,Injuries_WorkMissed!$B$109:$G$863,4,FALSE)) -> -- | L45: =IF(ISBLANK(A45),"--",VLOOKUP(A45,Injuries_WorkMissed!$B$109:$G$863,5,FALSE)) -> -- | M45: =IF(ISBLANK(A45),"--",VLOOKUP(A45,Injuries_WorkMissed!$B$109:$G$863,6,FALSE)) -> -- | P45: =MIN(DataExtract!$BP$3:$BP$1597) -> 0 | Q45: =_xlfn.PERCENTILE.EXC(DataExtract!$BP$3:$BP$1597,0.1) -> 0 | R45: =_xlfn.PERCENTILE.EXC(DataExtract!$BP$3:$BP$1597,0.25) -> 0 | S45: =AVERAGE(DataExtract!$BP$3:$BP$5302) -> 23.92471698 | T45: 1.5 | U45: =MODE(DataExtract!$BP$1598:$BP$5302) -> 0 | V45: =_xlfn.PERCENTILE.EXC(DataExtract!$BP$3:$BP$5302,0.75) -> 5 | W45: =_xlfn.PERCENTILE.EXC(DataExtract!$BP$3:$BP$5302,0.9) -> 92 | X45: =MAX(DataExtract!$BP$3:$BP$5302) -> 365 | Y45: =COUNT(DataExtract!$BP$3:$BP$5302) -> 5300 | Z45: =MIN(DataExtract!$BO$3:$BO$1597) -> 1 | AA45: =_xlfn.PERCENTILE.EXC(DataExtract!$BO$3:$BO$1597,0.1) -> 3 | AB45: =_xlfn.PERCENTILE.EXC(DataExtract!$BO$3:$BO$1597,0.25) -> 8 | AC45: =AVERAGE(DataExtract!$BO$3:$BO$1597) -> 79.49905956 | AD45: =MEDIAN(DataExtract!$BO$3:$BO$1597) -> 46 | AE45: =MODE(DataExtract!$BO$3:$BO$1597) -> 180 | AF45: =_xlfn.PERCENTILE.EXC(DataExtract!$BO$3:$BO$1597,0.75) -> 132 | AG45: =_xlfn.PERCENTILE.EXC(DataExtract!$BO$3:$BO$1597,0.9) -> 202 | AH45: =MAX(DataExtract!$BO$3:$BO$1597,0.25) -> 365 | AI45: =COUNT(DataExtract!$BO$3:$BO$1597) -> 1595
C46: =IF(ISBLANK(A46),"--",IF(B46=$I$14,I46,IF(B46=$J$14,J46,IF(B46=$K$14,K46,IF(B46=$L$14,L46,IF(B46=$N$14,N46,IF(B46=$M$14,M46,IF(B46='Dropdown Lists'!$O$23,Injuries_WorkMissed!N46,"--")))))))) -> -- | E46: =IF(ISBLANK(D46),"--",IF(D46='Dropdown Lists'!$K$37,P46,IF(D46='Dropdown Lists'!$K$38,Q46,IF(D46='Dropdown Lists'!$K$39,R46,IF(D46='Dropdown Lists'!$K$40,S46,IF(D46='Dropdown Lists'!$K$41,T46,IF(D46='Dropdown Lists'!$K$42,U46,IF(D46='Dropdown Lists'!$K$43,V46,IF(D46='Dropdown Lists'!$K$44,W46,IF(D46='Dropdown Lists'!$K$45,X46,IF(D46='Dropdown Lists'!$K$46,Z46,IF(D46='Dropdown Lists'!$K$47,AA46,IF(D46='Dropdown Lists'!$K$48,AB46,IF(D46='Dropdown Lists'!$K$49,AC46,IF(D46='Dropdown Lists'!$K$50,AD46,IF(D46='Dropdown Lists'!$K$51,AE46,IF(D46='Dropdown Lists'!$K$52,AF46,IF(D46='Dropdown Lists'!$K$53,AG46,IF(D46='Dropdown Lists'!$K$54,AH46,IF(D46='Dropdown Lists'!$K$55,AJ46,"")))))))))))))))))))) -> -- | G46: -- | I46: =IF(ISBLANK(A46),"--",VLOOKUP(A46,Injuries_WorkMissed!$B$109:$G$863,2,FALSE)) -> -- | J46: =IF(ISBLANK(A46),"--",VLOOKUP(A46,Injuries_WorkMissed!$B$109:$G$863,3,FALSE)) -> -- | K46: =IF(ISBLANK(A46),"--",VLOOKUP(A46,Injuries_WorkMissed!$B$109:$G$863,4,FALSE)) -> -- | L46: =IF(ISBLANK(A46),"--",VLOOKUP(A46,Injuries_WorkMissed!$B$109:$G$863,5,FALSE)) -> -- | M46: =IF(ISBLANK(A46),"--",VLOOKUP(A46,Injuries_WorkMissed!$B$109:$G$863,6,FALSE)) -> -- | P46: =MIN(DataExtract!$BP$3:$BP$1597) -> 0 | Q46: =_xlfn.PERCENTILE.EXC(DataExtract!$BP$3:$BP$1597,0.1) -> 0 | R46: =_xlfn.PERCENTILE.EXC(DataExtract!$BP$3:$BP$1597,0.25) -> 0 | S46: =AVERAGE(DataExtract!$BP$3:$BP$5302) -> 23.92471698 | T46: 1.5 | U46: =MODE(DataExtract!$BP$1598:$BP$5302) -> 0 | V46: =_xlfn.PERCENTILE.EXC(DataExtract!$BP$3:$BP$5302,0.75) -> 5 | W46: =_xlfn.PERCENTILE.EXC(DataExtract!$BP$3:$BP$5302,0.9) -> 92 | X46: =MAX(DataExtract!$BP$3:$BP$5302) -> 365 | Y46: =COUNT(DataExtract!$BP$3:$BP$5302) -> 5300 | Z46: =MIN(DataExtract!$BO$3:$BO$1597) -> 1 | AA46: =_xlfn.PERCENTILE.EXC(DataExtract!$BO$3:$BO$1597,0.1) -> 3 | AB46: =_xlfn.PERCENTILE.EXC(DataExtract!$BO$3:$BO$1597,0.25) -> 8 | AC46: =AVERAGE(DataExtract!$BO$3:$BO$1597) -> 79.49905956 | AD46: =MEDIAN(DataExtract!$BO$3:$BO$1597) -> 46 | AE46: =MODE(DataExtract!$BO$3:$BO$1597) -> 180 | AF46: =_xlfn.PERCENTILE.EXC(DataExtract!$BO$3:$BO$1597,0.75) -> 132 | AG46: =_xlfn.PERCENTILE.EXC(DataExtract!$BO$3:$BO$1597,0.9) -> 202 | AH46: =MAX(DataExtract!$BO$3:$BO$1597,0.25) -> 365 | AI46: =COUNT(DataExtract!$BO$3:$BO$1597) -> 1595
C47: =IF(ISBLANK(A47),"--",IF(B47=$I$14,I47,IF(B47=$J$14,J47,IF(B47=$K$14,K47,IF(B47=$L$14,L47,IF(B47=$N$14,N47,IF(B47=$M$14,M47,IF(B47='Dropdown Lists'!$O$23,Injuries_WorkMissed!N47,"--")))))))) -> -- | E47: =IF(ISBLANK(D47),"--",IF(D47='Dropdown Lists'!$K$37,P47,IF(D47='Dropdown Lists'!$K$38,Q47,IF(D47='Dropdown Lists'!$K$39,R47,IF(D47='Dropdown Lists'!$K$40,S47,IF(D47='Dropdown Lists'!$K$41,T47,IF(D47='Dropdown Lists'!$K$42,U47,IF(D47='Dropdown Lists'!$K$43,V47,IF(D47='Dropdown Lists'!$K$44,W47,IF(D47='Dropdown Lists'!$K$45,X47,IF(D47='Dropdown Lists'!$K$46,Z47,IF(D47='Dropdown Lists'!$K$47,AA47,IF(D47='Dropdown Lists'!$K$48,AB47,IF(D47='Dropdown Lists'!$K$49,AC47,IF(D47='Dropdown Lists'!$K$50,AD47,IF(D47='Dropdown Lists'!$K$51,AE47,IF(D47='Dropdown Lists'!$K$52,AF47,IF(D47='Dropdown Lists'!$K$53,AG47,IF(D47='Dropdown Lists'!$K$54,AH47,IF(D47='Dropdown Lists'!$K$55,AJ47,"")))))))))))))))))))) -> -- | G47: -- | I47: =IF(ISBLANK(A47),"--",VLOOKUP(A47,Injuries_WorkMissed!$B$109:$G$863,2,FALSE)) -> -- | J47: =IF(ISBLANK(A47),"--",VLOOKUP(A47,Injuries_WorkMissed!$B$109:$G$863,3,FALSE)) -> -- | K47: =IF(ISBLANK(A47),"--",VLOOKUP(A47,Injuries_WorkMissed!$B$109:$G$863,4,FALSE)) -> -- | L47: =IF(ISBLANK(A47),"--",VLOOKUP(A47,Injuries_WorkMissed!$B$109:$G$863,5,FALSE)) -> -- | M47: =IF(ISBLANK(A47),"--",VLOOKUP(A47,Injuries_WorkMissed!$B$109:$G$863,6,FALSE)) -> -- | P47: =MIN(DataExtract!$BP$3:$BP$1597) -> 0 | Q47: =_xlfn.PERCENTILE.EXC(DataExtract!$BP$3:$BP$1597,0.1) -> 0 | R47: =_xlfn.PERCENTILE.EXC(DataExtract!$BP$3:$BP$1597,0.25) -> 0 | S47: =AVERAGE(DataExtract!$BP$3:$BP$5302) -> 23.92471698 | T47: 1.5 | U47: =MODE(DataExtract!$BP$1598:$BP$5302) -> 0 | V47: =_xlfn.PERCENTILE.EXC(DataExtract!$BP$3:$BP$5302,0.75) -> 5 | W47: =_xlfn.PERCENTILE.EXC(DataExtract!$BP$3:$BP$5302,0.9) -> 92 | X47: =MAX(DataExtract!$BP$3:$BP$5302) -> 365 | Y47: =COUNT(DataExtract!$BP$3:$BP$5302) -> 5300 | Z47: =MIN(DataExtract!$BO$3:$BO$1597) -> 1 | AA47: =_xlfn.PERCENTILE.EXC(DataExtract!$BO$3:$BO$1597,0.1) -> 3 | AB47: =_xlfn.PERCENTILE.EXC(DataExtract!$BO$3:$BO$1597,0.25) -> 8 | AC47: =AVERAGE(DataExtract!$BO$3:$BO$1597) -> 79.49905956 | AD47: =MEDIAN(DataExtract!$BO$3:$BO$1597) -> 46 | AE47: =MODE(DataExtract!$BO$3:$BO$1597) -> 180 | AF47: =_xlfn.PERCENTILE.EXC(DataExtract!$BO$3:$BO$1597,0.75) -> 132 | AG47: =_xlfn.PERCENTILE.EXC(DataExtract!$BO$3:$BO$1597,0.9) -> 202 | AH47: =MAX(DataExtract!$BO$3:$BO$1597,0.25) -> 365 | AI47: =COUNT(DataExtract!$BO$3:$BO$1597) -> 1595
C48: =IF(ISBLANK(A48),"--",IF(B48=$I$14,I48,IF(B48=$J$14,J48,IF(B48=$K$14,K48,IF(B48=$L$14,L48,IF(B48=$N$14,N48,IF(B48=$M$14,M48,IF(B48='Dropdown Lists'!$O$23,Injuries_WorkMissed!N48,"--")))))))) -> -- | E48: =IF(ISBLANK(D48),"--",IF(D48='Dropdown Lists'!$K$37,P48,IF(D48='Dropdown Lists'!$K$38,Q48,IF(D48='Dropdown Lists'!$K$39,R48,IF(D48='Dropdown Lists'!$K$40,S48,IF(D48='Dropdown Lists'!$K$41,T48,IF(D48='Dropdown Lists'!$K$42,U48,IF(D48='Dropdown Lists'!$K$43,V48,IF(D48='Dropdown Lists'!$K$44,W48,IF(D48='Dropdown Lists'!$K$45,X48,IF(D48='Dropdown Lists'!$K$46,Z48,IF(D48='Dropdown Lists'!$K$47,AA48,IF(D48='Dropdown Lists'!$K$48,AB48,IF(D48='Dropdown Lists'!$K$49,AC48,IF(D48='Dropdown Lists'!$K$50,AD48,IF(D48='Dropdown Lists'!$K$51,AE48,IF(D48='Dropdown Lists'!$K$52,AF48,IF(D48='Dropdown Lists'!$K$53,AG48,IF(D48='Dropdown Lists'!$K$54,AH48,IF(D48='Dropdown Lists'!$K$55,AJ48,"")))))))))))))))))))) -> -- | G48: -- | I48: =IF(ISBLANK(A48),"--",VLOOKUP(A48,Injuries_WorkMissed!$B$109:$G$863,2,FALSE)) -> -- | J48: =IF(ISBLANK(A48),"--",VLOOKUP(A48,Injuries_WorkMissed!$B$109:$G$863,3,FALSE)) -> -- | K48: =IF(ISBLANK(A48),"--",VLOOKUP(A48,Injuries_WorkMissed!$B$109:$G$863,4,FALSE)) -> -- | L48: =IF(ISBLANK(A48),"--",VLOOKUP(A48,Injuries_WorkMissed!$B$109:$G$863,5,FALSE)) -> -- | M48: =IF(ISBLANK(A48),"--",VLOOKUP(A48,Injuries_WorkMissed!$B$109:$G$863,6,FALSE)) -> -- | P48: =MIN(DataExtract!$BP$3:$BP$1597) -> 0 | Q48: =_xlfn.PERCENTILE.EXC(DataExtract!$BP$3:$BP$1597,0.1) -> 0 | R48: =_xlfn.PERCENTILE.EXC(DataExtract!$BP$3:$BP$1597,0.25) -> 0 | S48: =AVERAGE(DataExtract!$BP$3:$BP$5302) -> 23.92471698 | T48: 1.5 | U48: =MODE(DataExtract!$BP$1598:$BP$5302) -> 0 | V48: =_xlfn.PERCENTILE.EXC(DataExtract!$BP$3:$BP$5302,0.75) -> 5 | W48: =_xlfn.PERCENTILE.EXC(DataExtract!$BP$3:$BP$5302,0.9) -> 92 | X48: =MAX(DataExtract!$BP$3:$BP$5302) -> 365 | Y48: =COUNT(DataExtract!$BP$3:$BP$5302) -> 5300 | Z48: =MIN(DataExtract!$BO$3:$BO$1597) -> 1 | AA48: =_xlfn.PERCENTILE.EXC(DataExtract!$BO$3:$BO$1597,0.1) -> 3 | AB48: =_xlfn.PERCENTILE.EXC(DataExtract!$BO$3:$BO$1597,0.25) -> 8 | AC48: =AVERAGE(DataExtract!$BO$3:$BO$1597) -> 79.49905956 | AD48: =MEDIAN(DataExtract!$BO$3:$BO$1597) -> 46 | AE48: =MODE(DataExtract!$BO$3:$BO$1597) -> 180 | AF48: =_xlfn.PERCENTILE.EXC(DataExtract!$BO$3:$BO$1597,0.75) -> 132 | AG48: =_xlfn.PERCENTILE.EXC(DataExtract!$BO$3:$BO$1597,0.9) -> 202 | AH48: =MAX(DataExtract!$BO$3:$BO$1597,0.25) -> 365 | AI48: =COUNT(DataExtract!$BO$3:$BO$1597) -> 1595
C49: =IF(ISBLANK(A49),"--",IF(B49=$I$14,I49,IF(B49=$J$14,J49,IF(B49=$K$14,K49,IF(B49=$L$14,L49,IF(B49=$N$14,N49,IF(B49=$M$14,M49,IF(B49='Dropdown Lists'!$O$23,Injuries_WorkMissed!N49,"--")))))))) -> -- | E49: =IF(ISBLANK(D49),"--",IF(D49='Dropdown Lists'!$K$37,P49,IF(D49='Dropdown Lists'!$K$38,Q49,IF(D49='Dropdown Lists'!$K$39,R49,IF(D49='Dropdown Lists'!$K$40,S49,IF(D49='Dropdown Lists'!$K$41,T49,IF(D49='Dropdown Lists'!$K$42,U49,IF(D49='Dropdown Lists'!$K$43,V49,IF(D49='Dropdown Lists'!$K$44,W49,IF(D49='Dropdown Lists'!$K$45,X49,IF(D49='Dropdown Lists'!$K$46,Z49,IF(D49='Dropdown Lists'!$K$47,AA49,IF(D49='Dropdown Lists'!$K$48,AB49,IF(D49='Dropdown Lists'!$K$49,AC49,IF(D49='Dropdown Lists'!$K$50,AD49,IF(D49='Dropdown Lists'!$K$51,AE49,IF(D49='Dropdown Lists'!$K$52,AF49,IF(D49='Dropdown Lists'!$K$53,AG49,IF(D49='Dropdown Lists'!$K$54,AH49,IF(D49='Dropdown Lists'!$K$55,AJ49,"")))))))))))))))))))) -> -- | G49: -- | I49: =IF(ISBLANK(A49),"--",VLOOKUP(A49,Injuries_WorkMissed!$B$109:$G$863,2,FALSE)) -> -- | J49: =IF(ISBLANK(A49),"--",VLOOKUP(A49,Injuries_WorkMissed!$B$109:$G$863,3,FALSE)) -> -- | K49: =IF(ISBLANK(A49),"--",VLOOKUP(A49,Injuries_WorkMissed!$B$109:$G$863,4,FALSE)) -> -- | L49: =IF(ISBLANK(A49),"--",VLOOKUP(A49,Injuries_WorkMissed!$B$109:$G$863,5,FALSE)) -> -- | M49: =IF(ISBLANK(A49),"--",VLOOKUP(A49,Injuries_WorkMissed!$B$109:$G$863,6,FALSE)) -> -- | P49: =MIN(DataExtract!$BP$3:$BP$1597) -> 0 | Q49: =_xlfn.PERCENTILE.EXC(DataExtract!$BP$3:$BP$1597,0.1) -> 0 | R49: =_xlfn.PERCENTILE.EXC(DataExtract!$BP$3:$BP$1597,0.25) -> 0 | S49: =AVERAGE(DataExtract!$BP$3:$BP$5302) -> 23.92471698 | T49: 1.5 | U49: =MODE(DataExtract!$BP$1598:$BP$5302) -> 0 | V49: =_xlfn.PERCENTILE.EXC(DataExtract!$BP$3:$BP$5302,0.75) -> 5 | W49: =_xlfn.PERCENTILE.EXC(DataExtract!$BP$3:$BP$5302,0.9) -> 92 | X49: =MAX(DataExtract!$BP$3:$BP$5302) -> 365 | Y49: =COUNT(DataExtract!$BP$3:$BP$5302) -> 5300 | Z49: =MIN(DataExtract!$BO$3:$BO$1597) -> 1 | AA49: =_xlfn.PERCENTILE.EXC(DataExtract!$BO$3:$BO$1597,0.1) -> 3 | AB49: =_xlfn.PERCENTILE.EXC(DataExtract!$BO$3:$BO$1597,0.25) -> 8 | AC49: =AVERAGE(DataExtract!$BO$3:$BO$1597) -> 79.49905956 | AD49: =MEDIAN(DataExtract!$BO$3:$BO$1597) -> 46 | AE49: =MODE(DataExtract!$BO$3:$BO$1597) -> 180 | AF49: =_xlfn.PERCENTILE.EXC(DataExtract!$BO$3:$BO$1597,0.75) -> 132 | AG49: =_xlfn.PERCENTILE.EXC(DataExtract!$BO$3:$BO$1597,0.9) -> 202 | AH49: =MAX(DataExtract!$BO$3:$BO$1597,0.25) -> 365 | AI49: =COUNT(DataExtract!$BO$3:$BO$1597) -> 1595
C50: =IF(ISBLANK(A50),"--",IF(B50=$I$14,I50,IF(B50=$J$14,J50,IF(B50=$K$14,K50,IF(B50=$L$14,L50,IF(B50=$N$14,N50,IF(B50=$M$14,M50,IF(B50='Dropdown Lists'!$O$23,Injuries_WorkMissed!N50,"--")))))))) -> -- | E50: =IF(ISBLANK(D50),"--",IF(D50='Dropdown Lists'!$K$37,P50,IF(D50='Dropdown Lists'!$K$38,Q50,IF(D50='Dropdown Lists'!$K$39,R50,IF(D50='Dropdown Lists'!$K$40,S50,IF(D50='Dropdown Lists'!$K$41,T50,IF(D50='Dropdown Lists'!$K$42,U50,IF(D50='Dropdown Lists'!$K$43,V50,IF(D50='Dropdown Lists'!$K$44,W50,IF(D50='Dropdown Lists'!$K$45,X50,IF(D50='Dropdown Lists'!$K$46,Z50,IF(D50='Dropdown Lists'!$K$47,AA50,IF(D50='Dropdown Lists'!$K$48,AB50,IF(D50='Dropdown Lists'!$K$49,AC50,IF(D50='Dropdown Lists'!$K$50,AD50,IF(D50='Dropdown Lists'!$K$51,AE50,IF(D50='Dropdown Lists'!$K$52,AF50,IF(D50='Dropdown Lists'!$K$53,AG50,IF(D50='Dropdown Lists'!$K$54,AH50,IF(D50='Dropdown Lists'!$K$55,AJ50,"")))))))))))))))))))) -> -- | G50: -- | I50: =IF(ISBLANK(A50),"--",VLOOKUP(A50,Injuries_WorkMissed!$B$109:$G$863,2,FALSE)) -> -- | J50: =IF(ISBLANK(A50),"--",VLOOKUP(A50,Injuries_WorkMissed!$B$109:$G$863,3,FALSE)) -> -- | K50: =IF(ISBLANK(A50),"--",VLOOKUP(A50,Injuries_WorkMissed!$B$109:$G$863,4,FALSE)) -> -- | L50: =IF(ISBLANK(A50),"--",VLOOKUP(A50,Injuries_WorkMissed!$B$109:$G$863,5,FALSE)) -> -- | M50: =IF(ISBLANK(A50),"--",VLOOKUP(A50,Injuries_WorkMissed!$B$109:$G$863,6,FALSE)) -> -- | P50: =MIN(DataExtract!$BP$3:$BP$1597) -> 0 | Q50: =_xlfn.PERCENTILE.EXC(DataExtract!$BP$3:$BP$1597,0.1) -> 0 | R50: =_xlfn.PERCENTILE.EXC(DataExtract!$BP$3:$BP$1597,0.25) -> 0 | S50: =AVERAGE(DataExtract!$BP$3:$BP$5302) -> 23.92471698 | T50: 1.5 | U50: =MODE(DataExtract!$BP$1598:$BP$5302) -> 0 | V50: =_xlfn.PERCENTILE.EXC(DataExtract!$BP$3:$BP$5302,0.75) -> 5 | W50: =_xlfn.PERCENTILE.EXC(DataExtract!$BP$3:$BP$5302,0.9) -> 92 | X50: =MAX(DataExtract!$BP$3:$BP$5302) -> 365 | Y50: =COUNT(DataExtract!$BP$3:$BP$5302) -> 5300 | Z50: =MIN(DataExtract!$BO$3:$BO$1597) -> 1 | AA50: =_xlfn.PERCENTILE.EXC(DataExtract!$BO$3:$BO$1597,0.1) -> 3 | AB50: =_xlfn.PERCENTILE.EXC(DataExtract!$BO$3:$BO$1597,0.25) -> 8 | AC50: =AVERAGE(DataExtract!$BO$3:$BO$1597) -> 79.49905956 | AD50: =MEDIAN(DataExtract!$BO$3:$BO$1597) -> 46 | AE50: =MODE(DataExtract!$BO$3:$BO$1597) -> 180 | AF50: =_xlfn.PERCENTILE.EXC(DataExtract!$BO$3:$BO$1597,0.75) -> 132 | AG50: =_xlfn.PERCENTILE.EXC(DataExtract!$BO$3:$BO$1597,0.9) -> 202 | AH50: =MAX(DataExtract!$BO$3:$BO$1597,0.25) -> 365 | AI50: =COUNT(DataExtract!$BO$3:$BO$1597) -> 1595
C51: =IF(ISBLANK(A51),"--",IF(B51=$I$14,I51,IF(B51=$J$14,J51,IF(B51=$K$14,K51,IF(B51=$L$14,L51,IF(B51=$N$14,N51,IF(B51=$M$14,M51,IF(B51='Dropdown Lists'!$O$23,Injuries_WorkMissed!N51,"--")))))))) -> -- | E51: =IF(ISBLANK(D51),"--",IF(D51='Dropdown Lists'!$K$37,P51,IF(D51='Dropdown Lists'!$K$38,Q51,IF(D51='Dropdown Lists'!$K$39,R51,IF(D51='Dropdown Lists'!$K$40,S51,IF(D51='Dropdown Lists'!$K$41,T51,IF(D51='Dropdown Lists'!$K$42,U51,IF(D51='Dropdown Lists'!$K$43,V51,IF(D51='Dropdown Lists'!$K$44,W51,IF(D51='Dropdown Lists'!$K$45,X51,IF(D51='Dropdown Lists'!$K$46,Z51,IF(D51='Dropdown Lists'!$K$47,AA51,IF(D51='Dropdown Lists'!$K$48,AB51,IF(D51='Dropdown Lists'!$K$49,AC51,IF(D51='Dropdown Lists'!$K$50,AD51,IF(D51='Dropdown Lists'!$K$51,AE51,IF(D51='Dropdown Lists'!$K$52,AF51,IF(D51='Dropdown Lists'!$K$53,AG51,IF(D51='Dropdown Lists'!$K$54,AH51,IF(D51='Dropdown Lists'!$K$55,AJ51,"")))))))))))))))))))) -> -- | G51: -- | I51: =IF(ISBLANK(A51),"--",VLOOKUP(A51,Injuries_WorkMissed!$B$109:$G$863,2,FALSE)) -> -- | J51: =IF(ISBLANK(A51),"--",VLOOKUP(A51,Injuries_WorkMissed!$B$109:$G$863,3,FALSE)) -> -- | K51: =IF(ISBLANK(A51),"--",VLOOKUP(A51,Injuries_WorkMissed!$B$109:$G$863,4,FALSE)) -> -- | L51: =IF(ISBLANK(A51),"--",VLOOKUP(A51,Injuries_WorkMissed!$B$109:$G$863,5,FALSE)) -> -- | M51: =IF(ISBLANK(A51),"--",VLOOKUP(A51,Injuries_WorkMissed!$B$109:$G$863,6,FALSE)) -> -- | P51: =MIN(DataExtract!$BP$3:$BP$1597) -> 0 | Q51: =_xlfn.PERCENTILE.EXC(DataExtract!$BP$3:$BP$1597,0.1) -> 0 | R51: =_xlfn.PERCENTILE.EXC(DataExtract!$BP$3:$BP$1597,0.25) -> 0 | S51: =AVERAGE(DataExtract!$BP$3:$BP$5302) -> 23.92471698 | T51: 1.5 | U51: =MODE(DataExtract!$BP$1598:$BP$5302) -> 0 | V51: =_xlfn.PERCENTILE.EXC(DataExtract!$BP$3:$BP$5302,0.75) -> 5 | W51: =_xlfn.PERCENTILE.EXC(DataExtract!$BP$3:$BP$5302,0.9) -> 92 | X51: =MAX(DataExtract!$BP$3:$BP$5302) -> 365 | Y51: =COUNT(DataExtract!$BP$3:$BP$5302) -> 5300 | Z51: =MIN(DataExtract!$BO$3:$BO$1597) -> 1 | AA51: =_xlfn.PERCENTILE.EXC(DataExtract!$BO$3:$BO$1597,0.1) -> 3 | AB51: =_xlfn.PERCENTILE.EXC(DataExtract!$BO$3:$BO$1597,0.25) -> 8 | AC51: =AVERAGE(DataExtract!$BO$3:$BO$1597) -> 79.49905956 | AD51: =MEDIAN(DataExtract!$BO$3:$BO$1597) -> 46 | AE51: =MODE(DataExtract!$BO$3:$BO$1597) -> 180 | AF51: =_xlfn.PERCENTILE.EXC(DataExtract!$BO$3:$BO$1597,0.75) -> 132 | AG51: =_xlfn.PERCENTILE.EXC(DataExtract!$BO$3:$BO$1597,0.9) -> 202 | AH51: =MAX(DataExtract!$BO$3:$BO$1597,0.25) -> 365 | AI51: =COUNT(DataExtract!$BO$3:$BO$1597) -> 1595
C52: =IF(ISBLANK(A52),"--",IF(B52=$I$14,I52,IF(B52=$J$14,J52,IF(B52=$K$14,K52,IF(B52=$L$14,L52,IF(B52=$N$14,N52,IF(B52=$M$14,M52,IF(B52='Dropdown Lists'!$O$23,Injuries_WorkMissed!N52,"--")))))))) -> -- | E52: =IF(ISBLANK(D52),"--",IF(D52='Dropdown Lists'!$K$37,P52,IF(D52='Dropdown Lists'!$K$38,Q52,IF(D52='Dropdown Lists'!$K$39,R52,IF(D52='Dropdown Lists'!$K$40,S52,IF(D52='Dropdown Lists'!$K$41,T52,IF(D52='Dropdown Lists'!$K$42,U52,IF(D52='Dropdown Lists'!$K$43,V52,IF(D52='Dropdown Lists'!$K$44,W52,IF(D52='Dropdown Lists'!$K$45,X52,IF(D52='Dropdown Lists'!$K$46,Z52,IF(D52='Dropdown Lists'!$K$47,AA52,IF(D52='Dropdown Lists'!$K$48,AB52,IF(D52='Dropdown Lists'!$K$49,AC52,IF(D52='Dropdown Lists'!$K$50,AD52,IF(D52='Dropdown Lists'!$K$51,AE52,IF(D52='Dropdown Lists'!$K$52,AF52,IF(D52='Dropdown Lists'!$K$53,AG52,IF(D52='Dropdown Lists'!$K$54,AH52,IF(D52='Dropdown Lists'!$K$55,AJ52,"")))))))))))))))))))) -> -- | G52: -- | I52: =IF(ISBLANK(A52),"--",VLOOKUP(A52,Injuries_WorkMissed!$B$109:$G$863,2,FALSE)) -> -- | J52: =IF(ISBLANK(A52),"--",VLOOKUP(A52,Injuries_WorkMissed!$B$109:$G$863,3,FALSE)) -> -- | K52: =IF(ISBLANK(A52),"--",VLOOKUP(A52,Injuries_WorkMissed!$B$109:$G$863,4,FALSE)) -> -- | L52: =IF(ISBLANK(A52),"--",VLOOKUP(A52,Injuries_WorkMissed!$B$109:$G$863,5,FALSE)) -> -- | M52: =IF(ISBLANK(A52),"--",VLOOKUP(A52,Injuries_WorkMissed!$B$109:$G$863,6,FALSE)) -> -- | P52: =MIN(DataExtract!$BP$3:$BP$1597) -> 0 | Q52: =_xlfn.PERCENTILE.EXC(DataExtract!$BP$3:$BP$1597,0.1) -> 0 | R52: =_xlfn.PERCENTILE.EXC(DataExtract!$BP$3:$BP$1597,0.25) -> 0 | S52: =AVERAGE(DataExtract!$BP$3:$BP$5302) -> 23.92471698 | T52: 1.5 | U52: =MODE(DataExtract!$BP$1598:$BP$5302) -> 0 | V52: =_xlfn.PERCENTILE.EXC(DataExtract!$BP$3:$BP$5302,0.75) -> 5 | W52: =_xlfn.PERCENTILE.EXC(DataExtract!$BP$3:$BP$5302,0.9) -> 92 | X52: =MAX(DataExtract!$BP$3:$BP$5302) -> 365 | Y52: =COUNT(DataExtract!$BP$3:$BP$5302) -> 5300 | Z52: =MIN(DataExtract!$BO$3:$BO$1597) -> 1 | AA52: =_xlfn.PERCENTILE.EXC(DataExtract!$BO$3:$BO$1597,0.1) -> 3 | AB52: =_xlfn.PERCENTILE.EXC(DataExtract!$BO$3:$BO$1597,0.25) -> 8 | AC52: =AVERAGE(DataExtract!$BO$3:$BO$1597) -> 79.49905956 | AD52: =MEDIAN(DataExtract!$BO$3:$BO$1597) -> 46 | AE52: =MODE(DataExtract!$BO$3:$BO$1597) -> 180 | AF52: =_xlfn.PERCENTILE.EXC(DataExtract!$BO$3:$BO$1597,0.75) -> 132 | AG52: =_xlfn.PERCENTILE.EXC(DataExtract!$BO$3:$BO$1597,0.9) -> 202 | AH52: =MAX(DataExtract!$BO$3:$BO$1597,0.25) -> 365 | AI52: =COUNT(DataExtract!$BO$3:$BO$1597) -> 1595
C53: =IF(ISBLANK(A53),"--",IF(B53=$I$14,I53,IF(B53=$J$14,J53,IF(B53=$K$14,K53,IF(B53=$L$14,L53,IF(B53=$N$14,N53,IF(B53=$M$14,M53,IF(B53='Dropdown Lists'!$O$23,Injuries_WorkMissed!N53,"--")))))))) -> -- | E53: =IF(ISBLANK(D53),"--",IF(D53='Dropdown Lists'!$K$37,P53,IF(D53='Dropdown Lists'!$K$38,Q53,IF(D53='Dropdown Lists'!$K$39,R53,IF(D53='Dropdown Lists'!$K$40,S53,IF(D53='Dropdown Lists'!$K$41,T53,IF(D53='Dropdown Lists'!$K$42,U53,IF(D53='Dropdown Lists'!$K$43,V53,IF(D53='Dropdown Lists'!$K$44,W53,IF(D53='Dropdown Lists'!$K$45,X53,IF(D53='Dropdown Lists'!$K$46,Z53,IF(D53='Dropdown Lists'!$K$47,AA53,IF(D53='Dropdown Lists'!$K$48,AB53,IF(D53='Dropdown Lists'!$K$49,AC53,IF(D53='Dropdown Lists'!$K$50,AD53,IF(D53='Dropdown Lists'!$K$51,AE53,IF(D53='Dropdown Lists'!$K$52,AF53,IF(D53='Dropdown Lists'!$K$53,AG53,IF(D53='Dropdown Lists'!$K$54,AH53,IF(D53='Dropdown Lists'!$K$55,AJ53,"")))))))))))))))))))) -> -- | G53: -- | I53: =IF(ISBLANK(A53),"--",VLOOKUP(A53,Injuries_WorkMissed!$B$109:$G$863,2,FALSE)) -> -- | J53: =IF(ISBLANK(A53),"--",VLOOKUP(A53,Injuries_WorkMissed!$B$109:$G$863,3,FALSE)) -> -- | K53: =IF(ISBLANK(A53),"--",VLOOKUP(A53,Injuries_WorkMissed!$B$109:$G$863,4,FALSE)) -> -- | L53: =IF(ISBLANK(A53),"--",VLOOKUP(A53,Injuries_WorkMissed!$B$109:$G$863,5,FALSE)) -> -- | M53: =IF(ISBLANK(A53),"--",VLOOKUP(A53,Injuries_WorkMissed!$B$109:$G$863,6,FALSE)) -> -- | P53: =MIN(DataExtract!$BP$3:$BP$1597) -> 0 | Q53: =_xlfn.PERCENTILE.EXC(DataExtract!$BP$3:$BP$1597,0.1) -> 0 | R53: =_xlfn.PERCENTILE.EXC(DataExtract!$BP$3:$BP$1597,0.25) -> 0 | S53: =AVERAGE(DataExtract!$BP$3:$BP$5302) -> 23.92471698 | T53: 1.5 | U53: =MODE(DataExtract!$BP$1598:$BP$5302) -> 0 | V53: =_xlfn.PERCENTILE.EXC(DataExtract!$BP$3:$BP$5302,0.75) -> 5 | W53: =_xlfn.PERCENTILE.EXC(DataExtract!$BP$3:$BP$5302,0.9) -> 92 | X53: =MAX(DataExtract!$BP$3:$BP$5302) -> 365 | Y53: =COUNT(DataExtract!$BP$3:$BP$5302) -> 5300 | Z53: =MIN(DataExtract!$BO$3:$BO$1597) -> 1 | AA53: =_xlfn.PERCENTILE.EXC(DataExtract!$BO$3:$BO$1597,0.1) -> 3 | AB53: =_xlfn.PERCENTILE.EXC(DataExtract!$BO$3:$BO$1597,0.25) -> 8 | AC53: =AVERAGE(DataExtract!$BO$3:$BO$1597) -> 79.49905956 | AD53: =MEDIAN(DataExtract!$BO$3:$BO$1597) -> 46 | AE53: =MODE(DataExtract!$BO$3:$BO$1597) -> 180 | AF53: =_xlfn.PERCENTILE.EXC(DataExtract!$BO$3:$BO$1597,0.75) -> 132 | AG53: =_xlfn.PERCENTILE.EXC(DataExtract!$BO$3:$BO$1597,0.9) -> 202 | AH53: =MAX(DataExtract!$BO$3:$BO$1597,0.25) -> 365 | AI53: =COUNT(DataExtract!$BO$3:$BO$1597) -> 1595
C54: =IF(ISBLANK(A54),"--",IF(B54=$I$14,I54,IF(B54=$J$14,J54,IF(B54=$K$14,K54,IF(B54=$L$14,L54,IF(B54=$N$14,N54,IF(B54=$M$14,M54,IF(B54='Dropdown Lists'!$O$23,Injuries_WorkMissed!N54,"--")))))))) -> -- | E54: =IF(ISBLANK(D54),"--",IF(D54='Dropdown Lists'!$K$37,P54,IF(D54='Dropdown Lists'!$K$38,Q54,IF(D54='Dropdown Lists'!$K$39,R54,IF(D54='Dropdown Lists'!$K$40,S54,IF(D54='Dropdown Lists'!$K$41,T54,IF(D54='Dropdown Lists'!$K$42,U54,IF(D54='Dropdown Lists'!$K$43,V54,IF(D54='Dropdown Lists'!$K$44,W54,IF(D54='Dropdown Lists'!$K$45,X54,IF(D54='Dropdown Lists'!$K$46,Z54,IF(D54='Dropdown Lists'!$K$47,AA54,IF(D54='Dropdown Lists'!$K$48,AB54,IF(D54='Dropdown Lists'!$K$49,AC54,IF(D54='Dropdown Lists'!$K$50,AD54,IF(D54='Dropdown Lists'!$K$51,AE54,IF(D54='Dropdown Lists'!$K$52,AF54,IF(D54='Dropdown Lists'!$K$53,AG54,IF(D54='Dropdown Lists'!$K$54,AH54,IF(D54='Dropdown Lists'!$K$55,AJ54,"")))))))))))))))))))) -> -- | G54: -- | I54: =IF(ISBLANK(A54),"--",VLOOKUP(A54,Injuries_WorkMissed!$B$109:$G$863,2,FALSE)) -> -- | J54: =IF(ISBLANK(A54),"--",VLOOKUP(A54,Injuries_WorkMissed!$B$109:$G$863,3,FALSE)) -> -- | K54: =IF(ISBLANK(A54),"--",VLOOKUP(A54,Injuries_WorkMissed!$B$109:$G$863,4,FALSE)) -> -- | L54: =IF(ISBLANK(A54),"--",VLOOKUP(A54,Injuries_WorkMissed!$B$109:$G$863,5,FALSE)) -> -- | M54: =IF(ISBLANK(A54),"--",VLOOKUP(A54,Injuries_WorkMissed!$B$109:$G$863,6,FALSE)) -> -- | P54: =MIN(DataExtract!$BP$3:$BP$1597) -> 0 | Q54: =_xlfn.PERCENTILE.EXC(DataExtract!$BP$3:$BP$1597,0.1) -> 0 | R54: =_xlfn.PERCENTILE.EXC(DataExtract!$BP$3:$BP$1597,0.25) -> 0 | S54: =AVERAGE(DataExtract!$BP$3:$BP$5302) -> 23.92471698 | T54: 1.5 | U54: =MODE(DataExtract!$BP$1598:$BP$5302) -> 0 | V54: =_xlfn.PERCENTILE.EXC(DataExtract!$BP$3:$BP$5302,0.75) -> 5 | W54: =_xlfn.PERCENTILE.EXC(DataExtract!$BP$3:$BP$5302,0.9) -> 92 | X54: =MAX(DataExtract!$BP$3:$BP$5302) -> 365 | Y54: =COUNT(DataExtract!$BP$3:$BP$5302) -> 5300 | Z54: =MIN(DataExtract!$BO$3:$BO$1597) -> 1 | AA54: =_xlfn.PERCENTILE.EXC(DataExtract!$BO$3:$BO$1597,0.1) -> 3 | AB54: =_xlfn.PERCENTILE.EXC(DataExtract!$BO$3:$BO$1597,0.25) -> 8 | AC54: =AVERAGE(DataExtract!$BO$3:$BO$1597) -> 79.49905956 | AD54: =MEDIAN(DataExtract!$BO$3:$BO$1597) -> 46 | AE54: =MODE(DataExtract!$BO$3:$BO$1597) -> 180 | AF54: =_xlfn.PERCENTILE.EXC(DataExtract!$BO$3:$BO$1597,0.75) -> 132 | AG54: =_xlfn.PERCENTILE.EXC(DataExtract!$BO$3:$BO$1597,0.9) -> 202 | AH54: =MAX(DataExtract!$BO$3:$BO$1597,0.25) -> 365 | AI54: =COUNT(DataExtract!$BO$3:$BO$1597) -> 1595
C55: =IF(ISBLANK(A55),"--",IF(B55=$I$14,I55,IF(B55=$J$14,J55,IF(B55=$K$14,K55,IF(B55=$L$14,L55,IF(B55=$N$14,N55,IF(B55=$M$14,M55,IF(B55='Dropdown Lists'!$O$23,Injuries_WorkMissed!N55,"--")))))))) -> -- | E55: =IF(ISBLANK(D55),"--",IF(D55='Dropdown Lists'!$K$37,P55,IF(D55='Dropdown Lists'!$K$38,Q55,IF(D55='Dropdown Lists'!$K$39,R55,IF(D55='Dropdown Lists'!$K$40,S55,IF(D55='Dropdown Lists'!$K$41,T55,IF(D55='Dropdown Lists'!$K$42,U55,IF(D55='Dropdown Lists'!$K$43,V55,IF(D55='Dropdown Lists'!$K$44,W55,IF(D55='Dropdown Lists'!$K$45,X55,IF(D55='Dropdown Lists'!$K$46,Z55,IF(D55='Dropdown Lists'!$K$47,AA55,IF(D55='Dropdown Lists'!$K$48,AB55,IF(D55='Dropdown Lists'!$K$49,AC55,IF(D55='Dropdown Lists'!$K$50,AD55,IF(D55='Dropdown Lists'!$K$51,AE55,IF(D55='Dropdown Lists'!$K$52,AF55,IF(D55='Dropdown Lists'!$K$53,AG55,IF(D55='Dropdown Lists'!$K$54,AH55,IF(D55='Dropdown Lists'!$K$55,AJ55,"")))))))))))))))))))) -> -- | G55: -- | I55: =IF(ISBLANK(A55),"--",VLOOKUP(A55,Injuries_WorkMissed!$B$109:$G$863,2,FALSE)) -> -- | J55: =IF(ISBLANK(A55),"--",VLOOKUP(A55,Injuries_WorkMissed!$B$109:$G$863,3,FALSE)) -> -- | K55: =IF(ISBLANK(A55),"--",VLOOKUP(A55,Injuries_WorkMissed!$B$109:$G$863,4,FALSE)) -> -- | L55: =IF(ISBLANK(A55),"--",VLOOKUP(A55,Injuries_WorkMissed!$B$109:$G$863,5,FALSE)) -> -- | M55: =IF(ISBLANK(A55),"--",VLOOKUP(A55,Injuries_WorkMissed!$B$109:$G$863,6,FALSE)) -> -- | P55: =MIN(DataExtract!$BP$3:$BP$1597) -> 0 | Q55: =_xlfn.PERCENTILE.EXC(DataExtract!$BP$3:$BP$1597,0.1) -> 0 | R55: =_xlfn.PERCENTILE.EXC(DataExtract!$BP$3:$BP$1597,0.25) -> 0 | S55: =AVERAGE(DataExtract!$BP$3:$BP$5302) -> 23.92471698 | T55: 1.5 | U55: =MODE(DataExtract!$BP$1598:$BP$5302) -> 0 | V55: =_xlfn.PERCENTILE.EXC(DataExtract!$BP$3:$BP$5302,0.75) -> 5 | W55: =_xlfn.PERCENTILE.EXC(DataExtract!$BP$3:$BP$5302,0.9) -> 92 | X55: =MAX(DataExtract!$BP$3:$BP$5302) -> 365 | Y55: =COUNT(DataExtract!$BP$3:$BP$5302) -> 5300 | Z55: =MIN(DataExtract!$BO$3:$BO$1597) -> 1 | AA55: =_xlfn.PERCENTILE.EXC(DataExtract!$BO$3:$BO$1597,0.1) -> 3 | AB55: =_xlfn.PERCENTILE.EXC(DataExtract!$BO$3:$BO$1597,0.25) -> 8 | AC55: =AVERAGE(DataExtract!$BO$3:$BO$1597) -> 79.49905956 | AD55: =MEDIAN(DataExtract!$BO$3:$BO$1597) -> 46 | AE55: =MODE(DataExtract!$BO$3:$BO$1597) -> 180 | AF55: =_xlfn.PERCENTILE.EXC(DataExtract!$BO$3:$BO$1597,0.75) -> 132 | AG55: =_xlfn.PERCENTILE.EXC(DataExtract!$BO$3:$BO$1597,0.9) -> 202 | AH55: =MAX(DataExtract!$BO$3:$BO$1597,0.25) -> 365 | AI55: =COUNT(DataExtract!$BO$3:$BO$1597) -> 1595
C56: =IF(ISBLANK(A56),"--",IF(B56=$I$14,I56,IF(B56=$J$14,J56,IF(B56=$K$14,K56,IF(B56=$L$14,L56,IF(B56=$N$14,N56,IF(B56=$M$14,M56,IF(B56='Dropdown Lists'!$O$23,Injuries_WorkMissed!N56,"--")))))))) -> -- | E56: =IF(ISBLANK(D56),"--",IF(D56='Dropdown Lists'!$K$37,P56,IF(D56='Dropdown Lists'!$K$38,Q56,IF(D56='Dropdown Lists'!$K$39,R56,IF(D56='Dropdown Lists'!$K$40,S56,IF(D56='Dropdown Lists'!$K$41,T56,IF(D56='Dropdown Lists'!$K$42,U56,IF(D56='Dropdown Lists'!$K$43,V56,IF(D56='Dropdown Lists'!$K$44,W56,IF(D56='Dropdown Lists'!$K$45,X56,IF(D56='Dropdown Lists'!$K$46,Z56,IF(D56='Dropdown Lists'!$K$47,AA56,IF(D56='Dropdown Lists'!$K$48,AB56,IF(D56='Dropdown Lists'!$K$49,AC56,IF(D56='Dropdown Lists'!$K$50,AD56,IF(D56='Dropdown Lists'!$K$51,AE56,IF(D56='Dropdown Lists'!$K$52,AF56,IF(D56='Dropdown Lists'!$K$53,AG56,IF(D56='Dropdown Lists'!$K$54,AH56,IF(D56='Dropdown Lists'!$K$55,AJ56,"")))))))))))))))))))) -> -- | G56: -- | I56: =IF(ISBLANK(A56),"--",VLOOKUP(A56,Injuries_WorkMissed!$B$109:$G$863,2,FALSE)) -> -- | J56: =IF(ISBLANK(A56),"--",VLOOKUP(A56,Injuries_WorkMissed!$B$109:$G$863,3,FALSE)) -> -- | K56: =IF(ISBLANK(A56),"--",VLOOKUP(A56,Injuries_WorkMissed!$B$109:$G$863,4,FALSE)) -> -- | L56: =IF(ISBLANK(A56),"--",VLOOKUP(A56,Injuries_WorkMissed!$B$109:$G$863,5,FALSE)) -> -- | M56: =IF(ISBLANK(A56),"--",VLOOKUP(A56,Injuries_WorkMissed!$B$109:$G$863,6,FALSE)) -> -- | P56: =MIN(DataExtract!$BP$3:$BP$1597) -> 0 | Q56: =_xlfn.PERCENTILE.EXC(DataExtract!$BP$3:$BP$1597,0.1) -> 0 | R56: =_xlfn.PERCENTILE.EXC(DataExtract!$BP$3:$BP$1597,0.25) -> 0 | S56: =AVERAGE(DataExtract!$BP$3:$BP$5302) -> 23.92471698 | T56: 1.5 | U56: =MODE(DataExtract!$BP$1598:$BP$5302) -> 0 | V56: =_xlfn.PERCENTILE.EXC(DataExtract!$BP$3:$BP$5302,0.75) -> 5 | W56: =_xlfn.PERCENTILE.EXC(DataExtract!$BP$3:$BP$5302,0.9) -> 92 | X56: =MAX(DataExtract!$BP$3:$BP$5302) -> 365 | Y56: =COUNT(DataExtract!$BP$3:$BP$5302) -> 5300 | Z56: =MIN(DataExtract!$BO$3:$BO$1597) -> 1 | AA56: =_xlfn.PERCENTILE.EXC(DataExtract!$BO$3:$BO$1597,0.1) -> 3 | AB56: =_xlfn.PERCENTILE.EXC(DataExtract!$BO$3:$BO$1597,0.25) -> 8 | AC56: =AVERAGE(DataExtract!$BO$3:$BO$1597) -> 79.49905956 | AD56: =MEDIAN(DataExtract!$BO$3:$BO$1597) -> 46 | AE56: =MODE(DataExtract!$BO$3:$BO$1597) -> 180 | AF56: =_xlfn.PERCENTILE.EXC(DataExtract!$BO$3:$BO$1597,0.75) -> 132 | AG56: =_xlfn.PERCENTILE.EXC(DataExtract!$BO$3:$BO$1597,0.9) -> 202 | AH56: =MAX(DataExtract!$BO$3:$BO$1597,0.25) -> 365 | AI56: =COUNT(DataExtract!$BO$3:$BO$1597) -> 1595
C57: =IF(ISBLANK(A57),"--",IF(B57=$I$14,I57,IF(B57=$J$14,J57,IF(B57=$K$14,K57,IF(B57=$L$14,L57,IF(B57=$N$14,N57,IF(B57=$M$14,M57,IF(B57='Dropdown Lists'!$O$23,Injuries_WorkMissed!N57,"--")))))))) -> -- | E57: =IF(ISBLANK(D57),"--",IF(D57='Dropdown Lists'!$K$37,P57,IF(D57='Dropdown Lists'!$K$38,Q57,IF(D57='Dropdown Lists'!$K$39,R57,IF(D57='Dropdown Lists'!$K$40,S57,IF(D57='Dropdown Lists'!$K$41,T57,IF(D57='Dropdown Lists'!$K$42,U57,IF(D57='Dropdown Lists'!$K$43,V57,IF(D57='Dropdown Lists'!$K$44,W57,IF(D57='Dropdown Lists'!$K$45,X57,IF(D57='Dropdown Lists'!$K$46,Z57,IF(D57='Dropdown Lists'!$K$47,AA57,IF(D57='Dropdown Lists'!$K$48,AB57,IF(D57='Dropdown Lists'!$K$49,AC57,IF(D57='Dropdown Lists'!$K$50,AD57,IF(D57='Dropdown Lists'!$K$51,AE57,IF(D57='Dropdown Lists'!$K$52,AF57,IF(D57='Dropdown Lists'!$K$53,AG57,IF(D57='Dropdown Lists'!$K$54,AH57,IF(D57='Dropdown Lists'!$K$55,AJ57,"")))))))))))))))))))) -> -- | G57: -- | I57: =IF(ISBLANK(A57),"--",VLOOKUP(A57,Injuries_WorkMissed!$B$109:$G$863,2,FALSE)) -> -- | J57: =IF(ISBLANK(A57),"--",VLOOKUP(A57,Injuries_WorkMissed!$B$109:$G$863,3,FALSE)) -> -- | K57: =IF(ISBLANK(A57),"--",VLOOKUP(A57,Injuries_WorkMissed!$B$109:$G$863,4,FALSE)) -> -- | L57: =IF(ISBLANK(A57),"--",VLOOKUP(A57,Injuries_WorkMissed!$B$109:$G$863,5,FALSE)) -> -- | M57: =IF(ISBLANK(A57),"--",VLOOKUP(A57,Injuries_WorkMissed!$B$109:$G$863,6,FALSE)) -> -- | P57: =MIN(DataExtract!$BP$3:$BP$1597) -> 0 | Q57: =_xlfn.PERCENTILE.EXC(DataExtract!$BP$3:$BP$1597,0.1) -> 0 | R57: =_xlfn.PERCENTILE.EXC(DataExtract!$BP$3:$BP$1597,0.25) -> 0 | S57: =AVERAGE(DataExtract!$BP$3:$BP$5302) -> 23.92471698 | T57: 1.5 | U57: =MODE(DataExtract!$BP$1598:$BP$5302) -> 0 | V57: =_xlfn.PERCENTILE.EXC(DataExtract!$BP$3:$BP$5302,0.75) -> 5 | W57: =_xlfn.PERCENTILE.EXC(DataExtract!$BP$3:$BP$5302,0.9) -> 92 | X57: =MAX(DataExtract!$BP$3:$BP$5302) -> 365 | Y57: =COUNT(DataExtract!$BP$3:$BP$5302) -> 5300 | Z57: =MIN(DataExtract!$BO$3:$BO$1597) -> 1 | AA57: =_xlfn.PERCENTILE.EXC(DataExtract!$BO$3:$BO$1597,0.1) -> 3 | AB57: =_xlfn.PERCENTILE.EXC(DataExtract!$BO$3:$BO$1597,0.25) -> 8 | AC57: =AVERAGE(DataExtract!$BO$3:$BO$1597) -> 79.49905956 | AD57: =MEDIAN(DataExtract!$BO$3:$BO$1597) -> 46 | AE57: =MODE(DataExtract!$BO$3:$BO$1597) -> 180 | AF57: =_xlfn.PERCENTILE.EXC(DataExtract!$BO$3:$BO$1597,0.75) -> 132 | AG57: =_xlfn.PERCENTILE.EXC(DataExtract!$BO$3:$BO$1597,0.9) -> 202 | AH57: =MAX(DataExtract!$BO$3:$BO$1597,0.25) -> 365 | AI57: =COUNT(DataExtract!$BO$3:$BO$1597) -> 1595
C58: =IF(ISBLANK(A58),"--",IF(B58=$I$14,I58,IF(B58=$J$14,J58,IF(B58=$K$14,K58,IF(B58=$L$14,L58,IF(B58=$N$14,N58,IF(B58=$M$14,M58,IF(B58='Dropdown Lists'!$O$23,Injuries_WorkMissed!N58,"--")))))))) -> -- | E58: =IF(ISBLANK(D58),"--",IF(D58='Dropdown Lists'!$K$37,P58,IF(D58='Dropdown Lists'!$K$38,Q58,IF(D58='Dropdown Lists'!$K$39,R58,IF(D58='Dropdown Lists'!$K$40,S58,IF(D58='Dropdown Lists'!$K$41,T58,IF(D58='Dropdown Lists'!$K$42,U58,IF(D58='Dropdown Lists'!$K$43,V58,IF(D58='Dropdown Lists'!$K$44,W58,IF(D58='Dropdown Lists'!$K$45,X58,IF(D58='Dropdown Lists'!$K$46,Z58,IF(D58='Dropdown Lists'!$K$47,AA58,IF(D58='Dropdown Lists'!$K$48,AB58,IF(D58='Dropdown Lists'!$K$49,AC58,IF(D58='Dropdown Lists'!$K$50,AD58,IF(D58='Dropdown Lists'!$K$51,AE58,IF(D58='Dropdown Lists'!$K$52,AF58,IF(D58='Dropdown Lists'!$K$53,AG58,IF(D58='Dropdown Lists'!$K$54,AH58,IF(D58='Dropdown Lists'!$K$55,AJ58,"")))))))))))))))))))) -> -- | G58: -- | I58: =IF(ISBLANK(A58),"--",VLOOKUP(A58,Injuries_WorkMissed!$B$109:$G$863,2,FALSE)) -> -- | J58: =IF(ISBLANK(A58),"--",VLOOKUP(A58,Injuries_WorkMissed!$B$109:$G$863,3,FALSE)) -> -- | K58: =IF(ISBLANK(A58),"--",VLOOKUP(A58,Injuries_WorkMissed!$B$109:$G$863,4,FALSE)) -> -- | L58: =IF(ISBLANK(A58),"--",VLOOKUP(A58,Injuries_WorkMissed!$B$109:$G$863,5,FALSE)) -> -- | M58: =IF(ISBLANK(A58),"--",VLOOKUP(A58,Injuries_WorkMissed!$B$109:$G$863,6,FALSE)) -> -- | P58: =MIN(DataExtract!$BP$3:$BP$1597) -> 0 | Q58: =_xlfn.PERCENTILE.EXC(DataExtract!$BP$3:$BP$1597,0.1) -> 0 | R58: =_xlfn.PERCENTILE.EXC(DataExtract!$BP$3:$BP$1597,0.25) -> 0 | S58: =AVERAGE(DataExtract!$BP$3:$BP$5302) -> 23.92471698 | T58: 1.5 | U58: =MODE(DataExtract!$BP$1598:$BP$5302) -> 0 | V58: =_xlfn.PERCENTILE.EXC(DataExtract!$BP$3:$BP$5302,0.75) -> 5 | W58: =_xlfn.PERCENTILE.EXC(DataExtract!$BP$3:$BP$5302,0.9) -> 92 | X58: =MAX(DataExtract!$BP$3:$BP$5302) -> 365 | Y58: =COUNT(DataExtract!$BP$3:$BP$5302) -> 5300 | Z58: =MIN(DataExtract!$BO$3:$BO$1597) -> 1 | AA58: =_xlfn.PERCENTILE.EXC(DataExtract!$BO$3:$BO$1597,0.1) -> 3 | AB58: =_xlfn.PERCENTILE.EXC(DataExtract!$BO$3:$BO$1597,0.25) -> 8 | AC58: =AVERAGE(DataExtract!$BO$3:$BO$1597) -> 79.49905956 | AD58: =MEDIAN(DataExtract!$BO$3:$BO$1597) -> 46 | AE58: =MODE(DataExtract!$BO$3:$BO$1597) -> 180 | AF58: =_xlfn.PERCENTILE.EXC(DataExtract!$BO$3:$BO$1597,0.75) -> 132 | AG58: =_xlfn.PERCENTILE.EXC(DataExtract!$BO$3:$BO$1597,0.9) -> 202 | AH58: =MAX(DataExtract!$BO$3:$BO$1597,0.25) -> 365 | AI58: =COUNT(DataExtract!$BO$3:$BO$1597) -> 1595
C59: =IF(ISBLANK(A59),"--",IF(B59=$I$14,I59,IF(B59=$J$14,J59,IF(B59=$K$14,K59,IF(B59=$L$14,L59,IF(B59=$N$14,N59,IF(B59=$M$14,M59,IF(B59='Dropdown Lists'!$O$23,Injuries_WorkMissed!N59,"--")))))))) -> -- | E59: =IF(ISBLANK(D59),"--",IF(D59='Dropdown Lists'!$K$37,P59,IF(D59='Dropdown Lists'!$K$38,Q59,IF(D59='Dropdown Lists'!$K$39,R59,IF(D59='Dropdown Lists'!$K$40,S59,IF(D59='Dropdown Lists'!$K$41,T59,IF(D59='Dropdown Lists'!$K$42,U59,IF(D59='Dropdown Lists'!$K$43,V59,IF(D59='Dropdown Lists'!$K$44,W59,IF(D59='Dropdown Lists'!$K$45,X59,IF(D59='Dropdown Lists'!$K$46,Z59,IF(D59='Dropdown Lists'!$K$47,AA59,IF(D59='Dropdown Lists'!$K$48,AB59,IF(D59='Dropdown Lists'!$K$49,AC59,IF(D59='Dropdown Lists'!$K$50,AD59,IF(D59='Dropdown Lists'!$K$51,AE59,IF(D59='Dropdown Lists'!$K$52,AF59,IF(D59='Dropdown Lists'!$K$53,AG59,IF(D59='Dropdown Lists'!$K$54,AH59,IF(D59='Dropdown Lists'!$K$55,AJ59,"")))))))))))))))))))) -> -- | G59: -- | I59: =IF(ISBLANK(A59),"--",VLOOKUP(A59,Injuries_WorkMissed!$B$109:$G$863,2,FALSE)) -> -- | J59: =IF(ISBLANK(A59),"--",VLOOKUP(A59,Injuries_WorkMissed!$B$109:$G$863,3,FALSE)) -> -- | K59: =IF(ISBLANK(A59),"--",VLOOKUP(A59,Injuries_WorkMissed!$B$109:$G$863,4,FALSE)) -> -- | L59: =IF(ISBLANK(A59),"--",VLOOKUP(A59,Injuries_WorkMissed!$B$109:$G$863,5,FALSE)) -> -- | M59: =IF(ISBLANK(A59),"--",VLOOKUP(A59,Injuries_WorkMissed!$B$109:$G$863,6,FALSE)) -> -- | P59: =MIN(DataExtract!$BP$3:$BP$1597) -> 0 | Q59: =_xlfn.PERCENTILE.EXC(DataExtract!$BP$3:$BP$1597,0.1) -> 0 | R59: =_xlfn.PERCENTILE.EXC(DataExtract!$BP$3:$BP$1597,0.25) -> 0 | S59: =AVERAGE(DataExtract!$BP$3:$BP$5302) -> 23.92471698 | T59: 1.5 | U59: =MODE(DataExtract!$BP$1598:$BP$5302) -> 0 | V59: =_xlfn.PERCENTILE.EXC(DataExtract!$BP$3:$BP$5302,0.75) -> 5 | W59: =_xlfn.PERCENTILE.EXC(DataExtract!$BP$3:$BP$5302,0.9) -> 92 | X59: =MAX(DataExtract!$BP$3:$BP$5302) -> 365 | Y59: =COUNT(DataExtract!$BP$3:$BP$5302) -> 5300 | Z59: =MIN(DataExtract!$BO$3:$BO$1597) -> 1 | AA59: =_xlfn.PERCENTILE.EXC(DataExtract!$BO$3:$BO$1597,0.1) -> 3 | AB59: =_xlfn.PERCENTILE.EXC(DataExtract!$BO$3:$BO$1597,0.25) -> 8 | AC59: =AVERAGE(DataExtract!$BO$3:$BO$1597) -> 79.49905956 | AD59: =MEDIAN(DataExtract!$BO$3:$BO$1597) -> 46 | AE59: =MODE(DataExtract!$BO$3:$BO$1597) -> 180 | AF59: =_xlfn.PERCENTILE.EXC(DataExtract!$BO$3:$BO$1597,0.75) -> 132 | AG59: =_xlfn.PERCENTILE.EXC(DataExtract!$BO$3:$BO$1597,0.9) -> 202 | AH59: =MAX(DataExtract!$BO$3:$BO$1597,0.25) -> 365 | AI59: =COUNT(DataExtract!$BO$3:$BO$1597) -> 1595
C60: =IF(ISBLANK(A60),"--",IF(B60=$I$14,I60,IF(B60=$J$14,J60,IF(B60=$K$14,K60,IF(B60=$L$14,L60,IF(B60=$N$14,N60,IF(B60=$M$14,M60,IF(B60='Dropdown Lists'!$O$23,Injuries_WorkMissed!N60,"--")))))))) -> -- | E60: =IF(ISBLANK(D60),"--",IF(D60='Dropdown Lists'!$K$37,P60,IF(D60='Dropdown Lists'!$K$38,Q60,IF(D60='Dropdown Lists'!$K$39,R60,IF(D60='Dropdown Lists'!$K$40,S60,IF(D60='Dropdown Lists'!$K$41,T60,IF(D60='Dropdown Lists'!$K$42,U60,IF(D60='Dropdown Lists'!$K$43,V60,IF(D60='Dropdown Lists'!$K$44,W60,IF(D60='Dropdown Lists'!$K$45,X60,IF(D60='Dropdown Lists'!$K$46,Z60,IF(D60='Dropdown Lists'!$K$47,AA60,IF(D60='Dropdown Lists'!$K$48,AB60,IF(D60='Dropdown Lists'!$K$49,AC60,IF(D60='Dropdown Lists'!$K$50,AD60,IF(D60='Dropdown Lists'!$K$51,AE60,IF(D60='Dropdown Lists'!$K$52,AF60,IF(D60='Dropdown Lists'!$K$53,AG60,IF(D60='Dropdown Lists'!$K$54,AH60,IF(D60='Dropdown Lists'!$K$55,AJ60,"")))))))))))))))))))) -> -- | G60: -- | I60: =IF(ISBLANK(A60),"--",VLOOKUP(A60,Injuries_WorkMissed!$B$109:$G$863,2,FALSE)) -> -- | J60: =IF(ISBLANK(A60),"--",VLOOKUP(A60,Injuries_WorkMissed!$B$109:$G$863,3,FALSE)) -> -- | K60: =IF(ISBLANK(A60),"--",VLOOKUP(A60,Injuries_WorkMissed!$B$109:$G$863,4,FALSE)) -> -- | L60: =IF(ISBLANK(A60),"--",VLOOKUP(A60,Injuries_WorkMissed!$B$109:$G$863,5,FALSE)) -> -- | M60: =IF(ISBLANK(A60),"--",VLOOKUP(A60,Injuries_WorkMissed!$B$109:$G$863,6,FALSE)) -> -- | P60: =MIN(DataExtract!$BP$3:$BP$1597) -> 0 | Q60: =_xlfn.PERCENTILE.EXC(DataExtract!$BP$3:$BP$1597,0.1) -> 0 | R60: =_xlfn.PERCENTILE.EXC(DataExtract!$BP$3:$BP$1597,0.25) -> 0 | S60: =AVERAGE(DataExtract!$BP$3:$BP$5302) -> 23.92471698 | T60: 1.5 | U60: =MODE(DataExtract!$BP$1598:$BP$5302) -> 0 | V60: =_xlfn.PERCENTILE.EXC(DataExtract!$BP$3:$BP$5302,0.75) -> 5 | W60: =_xlfn.PERCENTILE.EXC(DataExtract!$BP$3:$BP$5302,0.9) -> 92 | X60: =MAX(DataExtract!$BP$3:$BP$5302) -> 365 | Y60: =COUNT(DataExtract!$BP$3:$BP$5302) -> 5300 | Z60: =MIN(DataExtract!$BO$3:$BO$1597) -> 1 | AA60: =_xlfn.PERCENTILE.EXC(DataExtract!$BO$3:$BO$1597,0.1) -> 3 | AB60: =_xlfn.PERCENTILE.EXC(DataExtract!$BO$3:$BO$1597,0.25) -> 8 | AC60: =AVERAGE(DataExtract!$BO$3:$BO$1597) -> 79.49905956 | AD60: =MEDIAN(DataExtract!$BO$3:$BO$1597) -> 46 | AE60: =MODE(DataExtract!$BO$3:$BO$1597) -> 180 | AF60: =_xlfn.PERCENTILE.EXC(DataExtract!$BO$3:$BO$1597,0.75) -> 132 | AG60: =_xlfn.PERCENTILE.EXC(DataExtract!$BO$3:$BO$1597,0.9) -> 202 | AH60: =MAX(DataExtract!$BO$3:$BO$1597,0.25) -> 365 | AI60: =COUNT(DataExtract!$BO$3:$BO$1597) -> 1595
C61: =IF(ISBLANK(A61),"--",IF(B61=$I$14,I61,IF(B61=$J$14,J61,IF(B61=$K$14,K61,IF(B61=$L$14,L61,IF(B61=$N$14,N61,IF(B61=$M$14,M61,IF(B61='Dropdown Lists'!$O$23,Injuries_WorkMissed!N61,"--")))))))) -> -- | E61: =IF(ISBLANK(D61),"--",IF(D61='Dropdown Lists'!$K$37,P61,IF(D61='Dropdown Lists'!$K$38,Q61,IF(D61='Dropdown Lists'!$K$39,R61,IF(D61='Dropdown Lists'!$K$40,S61,IF(D61='Dropdown Lists'!$K$41,T61,IF(D61='Dropdown Lists'!$K$42,U61,IF(D61='Dropdown Lists'!$K$43,V61,IF(D61='Dropdown Lists'!$K$44,W61,IF(D61='Dropdown Lists'!$K$45,X61,IF(D61='Dropdown Lists'!$K$46,Z61,IF(D61='Dropdown Lists'!$K$47,AA61,IF(D61='Dropdown Lists'!$K$48,AB61,IF(D61='Dropdown Lists'!$K$49,AC61,IF(D61='Dropdown Lists'!$K$50,AD61,IF(D61='Dropdown Lists'!$K$51,AE61,IF(D61='Dropdown Lists'!$K$52,AF61,IF(D61='Dropdown Lists'!$K$53,AG61,IF(D61='Dropdown Lists'!$K$54,AH61,IF(D61='Dropdown Lists'!$K$55,AJ61,"")))))))))))))))))))) -> -- | G61: -- | I61: =IF(ISBLANK(A61),"--",VLOOKUP(A61,Injuries_WorkMissed!$B$109:$G$863,2,FALSE)) -> -- | J61: =IF(ISBLANK(A61),"--",VLOOKUP(A61,Injuries_WorkMissed!$B$109:$G$863,3,FALSE)) -> -- | K61: =IF(ISBLANK(A61),"--",VLOOKUP(A61,Injuries_WorkMissed!$B$109:$G$863,4,FALSE)) -> -- | L61: =IF(ISBLANK(A61),"--",VLOOKUP(A61,Injuries_WorkMissed!$B$109:$G$863,5,FALSE)) -> -- | M61: =IF(ISBLANK(A61),"--",VLOOKUP(A61,Injuries_WorkMissed!$B$109:$G$863,6,FALSE)) -> -- | P61: =MIN(DataExtract!$BP$3:$BP$1597) -> 0 | Q61: =_xlfn.PERCENTILE.EXC(DataExtract!$BP$3:$BP$1597,0.1) -> 0 | R61: =_xlfn.PERCENTILE.EXC(DataExtract!$BP$3:$BP$1597,0.25) -> 0 | S61: =AVERAGE(DataExtract!$BP$3:$BP$5302) -> 23.92471698 | T61: 1.5 | U61: =MODE(DataExtract!$BP$1598:$BP$5302) -> 0 | V61: =_xlfn.PERCENTILE.EXC(DataExtract!$BP$3:$BP$5302,0.75) -> 5 | W61: =_xlfn.PERCENTILE.EXC(DataExtract!$BP$3:$BP$5302,0.9) -> 92 | X61: =MAX(DataExtract!$BP$3:$BP$5302) -> 365 | Y61: =COUNT(DataExtract!$BP$3:$BP$5302) -> 5300 | Z61: =MIN(DataExtract!$BO$3:$BO$1597) -> 1 | AA61: =_xlfn.PERCENTILE.EXC(DataExtract!$BO$3:$BO$1597,0.1) -> 3 | AB61: =_xlfn.PERCENTILE.EXC(DataExtract!$BO$3:$BO$1597,0.25) -> 8 | AC61: =AVERAGE(DataExtract!$BO$3:$BO$1597) -> 79.49905956 | AD61: =MEDIAN(DataExtract!$BO$3:$BO$1597) -> 46 | AE61: =MODE(DataExtract!$BO$3:$BO$1597) -> 180 | AF61: =_xlfn.PERCENTILE.EXC(DataExtract!$BO$3:$BO$1597,0.75) -> 132 | AG61: =_xlfn.PERCENTILE.EXC(DataExtract!$BO$3:$BO$1597,0.9) -> 202 | AH61: =MAX(DataExtract!$BO$3:$BO$1597,0.25) -> 365 | AI61: =COUNT(DataExtract!$BO$3:$BO$1597) -> 1595
C62: =IF(ISBLANK(A62),"--",IF(B62=$I$14,I62,IF(B62=$J$14,J62,IF(B62=$K$14,K62,IF(B62=$L$14,L62,IF(B62=$N$14,N62,IF(B62=$M$14,M62,IF(B62='Dropdown Lists'!$O$23,Injuries_WorkMissed!N62,"--")))))))) -> -- | E62: =IF(ISBLANK(D62),"--",IF(D62='Dropdown Lists'!$K$37,P62,IF(D62='Dropdown Lists'!$K$38,Q62,IF(D62='Dropdown Lists'!$K$39,R62,IF(D62='Dropdown Lists'!$K$40,S62,IF(D62='Dropdown Lists'!$K$41,T62,IF(D62='Dropdown Lists'!$K$42,U62,IF(D62='Dropdown Lists'!$K$43,V62,IF(D62='Dropdown Lists'!$K$44,W62,IF(D62='Dropdown Lists'!$K$45,X62,IF(D62='Dropdown Lists'!$K$46,Z62,IF(D62='Dropdown Lists'!$K$47,AA62,IF(D62='Dropdown Lists'!$K$48,AB62,IF(D62='Dropdown Lists'!$K$49,AC62,IF(D62='Dropdown Lists'!$K$50,AD62,IF(D62='Dropdown Lists'!$K$51,AE62,IF(D62='Dropdown Lists'!$K$52,AF62,IF(D62='Dropdown Lists'!$K$53,AG62,IF(D62='Dropdown Lists'!$K$54,AH62,IF(D62='Dropdown Lists'!$K$55,AJ62,"")))))))))))))))))))) -> -- | G62: -- | I62: =IF(ISBLANK(A62),"--",VLOOKUP(A62,Injuries_WorkMissed!$B$109:$G$863,2,FALSE)) -> -- | J62: =IF(ISBLANK(A62),"--",VLOOKUP(A62,Injuries_WorkMissed!$B$109:$G$863,3,FALSE)) -> -- | K62: =IF(ISBLANK(A62),"--",VLOOKUP(A62,Injuries_WorkMissed!$B$109:$G$863,4,FALSE)) -> -- | L62: =IF(ISBLANK(A62),"--",VLOOKUP(A62,Injuries_WorkMissed!$B$109:$G$863,5,FALSE)) -> -- | M62: =IF(ISBLANK(A62),"--",VLOOKUP(A62,Injuries_WorkMissed!$B$109:$G$863,6,FALSE)) -> -- | P62: =MIN(DataExtract!$BP$3:$BP$1597) -> 0 | Q62: =_xlfn.PERCENTILE.EXC(DataExtract!$BP$3:$BP$1597,0.1) -> 0 | R62: =_xlfn.PERCENTILE.EXC(DataExtract!$BP$3:$BP$1597,0.25) -> 0 | S62: =AVERAGE(DataExtract!$BP$3:$BP$5302) -> 23.92471698 | T62: 1.5 | U62: =MODE(DataExtract!$BP$1598:$BP$5302) -> 0 | V62: =_xlfn.PERCENTILE.EXC(DataExtract!$BP$3:$BP$5302,0.75) -> 5 | W62: =_xlfn.PERCENTILE.EXC(DataExtract!$BP$3:$BP$5302,0.9) -> 92 | X62: =MAX(DataExtract!$BP$3:$BP$5302) -> 365 | Y62: =COUNT(DataExtract!$BP$3:$BP$5302) -> 5300 | Z62: =MIN(DataExtract!$BO$3:$BO$1597) -> 1 | AA62: =_xlfn.PERCENTILE.EXC(DataExtract!$BO$3:$BO$1597,0.1) -> 3 | AB62: =_xlfn.PERCENTILE.EXC(DataExtract!$BO$3:$BO$1597,0.25) -> 8 | AC62: =AVERAGE(DataExtract!$BO$3:$BO$1597) -> 79.49905956 | AD62: =MEDIAN(DataExtract!$BO$3:$BO$1597) -> 46 | AE62: =MODE(DataExtract!$BO$3:$BO$1597) -> 180 | AF62: =_xlfn.PERCENTILE.EXC(DataExtract!$BO$3:$BO$1597,0.75) -> 132 | AG62: =_xlfn.PERCENTILE.EXC(DataExtract!$BO$3:$BO$1597,0.9) -> 202 | AH62: =MAX(DataExtract!$BO$3:$BO$1597,0.25) -> 365 | AI62: =COUNT(DataExtract!$BO$3:$BO$1597) -> 1595
C63: =IF(ISBLANK(A63),"--",IF(B63=$I$14,I63,IF(B63=$J$14,J63,IF(B63=$K$14,K63,IF(B63=$L$14,L63,IF(B63=$N$14,N63,IF(B63=$M$14,M63,IF(B63='Dropdown Lists'!$O$23,Injuries_WorkMissed!N63,"--")))))))) -> -- | E63: =IF(ISBLANK(D63),"--",IF(D63='Dropdown Lists'!$K$37,P63,IF(D63='Dropdown Lists'!$K$38,Q63,IF(D63='Dropdown Lists'!$K$39,R63,IF(D63='Dropdown Lists'!$K$40,S63,IF(D63='Dropdown Lists'!$K$41,T63,IF(D63='Dropdown Lists'!$K$42,U63,IF(D63='Dropdown Lists'!$K$43,V63,IF(D63='Dropdown Lists'!$K$44,W63,IF(D63='Dropdown Lists'!$K$45,X63,IF(D63='Dropdown Lists'!$K$46,Z63,IF(D63='Dropdown Lists'!$K$47,AA63,IF(D63='Dropdown Lists'!$K$48,AB63,IF(D63='Dropdown Lists'!$K$49,AC63,IF(D63='Dropdown Lists'!$K$50,AD63,IF(D63='Dropdown Lists'!$K$51,AE63,IF(D63='Dropdown Lists'!$K$52,AF63,IF(D63='Dropdown Lists'!$K$53,AG63,IF(D63='Dropdown Lists'!$K$54,AH63,IF(D63='Dropdown Lists'!$K$55,AJ63,"")))))))))))))))))))) -> -- | G63: -- | I63: =IF(ISBLANK(A63),"--",VLOOKUP(A63,Injuries_WorkMissed!$B$109:$G$863,2,FALSE)) -> -- | J63: =IF(ISBLANK(A63),"--",VLOOKUP(A63,Injuries_WorkMissed!$B$109:$G$863,3,FALSE)) -> -- | K63: =IF(ISBLANK(A63),"--",VLOOKUP(A63,Injuries_WorkMissed!$B$109:$G$863,4,FALSE)) -> -- | L63: =IF(ISBLANK(A63),"--",VLOOKUP(A63,Injuries_WorkMissed!$B$109:$G$863,5,FALSE)) -> -- | M63: =IF(ISBLANK(A63),"--",VLOOKUP(A63,Injuries_WorkMissed!$B$109:$G$863,6,FALSE)) -> -- | P63: =MIN(DataExtract!$BP$3:$BP$1597) -> 0 | Q63: =_xlfn.PERCENTILE.EXC(DataExtract!$BP$3:$BP$1597,0.1) -> 0 | R63: =_xlfn.PERCENTILE.EXC(DataExtract!$BP$3:$BP$1597,0.25) -> 0 | S63: =AVERAGE(DataExtract!$BP$3:$BP$5302) -> 23.92471698 | T63: 1.5 | U63: =MODE(DataExtract!$BP$1598:$BP$5302) -> 0 | V63: =_xlfn.PERCENTILE.EXC(DataExtract!$BP$3:$BP$5302,0.75) -> 5 | W63: =_xlfn.PERCENTILE.EXC(DataExtract!$BP$3:$BP$5302,0.9) -> 92 | X63: =MAX(DataExtract!$BP$3:$BP$5302) -> 365 | Y63: =COUNT(DataExtract!$BP$3:$BP$5302) -> 5300 | Z63: =MIN(DataExtract!$BO$3:$BO$1597) -> 1 | AA63: =_xlfn.PERCENTILE.EXC(DataExtract!$BO$3:$BO$1597,0.1) -> 3 | AB63: =_xlfn.PERCENTILE.EXC(DataExtract!$BO$3:$BO$1597,0.25) -> 8 | AC63: =AVERAGE(DataExtract!$BO$3:$BO$1597) -> 79.49905956 | AD63: =MEDIAN(DataExtract!$BO$3:$BO$1597) -> 46 | AE63: =MODE(DataExtract!$BO$3:$BO$1597) -> 180 | AF63: =_xlfn.PERCENTILE.EXC(DataExtract!$BO$3:$BO$1597,0.75) -> 132 | AG63: =_xlfn.PERCENTILE.EXC(DataExtract!$BO$3:$BO$1597,0.9) -> 202 | AH63: =MAX(DataExtract!$BO$3:$BO$1597,0.25) -> 365 | AI63: =COUNT(DataExtract!$BO$3:$BO$1597) -> 1595
C64: =IF(ISBLANK(A64),"--",IF(B64=$I$14,I64,IF(B64=$J$14,J64,IF(B64=$K$14,K64,IF(B64=$L$14,L64,IF(B64=$N$14,N64,IF(B64=$M$14,M64,IF(B64='Dropdown Lists'!$O$23,Injuries_WorkMissed!N64,"--")))))))) -> -- | E64: =IF(ISBLANK(D64),"--",IF(D64='Dropdown Lists'!$K$37,P64,IF(D64='Dropdown Lists'!$K$38,Q64,IF(D64='Dropdown Lists'!$K$39,R64,IF(D64='Dropdown Lists'!$K$40,S64,IF(D64='Dropdown Lists'!$K$41,T64,IF(D64='Dropdown Lists'!$K$42,U64,IF(D64='Dropdown Lists'!$K$43,V64,IF(D64='Dropdown Lists'!$K$44,W64,IF(D64='Dropdown Lists'!$K$45,X64,IF(D64='Dropdown Lists'!$K$46,Z64,IF(D64='Dropdown Lists'!$K$47,AA64,IF(D64='Dropdown Lists'!$K$48,AB64,IF(D64='Dropdown Lists'!$K$49,AC64,IF(D64='Dropdown Lists'!$K$50,AD64,IF(D64='Dropdown Lists'!$K$51,AE64,IF(D64='Dropdown Lists'!$K$52,AF64,IF(D64='Dropdown Lists'!$K$53,AG64,IF(D64='Dropdown Lists'!$K$54,AH64,IF(D64='Dropdown Lists'!$K$55,AJ64,"")))))))))))))))))))) -> -- | G64: -- | I64: =IF(ISBLANK(A64),"--",VLOOKUP(A64,Injuries_WorkMissed!$B$109:$G$863,2,FALSE)) -> -- | J64: =IF(ISBLANK(A64),"--",VLOOKUP(A64,Injuries_WorkMissed!$B$109:$G$863,3,FALSE)) -> -- | K64: =IF(ISBLANK(A64),"--",VLOOKUP(A64,Injuries_WorkMissed!$B$109:$G$863,4,FALSE)) -> -- | L64: =IF(ISBLANK(A64),"--",VLOOKUP(A64,Injuries_WorkMissed!$B$109:$G$863,5,FALSE)) -> -- | M64: =IF(ISBLANK(A64),"--",VLOOKUP(A64,Injuries_WorkMissed!$B$109:$G$863,6,FALSE)) -> -- | P64: =MIN(DataExtract!$BP$3:$BP$1597) -> 0 | Q64: =_xlfn.PERCENTILE.EXC(DataExtract!$BP$3:$BP$1597,0.1) -> 0 | R64: =_xlfn.PERCENTILE.EXC(DataExtract!$BP$3:$BP$1597,0.25) -> 0 | S64: =AVERAGE(DataExtract!$BP$3:$BP$5302) -> 23.92471698 | T64: 1.5 | U64: =MODE(DataExtract!$BP$1598:$BP$5302) -> 0 | V64: =_xlfn.PERCENTILE.EXC(DataExtract!$BP$3:$BP$5302,0.75) -> 5 | W64: =_xlfn.PERCENTILE.EXC(DataExtract!$BP$3:$BP$5302,0.9) -> 92 | X64: =MAX(DataExtract!$BP$3:$BP$5302) -> 365 | Y64: =COUNT(DataExtract!$BP$3:$BP$5302) -> 5300 | Z64: =MIN(DataExtract!$BO$3:$BO$1597) -> 1 | AA64: =_xlfn.PERCENTILE.EXC(DataExtract!$BO$3:$BO$1597,0.1) -> 3 | AB64: =_xlfn.PERCENTILE.EXC(DataExtract!$BO$3:$BO$1597,0.25) -> 8 | AC64: =AVERAGE(DataExtract!$BO$3:$BO$1597) -> 79.49905956 | AD64: =MEDIAN(DataExtract!$BO$3:$BO$1597) -> 46 | AE64: =MODE(DataExtract!$BO$3:$BO$1597) -> 180 | AF64: =_xlfn.PERCENTILE.EXC(DataExtract!$BO$3:$BO$1597,0.75) -> 132 | AG64: =_xlfn.PERCENTILE.EXC(DataExtract!$BO$3:$BO$1597,0.9) -> 202 | AH64: =MAX(DataExtract!$BO$3:$BO$1597,0.25) -> 365 | AI64: =COUNT(DataExtract!$BO$3:$BO$1597) -> 1595
C65: =IF(ISBLANK(A65),"--",IF(B65=$I$14,I65,IF(B65=$J$14,J65,IF(B65=$K$14,K65,IF(B65=$L$14,L65,IF(B65=$N$14,N65,IF(B65=$M$14,M65,IF(B65='Dropdown Lists'!$O$23,Injuries_WorkMissed!N65,"--")))))))) -> -- | E65: =IF(ISBLANK(D65),"--",IF(D65='Dropdown Lists'!$K$37,P65,IF(D65='Dropdown Lists'!$K$38,Q65,IF(D65='Dropdown Lists'!$K$39,R65,IF(D65='Dropdown Lists'!$K$40,S65,IF(D65='Dropdown Lists'!$K$41,T65,IF(D65='Dropdown Lists'!$K$42,U65,IF(D65='Dropdown Lists'!$K$43,V65,IF(D65='Dropdown Lists'!$K$44,W65,IF(D65='Dropdown Lists'!$K$45,X65,IF(D65='Dropdown Lists'!$K$46,Z65,IF(D65='Dropdown Lists'!$K$47,AA65,IF(D65='Dropdown Lists'!$K$48,AB65,IF(D65='Dropdown Lists'!$K$49,AC65,IF(D65='Dropdown Lists'!$K$50,AD65,IF(D65='Dropdown Lists'!$K$51,AE65,IF(D65='Dropdown Lists'!$K$52,AF65,IF(D65='Dropdown Lists'!$K$53,AG65,IF(D65='Dropdown Lists'!$K$54,AH65,IF(D65='Dropdown Lists'!$K$55,AJ65,"")))))))))))))))))))) -> -- | G65: -- | I65: =IF(ISBLANK(A65),"--",VLOOKUP(A65,Injuries_WorkMissed!$B$109:$G$863,2,FALSE)) -> -- | J65: =IF(ISBLANK(A65),"--",VLOOKUP(A65,Injuries_WorkMissed!$B$109:$G$863,3,FALSE)) -> -- | K65: =IF(ISBLANK(A65),"--",VLOOKUP(A65,Injuries_WorkMissed!$B$109:$G$863,4,FALSE)) -> -- | L65: =IF(ISBLANK(A65),"--",VLOOKUP(A65,Injuries_WorkMissed!$B$109:$G$863,5,FALSE)) -> -- | M65: =IF(ISBLANK(A65),"--",VLOOKUP(A65,Injuries_WorkMissed!$B$109:$G$863,6,FALSE)) -> -- | P65: =MIN(DataExtract!$BP$3:$BP$1597) -> 0 | Q65: =_xlfn.PERCENTILE.EXC(DataExtract!$BP$3:$BP$1597,0.1) -> 0 | R65: =_xlfn.PERCENTILE.EXC(DataExtract!$BP$3:$BP$1597,0.25) -> 0 | S65: =AVERAGE(DataExtract!$BP$3:$BP$5302) -> 23.92471698 | T65: 1.5 | U65: =MODE(DataExtract!$BP$1598:$BP$5302) -> 0 | V65: =_xlfn.PERCENTILE.EXC(DataExtract!$BP$3:$BP$5302,0.75) -> 5 | W65: =_xlfn.PERCENTILE.EXC(DataExtract!$BP$3:$BP$5302,0.9) -> 92 | X65: =MAX(DataExtract!$BP$3:$BP$5302) -> 365 | Y65: =COUNT(DataExtract!$BP$3:$BP$5302) -> 5300 | Z65: =MIN(DataExtract!$BO$3:$BO$1597) -> 1 | AA65: =_xlfn.PERCENTILE.EXC(DataExtract!$BO$3:$BO$1597,0.1) -> 3 | AB65: =_xlfn.PERCENTILE.EXC(DataExtract!$BO$3:$BO$1597,0.25) -> 8 | AC65: =AVERAGE(DataExtract!$BO$3:$BO$1597) -> 79.49905956 | AD65: =MEDIAN(DataExtract!$BO$3:$BO$1597) -> 46 | AE65: =MODE(DataExtract!$BO$3:$BO$1597) -> 180 | AF65: =_xlfn.PERCENTILE.EXC(DataExtract!$BO$3:$BO$1597,0.75) -> 132 | AG65: =_xlfn.PERCENTILE.EXC(DataExtract!$BO$3:$BO$1597,0.9) -> 202 | AH65: =MAX(DataExtract!$BO$3:$BO$1597,0.25) -> 365 | AI65: =COUNT(DataExtract!$BO$3:$BO$1597) -> 1595
C66: =IF(ISBLANK(A66),"--",IF(B66=$I$14,I66,IF(B66=$J$14,J66,IF(B66=$K$14,K66,IF(B66=$L$14,L66,IF(B66=$N$14,N66,IF(B66=$M$14,M66,IF(B66='Dropdown Lists'!$O$23,Injuries_WorkMissed!N66,"--")))))))) -> -- | E66: =IF(ISBLANK(D66),"--",IF(D66='Dropdown Lists'!$K$37,P66,IF(D66='Dropdown Lists'!$K$38,Q66,IF(D66='Dropdown Lists'!$K$39,R66,IF(D66='Dropdown Lists'!$K$40,S66,IF(D66='Dropdown Lists'!$K$41,T66,IF(D66='Dropdown Lists'!$K$42,U66,IF(D66='Dropdown Lists'!$K$43,V66,IF(D66='Dropdown Lists'!$K$44,W66,IF(D66='Dropdown Lists'!$K$45,X66,IF(D66='Dropdown Lists'!$K$46,Z66,IF(D66='Dropdown Lists'!$K$47,AA66,IF(D66='Dropdown Lists'!$K$48,AB66,IF(D66='Dropdown Lists'!$K$49,AC66,IF(D66='Dropdown Lists'!$K$50,AD66,IF(D66='Dropdown Lists'!$K$51,AE66,IF(D66='Dropdown Lists'!$K$52,AF66,IF(D66='Dropdown Lists'!$K$53,AG66,IF(D66='Dropdown Lists'!$K$54,AH66,IF(D66='Dropdown Lists'!$K$55,AJ66,"")))))))))))))))))))) -> -- | G66: -- | I66: =IF(ISBLANK(A66),"--",VLOOKUP(A66,Injuries_WorkMissed!$B$109:$G$863,2,FALSE)) -> -- | J66: =IF(ISBLANK(A66),"--",VLOOKUP(A66,Injuries_WorkMissed!$B$109:$G$863,3,FALSE)) -> -- | K66: =IF(ISBLANK(A66),"--",VLOOKUP(A66,Injuries_WorkMissed!$B$109:$G$863,4,FALSE)) -> -- | L66: =IF(ISBLANK(A66),"--",VLOOKUP(A66,Injuries_WorkMissed!$B$109:$G$863,5,FALSE)) -> -- | M66: =IF(ISBLANK(A66),"--",VLOOKUP(A66,Injuries_WorkMissed!$B$109:$G$863,6,FALSE)) -> -- | P66: =MIN(DataExtract!$BP$3:$BP$1597) -> 0 | Q66: =_xlfn.PERCENTILE.EXC(DataExtract!$BP$3:$BP$1597,0.1) -> 0 | R66: =_xlfn.PERCENTILE.EXC(DataExtract!$BP$3:$BP$1597,0.25) -> 0 | S66: =AVERAGE(DataExtract!$BP$3:$BP$5302) -> 23.92471698 | T66: 1.5 | U66: =MODE(DataExtract!$BP$1598:$BP$5302) -> 0 | V66: =_xlfn.PERCENTILE.EXC(DataExtract!$BP$3:$BP$5302,0.75) -> 5 | W66: =_xlfn.PERCENTILE.EXC(DataExtract!$BP$3:$BP$5302,0.9) -> 92 | X66: =MAX(DataExtract!$BP$3:$BP$5302) -> 365 | Y66: =COUNT(DataExtract!$BP$3:$BP$5302) -> 5300 | Z66: =MIN(DataExtract!$BO$3:$BO$1597) -> 1 | AA66: =_xlfn.PERCENTILE.EXC(DataExtract!$BO$3:$BO$1597,0.1) -> 3 | AB66: =_xlfn.PERCENTILE.EXC(DataExtract!$BO$3:$BO$1597,0.25) -> 8 | AC66: =AVERAGE(DataExtract!$BO$3:$BO$1597) -> 79.49905956 | AD66: =MEDIAN(DataExtract!$BO$3:$BO$1597) -> 46 | AE66: =MODE(DataExtract!$BO$3:$BO$1597) -> 180 | AF66: =_xlfn.PERCENTILE.EXC(DataExtract!$BO$3:$BO$1597,0.75) -> 132 | AG66: =_xlfn.PERCENTILE.EXC(DataExtract!$BO$3:$BO$1597,0.9) -> 202 | AH66: =MAX(DataExtract!$BO$3:$BO$1597,0.25) -> 365 | AI66: =COUNT(DataExtract!$BO$3:$BO$1597) -> 1595
C67: =IF(ISBLANK(A67),"--",IF(B67=$I$14,I67,IF(B67=$J$14,J67,IF(B67=$K$14,K67,IF(B67=$L$14,L67,IF(B67=$N$14,N67,IF(B67=$M$14,M67,IF(B67='Dropdown Lists'!$O$23,Injuries_WorkMissed!N67,"--")))))))) -> -- | E67: =IF(ISBLANK(D67),"--",IF(D67='Dropdown Lists'!$K$37,P67,IF(D67='Dropdown Lists'!$K$38,Q67,IF(D67='Dropdown Lists'!$K$39,R67,IF(D67='Dropdown Lists'!$K$40,S67,IF(D67='Dropdown Lists'!$K$41,T67,IF(D67='Dropdown Lists'!$K$42,U67,IF(D67='Dropdown Lists'!$K$43,V67,IF(D67='Dropdown Lists'!$K$44,W67,IF(D67='Dropdown Lists'!$K$45,X67,IF(D67='Dropdown Lists'!$K$46,Z67,IF(D67='Dropdown Lists'!$K$47,AA67,IF(D67='Dropdown Lists'!$K$48,AB67,IF(D67='Dropdown Lists'!$K$49,AC67,IF(D67='Dropdown Lists'!$K$50,AD67,IF(D67='Dropdown Lists'!$K$51,AE67,IF(D67='Dropdown Lists'!$K$52,AF67,IF(D67='Dropdown Lists'!$K$53,AG67,IF(D67='Dropdown Lists'!$K$54,AH67,IF(D67='Dropdown Lists'!$K$55,AJ67,"")))))))))))))))))))) -> -- | G67: -- | I67: =IF(ISBLANK(A67),"--",VLOOKUP(A67,Injuries_WorkMissed!$B$109:$G$863,2,FALSE)) -> -- | J67: =IF(ISBLANK(A67),"--",VLOOKUP(A67,Injuries_WorkMissed!$B$109:$G$863,3,FALSE)) -> -- | K67: =IF(ISBLANK(A67),"--",VLOOKUP(A67,Injuries_WorkMissed!$B$109:$G$863,4,FALSE)) -> -- | L67: =IF(ISBLANK(A67),"--",VLOOKUP(A67,Injuries_WorkMissed!$B$109:$G$863,5,FALSE)) -> -- | M67: =IF(ISBLANK(A67),"--",VLOOKUP(A67,Injuries_WorkMissed!$B$109:$G$863,6,FALSE)) -> -- | P67: =MIN(DataExtract!$BP$3:$BP$1597) -> 0 | Q67: =_xlfn.PERCENTILE.EXC(DataExtract!$BP$3:$BP$1597,0.1) -> 0 | R67: =_xlfn.PERCENTILE.EXC(DataExtract!$BP$3:$BP$1597,0.25) -> 0 | S67: =AVERAGE(DataExtract!$BP$3:$BP$5302) -> 23.92471698 | T67: 1.5 | U67: =MODE(DataExtract!$BP$1598:$BP$5302) -> 0 | V67: =_xlfn.PERCENTILE.EXC(DataExtract!$BP$3:$BP$5302,0.75) -> 5 | W67: =_xlfn.PERCENTILE.EXC(DataExtract!$BP$3:$BP$5302,0.9) -> 92 | X67: =MAX(DataExtract!$BP$3:$BP$5302) -> 365 | Y67: =COUNT(DataExtract!$BP$3:$BP$5302) -> 5300 | Z67: =MIN(DataExtract!$BO$3:$BO$1597) -> 1 | AA67: =_xlfn.PERCENTILE.EXC(DataExtract!$BO$3:$BO$1597,0.1) -> 3 | AB67: =_xlfn.PERCENTILE.EXC(DataExtract!$BO$3:$BO$1597,0.25) -> 8 | AC67: =AVERAGE(DataExtract!$BO$3:$BO$1597) -> 79.49905956 | AD67: =MEDIAN(DataExtract!$BO$3:$BO$1597) -> 46 | AE67: =MODE(DataExtract!$BO$3:$BO$1597) -> 180 | AF67: =_xlfn.PERCENTILE.EXC(DataExtract!$BO$3:$BO$1597,0.75) -> 132 | AG67: =_xlfn.PERCENTILE.EXC(DataExtract!$BO$3:$BO$1597,0.9) -> 202 | AH67: =MAX(DataExtract!$BO$3:$BO$1597,0.25) -> 365 | AI67: =COUNT(DataExtract!$BO$3:$BO$1597) -> 1595
C68: =IF(ISBLANK(A68),"--",IF(B68=$I$14,I68,IF(B68=$J$14,J68,IF(B68=$K$14,K68,IF(B68=$L$14,L68,IF(B68=$N$14,N68,IF(B68=$M$14,M68,IF(B68='Dropdown Lists'!$O$23,Injuries_WorkMissed!N68,"--")))))))) -> -- | E68: =IF(ISBLANK(D68),"--",IF(D68='Dropdown Lists'!$K$37,P68,IF(D68='Dropdown Lists'!$K$38,Q68,IF(D68='Dropdown Lists'!$K$39,R68,IF(D68='Dropdown Lists'!$K$40,S68,IF(D68='Dropdown Lists'!$K$41,T68,IF(D68='Dropdown Lists'!$K$42,U68,IF(D68='Dropdown Lists'!$K$43,V68,IF(D68='Dropdown Lists'!$K$44,W68,IF(D68='Dropdown Lists'!$K$45,X68,IF(D68='Dropdown Lists'!$K$46,Z68,IF(D68='Dropdown Lists'!$K$47,AA68,IF(D68='Dropdown Lists'!$K$48,AB68,IF(D68='Dropdown Lists'!$K$49,AC68,IF(D68='Dropdown Lists'!$K$50,AD68,IF(D68='Dropdown Lists'!$K$51,AE68,IF(D68='Dropdown Lists'!$K$52,AF68,IF(D68='Dropdown Lists'!$K$53,AG68,IF(D68='Dropdown Lists'!$K$54,AH68,IF(D68='Dropdown Lists'!$K$55,AJ68,"")))))))))))))))))))) -> -- | G68: -- | I68: =IF(ISBLANK(A68),"--",VLOOKUP(A68,Injuries_WorkMissed!$B$109:$G$863,2,FALSE)) -> -- | J68: =IF(ISBLANK(A68),"--",VLOOKUP(A68,Injuries_WorkMissed!$B$109:$G$863,3,FALSE)) -> -- | K68: =IF(ISBLANK(A68),"--",VLOOKUP(A68,Injuries_WorkMissed!$B$109:$G$863,4,FALSE)) -> -- | L68: =IF(ISBLANK(A68),"--",VLOOKUP(A68,Injuries_WorkMissed!$B$109:$G$863,5,FALSE)) -> -- | M68: =IF(ISBLANK(A68),"--",VLOOKUP(A68,Injuries_WorkMissed!$B$109:$G$863,6,FALSE)) -> -- | P68: =MIN(DataExtract!$BP$3:$BP$1597) -> 0 | Q68: =_xlfn.PERCENTILE.EXC(DataExtract!$BP$3:$BP$1597,0.1) -> 0 | R68: =_xlfn.PERCENTILE.EXC(DataExtract!$BP$3:$BP$1597,0.25) -> 0 | S68: =AVERAGE(DataExtract!$BP$3:$BP$5302) -> 23.92471698 | T68: 1.5 | U68: =MODE(DataExtract!$BP$1598:$BP$5302) -> 0 | V68: =_xlfn.PERCENTILE.EXC(DataExtract!$BP$3:$BP$5302,0.75) -> 5 | W68: =_xlfn.PERCENTILE.EXC(DataExtract!$BP$3:$BP$5302,0.9) -> 92 | X68: =MAX(DataExtract!$BP$3:$BP$5302) -> 365 | Y68: =COUNT(DataExtract!$BP$3:$BP$5302) -> 5300 | Z68: =MIN(DataExtract!$BO$3:$BO$1597) -> 1 | AA68: =_xlfn.PERCENTILE.EXC(DataExtract!$BO$3:$BO$1597,0.1) -> 3 | AB68: =_xlfn.PERCENTILE.EXC(DataExtract!$BO$3:$BO$1597,0.25) -> 8 | AC68: =AVERAGE(DataExtract!$BO$3:$BO$1597) -> 79.49905956 | AD68: =MEDIAN(DataExtract!$BO$3:$BO$1597) -> 46 | AE68: =MODE(DataExtract!$BO$3:$BO$1597) -> 180 | AF68: =_xlfn.PERCENTILE.EXC(DataExtract!$BO$3:$BO$1597,0.75) -> 132 | AG68: =_xlfn.PERCENTILE.EXC(DataExtract!$BO$3:$BO$1597,0.9) -> 202 | AH68: =MAX(DataExtract!$BO$3:$BO$1597,0.25) -> 365 | AI68: =COUNT(DataExtract!$BO$3:$BO$1597) -> 1595
C69: =IF(ISBLANK(A69),"--",IF(B69=$I$14,I69,IF(B69=$J$14,J69,IF(B69=$K$14,K69,IF(B69=$L$14,L69,IF(B69=$N$14,N69,IF(B69=$M$14,M69,IF(B69='Dropdown Lists'!$O$23,Injuries_WorkMissed!N69,"--")))))))) -> -- | E69: =IF(ISBLANK(D69),"--",IF(D69='Dropdown Lists'!$K$37,P69,IF(D69='Dropdown Lists'!$K$38,Q69,IF(D69='Dropdown Lists'!$K$39,R69,IF(D69='Dropdown Lists'!$K$40,S69,IF(D69='Dropdown Lists'!$K$41,T69,IF(D69='Dropdown Lists'!$K$42,U69,IF(D69='Dropdown Lists'!$K$43,V69,IF(D69='Dropdown Lists'!$K$44,W69,IF(D69='Dropdown Lists'!$K$45,X69,IF(D69='Dropdown Lists'!$K$46,Z69,IF(D69='Dropdown Lists'!$K$47,AA69,IF(D69='Dropdown Lists'!$K$48,AB69,IF(D69='Dropdown Lists'!$K$49,AC69,IF(D69='Dropdown Lists'!$K$50,AD69,IF(D69='Dropdown Lists'!$K$51,AE69,IF(D69='Dropdown Lists'!$K$52,AF69,IF(D69='Dropdown Lists'!$K$53,AG69,IF(D69='Dropdown Lists'!$K$54,AH69,IF(D69='Dropdown Lists'!$K$55,AJ69,"")))))))))))))))))))) -> -- | G69: -- | I69: =IF(ISBLANK(A69),"--",VLOOKUP(A69,Injuries_WorkMissed!$B$109:$G$863,2,FALSE)) -> -- | J69: =IF(ISBLANK(A69),"--",VLOOKUP(A69,Injuries_WorkMissed!$B$109:$G$863,3,FALSE)) -> -- | K69: =IF(ISBLANK(A69),"--",VLOOKUP(A69,Injuries_WorkMissed!$B$109:$G$863,4,FALSE)) -> -- | L69: =IF(ISBLANK(A69),"--",VLOOKUP(A69,Injuries_WorkMissed!$B$109:$G$863,5,FALSE)) -> -- | M69: =IF(ISBLANK(A69),"--",VLOOKUP(A69,Injuries_WorkMissed!$B$109:$G$863,6,FALSE)) -> -- | P69: =MIN(DataExtract!$BP$3:$BP$1597) -> 0 | Q69: =_xlfn.PERCENTILE.EXC(DataExtract!$BP$3:$BP$1597,0.1) -> 0 | R69: =_xlfn.PERCENTILE.EXC(DataExtract!$BP$3:$BP$1597,0.25) -> 0 | S69: =AVERAGE(DataExtract!$BP$3:$BP$5302) -> 23.92471698 | T69: 1.5 | U69: =MODE(DataExtract!$BP$1598:$BP$5302) -> 0 | V69: =_xlfn.PERCENTILE.EXC(DataExtract!$BP$3:$BP$5302,0.75) -> 5 | W69: =_xlfn.PERCENTILE.EXC(DataExtract!$BP$3:$BP$5302,0.9) -> 92 | X69: =MAX(DataExtract!$BP$3:$BP$5302) -> 365 | Y69: =COUNT(DataExtract!$BP$3:$BP$5302) -> 5300 | Z69: =MIN(DataExtract!$BO$3:$BO$1597) -> 1 | AA69: =_xlfn.PERCENTILE.EXC(DataExtract!$BO$3:$BO$1597,0.1) -> 3 | AB69: =_xlfn.PERCENTILE.EXC(DataExtract!$BO$3:$BO$1597,0.25) -> 8 | AC69: =AVERAGE(DataExtract!$BO$3:$BO$1597) -> 79.49905956 | AD69: =MEDIAN(DataExtract!$BO$3:$BO$1597) -> 46 | AE69: =MODE(DataExtract!$BO$3:$BO$1597) -> 180 | AF69: =_xlfn.PERCENTILE.EXC(DataExtract!$BO$3:$BO$1597,0.75) -> 132 | AG69: =_xlfn.PERCENTILE.EXC(DataExtract!$BO$3:$BO$1597,0.9) -> 202 | AH69: =MAX(DataExtract!$BO$3:$BO$1597,0.25) -> 365 | AI69: =COUNT(DataExtract!$BO$3:$BO$1597) -> 1595
C70: =IF(ISBLANK(A70),"--",IF(B70=$I$14,I70,IF(B70=$J$14,J70,IF(B70=$K$14,K70,IF(B70=$L$14,L70,IF(B70=$N$14,N70,IF(B70=$M$14,M70,IF(B70='Dropdown Lists'!$O$23,Injuries_WorkMissed!N70,"--")))))))) -> -- | E70: =IF(ISBLANK(D70),"--",IF(D70='Dropdown Lists'!$K$37,P70,IF(D70='Dropdown Lists'!$K$38,Q70,IF(D70='Dropdown Lists'!$K$39,R70,IF(D70='Dropdown Lists'!$K$40,S70,IF(D70='Dropdown Lists'!$K$41,T70,IF(D70='Dropdown Lists'!$K$42,U70,IF(D70='Dropdown Lists'!$K$43,V70,IF(D70='Dropdown Lists'!$K$44,W70,IF(D70='Dropdown Lists'!$K$45,X70,IF(D70='Dropdown Lists'!$K$46,Z70,IF(D70='Dropdown Lists'!$K$47,AA70,IF(D70='Dropdown Lists'!$K$48,AB70,IF(D70='Dropdown Lists'!$K$49,AC70,IF(D70='Dropdown Lists'!$K$50,AD70,IF(D70='Dropdown Lists'!$K$51,AE70,IF(D70='Dropdown Lists'!$K$52,AF70,IF(D70='Dropdown Lists'!$K$53,AG70,IF(D70='Dropdown Lists'!$K$54,AH70,IF(D70='Dropdown Lists'!$K$55,AJ70,"")))))))))))))))))))) -> -- | G70: -- | I70: =IF(ISBLANK(A70),"--",VLOOKUP(A70,Injuries_WorkMissed!$B$109:$G$863,2,FALSE)) -> -- | J70: =IF(ISBLANK(A70),"--",VLOOKUP(A70,Injuries_WorkMissed!$B$109:$G$863,3,FALSE)) -> -- | K70: =IF(ISBLANK(A70),"--",VLOOKUP(A70,Injuries_WorkMissed!$B$109:$G$863,4,FALSE)) -> -- | L70: =IF(ISBLANK(A70),"--",VLOOKUP(A70,Injuries_WorkMissed!$B$109:$G$863,5,FALSE)) -> -- | M70: =IF(ISBLANK(A70),"--",VLOOKUP(A70,Injuries_WorkMissed!$B$109:$G$863,6,FALSE)) -> -- | P70: =MIN(DataExtract!$BP$3:$BP$1597) -> 0 | Q70: =_xlfn.PERCENTILE.EXC(DataExtract!$BP$3:$BP$1597,0.1) -> 0 | R70: =_xlfn.PERCENTILE.EXC(DataExtract!$BP$3:$BP$1597,0.25) -> 0 | S70: =AVERAGE(DataExtract!$BP$3:$BP$5302) -> 23.92471698 | T70: 1.5 | U70: =MODE(DataExtract!$BP$1598:$BP$5302) -> 0 | V70: =_xlfn.PERCENTILE.EXC(DataExtract!$BP$3:$BP$5302,0.75) -> 5 | W70: =_xlfn.PERCENTILE.EXC(DataExtract!$BP$3:$BP$5302,0.9) -> 92 | X70: =MAX(DataExtract!$BP$3:$BP$5302) -> 365 | Y70: =COUNT(DataExtract!$BP$3:$BP$5302) -> 5300 | Z70: =MIN(DataExtract!$BO$3:$BO$1597) -> 1 | AA70: =_xlfn.PERCENTILE.EXC(DataExtract!$BO$3:$BO$1597,0.1) -> 3 | AB70: =_xlfn.PERCENTILE.EXC(DataExtract!$BO$3:$BO$1597,0.25) -> 8 | AC70: =AVERAGE(DataExtract!$BO$3:$BO$1597) -> 79.49905956 | AD70: =MEDIAN(DataExtract!$BO$3:$BO$1597) -> 46 | AE70: =MODE(DataExtract!$BO$3:$BO$1597) -> 180 | AF70: =_xlfn.PERCENTILE.EXC(DataExtract!$BO$3:$BO$1597,0.75) -> 132 | AG70: =_xlfn.PERCENTILE.EXC(DataExtract!$BO$3:$BO$1597,0.9) -> 202 | AH70: =MAX(DataExtract!$BO$3:$BO$1597,0.25) -> 365 | AI70: =COUNT(DataExtract!$BO$3:$BO$1597) -> 1595
C71: =IF(ISBLANK(A71),"--",IF(B71=$I$14,I71,IF(B71=$J$14,J71,IF(B71=$K$14,K71,IF(B71=$L$14,L71,IF(B71=$N$14,N71,IF(B71=$M$14,M71,IF(B71='Dropdown Lists'!$O$23,Injuries_WorkMissed!N71,"--")))))))) -> -- | E71: =IF(ISBLANK(D71),"--",IF(D71='Dropdown Lists'!$K$37,P71,IF(D71='Dropdown Lists'!$K$38,Q71,IF(D71='Dropdown Lists'!$K$39,R71,IF(D71='Dropdown Lists'!$K$40,S71,IF(D71='Dropdown Lists'!$K$41,T71,IF(D71='Dropdown Lists'!$K$42,U71,IF(D71='Dropdown Lists'!$K$43,V71,IF(D71='Dropdown Lists'!$K$44,W71,IF(D71='Dropdown Lists'!$K$45,X71,IF(D71='Dropdown Lists'!$K$46,Z71,IF(D71='Dropdown Lists'!$K$47,AA71,IF(D71='Dropdown Lists'!$K$48,AB71,IF(D71='Dropdown Lists'!$K$49,AC71,IF(D71='Dropdown Lists'!$K$50,AD71,IF(D71='Dropdown Lists'!$K$51,AE71,IF(D71='Dropdown Lists'!$K$52,AF71,IF(D71='Dropdown Lists'!$K$53,AG71,IF(D71='Dropdown Lists'!$K$54,AH71,IF(D71='Dropdown Lists'!$K$55,AJ71,"")))))))))))))))))))) -> -- | G71: -- | I71: =IF(ISBLANK(A71),"--",VLOOKUP(A71,Injuries_WorkMissed!$B$109:$G$863,2,FALSE)) -> -- | J71: =IF(ISBLANK(A71),"--",VLOOKUP(A71,Injuries_WorkMissed!$B$109:$G$863,3,FALSE)) -> -- | K71: =IF(ISBLANK(A71),"--",VLOOKUP(A71,Injuries_WorkMissed!$B$109:$G$863,4,FALSE)) -> -- | L71: =IF(ISBLANK(A71),"--",VLOOKUP(A71,Injuries_WorkMissed!$B$109:$G$863,5,FALSE)) -> -- | M71: =IF(ISBLANK(A71),"--",VLOOKUP(A71,Injuries_WorkMissed!$B$109:$G$863,6,FALSE)) -> -- | P71: =MIN(DataExtract!$BP$3:$BP$1597) -> 0 | Q71: =_xlfn.PERCENTILE.EXC(DataExtract!$BP$3:$BP$1597,0.1) -> 0 | R71: =_xlfn.PERCENTILE.EXC(DataExtract!$BP$3:$BP$1597,0.25) -> 0 | S71: =AVERAGE(DataExtract!$BP$3:$BP$5302) -> 23.92471698 | T71: 1.5 | U71: =MODE(DataExtract!$BP$1598:$BP$5302) -> 0 | V71: =_xlfn.PERCENTILE.EXC(DataExtract!$BP$3:$BP$5302,0.75) -> 5 | W71: =_xlfn.PERCENTILE.EXC(DataExtract!$BP$3:$BP$5302,0.9) -> 92 | X71: =MAX(DataExtract!$BP$3:$BP$5302) -> 365 | Y71: =COUNT(DataExtract!$BP$3:$BP$5302) -> 5300 | Z71: =MIN(DataExtract!$BO$3:$BO$1597) -> 1 | AA71: =_xlfn.PERCENTILE.EXC(DataExtract!$BO$3:$BO$1597,0.1) -> 3 | AB71: =_xlfn.PERCENTILE.EXC(DataExtract!$BO$3:$BO$1597,0.25) -> 8 | AC71: =AVERAGE(DataExtract!$BO$3:$BO$1597) -> 79.49905956 | AD71: =MEDIAN(DataExtract!$BO$3:$BO$1597) -> 46 | AE71: =MODE(DataExtract!$BO$3:$BO$1597) -> 180 | AF71: =_xlfn.PERCENTILE.EXC(DataExtract!$BO$3:$BO$1597,0.75) -> 132 | AG71: =_xlfn.PERCENTILE.EXC(DataExtract!$BO$3:$BO$1597,0.9) -> 202 | AH71: =MAX(DataExtract!$BO$3:$BO$1597,0.25) -> 365 | AI71: =COUNT(DataExtract!$BO$3:$BO$1597) -> 1595
C72: =IF(ISBLANK(A72),"--",IF(B72=$I$14,I72,IF(B72=$J$14,J72,IF(B72=$K$14,K72,IF(B72=$L$14,L72,IF(B72=$N$14,N72,IF(B72=$M$14,M72,IF(B72='Dropdown Lists'!$O$23,Injuries_WorkMissed!N72,"--")))))))) -> -- | E72: =IF(ISBLANK(D72),"--",IF(D72='Dropdown Lists'!$K$37,P72,IF(D72='Dropdown Lists'!$K$38,Q72,IF(D72='Dropdown Lists'!$K$39,R72,IF(D72='Dropdown Lists'!$K$40,S72,IF(D72='Dropdown Lists'!$K$41,T72,IF(D72='Dropdown Lists'!$K$42,U72,IF(D72='Dropdown Lists'!$K$43,V72,IF(D72='Dropdown Lists'!$K$44,W72,IF(D72='Dropdown Lists'!$K$45,X72,IF(D72='Dropdown Lists'!$K$46,Z72,IF(D72='Dropdown Lists'!$K$47,AA72,IF(D72='Dropdown Lists'!$K$48,AB72,IF(D72='Dropdown Lists'!$K$49,AC72,IF(D72='Dropdown Lists'!$K$50,AD72,IF(D72='Dropdown Lists'!$K$51,AE72,IF(D72='Dropdown Lists'!$K$52,AF72,IF(D72='Dropdown Lists'!$K$53,AG72,IF(D72='Dropdown Lists'!$K$54,AH72,IF(D72='Dropdown Lists'!$K$55,AJ72,"")))))))))))))))))))) -> -- | G72: -- | I72: =IF(ISBLANK(A72),"--",VLOOKUP(A72,Injuries_WorkMissed!$B$109:$G$863,2,FALSE)) -> -- | J72: =IF(ISBLANK(A72),"--",VLOOKUP(A72,Injuries_WorkMissed!$B$109:$G$863,3,FALSE)) -> -- | K72: =IF(ISBLANK(A72),"--",VLOOKUP(A72,Injuries_WorkMissed!$B$109:$G$863,4,FALSE)) -> -- | L72: =IF(ISBLANK(A72),"--",VLOOKUP(A72,Injuries_WorkMissed!$B$109:$G$863,5,FALSE)) -> -- | M72: =IF(ISBLANK(A72),"--",VLOOKUP(A72,Injuries_WorkMissed!$B$109:$G$863,6,FALSE)) -> -- | P72: =MIN(DataExtract!$BP$3:$BP$1597) -> 0 | Q72: =_xlfn.PERCENTILE.EXC(DataExtract!$BP$3:$BP$1597,0.1) -> 0 | R72: =_xlfn.PERCENTILE.EXC(DataExtract!$BP$3:$BP$1597,0.25) -> 0 | S72: =AVERAGE(DataExtract!$BP$3:$BP$5302) -> 23.92471698 | T72: 1.5 | U72: =MODE(DataExtract!$BP$1598:$BP$5302) -> 0 | V72: =_xlfn.PERCENTILE.EXC(DataExtract!$BP$3:$BP$5302,0.75) -> 5 | W72: =_xlfn.PERCENTILE.EXC(DataExtract!$BP$3:$BP$5302,0.9) -> 92 | X72: =MAX(DataExtract!$BP$3:$BP$5302) -> 365 | Y72: =COUNT(DataExtract!$BP$3:$BP$5302) -> 5300 | Z72: =MIN(DataExtract!$BO$3:$BO$1597) -> 1 | AA72: =_xlfn.PERCENTILE.EXC(DataExtract!$BO$3:$BO$1597,0.1) -> 3 | AB72: =_xlfn.PERCENTILE.EXC(DataExtract!$BO$3:$BO$1597,0.25) -> 8 | AC72: =AVERAGE(DataExtract!$BO$3:$BO$1597) -> 79.49905956 | AD72: =MEDIAN(DataExtract!$BO$3:$BO$1597) -> 46 | AE72: =MODE(DataExtract!$BO$3:$BO$1597) -> 180 | AF72: =_xlfn.PERCENTILE.EXC(DataExtract!$BO$3:$BO$1597,0.75) -> 132 | AG72: =_xlfn.PERCENTILE.EXC(DataExtract!$BO$3:$BO$1597,0.9) -> 202 | AH72: =MAX(DataExtract!$BO$3:$BO$1597,0.25) -> 365 | AI72: =COUNT(DataExtract!$BO$3:$BO$1597) -> 1595
